Workbook

Sheet DA 2.1 (hidden)
A1: ='DA 2.2'!C2 -> 2016-07-01 | D1: Start date: | E1: ='DA 2.2'!C2 -> 2016-07-01
A2: ='DA 2.2'!C3 -> 2017-08-31 | D2: End date: | E2: ='DA 2.2'!D15 -> 2017-08-31
A3: ='DA 2.2'!C4 -> 2017-08-31
A4: ='DA 2.2'!C5 -> 2017-08-31 | D4: Sorted list
A5: ='DA 2.2'!C6 -> 2017-10-01 | D5: =SMALL(A2:A8,1) -> 2016-10-01
A6: ='DA 2.2'!C7 -> 2017-08-31 | D6: =SMALL(A2:A8,2) -> 2017-08-31
A7: ='DA 2.2'!C8 -> 2017-08-31 | D7: =SMALL(A2:A8,3) -> 2017-08-31
A8: ='DA 2.2'!C9 -> 2016-10-01 | D8: =SMALL(A2:A8,4) -> 2017-08-31
D9: =SMALL(A2:A8,5) -> 2017-08-31
D10: =SMALL(A2:A8,6) -> 2017-08-31
D11: =SMALL(A2:A8,7) -> 2017-10-01

Sheet DA 2.2 (hidden)
C1: DATE FROM | D1: DATE ASCENDING | E1: VLOOKUP | F1: INCREMENTS | G1: B PAY
B2: BASIC PAY AS ON | C2: 2016-07-01 | D2: =C2 -> 2016-07-01 | E2: =VLOOKUP(G2,L3:M82,2) -> 36 | G2: ='DA 1.3'!C188 -> 38130 | H2: set link to date
B3: aas date 2 | C3: =IF(I15=1,D15,IF(DATA!CZ5=1-1-0,D15,IF(DATA!CZ5>=D15,D15,DATA!CZ5))) -> 2017-08-31 | D3: ='DA 2.1'!D5 -> 2016-10-01 | E3: =E2+F3 -> 37 | F3: =IF(D3<=J15,0,IF(D3>=D15,0,IF(D3=A16,0,IF(D3=C8,D46,IF(F17=1,F20,1))))) -> 1 | G3: =IF(D3=I13,J13,VLOOKUP(E3,K3:L82,2)) -> 39160 | J3: =E2 -> 36 | K3: 1 | L3: 14170 | M3: 1 | N3: =E2 -> 36 | O3: 1 | P3: 1 | Q3: 2016-07-01 | R3: 2016-07-01 | S3: 1 | V3: aas | W3: DATE | AC3: promotion | AD3: DATE
B4: AAS DATE | C4: =IF(F15=1,VLOOKUP(U4,V4:W765,2),Q15) -> 2017-08-31 | D4: ='DA 2.1'!D6 -> 2017-08-31 | E4: 37 | F4: =IF(D4<=J15,0,IF(D4>=D15,0,IF(D4=A16,0,IF(D4=C8,D46,IF(F17=1,F20,1))))) -> 0 | G4: =IF(D4=I13,J13,VLOOKUP(E4,K3:L82,2)) -> 39160 | J4: =E2 -> 36 | K4: 2 | L4: 14600 | M4: 2 | P4: 2 | Q4: 2016-08-01 | R4: 2016-08-01 | S4: 1 | U4: ='DA 1.2'!U4 -> 402 | V4: 1 | W4: 2016-01-01 | X4: =F15 -> 2 | Z4: =IF(X4=2,"",W4) ->  | AB4: ='DA 1.2'!AB4 -> 402 | AC4: 1 | AD4: 2016-01-01 | AE4: =F17 -> 2 | AG4: =IF(AE4=2,"",AD4) -> 
B5: Promotion Increment | C5: =IF(F17=2,Q15,VLOOKUP(AB4,AC4:AD765,2)) -> 2017-08-31 | D5: ='DA 2.1'!D7 -> 2017-08-31 | E5: 37 | F5: =IF(D5<=J15,0,IF(D5>=D15,0,IF(D5=A17,0,IF(D5=C8,D46,IF(F17=1,F20,1))))) -> 0 | G5: =IF(D5=I13,J13,VLOOKUP(E5,K3:L82,2)) -> 39160 | J5: =J4 -> 36 | K5: 3 | L5: 15030 | M5: 3 | P5: 3 | Q5: 2016-09-01 | R5: 2016-09-01 | S5: 1 | V5: 2 | W5: 2016-01-02 | X5: =X4 -> 2 | Z5: =IF(X5=2,"",W5) ->  | AC5: 2 | AD5: 2016-01-02 | AE5: =AE4 -> 2 | AG5: =IF(AE5=2,"",AD5) -> 
B6: BASIC PAY AS ON | C6: =H7 -> 2017-10-01 | D6: ='DA 2.1'!D8 -> 2017-08-31 | E6: 37 | F6: =IF(D6<=J15,0,IF(D6>=D15,0,IF(D6=A16,0,IF(D6=C8,D46,IF(F17=1,F20,1))))) -> 0 | G6: =IF(D6=I13,J13,VLOOKUP(E6,K3:L82,2)) -> 39160 | I6: 2017-02-01 | K6: 4 | L6: 15460 | M6: 4 | P6: 4 | Q6: 2016-10-01 | R6: 2016-10-01 | S6: 1 | V6: 3 | W6: 2016-01-03 | X6: =X5 -> 2 | AC6: 3 | AD6: 2016-01-03 | AE6: =AE5 -> 2
B7: INCREMENT DATE 2 | C7: =IF(H7=I6,I7,IF(H7>D15,D15,IF(H7="not applicable",D15,H7))) -> 2017-08-31 | D7: ='DA 2.1'!D9 -> 2017-08-31 | E7: 37 | F7: =IF(D7<=J15,0,IF(D7>=D15,0,IF(D7=A17,0,IF(D7=C8,D46,IF(F17=1,F20,1))))) -> 0 | G7: =IF(D7=I13,J13,VLOOKUP(E7,K3:L82,2)) -> 39160 | H7: =VLOOKUP(DATA!CQ5,DATA!CR5:CS19,2) -> 2017-10-01 | I7: 2017-02-01 | K7: 5 | L7: 15930 | M7: 5 | P7: 5 | Q7: 2016-11-01 | R7: 2016-11-01 | S7: 1 | V7: 4 | W7: 2016-01-04 | X7: 2 | AC7: 4 | AD7: 2016-01-04 | AE7: 2
B8: promotion increment 2 | C8: =IF(F17=1,D15,IF(DATA!DX5>=D15,D15,IF(DATA!DX5=1-1-0,D15,DATA!DX5))) -> 2017-08-31 | D8: ='DA 2.1'!D10 -> 2017-08-31 | E8: 37 | F8: =IF(D8<=J15,0,IF(D8>=D15,0,IF(D8=A17,0,IF(D8=C8,D46,IF(F17=1,F20,1))))) -> 0 | G8: =IF(D8=I13,J13,VLOOKUP(E8,K3:L82,2)) -> 39160 | K8: 6 | L8: 16400 | M8: 6 | P8: 6 | Q8: 2016-12-01 | R8: 2016-12-01 | S8: 1 | V8: 5 | W8: 2016-01-05 | X8: 2 | AC8: 5 | AD8: 2016-01-05 | AE8: 2
B9: INCREMENT DATE 1 | C9: =IF('DA 1.2'!C3<'DA 2.2'!C15,'DA 1.2'!C3,'DA 2.2'!D16) -> 2016-10-01 | D9: ='DA 2.1'!D11 -> 2017-10-01 | K9: 7 | L9: 16870 | M9: 7 | P9: 7 | Q9: 2017-01-01 | R9: 2017-01-01 | S9: 1 | V9: 6 | W9: 2016-01-06 | X9: 2 | AC9: 6 | AD9: 2016-01-06 | AE9: 2
B10: SURRENDER LEAVE DA DIFFERENCE | C10: =VLOOKUP(D51,E50:F74,2) -> 2016-11-01 | D10: =MONTH(D15) -> 8 | E10: =YEAR(D15) -> 2017 | K10: 8 | L10: 17380 | M10: 8 | P10: 8 | Q10: 2017-02-01 | R10: 2017-02-01 | S10: 1 | V10: 7 | W10: 2016-01-07 | X10: 2 | AC10: 7 | AD10: 2016-01-07 | AE10: 2
B11: DAYS | C11: =IF(H52=2,VLOOKUP(C10,H76:I100,2),DATE(E11,D11,D12)) -> 2016-11-06 | D11: =MONTH(C10) -> 11 | E11: =YEAR(C10) -> 2016 | K11: 9 | L11: 17890 | M11: 9 | P11: 9 | Q11: 2017-03-01 | R11: 2017-03-01 | S11: 1 | V11: 8 | W11: 2016-01-08 | X11: 2 | AC11: 8 | AD11: 2016-01-08 | AE11: 2
B12: SL | D12: =VLOOKUP(H52,H50:J51,3) -> 30 | E12: =DATE(E10,D10,1) -> 2017-08-01 | K12: 10 | L12: 18400 | M12: 10 | P12: 10 | Q12: 2017-04-01 | R12: 2017-04-01 | S12: 1 | V12: 9 | W12: 2016-01-09 | X12: 2 | AC12: 9 | AD12: 2016-01-09 | AE12: 2
B13: DAY | C13: MONTH | D13: YEAR | I13: 2016-01-01 | J13: =DATA!J5 -> 39160 | K13: 11 | L13: 18950 | M13: 11 | P13: 11 | Q13: 2017-05-01 | R13: 2017-05-01 | S13: 1 | V13: 10 | W13: 2016-01-10 | X13: 2 | AC13: 10 | AD13: 2016-01-10 | AE13: 2
B14: =IF(D12=15,15,VLOOKUP(C14,'DA 2.3'!D6:E586,2)) -> 30 | C14: =MONTH(C10) -> 11 | D14: =YEAR(C10) -> 2016 | K14: 12 | L14: 19500 | M14: 12 | P14: 12 | Q14: 2017-06-01 | R14: 2017-06-01 | S14: 1 | V14: 11 | W14: 2016-01-11 | X14: 2 | AC14: 11 | AD14: 2016-01-11 | AE14: 2
B15: BILL UPTO | C15: =C16 -> 2017-08-01 | D15: =VLOOKUP(D24,E24:F47,2) -> 2017-08-31 | E15: aas | F15: ='DA 1.2'!F15 -> 2 | G15: 1 | H15: Yes | I15: =F15 -> 2 | J15: 2016-07-01 | K15: 13 | L15: 20050 | M15: 13 | P15: 13 | Q15: =D15 -> 2017-08-31 | R15: Not applicable | S15: 0 | V15: 12 | W15: 2016-01-12 | X15: 2 | AC15: 12 | AD15: 2016-01-12 | AE15: 2
A16: 2016-07-01 | B16: =D15 -> 2017-08-31 | C16: =E12 -> 2017-08-01 | D16: =D15 -> 2017-08-31 | G16: 2 | H16: No | I16: =I15 -> 2 | J16: =J15 -> 2016-07-01 | K16: 14 | L16: 20640 | M16: 14 | V16: 13 | W16: 2016-01-13 | X16: 2 | AC16: 13 | AD16: 2016-01-13 | AE16: 2
A17: =A16 -> 2016-07-01 | B17: =B16 -> 2017-08-31 | C17: =C16 -> 2017-08-01 | D17: =D16 -> 2017-08-31 | E17: promotion | F17: ='DA 1.2'!F17 -> 2 | G17: 1 | H17: Yes | I17: =F17 -> 2 | K17: 15 | L17: 21230 | M17: 15 | V17: 14 | W17: 2016-01-14 | X17: 2 | AC17: 14 | AD17: 2016-01-14 | AE17: 2
A18: =A17 -> 2016-07-01 | B18: =B17 -> 2017-08-31 | C18: =C17 -> 2017-08-01 | D18: 2017-08-31 | F18: =F17 -> 2 | G18: 2 | H18: No | I18: =I17 -> 2 | K18: 16 | L18: 21820 | M18: 16 | V18: 15 | W18: 2016-01-15 | X18: 2 | AC18: 15 | AD18: 2016-01-15 | AE18: 2
A19: 2016-07-01 | B19: 2017-08-31 | C19: 2017-08-01 | D19: 2017-08-31 | I19: 2 | K19: 17 | L19: 22460 | M19: 17 | V19: 16 | W19: 2016-01-16 | X19: 2 | AC19: 16 | AD19: 2016-01-16 | AE19: 2
A20: 2016-07-01 | B20: 2017-08-31 | C20: 2017-08-01 | D20: 2017-08-31 | E20: promotion inc | F20: ='DA 1.2'!F20 -> 1 | G20: 1 | H20: =IF(F17=2,"",I20) ->  | I20: 1 Increment | K20: 18 | L20: 23100 | M20: 18 | V20: 17 | W20: 2016-01-17 | X20: 2 | AC20: 17 | AD20: 2016-01-17 | AE20: 2
A21: 2016-07-01 | B21: 2017-08-31 | C21: 2017-08-01 | D21: 2017-08-31 | G21: 2 | H21: =IF(F18=2,"",I21) ->  | I21: 2 Increments | K21: 19 | L21: 23740 | M21: 19 | V21: 18 | W21: 2016-01-18 | X21: 2 | AC21: 18 | AD21: 2016-01-18 | AE21: 2
A22: 2016-07-01 | B22: 2017-08-31 | C22: 2017-08-01 | D22: 2017-08-31 | K22: 20 | L22: 24440 | M22: 20 | V22: 19 | W22: 2016-01-19 | X22: 2 | AC22: 19 | AD22: 2016-01-19 | AE22: 2
C23: 2017-08-01 | E23: bill upto the month of | F23: 2016-01-31 | G23: 1 | H23: 2016 | I23: 2016-01-01 | K23: 21 | L23: 25140 | M23: 21 | V23: 20 | W23: 2016-01-20 | X23: 2 | AC23: 20 | AD23: 2016-01-20 | AE23: 2
C24: 2017-08-01 | D24: 19 | E24: 1 | F24: 2016-02-29 | G24: =MONTH(F24) -> 2 | H24: =YEAR(F24) -> 2016 | I24: =DATE(H24,G24,1) -> 2016-02-01 | J24: Feb- 16 | K24: 22 | L24: 25840 | M24: 22 | V24: 21 | W24: 2016-01-21 | X24: 2 | AC24: 21 | AD24: 2016-01-21 | AE24: 2
C25: 2017-08-01 | E25: 2 | F25: 2016-03-31 | G25: =MONTH(F25) -> 3 | H25: =YEAR(F25) -> 2016 | I25: =DATE(H25,G25,1) -> 2016-03-01 | J25: Mar- 16 | K25: 23 | L25: 26600 | M25: 23 | V25: 22 | W25: 2016-01-22 | X25: 2 | AC25: 22 | AD25: 2016-01-22 | AE25: 2
C26: 2017-08-01 | E26: 3 | F26: 2016-04-30 | G26: 4 | H26: 2016 | I26: 2016-04-01 | J26: Apr- 16 | K26: 24 | L26: 27360 | M26: 24 | V26: 23 | W26: 2016-01-23 | X26: 2 | AC26: 23 | AD26: 2016-01-23 | AE26: 2
C27: 2017-08-01 | E27: 4 | F27: 2016-05-31 | G27: 5 | H27: 2016 | I27: 2016-05-01 | J27: May- 16 | K27: 25 | L27: 28120 | M27: 25 | V27: 24 | W27: 2016-01-24 | X27: 2 | AC27: 24 | AD27: 2016-01-24 | AE27: 2
C28: 2017-08-01 | E28: 5 | F28: 2016-06-30 | G28: 6 | H28: 2016 | I28: 2016-06-01 | J28: Jun- 16 | K28: 26 | L28: 28940 | M28: 26 | V28: 25 | W28: 2016-01-25 | X28: 2 | AC28: 25 | AD28: 2016-01-25 | AE28: 2
C29: 2017-08-01 | E29: 6 | F29: 2016-07-31 | G29: 7 | H29: 2016 | I29: 2016-07-01 | J29: Jul- 16 | K29: 27 | L29: 29760 | M29: 27 | V29: 26 | W29: 2016-01-26 | X29: 2 | AC29: 26 | AD29: 2016-01-26 | AE29: 2
C30: 2017-08-01 | E30: 7 | F30: 2016-08-31 | G30: 8 | H30: 2016 | I30: 2016-08-01 | J30: Aug- 16 | K30: 28 | L30: 30580 | M30: 28 | V30: 27 | W30: 2016-01-27 | X30: 2 | AC30: 27 | AD30: 2016-01-27 | AE30: 2
C31: 2017-08-01 | E31: 8 | F31: 2016-09-30 | G31: 9 | H31: 2016 | I31: 2016-09-01 | J31: Sep- 16 | K31: 29 | L31: 31460 | M31: 29 | V31: 28 | W31: 2016-01-28 | X31: 2 | AC31: 28 | AD31: 2016-01-28 | AE31: 2
C32: 2017-08-01 | E32: 9 | F32: 2016-10-31 | G32: 10 | H32: 2016 | I32: 2016-10-01 | J32: Oct- 16 | K32: 30 | L32: 32340 | M32: 30 | V32: 29 | W32: 2016-01-29 | X32: 2 | AC32: 29 | AD32: 2016-01-29 | AE32: 2
C33: 2017-08-01 | E33: 10 | F33: 2016-11-30 | G33: 11 | H33: 2016 | I33: 2016-11-01 | J33: Nov- 16 | K33: 31 | L33: 33220 | M33: 31 | V33: 30 | W33: 2016-01-30 | X33: 2 | AC33: 30 | AD33: 2016-01-30 | AE33: 2
C34: 2017-08-01 | E34: 11 | F34: 2016-12-31 | G34: 12 | H34: 2016 | I34: 2016-12-01 | J34: Dec- 16 | K34: 32 | L34: 34170 | M34: 32 | V34: 31 | W34: 2016-01-31 | X34: 2 | AC34: 31 | AD34: 2016-01-31 | AE34: 2
C35: 2017-08-01 | E35: 12 | F35: 2017-01-31 | G35: 1 | H35: 2017 | I35: 2017-01-01 | J35: Jan- 17 | K35: 33 | L35: 35120 | M35: 33 | V35: 32 | W35: 2016-02-01 | X35: 2 | AC35: 32 | AD35: 2016-02-01 | AE35: 2
C36: 2017-08-01 | E36: 13 | F36: 2017-02-28 | G36: 2 | H36: 2017 | I36: 2017-02-01 | J36: Feb- 17 | K36: 34 | L36: 36070 | M36: 34 | V36: 33 | W36: 2016-02-02 | X36: 2 | AC36: 33 | AD36: 2016-02-02 | AE36: 2
C37: 2017-08-01 | E37: 14 | F37: 2017-03-31 | G37: 3 | H37: 2017 | I37: 2017-03-01 | J37: Mar- 17 | K37: 35 | L37: 37100 | M37: 35 | V37: 34 | W37: 2016-02-03 | X37: 2 | AC37: 34 | AD37: 2016-02-03 | AE37: 2
C38: 2017-08-01 | E38: 15 | F38: 2017-04-30 | G38: 4 | H38: 2017 | I38: 2017-04-01 | J38: Apr- 17 | K38: 36 | L38: 38130 | M38: 36 | V38: 35 | W38: 2016-02-04 | X38: 2 | AC38: 35 | AD38: 2016-02-04 | AE38: 2
C39: 2017-08-01 | E39: 16 | F39: 2017-05-31 | G39: 5 | H39: 2017 | I39: 2017-05-01 | J39: May- 17 | K39: 37 | L39: 39160 | M39: 37 | V39: 36 | W39: 2016-02-05 | X39: 2 | AC39: 36 | AD39: 2016-02-05 | AE39: 2
D40: =D24 -> 19 | E40: 17 | F40: 2017-06-30 | G40: 6 | H40: 2017 | I40: 2017-06-01 | J40: Jun- 17 | K40: 38 | L40: 40270 | M40: 38 | V40: 37 | W40: 2016-02-06 | X40: 2 | AC40: 37 | AD40: 2016-02-06 | AE40: 2
E41: 18 | F41: 2017-07-31 | G41: 7 | H41: 2017 | I41: 2017-07-01 | J41: Jul- 17 | K41: 39 | L41: 41380 | M41: 39 | V41: 38 | W41: 2016-02-07 | X41: 2 | AC41: 38 | AD41: 2016-02-07 | AE41: 2
E42: 19 | F42: 2017-08-31 | G42: 8 | H42: 2017 | I42: 2017-08-01 | J42: Aug- 17 | K42: 40 | L42: 42490 | M42: 40 | V42: 39 | W42: 2016-02-08 | X42: 2 | AC42: 39 | AD42: 2016-02-08 | AE42: 2
E43: 20 | F43: 2017-09-30 | G43: 9 | H43: 2017 | I43: 2017-09-01 | J43: Sep- 17 | K43: 41 | L43: 43680 | M43: 41 | V43: 40 | W43: 2016-02-09 | X43: 2 | AC43: 40 | AD43: 2016-02-09 | AE43: 2
E44: 21 | F44: 2017-10-31 | G44: 10 | H44: 2017 | I44: 2017-10-01 | J44: Oct- 17 | K44: 42 | L44: 44870 | M44: 42 | V44: 41 | W44: 2016-02-10 | X44: 2 | AC44: 41 | AD44: 2016-02-10 | AE44: 2
E45: 22 | F45: 2017-11-30 | G45: 11 | H45: 2017 | I45: 2017-11-01 | J45: Nov- 17 | K45: 43 | L45: 46060 | M45: 43 | V45: 42 | W45: 2016-02-11 | X45: 2 | AC45: 42 | AD45: 2016-02-11 | AE45: 2
B46: promotion 2 | C46: =DATA!EP3 -> 2 | D46: =C46-1 -> 1 | E46: 23 | F46: 2017-12-31 | G46: 12 | H46: 2017 | I46: 2017-12-01 | J46: Dec- 17 | K46: 44 | L46: 47330 | M46: 44 | V46: 43 | W46: 2016-02-12 | X46: 2 | AC46: 43 | AD46: 2016-02-12 | AE46: 2
E47: 24 | F47: 2018-01-31 | G47: 1 | H47: 2018 | I47: 2018-01-01 | J47: Jan- 18 | K47: 45 | L47: 48600 | M47: 45 | V47: 44 | W47: 2016-02-13 | X47: 2 | AC47: 44 | AD47: 2016-02-13 | AE47: 2
K48: 46 | L48: 49870 | M48: 46 | V48: 45 | W48: 2016-02-14 | X48: 2 | AC48: 45 | AD48: 2016-02-14 | AE48: 2
K49: 47 | L49: 51230 | M49: 47 | V49: 46 | W49: 2016-02-15 | X49: 2 | AC49: 46 | AD49: 2016-02-15 | AE49: 2
B50: 2 | C50: Yes | D50: SL | E50: 1 | F50: 2016-01-01 | G50: =IF(B50=1,IF(F50<=C16,I23,""),"") ->  | H50: 1 | I50: =IF(B50=1,"15 days","") ->  | J50: 15 | K50: 48 | L50: 52590 | M50: 48 | V50: 47 | W50: 2016-02-16 | X50: 2 | AC50: 47 | AD50: 2016-02-16 | AE50: 2
B51: =B50 -> 2 | C51: No | D51: 11 | E51: 2 | F51: 2016-02-01 | G51: =IF(B50=2,"",IF(F51<=C17,I24,"")) ->  | H51: 2 | I51: =IF(B51=1,"1 Month","") ->  | J51: 30 | K51: 49 | L51: 53950 | M51: 49 | V51: 48 | W51: 2016-02-17 | X51: 2 | AC51: 48 | AD51: 2016-02-17 | AE51: 2
B52: =B51 -> 2 | E52: 3 | F52: 2016-03-01 | G52: =IF(B51=2,"",IF(F52<=C18,I25,"")) ->  | H52: 2 | K52: 50 | L52: 55410 | M52: 50 | V52: 49 | W52: 2016-02-18 | X52: 2 | AC52: 49 | AD52: 2016-02-18 | AE52: 2
B53: =B52 -> 2 | E53: 4 | F53: 2016-04-01 | K53: 51 | L53: 56870 | M53: 51 | V53: 50 | W53: 2016-02-19 | X53: 2 | AC53: 50 | AD53: 2016-02-19 | AE53: 2
B54: 2 | E54: 5 | F54: 2016-05-01 | K54: 52 | L54: 58330 | M54: 52 | V54: 51 | W54: 2016-02-20 | X54: 2 | AC54: 51 | AD54: 2016-02-20 | AE54: 2
B55: 2 | E55: 6 | F55: 2016-06-01 | K55: 53 | L55: 59890 | M55: 53 | V55: 52 | W55: 2016-02-21 | X55: 2 | AC55: 52 | AD55: 2016-02-21 | AE55: 2
B56: 2 | E56: 7 | F56: 2016-07-01 | K56: 54 | L56: 61450 | M56: 54 | V56: 53 | W56: 2016-02-22 | X56: 2 | AC56: 53 | AD56: 2016-02-22 | AE56: 2
B57: 2 | E57: 8 | F57: 2016-08-01 | K57: 55 | L57: 63010 | M57: 55 | V57: 54 | W57: 2016-02-23 | X57: 2 | AC57: 54 | AD57: 2016-02-23 | AE57: 2
B58: 2 | E58: 9 | F58: 2016-09-01 | K58: 56 | L58: 64670 | M58: 56 | V58: 55 | W58: 2016-02-24 | X58: 2 | AC58: 55 | AD58: 2016-02-24 | AE58: 2
B59: 2 | E59: 10 | F59: 2016-10-01 | K59: 57 | L59: 66330 | M59: 57 | V59: 56 | W59: 2016-02-25 | X59: 2 | AC59: 56 | AD59: 2016-02-25 | AE59: 2
B60: 2 | E60: 11 | F60: 2016-11-01 | K60: 58 | L60: 67990 | M60: 58 | V60: 57 | W60: 2016-02-26 | X60: 2 | AC60: 57 | AD60: 2016-02-26 | AE60: 2
B61: 2 | E61: 12 | F61: 2016-12-01 | K61: 59 | L61: 69750 | M61: 59 | V61: 58 | W61: 2016-02-27 | X61: 2 | AC61: 58 | AD61: 2016-02-27 | AE61: 2
B62: 2 | E62: 13 | F62: 2017-01-01 | K62: 60 | L62: 71510 | M62: 60 | V62: 59 | W62: 2016-02-28 | X62: 2 | AC62: 59 | AD62: 2016-02-28 | AE62: 2
B63: 2 | E63: 14 | F63: 2017-02-01 | K63: 61 | L63: 73270 | M63: 61 | V63: 60 | W63: 2016-02-29 | X63: 2 | AC63: 60 | AD63: 2016-02-29 | AE63: 2
B64: 2 | E64: 15 | F64: 2017-03-01 | K64: 62 | L64: 75150 | M64: 62 | V64: 61 | W64: 2016-03-01 | X64: 2 | AC64: 61 | AD64: 2016-03-01 | AE64: 2
B65: 2 | E65: 16 | F65: 2017-04-01 | G65: =IF(B64=2,"",IF(F65<=C31,I38,"")) ->  | K65: 63 | L65: 77030 | M65: 63 | V65: 62 | W65: 2016-03-02 | X65: 2 | AC65: 62 | AD65: 2016-03-02 | AE65: 2
B66: 2 | E66: 17 | F66: 2017-05-01 | K66: 64 | L66: 78910 | M66: 64 | V66: 63 | W66: 2016-03-03 | X66: 2 | AC66: 63 | AD66: 2016-03-03 | AE66: 2
B67: 2 | E67: 18 | F67: 2017-06-01 | K67: 65 | L67: 80930 | M67: 65 | V67: 64 | W67: 2016-03-04 | X67: 2 | AC67: 64 | AD67: 2016-03-04 | AE67: 2
B68: 2 | E68: 19 | F68: 2017-07-01 | K68: 66 | L68: 82950 | M68: 66 | V68: 65 | W68: 2016-03-05 | X68: 2 | AC68: 65 | AD68: 2016-03-05 | AE68: 2
B69: 2 | E69: 20 | F69: 2017-08-01 | K69: 67 | L69: 84970 | M69: 67 | V69: 66 | W69: 2016-03-06 | X69: 2 | Z69: =IF(X69=2,"",W69) ->  | AC69: 66 | AD69: 2016-03-06 | AE69: 2 | AG69: =IF(AE69=2,"",AD69) -> 
B70: 2 | E70: 21 | F70: 2017-09-01 | K70: 68 | L70: 87130 | M70: 68 | V70: 67 | W70: 2016-03-07 | X70: =X69 -> 2 | AC70: 67 | AD70: 2016-03-07 | AE70: =AE69 -> 2
B71: 2 | E71: 22 | F71: 2017-10-01 | K71: 69 | L71: 89290 | M71: 69 | V71: 68 | W71: 2016-03-08 | X71: 2 | AC71: 68 | AD71: 2016-03-08 | AE71: 2
B72: 2 | E72: 23 | F72: 2017-11-01 | K72: 70 | L72: 91450 | M72: 70 | V72: 69 | W72: 2016-03-09 | X72: 2 | AC72: 69 | AD72: 2016-03-09 | AE72: 2
B73: 2 | E73: 24 | F73: 2017-12-01 | K73: 71 | L73: 93780 | M73: 71 | V73: 70 | W73: 2016-03-10 | X73: 2 | AC73: 70 | AD73: 2016-03-10 | AE73: 2
B74: 2 | E74: 25 | F74: 2018-01-01 | K74: 72 | L74: 96110 | M74: 72 | V74: 71 | W74: 2016-03-11 | X74: 2 | AC74: 71 | AD74: 2016-03-11 | AE74: 2
B75: 2 | K75: 73 | L75: 98440 | M75: 73 | V75: 72 | W75: 2016-03-12 | X75: 2 | AC75: 72 | AD75: 2016-03-12 | AE75: 2
B76: 2 | E76: 1 | G76: 1 | H76: 2016-01-01 | I76: 2016-01-31 | K76: 74 | L76: 100770 | M76: 74 | V76: 73 | W76: 2016-03-13 | X76: 2 | AC76: 73 | AD76: 2016-03-13 | AE76: 2
B77: 2 | E77: 2 | G77: 2 | H77: 2016-02-01 | I77: 2016-02-28 | K77: 75 | L77: 103290 | M77: 75 | V77: 74 | W77: 2016-03-14 | X77: 2 | AC77: 74 | AD77: 2016-03-14 | AE77: 2
B78: 2 | E78: 3 | G78: 3 | H78: 2016-03-01 | I78: 2016-03-27 | K78: 76 | L78: 105810 | M78: 76 | V78: 75 | W78: 2016-03-15 | X78: 2 | AC78: 75 | AD78: 2016-03-15 | AE78: 2
B79: 2 | E79: 4 | G79: 4 | H79: 2016-04-01 | I79: 2016-04-24 | K79: 77 | L79: 108330 | M79: 77 | V79: 76 | W79: 2016-03-16 | X79: 2 | AC79: 76 | AD79: 2016-03-16 | AE79: 2
B80: 2 | E80: 5 | G80: 5 | H80: 2016-05-01 | I80: 2016-05-22 | K80: 78 | L80: 110850 | M80: 78 | V80: 77 | W80: 2016-03-17 | X80: 2 | AC80: 77 | AD80: 2016-03-17 | AE80: 2
B81: 2 | E81: 6 | G81: 6 | H81: 2016-06-01 | I81: 2016-06-19 | K81: 79 | L81: 110850 | M81: 79 | V81: 78 | W81: 2016-03-18 | X81: 2 | AC81: 78 | AD81: 2016-03-18 | AE81: 2
B82: 2 | E82: 7 | G82: 7 | H82: 2016-07-01 | I82: 2016-07-17 | K82: 80 | L82: 110850 | M82: 80 | V82: 79 | W82: 2016-03-19 | X82: 2 | AC82: 79 | AD82: 2016-03-19 | AE82: 2
B83: 2 | E83: 8 | G83: 8 | H83: 2016-08-01 | I83: 2016-08-14 | V83: 80 | W83: 2016-03-20 | X83: 2 | AC83: 80 | AD83: 2016-03-20 | AE83: 2
B84: 2 | E84: 9 | G84: 9 | H84: 2016-09-01 | I84: 2016-09-11 | V84: 81 | W84: 2016-03-21 | X84: 2 | AC84: 81 | AD84: 2016-03-21 | AE84: 2
B85: 2 | E85: 10 | G85: 10 | H85: 2016-10-01 | I85: 2016-10-09 | V85: 82 | W85: 2016-03-22 | X85: 2 | AC85: 82 | AD85: 2016-03-22 | AE85: 2
B86: 2 | E86: 11 | G86: 11 | H86: 2016-11-01 | I86: 2016-11-06 | V86: 83 | W86: 2016-03-23 | X86: 2 | AC86: 83 | AD86: 2016-03-23 | AE86: 2
B87: 2 | E87: 12 | G87: 12 | H87: 2016-12-01 | I87: 2016-12-04 | V87: 84 | W87: 2016-03-24 | X87: 2 | AC87: 84 | AD87: 2016-03-24 | AE87: 2
B88: 2 | E88: 13 | G88: 13 | H88: 2017-01-01 | I88: 2017-01-01 | V88: 85 | W88: 2016-03-25 | X88: 2 | AC88: 85 | AD88: 2016-03-25 | AE88: 2
B89: 2 | E89: 14 | G89: 14 | H89: 2017-02-01 | I89: 2017-01-29 | V89: 86 | W89: 2016-03-26 | X89: 2 | AC89: 86 | AD89: 2016-03-26 | AE89: 2
B90: 2 | E90: 15 | G90: 15 | H90: 2017-03-01 | I90: 2017-02-26 | V90: 87 | W90: 2016-03-27 | X90: 2 | AC90: 87 | AD90: 2016-03-27 | AE90: 2
B91: 2 | E91: 16 | G91: 16 | H91: 2017-04-01 | I91: 2017-03-26 | V91: 88 | W91: 2016-03-28 | X91: 2 | AC91: 88 | AD91: 2016-03-28 | AE91: 2
B92: 2 | E92: 17 | G92: 17 | H92: 2017-05-01 | I92: 2017-04-23 | V92: 89 | W92: 2016-03-29 | X92: 2 | AC92: 89 | AD92: 2016-03-29 | AE92: 2
B93: 2 | E93: 18 | G93: 18 | H93: 2017-06-01 | I93: 2017-05-21 | V93: 90 | W93: 2016-03-30 | X93: 2 | AC93: 90 | AD93: 2016-03-30 | AE93: 2
B94: 2 | E94: 19 | G94: 19 | H94: 2017-07-01 | I94: 2017-06-18 | V94: 91 | W94: 2016-03-31 | X94: 2 | AC94: 91 | AD94: 2016-03-31 | AE94: 2
B95: 2 | E95: 20 | G95: 20 | H95: 2017-08-01 | I95: 2017-07-16 | V95: 92 | W95: 2016-04-01 | X95: 2 | AC95: 92 | AD95: 2016-04-01 | AE95: 2
B96: 2 | E96: 21 | G96: 21 | H96: 2017-09-01 | I96: 2017-08-13 | V96: 93 | W96: 2016-04-02 | X96: 2 | AC96: 93 | AD96: 2016-04-02 | AE96: 2
B97: 2 | E97: 22 | G97: 22 | H97: 2017-10-01 | I97: 2017-09-10 | V97: 94 | W97: 2016-04-03 | X97: 2 | AC97: 94 | AD97: 2016-04-03 | AE97: 2
B98: 2 | E98: 23 | G98: 23 | H98: 2017-11-01 | I98: 2017-10-08 | V98: 95 | W98: 2016-04-04 | X98: 2 | AC98: 95 | AD98: 2016-04-04 | AE98: 2
B99: 2 | E99: 24 | G99: 24 | H99: 2017-12-01 | I99: 2017-11-05 | V99: 96 | W99: 2016-04-05 | X99: 2 | AC99: 96 | AD99: 2016-04-05 | AE99: 2
B100: 2 | E100: 25 | G100: 25 | H100: 2018-01-01 | I100: 2017-12-03 | V100: 97 | W100: 2016-04-06 | X100: 2 | AC100: 97 | AD100: 2016-04-06 | AE100: 2
B101: 2 | V101: 98 | W101: 2016-04-07 | X101: 2 | AC101: 98 | AD101: 2016-04-07 | AE101: 2
B102: 2 | V102: 99 | W102: 2016-04-08 | X102: 2 | AC102: 99 | AD102: 2016-04-08 | AE102: 2
B103: 2 | V103: 100 | W103: 2016-04-09 | X103: 2 | AC103: 100 | AD103: 2016-04-09 | AE103: 2
B104: 2 | V104: 101 | W104: 2016-04-10 | X104: 2 | AC104: 101 | AD104: 2016-04-10 | AE104: 2
B105: 2 | V105: 102 | W105: 2016-04-11 | X105: 2 | AC105: 102 | AD105: 2016-04-11 | AE105: 2
B106: 2 | V106: 103 | W106: 2016-04-12 | X106: 2 | AC106: 103 | AD106: 2016-04-12 | AE106: 2
B107: 2 | V107: 104 | W107: 2016-04-13 | X107: 2 | AC107: 104 | AD107: 2016-04-13 | AE107: 2
B108: 2 | V108: 105 | W108: 2016-04-14 | X108: 2 | AC108: 105 | AD108: 2016-04-14 | AE108: 2
B109: 2 | V109: 106 | W109: 2016-04-15 | X109: 2 | AC109: 106 | AD109: 2016-04-15 | AE109: 2
B110: 2 | V110: 107 | W110: 2016-04-16 | X110: 2 | AC110: 107 | AD110: 2016-04-16 | AE110: 2
B111: 2 | V111: 108 | W111: 2016-04-17 | X111: 2 | AC111: 108 | AD111: 2016-04-17 | AE111: 2
B112: 2 | V112: 109 | W112: 2016-04-18 | X112: 2 | AC112: 109 | AD112: 2016-04-18 | AE112: 2
B113: 2 | V113: 110 | W113: 2016-04-19 | X113: 2 | AC113: 110 | AD113: 2016-04-19 | AE113: 2
B114: 2 | V114: 111 | W114: 2016-04-20 | X114: 2 | AC114: 111 | AD114: 2016-04-20 | AE114: 2
B115: 2 | V115: 112 | W115: 2016-04-21 | X115: 2 | AC115: 112 | AD115: 2016-04-21 | AE115: 2
B116: 2 | V116: 113 | W116: 2016-04-22 | X116: 2 | AC116: 113 | AD116: 2016-04-22 | AE116: 2
B117: =B116 -> 2 | V117: 114 | W117: 2016-04-23 | X117: 2 | AC117: 114 | AD117: 2016-04-23 | AE117: 2
B118: 2 | V118: 115 | W118: 2016-04-24 | X118: 2 | AC118: 115 | AD118: 2016-04-24 | AE118: 2
B119: 2 | V119: 116 | W119: 2016-04-25 | X119: 2 | AC119: 116 | AD119: 2016-04-25 | AE119: 2
B120: 2 | V120: 117 | W120: 2016-04-26 | X120: 2 | AC120: 117 | AD120: 2016-04-26 | AE120: 2
B121: 2 | V121: 118 | W121: 2016-04-27 | X121: 2 | AC121: 118 | AD121: 2016-04-27 | AE121: 2
B122: 2 | V122: 119 | W122: 2016-04-28 | X122: 2 | AC122: 119 | AD122: 2016-04-28 | AE122: 2
B123: 2 | V123: 120 | W123: 2016-04-29 | X123: 2 | AC123: 120 | AD123: 2016-04-29 | AE123: 2
B124: 2 | V124: 121 | W124: 2016-04-30 | X124: 2 | AC124: 121 | AD124: 2016-04-30 | AE124: 2
B125: 2 | V125: 122 | W125: 2016-05-01 | X125: 2 | AC125: 122 | AD125: 2016-05-01 | AE125: 2
B126: 2 | V126: 123 | W126: 2016-05-02 | X126: 2 | AC126: 123 | AD126: 2016-05-02 | AE126: 2
B127: 2 | V127: 124 | W127: 2016-05-03 | X127: 2 | AC127: 124 | AD127: 2016-05-03 | AE127: 2
B128: 2 | V128: 125 | W128: 2016-05-04 | X128: 2 | AC128: 125 | AD128: 2016-05-04 | AE128: 2
B129: 2 | V129: 126 | W129: 2016-05-05 | X129: 2 | AC129: 126 | AD129: 2016-05-05 | AE129: 2
B130: 2 | V130: 127 | W130: 2016-05-06 | X130: 2 | AC130: 127 | AD130: 2016-05-06 | AE130: 2
B131: 2 | V131: 128 | W131: 2016-05-07 | X131: 2 | AC131: 128 | AD131: 2016-05-07 | AE131: 2
B132: 2 | V132: 129 | W132: 2016-05-08 | X132: 2 | AC132: 129 | AD132: 2016-05-08 | AE132: 2
B133: 2 | V133: 130 | W133: 2016-05-09 | X133: 2 | Z133: =IF(X133=2,"",W133) ->  | AC133: 130 | AD133: 2016-05-09 | AE133: 2 | AG133: =IF(AE133=2,"",AD133) -> 
B134: 2 | V134: 131 | W134: 2016-05-10 | X134: =X133 -> 2 | AC134: 131 | AD134: 2016-05-10 | AE134: =AE133 -> 2
B135: 2 | V135: 132 | W135: 2016-05-11 | X135: 2 | AC135: 132 | AD135: 2016-05-11 | AE135: 2
B136: 2 | V136: 133 | W136: 2016-05-12 | X136: 2 | AC136: 133 | AD136: 2016-05-12 | AE136: 2
B137: 2 | V137: 134 | W137: 2016-05-13 | X137: 2 | AC137: 134 | AD137: 2016-05-13 | AE137: 2
B138: 2 | V138: 135 | W138: 2016-05-14 | X138: 2 | AC138: 135 | AD138: 2016-05-14 | AE138: 2
B139: 2 | V139: 136 | W139: 2016-05-15 | X139: 2 | AC139: 136 | AD139: 2016-05-15 | AE139: 2
B140: 2 | V140: 137 | W140: 2016-05-16 | X140: 2 | AC140: 137 | AD140: 2016-05-16 | AE140: 2
B141: 2 | V141: 138 | W141: 2016-05-17 | X141: 2 | AC141: 138 | AD141: 2016-05-17 | AE141: 2
B142: 2 | V142: 139 | W142: 2016-05-18 | X142: 2 | AC142: 139 | AD142: 2016-05-18 | AE142: 2
B143: 2 | V143: 140 | W143: 2016-05-19 | X143: 2 | AC143: 140 | AD143: 2016-05-19 | AE143: 2
B144: 2 | V144: 141 | W144: 2016-05-20 | X144: 2 | AC144: 141 | AD144: 2016-05-20 | AE144: 2
B145: 2 | V145: 142 | W145: 2016-05-21 | X145: 2 | AC145: 142 | AD145: 2016-05-21 | AE145: 2
B146: 2 | V146: 143 | W146: 2016-05-22 | X146: 2 | AC146: 143 | AD146: 2016-05-22 | AE146: 2
B147: 2 | V147: 144 | W147: 2016-05-23 | X147: 2 | AC147: 144 | AD147: 2016-05-23 | AE147: 2
B148: 2 | V148: 145 | W148: 2016-05-24 | X148: 2 | AC148: 145 | AD148: 2016-05-24 | AE148: 2
B149: 2 | V149: 146 | W149: 2016-05-25 | X149: 2 | AC149: 146 | AD149: 2016-05-25 | AE149: 2
B150: 2 | V150: 147 | W150: 2016-05-26 | X150: 2 | AC150: 147 | AD150: 2016-05-26 | AE150: 2
B151: 2 | V151: 148 | W151: 2016-05-27 | X151: 2 | AC151: 148 | AD151: 2016-05-27 | AE151: 2
B152: 2 | V152: 149 | W152: 2016-05-28 | X152: 2 | AC152: 149 | AD152: 2016-05-28 | AE152: 2
B153: 2 | V153: 150 | W153: 2016-05-29 | X153: 2 | AC153: 150 | AD153: 2016-05-29 | AE153: 2
B154: 2 | V154: 151 | W154: 2016-05-30 | X154: 2 | AC154: 151 | AD154: 2016-05-30 | AE154: 2
B155: 2 | V155: 152 | W155: 2016-05-31 | X155: 2 | AC155: 152 | AD155: 2016-05-31 | AE155: 2
B156: 2 | V156: 153 | W156: 2016-06-01 | X156: 2 | AC156: 153 | AD156: 2016-06-01 | AE156: 2
B157: 2 | V157: 154 | W157: 2016-06-02 | X157: 2 | AC157: 154 | AD157: 2016-06-02 | AE157: 2
B158: 2 | V158: 155 | W158: 2016-06-03 | X158: 2 | AC158: 155 | AD158: 2016-06-03 | AE158: 2
B159: 2 | V159: 156 | W159: 2016-06-04 | X159: 2 | AC159: 156 | AD159: 2016-06-04 | AE159: 2
B160: 2 | V160: 157 | W160: 2016-06-05 | X160: 2 | AC160: 157 | AD160: 2016-06-05 | AE160: 2
B161: 2 | V161: 158 | W161: 2016-06-06 | X161: 2 | AC161: 158 | AD161: 2016-06-06 | AE161: 2
B162: 2 | V162: 159 | W162: 2016-06-07 | X162: 2 | AC162: 159 | AD162: 2016-06-07 | AE162: 2
B163: 2 | V163: 160 | W163: 2016-06-08 | X163: 2 | AC163: 160 | AD163: 2016-06-08 | AE163: 2
B164: 2 | V164: 161 | W164: 2016-06-09 | X164: 2 | AC164: 161 | AD164: 2016-06-09 | AE164: 2
B165: 2 | V165: 162 | W165: 2016-06-10 | X165: 2 | AC165: 162 | AD165: 2016-06-10 | AE165: 2
B166: 2 | V166: 163 | W166: 2016-06-11 | X166: 2 | AC166: 163 | AD166: 2016-06-11 | AE166: 2
B167: 2 | V167: 164 | W167: 2016-06-12 | X167: 2 | AC167: 164 | AD167: 2016-06-12 | AE167: 2
B168: 2 | V168: 165 | W168: 2016-06-13 | X168: 2 | AC168: 165 | AD168: 2016-06-13 | AE168: 2
B169: 2 | V169: 166 | W169: 2016-06-14 | X169: 2 | AC169: 166 | AD169: 2016-06-14 | AE169: 2
B170: 2 | V170: 167 | W170: 2016-06-15 | X170: 2 | AC170: 167 | AD170: 2016-06-15 | AE170: 2
B171: 2 | V171: 168 | W171: 2016-06-16 | X171: 2 | AC171: 168 | AD171: 2016-06-16 | AE171: 2
B172: 2 | V172: 169 | W172: 2016-06-17 | X172: 2 | AC172: 169 | AD172: 2016-06-17 | AE172: 2
B173: 2 | V173: 170 | W173: 2016-06-18 | X173: 2 | AC173: 170 | AD173: 2016-06-18 | AE173: 2
B174: 2 | V174: 171 | W174: 2016-06-19 | X174: 2 | AC174: 171 | AD174: 2016-06-19 | AE174: 2
B175: 2 | V175: 172 | W175: 2016-06-20 | X175: 2 | AC175: 172 | AD175: 2016-06-20 | AE175: 2
B176: 2 | V176: 173 | W176: 2016-06-21 | X176: 2 | AC176: 173 | AD176: 2016-06-21 | AE176: 2
B177: 2 | V177: 174 | W177: 2016-06-22 | X177: 2 | AC177: 174 | AD177: 2016-06-22 | AE177: 2
B178: 2 | V178: 175 | W178: 2016-06-23 | X178: 2 | AC178: 175 | AD178: 2016-06-23 | AE178: 2
B179: 2 | V179: 176 | W179: 2016-06-24 | X179: 2 | AC179: 176 | AD179: 2016-06-24 | AE179: 2
B180: 2 | V180: 177 | W180: 2016-06-25 | X180: 2 | AC180: 177 | AD180: 2016-06-25 | AE180: 2
B181: =B180 -> 2 | V181: 178 | W181: 2016-06-26 | X181: 2 | AC181: 178 | AD181: 2016-06-26 | AE181: 2
B182: 2 | V182: 179 | W182: 2016-06-27 | X182: 2 | AC182: 179 | AD182: 2016-06-27 | AE182: 2
B183: 2 | V183: 180 | W183: 2016-06-28 | X183: 2 | AC183: 180 | AD183: 2016-06-28 | AE183: 2
B184: 2 | V184: 181 | W184: 2016-06-29 | X184: 2 | AC184: 181 | AD184: 2016-06-29 | AE184: 2
B185: 2 | V185: 182 | W185: 2016-06-30 | X185: 2 | AC185: 182 | AD185: 2016-06-30 | AE185: 2
B186: 2 | V186: 183 | W186: 2016-07-01 | X186: 2 | AC186: 183 | AD186: 2016-07-01 | AE186: 2
B187: 2 | V187: 184 | W187: 2016-07-02 | X187: 2 | AC187: 184 | AD187: 2016-07-02 | AE187: 2
B188: 2 | V188: 185 | W188: 2016-07-03 | X188: 2 | AC188: 185 | AD188: 2016-07-03 | AE188: 2
B189: 2 | V189: 186 | W189: 2016-07-04 | X189: 2 | AC189: 186 | AD189: 2016-07-04 | AE189: 2
B190: 2 | V190: 187 | W190: 2016-07-05 | X190: 2 | AC190: 187 | AD190: 2016-07-05 | AE190: 2
B191: 2 | V191: 188 | W191: 2016-07-06 | X191: 2 | AC191: 188 | AD191: 2016-07-06 | AE191: 2
B192: 2 | V192: 189 | W192: 2016-07-07 | X192: 2 | AC192: 189 | AD192: 2016-07-07 | AE192: 2
B193: 2 | V193: 190 | W193: 2016-07-08 | X193: 2 | AC193: 190 | AD193: 2016-07-08 | AE193: 2
B194: 2 | V194: 191 | W194: 2016-07-09 | X194: 2 | AC194: 191 | AD194: 2016-07-09 | AE194: 2
B195: 2 | V195: 192 | W195: 2016-07-10 | X195: 2 | AC195: 192 | AD195: 2016-07-10 | AE195: 2
B196: 2 | V196: 193 | W196: 2016-07-11 | X196: 2 | AC196: 193 | AD196: 2016-07-11 | AE196: 2
B197: 2 | V197: 194 | W197: 2016-07-12 | X197: 2 | Z197: =IF(X197=2,"",W197) ->  | AC197: 194 | AD197: 2016-07-12 | AE197: 2 | AG197: =IF(AE197=2,"",AD197) -> 
B198: 2 | V198: 195 | W198: 2016-07-13 | X198: =X197 -> 2 | AC198: 195 | AD198: 2016-07-13 | AE198: =AE197 -> 2
B199: 2 | V199: 196 | W199: 2016-07-14 | X199: 2 | AC199: 196 | AD199: 2016-07-14 | AE199: 2
B200: 2 | V200: 197 | W200: 2016-07-15 | X200: 2 | AC200: 197 | AD200: 2016-07-15 | AE200: 2
... 601 more rows

Sheet DA 2.3 (hidden)
C1: manual | H1: DA2 | J1: DA DIF | K1: =ROUND(SUM(U1+BH6),0) -> 19993 | N1: PF | O1: CPS | P1: SL | Q1: 1 | R1: =IF(K2=0,"",IF('DATA 1'!S11="CPS","","Cash")) ->  | S1: 2 | U1: =IF('DA 1.2'!I17<4,ROUND(SUM(K6:K767),0),0) -> 0 | V1: =IF('DA 1.2'!I17<4,ROUND(SUM(K6:K402),0),0) -> 0 | W1: =IF('DA 1.2'!I17<4,SUM(AU6:AU586),0) -> 0 | X1: =IF('DA 1.2'!I17<4,K3-L3,0) -> 0 | Y1: =IF('DA 1.2'!I17<4,K3-M3,0) -> 0 | Z1: FOR AAS/PROMO EMPLOYEES
C2: GROSS | D2: PF/CPS | E2: 2 | F2: 1 | G2: Yes | J2: SL DIF | K2: =BG6 -> 0 | L2: PF | M2: CPS | N2: NET | O2: NET | Q2: 2 | R2: =IF(K2=0,"",IF('DATA 1'!S11="CPS","","PF")) ->  | U2: DIFF | V2: PF | W2: CPS | X2: PF NET | Y2: CPS NET | AT2: =SUM(AS3+AV3) -> 19996.10212
C3: ='DATA 1'!R28 -> 0 | D3: ='DATA 1'!S28 -> 0 | F3: 2 | G3: No | J3: GROSS | K3: =IF(E2=1,C3,SUM(K1:K2)) -> 19993 | L3: =IF(E2=1,D3,IF(S1=2,IF(E2=1,D3,ROUND(SUM(V1+BI6),0))+K2,IF(E2=1,D3,ROUND(SUM(V1+BI6),0)))) -> 18557 | M3: =ROUND(IF(E2=1,C3,SUM(W1+BX6)),0) -> 2004 | N3: =X1+BJ6 -> 1436 | O3: =Y1+BY3 -> 17986 | AS3: =SUM(AS6:AS586) -> 0 | AT3: 0 | AU3: =SUM(AU6:AU586) -> 1999.610174 | AV3: =SUM(AV6:AV586) -> 19996.10212 | AX3: =IF(AW31<'DA 1.2'!G8,1,0) -> 1 | AY3: =IF(AX3=1,VLOOKUP(AW31,B6:C767,2),0) -> 39160 | BL3: FOR NON AAS / PROMOTIONS (CPS EMPLOYEES) | BY3: =BY4+BW6 -> 17986
E4: feb days change | L4: BASIC PAY FROM 01-07-2016 | P4: INCREMENT 1 B.PAY | T4: INCREMENT 2 B.PAY | X4: INCREMENT 3 B.PAY | AB4: INCREMENT 4 B.PAY | AF4: INCREMENT 5 B.PAY | AJ4: INCREMENT 6 B.PAY | AN4: SURRENDER LEAVE DIFF | AV4: 1 | AW4: FOR NON AAS / PROMOTIONS (PF EMPLOYEES) | BH4: =SUM(BF6:BF30) -> 19993 | BI4: =SUM(BF6:BF18) -> 18557 | BJ4: =BK4-BI4 -> 1436 | BK4: =BH4+BG6 -> 19993 | BL4: TD | BN4: AD | BP4: DIFF | BR4: =BB5 -> AAS | BT4: PROMO | BW4: =BG6 -> 0 | BX4: =SUM(BP6:BP30)+SUM(BR6:BR30)+SUM(BT6:BT30) -> 2004 | BY4: =SUM(BQ6:BQ24)+SUM(BS6:BS24)+SUM(BU6:BU24) -> 17986 | BZ4: =BY4+BX4+BW4 -> 19990
B5: DATE | C5: BASIC PAY | D5: MONTH | E5: DAY IN MONTH | F5: BASIC PAY FOR DAYS | G5: NEW DA | H5: OLD DA | I5: ELIGIBLE | J5: DRAWN | K5: DIFF | L5: FROM | M5: TO | N5: ORIGINAL | O5: CALCU | P5: FROM | Q5: TO | R5: ORIGINAL | S5: CALCU | T5: FROM | U5: TO | V5: ORIGINAL | W5: CALCU | X5: FROM | Y5: TO | Z5: ORIGINAL | AA5: CALCU | AB5: FROM | AC5: TO | AD5: ORIGINAL | AE5: CALCU | AF5: FROM | AG5: TO | AH5: ORIGINAL | AI5: CALCU | AJ5: FROM | AK5: TO | AL5: ORIGINAL | AM5: CALCU | AN5: FROM | AO5: TO | AP5: DATE CAL FROM | AQ5: DATE CAL TO | AR5: TOTAL | AS5: BASIC | AU5: CPS | AV5: cps | AW5: MONTHS | AX5: B.PAY | AY5: TD | AZ5: AD | BA5: DIF | BB5: AAS | BC5: AAS 2 | BD5: PROMO | BE5: PROMO 2 | BF5: DIFF TOT | BG5: SL | BH5: DA DIFF | BI5: PF | BJ5: NET | BK5: GROSS | BL5: CPS | BM5: CASH | BN5: CPS | BO5: CASH | BP5: CPS | BQ5: CASH | BR5: CPS | BS5: CASH | BT5: CPS | BU5: CASH | BV5: =BF5 -> DIFF TOT | BW5: SL | BX5: CPS | BY5: CASH | BZ5: GROSS
B6: 2016-07-01 | C6: =O6+S6+W6+AA6+AE6+AI6+AM6 -> 38130 | D6: =MONTH(B6) -> 7 | E6: =IF(D6=1,31,IF(D6=2,29,IF(D6=3,31,IF(D6=5,31,IF(D6=7,31,IF(D6=8,31,IF(D6=10,31,IF(D6=12,31,30)))))))) -> 31 | F6: =C6/E6 -> 1230 | G6: 0.22008 | H6: 0.1834 | I6: =F6*G6 -> 270.6984 | J6: =F6*H6 -> 225.582 | K6: =I6-J6 -> 45.1164 | L6: 2016-07-01 | M6: ='DA 2.2'!D3-1 -> 2016-09-30 | N6: ='DA 2.2'!G2 -> 38130 | O6: =IF(M6>=B6,N6,0) -> 38130 | P6: ='DA 2.2'!D3 -> 2016-10-01 | Q6: =IF('DA 2.2'!D15='DA 2.2'!D4,'DA 2.2'!D4,'DA 2.2'!D4-1) -> 2017-08-31 | R6: ='DA 2.2'!G3 -> 39160 | S6: =IF(O6>0,0,IF(Q6>=B6,R6,0)) -> 0 | T6: ='DA 2.2'!D4 -> 2017-08-31 | U6: =IF('DA 2.2'!D15='DA 2.2'!D5,'DA 2.2'!D5,'DA 2.2'!D5-1) -> 2017-08-31 | V6: =IF(R6<'DA 2.2'!G4,'DA 2.2'!G4,R6) -> 39160 | W6: =IF(T6>U6,0,IF(O6>0,0,IF(S6>0,0,IF(U6>=B6,V6,0)))) -> 0 | X6: ='DA 2.2'!D5 -> 2017-08-31 | Y6: =IF('DA 2.2'!D15='DA 2.2'!D6,'DA 2.2'!D6,'DA 2.2'!D6-1) -> 2017-08-31 | Z6: =IF(V6<'DA 2.2'!G5,'DA 2.2'!G5,V6) -> 39160 | AA6: =IF(X6>=Y6,0,IF(O6>0,0,IF(S6>0,0,IF(W6>0,0,IF(Y6>=B6,Z6,0))))) -> 0 | AB6: ='DA 2.2'!D6 -> 2017-08-31 | AC6: =IF('DA 2.2'!D15='DA 2.2'!D7,'DA 2.2'!D7,'DA 2.2'!D7-1) -> 2017-08-31 | AD6: =IF(Z6<'DA 2.2'!G6,'DA 2.2'!G6,Z6) -> 39160 | AE6: =IF(O6>0,0,IF(AB6>=AC6,0,IF(S6>0,0,IF(W6>0,0,IF(AA6>0,0,IF(AC6>=B6,AD6,0)))))) -> 0 | AF6: ='DA 2.2'!D7 -> 2017-08-31 | AG6: =IF('DA 2.2'!D15='DA 2.2'!D8,'DA 2.2'!D8,'DA 2.2'!D8-1) -> 2017-08-31 | AH6: =IF(AD6<'DA 2.2'!G7,'DA 2.2'!G7,AD6) -> 39160 | AI6: =IF(O6>0,0,IF(S6>0,0,IF(AF6>=AG6,0,IF(W6>0,0,IF(AA6>0,0,IF(AE6>0,0,IF(AG6>=B6,AH6,0))))))) -> 0 | AJ6: ='DA 2.2'!D8 -> 2017-08-31 | AK6: ='DA 2.2'!D8 -> 2017-08-31 | AL6: =IF(AH6<'DA 2.2'!G8,'DA 2.2'!G8,AH6) -> 39160 | AM6: =IF(O6>0,0,IF(S6>0,0,IF(AJ6>=AK6,0,IF(W6>0,0,IF(AA6>0,0,IF(AE6>0,0,IF(AI6>0,0,IF(AK6>=B6,AL6,0)))))))) -> 0 | AN6: ='DA 2.2'!C10 -> 2016-11-01 | AO6: =DATE('DA 2.2'!D14,'DA 2.2'!C14,'DA 2.2'!B14) -> 2016-11-30 | AP6: =IF(B6>=AN6,1,0) -> 0 | AQ6: =IF(B6<=AO6,1,0) -> 1 | AR6: =IF(SUM(AP6:AQ6)=2,1,0) -> 0 | AS6: =IF('DA 2.2'!B50=2,0,IF(AR6=1,I6-J6,0)) -> 0 | AU6: =ROUND(K6*10%,6) -> 4.51164 | AV6: =ROUND(K6,6) -> 45.1164 | AW6: 2016-07-01 | AX6: =VLOOKUP(AW6,B6:C586,2) -> 38130 | AY6: =ROUND(AX6*G6,0) -> 8392 | AZ6: =AX6*H6 -> 6993.042 | BA6: =ROUND(AY6-AZ6,0) -> 1399 | BB6: =ROUND(IF(AW6=BH33,BI33,0),0) -> 0 | BC6: =IF(AW6=BL33,BM33,0) -> 0 | BD6: =ROUND(IF(AW6=BJ33,BK33,0),0) -> 0 | BE6: =IF(AW6=BN33,BO33,0) -> 0 | BF6: =SUM(BA6:BE6) -> 1399 | BG6: =BA31 -> 0 | BH6: =IF('DA 1.2'!I17=4,BH4,0) -> 19993 | BI6: =IF('DA 1.2'!I17=4,BI4,0) -> 18557 | BJ6: =IF('DA 1.2'!I17=4,BJ4,0) -> 1436 | BK6: =IF('DA 1.2'!I17=4,BK4,0) -> 19993 | BL6: =ROUND(AX6*G6*10%,0) -> 839 | BM6: =ROUND(AX6*G6*90%,0) -> 7552 | BN6: =ROUND(AX6*H6*10%,0) -> 699 | BO6: =ROUND(AX6*H6*90%,0) -> 6294 | BP6: =BL6-BN6 -> 140 | BQ6: =BM6-BO6 -> 1258 | BR6: =BB6-BS6 -> 0 | BS6: =ROUND(BB6*90%,0)+ROUND(BC6*90%,0) -> 0 | BT6: =ROUND(BE6*10%,0)+ROUND(BD6*10%,0) -> 0 | BU6: =ROUND(BE6*90%,0)+ROUND(BD6*90%,0) -> 0 | BV6: =SUM(BP6:BU6) -> 1398 | BW6: =BW4 -> 0 | BX6: =IF('DA 1.2'!I17=4,BX4,0) -> 2004 | BY6: =IF('DA 1.2'!I17=4,BY4,0) -> 17986 | BZ6: =IF('DA 1.2'!I17=4,BZ4,0) -> 19990
B7: 2016-07-02 | C7: =O7+S7+W7+AA7+AE7+AI7+AM7 -> 38130 | D7: =MONTH(B7) -> 7 | E7: =IF(D7=1,31,IF(D7=2,29,IF(D7=3,31,IF(D7=5,31,IF(D7=7,31,IF(D7=8,31,IF(D7=10,31,IF(D7=12,31,30)))))))) -> 31 | F7: =C7/E7 -> 1230 | G7: =G6 -> 0.22008 | H7: =H6 -> 0.1834 | I7: =F7*G7 -> 270.6984 | J7: 225.582 | K7: =I7-J7 -> 45.1164 | L7: =L6 -> 2016-07-01 | M7: =M6 -> 2016-09-30 | N7: =N6 -> 38130 | O7: =IF(M7>=B7,N7,0) -> 38130 | P7: =P6 -> 2016-10-01 | Q7: =Q6 -> 2017-08-31 | R7: =R6 -> 39160 | S7: =IF(O7>0,0,IF(Q7>=B7,R7,0)) -> 0 | T7: =T6 -> 2017-08-31 | U7: =U6 -> 2017-08-31 | V7: =V6 -> 39160 | W7: =IF(T7>U7,0,IF(O7>0,0,IF(S7>0,0,IF(U7>=B7,V7,0)))) -> 0 | X7: =X6 -> 2017-08-31 | Y7: =Y6 -> 2017-08-31 | Z7: =Z6 -> 39160 | AA7: =IF(X7>=Y7,0,IF(O7>0,0,IF(S7>0,0,IF(W7>0,0,IF(Y7>=B7,Z7,0))))) -> 0 | AB7: =AB6 -> 2017-08-31 | AC7: =AC6 -> 2017-08-31 | AD7: =AD6 -> 39160 | AE7: =IF(O7>0,0,IF(AB7>=AC7,0,IF(S7>0,0,IF(W7>0,0,IF(AA7>0,0,IF(AC7>=B7,AD7,0)))))) -> 0 | AF7: =AF6 -> 2017-08-31 | AG7: =AG6 -> 2017-08-31 | AH7: =AH6 -> 39160 | AI7: =IF(O7>0,0,IF(S7>0,0,IF(AF7>=AG7,0,IF(W7>0,0,IF(AA7>0,0,IF(AE7>0,0,IF(AG7>=B7,AH7,0))))))) -> 0 | AJ7: =AJ6 -> 2017-08-31 | AK7: =AK6 -> 2017-08-31 | AL7: 39160 | AM7: =IF(O7>0,0,IF(S7>0,0,IF(AJ7>=AK7,0,IF(W7>0,0,IF(AA7>0,0,IF(AE7>0,0,IF(AI7>0,0,IF(AK7>=B7,AL7,0)))))))) -> 0 | AN7: =AN6 -> 2016-11-01 | AO7: =AO6 -> 2016-11-30 | AP7: 0 | AQ7: 1 | AR7: =IF(SUM(AP7:AQ7)=2,1,0) -> 0 | AS7: =IF('DA 2.2'!B51=2,0,IF(AR7=1,I7-J7,0)) -> 0 | AU7: =ROUND(K7*10%,6) -> 4.51164 | AV7: =ROUND(K7,6) -> 45.1164 | AW7: 2016-08-01 | AX7: =VLOOKUP(AW7,B6:C586,2) -> 38130 | AY7: =ROUND(AX7*G7,0) -> 8392 | AZ7: =AX7*H7 -> 6993.042 | BA7: =ROUND(AY7-AZ7,0) -> 1399 | BB7: 0 | BC7: =IF(AW7=BL34,BM34,0) -> 0 | BD7: 0 | BE7: =IF(AW7=BN34,BO34,0) -> 0 | BF7: =SUM(BA7:BE7) -> 1399 | BL7: =ROUND(AX7*G7*10%,0) -> 839 | BM7: =ROUND(AX7*G7*90%,0) -> 7552 | BN7: =ROUND(AX7*H7*10%,0) -> 699 | BO7: =ROUND(AX7*H7*90%,0) -> 6294 | BP7: =BL7-BN7 -> 140 | BQ7: 1258 | BR7: =BB7-BS7 -> 0 | BS7: =ROUND(BB7*90%,0)+ROUND(BC7*90%,0) -> 0 | BT7: =ROUND(BE7*10%,0)+ROUND(BD7*10%,0) -> 0 | BU7: =ROUND(BE7*90%,0)+ROUND(BD7*90%,0) -> 0 | BV7: =SUM(BP7:BU7) -> 1398
B8: 2016-07-03 | C8: 38130 | D8: 7 | E8: 31 | F8: 1230 | G8: =G7 -> 0.22008 | H8: 0.1834 | I8: 270.6984 | J8: 225.582 | K8: 45.1164 | L8: =L7 -> 2016-07-01 | M8: 2016-09-30 | N8: 38130 | O8: 38130 | P8: =P7 -> 2016-10-01 | Q8: 2017-08-31 | R8: 39160 | S8: 0 | T8: =T7 -> 2017-08-31 | U8: 2017-08-31 | V8: 39160 | W8: 0 | X8: =X7 -> 2017-08-31 | Y8: 2017-08-31 | Z8: 39160 | AA8: 0 | AB8: =AB7 -> 2017-08-31 | AC8: 2017-08-31 | AD8: 39160 | AE8: 0 | AF8: =AF7 -> 2017-08-31 | AG8: =AG7 -> 2017-08-31 | AH8: =AH7 -> 39160 | AI8: 0 | AJ8: =AJ7 -> 2017-08-31 | AK8: =AK7 -> 2017-08-31 | AL8: =AL7 -> 39160 | AM8: =IF(O8>0,0,IF(S8>0,0,IF(AJ8>=AK8,0,IF(W8>0,0,IF(AA8>0,0,IF(AE8>0,0,IF(AI8>0,0,IF(AK8>=B8,AL8,0)))))))) -> 0 | AN8: =AN7 -> 2016-11-01 | AO8: 2016-11-30 | AP8: 0 | AQ8: 1 | AR8: 0 | AS8: =IF('DA 2.2'!B52=2,0,IF(AR8=1,I8-J8,0)) -> 0 | AU8: 4.51164 | AV8: 45.1164 | AW8: 2016-09-01 | AX8: =VLOOKUP(AW8,B6:C586,2) -> 38130 | AY8: 8392 | AZ8: 6993.042 | BA8: 1399 | BB8: 0 | BC8: 0 | BD8: 0 | BE8: 0 | BF8: 1399 | BL8: 839 | BM8: 7552 | BN8: 699 | BO8: 6294 | BP8: 140 | BQ8: 1258 | BR8: 0 | BS8: 0 | BT8: 0 | BU8: 0 | BV8: =SUM(BP8:BU8) -> 1398
B9: 2016-07-04 | C9: 38130 | D9: 7 | E9: 31 | F9: 1230 | G9: 0.22008 | H9: 0.1834 | I9: 270.6984 | J9: 225.582 | K9: 45.1164 | L9: 2016-07-01 | M9: 2016-09-30 | N9: 38130 | O9: 38130 | P9: 2016-10-01 | Q9: 2017-08-31 | R9: 39160 | S9: 0 | T9: 2017-08-31 | U9: 2017-08-31 | V9: 39160 | W9: 0 | X9: 2017-08-31 | Y9: 2017-08-31 | Z9: 39160 | AA9: 0 | AB9: 2017-08-31 | AC9: 2017-08-31 | AD9: 39160 | AE9: 0 | AF9: 2017-08-31 | AG9: 2017-08-31 | AH9: 39160 | AI9: 0 | AJ9: 2017-08-31 | AK9: 2017-08-31 | AL9: 39160 | AM9: 0 | AN9: 2016-11-01 | AO9: 2016-11-30 | AP9: 0 | AQ9: 1 | AR9: 0 | AS9: =IF('DA 2.2'!B53=2,0,IF(AR9=1,I9-J9,0)) -> 0 | AU9: 4.51164 | AV9: 45.1164 | AW9: 2016-10-01 | AX9: =VLOOKUP(AW9,B6:C586,2) -> 39160 | AY9: 8618 | AZ9: 7181.944 | BA9: 1436 | BB9: 0 | BC9: 0 | BD9: 0 | BE9: 0 | BF9: 1436 | BL9: 862 | BM9: 7756 | BN9: 718 | BO9: 6464 | BP9: 144 | BQ9: 1292 | BR9: 0 | BS9: 0 | BT9: 0 | BU9: 0 | BV9: 1436
B10: 2016-07-05 | C10: 38130 | D10: 7 | E10: 31 | F10: 1230 | G10: 0.22008 | H10: 0.1834 | I10: 270.6984 | J10: 225.582 | K10: 45.1164 | L10: 2016-07-01 | M10: 2016-09-30 | N10: 38130 | O10: 38130 | P10: 2016-10-01 | Q10: 2017-08-31 | R10: 39160 | S10: 0 | T10: 2017-08-31 | U10: 2017-08-31 | V10: 39160 | W10: 0 | X10: 2017-08-31 | Y10: 2017-08-31 | Z10: 39160 | AA10: 0 | AB10: 2017-08-31 | AC10: 2017-08-31 | AD10: 39160 | AE10: 0 | AF10: 2017-08-31 | AG10: 2017-08-31 | AH10: 39160 | AI10: 0 | AJ10: 2017-08-31 | AK10: 2017-08-31 | AL10: 39160 | AM10: 0 | AN10: 2016-11-01 | AO10: 2016-11-30 | AP10: 0 | AQ10: 1 | AR10: 0 | AS10: =IF('DA 2.2'!B54=2,0,IF(AR10=1,I10-J10,0)) -> 0 | AU10: 4.51164 | AV10: 45.1164 | AW10: 2016-11-01 | AX10: =VLOOKUP(AW10,B6:C586,2) -> 39160 | AY10: 8618 | AZ10: 7181.944 | BA10: 1436 | BB10: 0 | BC10: 0 | BD10: 0 | BE10: 0 | BF10: 1436 | BL10: 862 | BM10: 7756 | BN10: 718 | BO10: 6464 | BP10: 144 | BQ10: 1292 | BR10: 0 | BS10: 0 | BT10: 0 | BU10: 0 | BV10: 1436
B11: 2016-07-06 | C11: 38130 | D11: 7 | E11: 31 | F11: 1230 | G11: 0.22008 | H11: 0.1834 | I11: 270.6984 | J11: 225.582 | K11: 45.1164 | L11: 2016-07-01 | M11: 2016-09-30 | N11: 38130 | O11: 38130 | P11: 2016-10-01 | Q11: 2017-08-31 | R11: 39160 | S11: 0 | T11: 2017-08-31 | U11: 2017-08-31 | V11: 39160 | W11: 0 | X11: 2017-08-31 | Y11: 2017-08-31 | Z11: 39160 | AA11: 0 | AB11: 2017-08-31 | AC11: 2017-08-31 | AD11: 39160 | AE11: 0 | AF11: 2017-08-31 | AG11: 2017-08-31 | AH11: 39160 | AI11: 0 | AJ11: 2017-08-31 | AK11: 2017-08-31 | AL11: 39160 | AM11: 0 | AN11: 2016-11-01 | AO11: 2016-11-30 | AP11: 0 | AQ11: 1 | AR11: 0 | AS11: =IF('DA 2.2'!B55=2,0,IF(AR11=1,I11-J11,0)) -> 0 | AU11: 4.51164 | AV11: 45.1164 | AW11: 2016-12-01 | AX11: =VLOOKUP(AW11,B6:C586,2) -> 39160 | AY11: 8618 | AZ11: 7181.944 | BA11: 1436 | BB11: 0 | BC11: 0 | BD11: 0 | BE11: 0 | BF11: 1436 | BL11: 862 | BM11: 7756 | BN11: 718 | BO11: 6464 | BP11: 144 | BQ11: 1292 | BR11: 0 | BS11: 0 | BT11: 0 | BU11: 0 | BV11: 1436
B12: 2016-07-07 | C12: 38130 | D12: 7 | E12: 31 | F12: 1230 | G12: 0.22008 | H12: 0.1834 | I12: 270.6984 | J12: 225.582 | K12: 45.1164 | L12: 2016-07-01 | M12: 2016-09-30 | N12: 38130 | O12: 38130 | P12: 2016-10-01 | Q12: 2017-08-31 | R12: 39160 | S12: 0 | T12: 2017-08-31 | U12: 2017-08-31 | V12: 39160 | W12: 0 | X12: 2017-08-31 | Y12: 2017-08-31 | Z12: 39160 | AA12: 0 | AB12: 2017-08-31 | AC12: 2017-08-31 | AD12: 39160 | AE12: 0 | AF12: 2017-08-31 | AG12: 2017-08-31 | AH12: 39160 | AI12: 0 | AJ12: 2017-08-31 | AK12: 2017-08-31 | AL12: 39160 | AM12: 0 | AN12: 2016-11-01 | AO12: 2016-11-30 | AP12: 0 | AQ12: 1 | AR12: 0 | AS12: =IF('DA 2.2'!B56=2,0,IF(AR12=1,I12-J12,0)) -> 0 | AU12: 4.51164 | AV12: 45.1164 | AW12: 2017-01-01 | AX12: =VLOOKUP(AW12,B6:C586,2) -> 39160 | AY12: 8618 | AZ12: 7181.944 | BA12: 1436 | BB12: 0 | BC12: 0 | BD12: 0 | BE12: 0 | BF12: 1436 | BL12: 862 | BM12: 7756 | BN12: 718 | BO12: 6464 | BP12: 144 | BQ12: 1292 | BR12: 0 | BS12: 0 | BT12: 0 | BU12: 0 | BV12: 1436
B13: 2016-07-08 | C13: 38130 | D13: 7 | E13: 31 | F13: 1230 | G13: 0.22008 | H13: 0.1834 | I13: 270.6984 | J13: 225.582 | K13: 45.1164 | L13: 2016-07-01 | M13: 2016-09-30 | N13: 38130 | O13: 38130 | P13: 2016-10-01 | Q13: 2017-08-31 | R13: 39160 | S13: 0 | T13: 2017-08-31 | U13: 2017-08-31 | V13: 39160 | W13: 0 | X13: 2017-08-31 | Y13: 2017-08-31 | Z13: 39160 | AA13: 0 | AB13: 2017-08-31 | AC13: 2017-08-31 | AD13: 39160 | AE13: 0 | AF13: 2017-08-31 | AG13: 2017-08-31 | AH13: 39160 | AI13: 0 | AJ13: 2017-08-31 | AK13: 2017-08-31 | AL13: 39160 | AM13: 0 | AN13: 2016-11-01 | AO13: 2016-11-30 | AP13: 0 | AQ13: 1 | AR13: 0 | AS13: =IF('DA 2.2'!B57=2,0,IF(AR13=1,I13-J13,0)) -> 0 | AU13: 4.51164 | AV13: 45.1164 | AW13: 2017-02-01 | AX13: =VLOOKUP(AW13,B6:C586,2) -> 39160 | AY13: 8618 | AZ13: 7181.944 | BA13: 1436 | BB13: 0 | BC13: 0 | BD13: 0 | BE13: 0 | BF13: 1436 | BL13: 862 | BM13: 7756 | BN13: 718 | BO13: 6464 | BP13: 144 | BQ13: 1292 | BR13: 0 | BS13: 0 | BT13: 0 | BU13: 0 | BV13: 1436
B14: 2016-07-09 | C14: 38130 | D14: 7 | E14: 31 | F14: 1230 | G14: 0.22008 | H14: 0.1834 | I14: 270.6984 | J14: 225.582 | K14: 45.1164 | L14: 2016-07-01 | M14: 2016-09-30 | N14: 38130 | O14: 38130 | P14: 2016-10-01 | Q14: 2017-08-31 | R14: 39160 | S14: 0 | T14: 2017-08-31 | U14: 2017-08-31 | V14: 39160 | W14: 0 | X14: 2017-08-31 | Y14: 2017-08-31 | Z14: 39160 | AA14: 0 | AB14: 2017-08-31 | AC14: 2017-08-31 | AD14: 39160 | AE14: 0 | AF14: 2017-08-31 | AG14: 2017-08-31 | AH14: 39160 | AI14: 0 | AJ14: 2017-08-31 | AK14: 2017-08-31 | AL14: 39160 | AM14: 0 | AN14: 2016-11-01 | AO14: 2016-11-30 | AP14: 0 | AQ14: 1 | AR14: 0 | AS14: =IF('DA 2.2'!B58=2,0,IF(AR14=1,I14-J14,0)) -> 0 | AU14: 4.51164 | AV14: 45.1164 | AW14: 2017-03-01 | AX14: =VLOOKUP(AW14,B6:C586,2) -> 39160 | AY14: 8618 | AZ14: 7181.944 | BA14: 1436 | BB14: 0 | BC14: 0 | BD14: 0 | BE14: 0 | BF14: 1436 | BL14: 862 | BM14: 7756 | BN14: 718 | BO14: 6464 | BP14: 144 | BQ14: 1292 | BR14: 0 | BS14: 0 | BT14: 0 | BU14: 0 | BV14: 1436
B15: 2016-07-10 | C15: 38130 | D15: 7 | E15: 31 | F15: 1230 | G15: 0.22008 | H15: 0.1834 | I15: 270.6984 | J15: 225.582 | K15: 45.1164 | L15: 2016-07-01 | M15: 2016-09-30 | N15: 38130 | O15: 38130 | P15: 2016-10-01 | Q15: 2017-08-31 | R15: 39160 | S15: 0 | T15: 2017-08-31 | U15: 2017-08-31 | V15: 39160 | W15: 0 | X15: 2017-08-31 | Y15: 2017-08-31 | Z15: 39160 | AA15: 0 | AB15: 2017-08-31 | AC15: 2017-08-31 | AD15: 39160 | AE15: 0 | AF15: 2017-08-31 | AG15: 2017-08-31 | AH15: 39160 | AI15: 0 | AJ15: 2017-08-31 | AK15: 2017-08-31 | AL15: 39160 | AM15: 0 | AN15: 2016-11-01 | AO15: 2016-11-30 | AP15: 0 | AQ15: 1 | AR15: 0 | AS15: =IF('DA 2.2'!B59=2,0,IF(AR15=1,I15-J15,0)) -> 0 | AU15: 4.51164 | AV15: 45.1164 | AW15: 2017-04-01 | AX15: =VLOOKUP(AW15,B6:C586,2) -> 39160 | AY15: 8618 | AZ15: 7181.944 | BA15: 1436 | BB15: 0 | BC15: 0 | BD15: 0 | BE15: 0 | BF15: 1436 | BL15: 862 | BM15: 7756 | BN15: 718 | BO15: 6464 | BP15: =BL15-BN15 -> 144 | BQ15: 1292 | BR15: 0 | BS15: 0 | BT15: 0 | BU15: 0 | BV15: 1436
B16: 2016-07-11 | C16: 38130 | D16: 7 | E16: 31 | F16: 1230 | G16: 0.22008 | H16: 0.1834 | I16: 270.6984 | J16: 225.582 | K16: 45.1164 | L16: 2016-07-01 | M16: 2016-09-30 | N16: 38130 | O16: 38130 | P16: 2016-10-01 | Q16: 2017-08-31 | R16: 39160 | S16: 0 | T16: 2017-08-31 | U16: 2017-08-31 | V16: 39160 | W16: 0 | X16: 2017-08-31 | Y16: 2017-08-31 | Z16: 39160 | AA16: 0 | AB16: 2017-08-31 | AC16: 2017-08-31 | AD16: 39160 | AE16: 0 | AF16: 2017-08-31 | AG16: 2017-08-31 | AH16: 39160 | AI16: 0 | AJ16: 2017-08-31 | AK16: 2017-08-31 | AL16: 39160 | AM16: 0 | AN16: 2016-11-01 | AO16: 2016-11-30 | AP16: 0 | AQ16: 1 | AR16: 0 | AS16: =IF('DA 2.2'!B60=2,0,IF(AR16=1,I16-J16,0)) -> 0 | AU16: 4.51164 | AV16: 45.1164 | AW16: 2017-05-01 | AX16: =VLOOKUP(AW16,B6:C586,2) -> 39160 | AY16: 8618 | AZ16: 7181.944 | BA16: 1436 | BB16: 0 | BC16: 0 | BD16: 0 | BE16: 0 | BF16: 1436 | BL16: 862 | BM16: 7756 | BN16: 718 | BO16: 6464 | BP16: 144 | BQ16: 1292 | BR16: 0 | BS16: 0 | BT16: 0 | BU16: 0 | BV16: 1436
B17: 2016-07-12 | C17: 38130 | D17: 7 | E17: 31 | F17: 1230 | G17: 0.22008 | H17: 0.1834 | I17: 270.6984 | J17: 225.582 | K17: 45.1164 | L17: 2016-07-01 | M17: 2016-09-30 | N17: 38130 | O17: 38130 | P17: 2016-10-01 | Q17: 2017-08-31 | R17: 39160 | S17: 0 | T17: 2017-08-31 | U17: 2017-08-31 | V17: 39160 | W17: 0 | X17: 2017-08-31 | Y17: 2017-08-31 | Z17: 39160 | AA17: 0 | AB17: 2017-08-31 | AC17: 2017-08-31 | AD17: 39160 | AE17: 0 | AF17: 2017-08-31 | AG17: 2017-08-31 | AH17: 39160 | AI17: 0 | AJ17: 2017-08-31 | AK17: 2017-08-31 | AL17: 39160 | AM17: 0 | AN17: 2016-11-01 | AO17: 2016-11-30 | AP17: 0 | AQ17: 1 | AR17: 0 | AS17: =IF('DA 2.2'!B61=2,0,IF(AR17=1,I17-J17,0)) -> 0 | AU17: 4.51164 | AV17: 45.1164 | AW17: 2017-06-01 | AX17: =VLOOKUP(AW17,B6:C586,2) -> 39160 | AY17: 8618 | AZ17: 7181.944 | BA17: 1436 | BB17: 0 | BC17: 0 | BD17: 0 | BE17: 0 | BF17: 1436 | BL17: 862 | BM17: 7756 | BN17: 718 | BO17: 6464 | BP17: 144 | BQ17: 1292 | BR17: 0 | BS17: 0 | BT17: 0 | BU17: 0 | BV17: 1436
B18: 2016-07-13 | C18: 38130 | D18: 7 | E18: 31 | F18: 1230 | G18: 0.22008 | H18: 0.1834 | I18: 270.6984 | J18: 225.582 | K18: 45.1164 | L18: 2016-07-01 | M18: 2016-09-30 | N18: 38130 | O18: 38130 | P18: 2016-10-01 | Q18: 2017-08-31 | R18: 39160 | S18: 0 | T18: 2017-08-31 | U18: 2017-08-31 | V18: 39160 | W18: 0 | X18: 2017-08-31 | Y18: 2017-08-31 | Z18: 39160 | AA18: 0 | AB18: 2017-08-31 | AC18: 2017-08-31 | AD18: 39160 | AE18: 0 | AF18: 2017-08-31 | AG18: 2017-08-31 | AH18: 39160 | AI18: 0 | AJ18: 2017-08-31 | AK18: 2017-08-31 | AL18: 39160 | AM18: 0 | AN18: 2016-11-01 | AO18: 2016-11-30 | AP18: 0 | AQ18: 1 | AR18: 0 | AS18: =IF('DA 2.2'!B62=2,0,IF(AR18=1,I18-J18,0)) -> 0 | AU18: 4.51164 | AV18: 45.1164 | AW18: 2017-07-01 | AX18: =VLOOKUP(AW18,B6:C586,2) -> 39160 | AY18: 8618 | AZ18: 7181.944 | BA18: 1436 | BB18: 0 | BC18: 0 | BD18: 0 | BE18: 0 | BF18: 1436 | BL18: 862 | BM18: 7756 | BN18: 718 | BO18: 6464 | BP18: 144 | BQ18: 1292 | BR18: 0 | BS18: 0 | BT18: 0 | BU18: 0 | BV18: 1436
B19: 2016-07-14 | C19: 38130 | D19: 7 | E19: 31 | F19: 1230 | G19: 0.22008 | H19: 0.1834 | I19: 270.6984 | J19: 225.582 | K19: 45.1164 | L19: 2016-07-01 | M19: 2016-09-30 | N19: 38130 | O19: 38130 | P19: 2016-10-01 | Q19: 2017-08-31 | R19: 39160 | S19: 0 | T19: 2017-08-31 | U19: 2017-08-31 | V19: 39160 | W19: 0 | X19: 2017-08-31 | Y19: 2017-08-31 | Z19: 39160 | AA19: 0 | AB19: 2017-08-31 | AC19: 2017-08-31 | AD19: 39160 | AE19: 0 | AF19: 2017-08-31 | AG19: 2017-08-31 | AH19: 39160 | AI19: 0 | AJ19: 2017-08-31 | AK19: 2017-08-31 | AL19: 39160 | AM19: 0 | AN19: 2016-11-01 | AO19: 2016-11-30 | AP19: 0 | AQ19: 1 | AR19: 0 | AS19: =IF('DA 2.2'!B63=2,0,IF(AR19=1,I19-J19,0)) -> 0 | AU19: 4.51164 | AV19: 45.1164 | AW19: 2017-08-01 | AX19: =VLOOKUP(AW19,B6:C586,2) -> 39160 | AY19: 8618 | AZ19: 7181.944 | BA19: 1436 | BB19: 0 | BC19: 0 | BD19: =ROUND(IF(AW19=BJ46,BK46,0),0) -> 0 | BE19: 0 | BF19: 1436 | BL19: 862 | BM19: 7756 | BN19: 718 | BO19: 6464 | BP19: 144 | BQ19: 1292 | BR19: 0 | BS19: 0 | BT19: 0 | BU19: 0 | BV19: 1436
B20: 2016-07-15 | C20: 38130 | D20: 7 | E20: 31 | F20: 1230 | G20: 0.22008 | H20: 0.1834 | I20: 270.6984 | J20: 225.582 | K20: 45.1164 | L20: 2016-07-01 | M20: 2016-09-30 | N20: 38130 | O20: 38130 | P20: 2016-10-01 | Q20: 2017-08-31 | R20: 39160 | S20: 0 | T20: 2017-08-31 | U20: 2017-08-31 | V20: 39160 | W20: 0 | X20: 2017-08-31 | Y20: 2017-08-31 | Z20: 39160 | AA20: 0 | AB20: 2017-08-31 | AC20: 2017-08-31 | AD20: 39160 | AE20: 0 | AF20: 2017-08-31 | AG20: 2017-08-31 | AH20: 39160 | AI20: 0 | AJ20: 2017-08-31 | AK20: 2017-08-31 | AL20: 39160 | AM20: 0 | AN20: 2016-11-01 | AO20: 2016-11-30 | AP20: 0 | AQ20: 1 | AR20: 0 | AS20: =IF('DA 2.2'!B64=2,0,IF(AR20=1,I20-J20,0)) -> 0 | AU20: 4.51164 | AV20: 45.1164 | AW20: 2017-09-01 | AX20: =VLOOKUP(AW20,B6:C586,2) -> 0 | AY20: 0 | AZ20: 0 | BA20: 0 | BB20: 0 | BC20: 0 | BD20: 0 | BE20: 0 | BF20: 0 | BL20: 0 | BM20: 0 | BN20: 0 | BO20: 0 | BP20: 0 | BQ20: 0 | BR20: 0 | BS20: 0 | BT20: 0 | BU20: 0 | BV20: 0
B21: 2016-07-16 | C21: 38130 | D21: 7 | E21: 31 | F21: 1230 | G21: 0.22008 | H21: 0.1834 | I21: 270.6984 | J21: 225.582 | K21: 45.1164 | L21: 2016-07-01 | M21: 2016-09-30 | N21: 38130 | O21: 38130 | P21: 2016-10-01 | Q21: 2017-08-31 | R21: 39160 | S21: 0 | T21: 2017-08-31 | U21: 2017-08-31 | V21: 39160 | W21: 0 | X21: 2017-08-31 | Y21: 2017-08-31 | Z21: 39160 | AA21: 0 | AB21: 2017-08-31 | AC21: 2017-08-31 | AD21: 39160 | AE21: 0 | AF21: 2017-08-31 | AG21: 2017-08-31 | AH21: 39160 | AI21: 0 | AJ21: 2017-08-31 | AK21: 2017-08-31 | AL21: 39160 | AM21: 0 | AN21: 2016-11-01 | AO21: 2016-11-30 | AP21: 0 | AQ21: 1 | AR21: 0 | AS21: =IF('DA 2.2'!B65=2,0,IF(AR21=1,I21-J21,0)) -> 0 | AU21: 4.51164 | AV21: 45.1164 | AW21: 2017-10-01 | AX21: =VLOOKUP(AW21,B6:C586,2) -> 0 | AY21: 0 | AZ21: 0 | BA21: 0 | BB21: 0 | BC21: 0 | BD21: 0 | BE21: 0 | BF21: 0 | BL21: 0 | BM21: 0 | BN21: 0 | BO21: 0 | BP21: 0 | BQ21: 0 | BR21: 0 | BS21: 0 | BT21: 0 | BU21: 0 | BV21: 0
B22: 2016-07-17 | C22: 38130 | D22: 7 | E22: 31 | F22: 1230 | G22: 0.22008 | H22: 0.1834 | I22: 270.6984 | J22: 225.582 | K22: 45.1164 | L22: 2016-07-01 | M22: 2016-09-30 | N22: 38130 | O22: 38130 | P22: 2016-10-01 | Q22: 2017-08-31 | R22: 39160 | S22: 0 | T22: 2017-08-31 | U22: 2017-08-31 | V22: 39160 | W22: 0 | X22: 2017-08-31 | Y22: 2017-08-31 | Z22: 39160 | AA22: 0 | AB22: 2017-08-31 | AC22: 2017-08-31 | AD22: 39160 | AE22: 0 | AF22: 2017-08-31 | AG22: 2017-08-31 | AH22: 39160 | AI22: 0 | AJ22: 2017-08-31 | AK22: 2017-08-31 | AL22: 39160 | AM22: 0 | AN22: 2016-11-01 | AO22: 2016-11-30 | AP22: 0 | AQ22: 1 | AR22: 0 | AS22: =IF('DA 2.2'!B66=2,0,IF(AR22=1,I22-J22,0)) -> 0 | AU22: 4.51164 | AV22: 45.1164 | AW22: 2017-11-01 | AX22: =VLOOKUP(AW22,B6:C586,2) -> 0 | AY22: 0 | AZ22: 0 | BA22: 0 | BB22: 0 | BC22: 0 | BD22: 0 | BE22: 0 | BF22: 0 | BL22: 0 | BM22: 0 | BN22: 0 | BO22: 0 | BP22: 0 | BQ22: 0 | BR22: 0 | BS22: 0 | BT22: 0 | BU22: 0 | BV22: 0
B23: 2016-07-18 | C23: 38130 | D23: 7 | E23: 31 | F23: 1230 | G23: 0.22008 | H23: 0.1834 | I23: 270.6984 | J23: 225.582 | K23: 45.1164 | L23: 2016-07-01 | M23: 2016-09-30 | N23: 38130 | O23: 38130 | P23: 2016-10-01 | Q23: 2017-08-31 | R23: 39160 | S23: 0 | T23: 2017-08-31 | U23: 2017-08-31 | V23: 39160 | W23: 0 | X23: 2017-08-31 | Y23: 2017-08-31 | Z23: 39160 | AA23: 0 | AB23: 2017-08-31 | AC23: 2017-08-31 | AD23: 39160 | AE23: 0 | AF23: 2017-08-31 | AG23: 2017-08-31 | AH23: 39160 | AI23: 0 | AJ23: 2017-08-31 | AK23: 2017-08-31 | AL23: 39160 | AM23: 0 | AN23: 2016-11-01 | AO23: 2016-11-30 | AP23: 0 | AQ23: 1 | AR23: 0 | AS23: =IF('DA 2.2'!B67=2,0,IF(AR23=1,I23-J23,0)) -> 0 | AU23: 4.51164 | AV23: 45.1164 | AW23: 2017-12-01 | AX23: =VLOOKUP(AW23,B6:C586,2) -> 0 | AY23: 0 | AZ23: 0 | BA23: 0 | BB23: 0 | BC23: 0 | BD23: 0 | BE23: 0 | BF23: 0 | BL23: 0 | BM23: 0 | BN23: 0 | BO23: 0 | BP23: 0 | BQ23: 0 | BR23: 0 | BS23: 0 | BT23: 0 | BU23: 0 | BV23: 0
B24: 2016-07-19 | C24: 38130 | D24: 7 | E24: 31 | F24: 1230 | G24: =G23 -> 0.22008 | H24: 0.1834 | I24: 270.6984 | J24: 225.582 | K24: 45.1164 | L24: =L23 -> 2016-07-01 | M24: 2016-09-30 | N24: 38130 | O24: 38130 | P24: =P23 -> 2016-10-01 | Q24: 2017-08-31 | R24: 39160 | S24: 0 | T24: =T23 -> 2017-08-31 | U24: 2017-08-31 | V24: 39160 | W24: 0 | X24: =X23 -> 2017-08-31 | Y24: 2017-08-31 | Z24: 39160 | AA24: 0 | AB24: 2017-08-31 | AC24: 2017-08-31 | AD24: 39160 | AE24: 0 | AF24: 2017-08-31 | AG24: 2017-08-31 | AH24: 39160 | AI24: 0 | AJ24: 2017-08-31 | AK24: 2017-08-31 | AL24: 39160 | AM24: 0 | AN24: =AN23 -> 2016-11-01 | AO24: 2016-11-30 | AP24: 0 | AQ24: 1 | AR24: 0 | AS24: =IF('DA 2.2'!B68=2,0,IF(AR24=1,I24-J24,0)) -> 0 | AU24: 4.51164 | AV24: 45.1164 | AW24: 2018-01-01 | AX24: =VLOOKUP(AW24,B6:C586,2) -> 0 | AY24: 0 | AZ24: 0 | BA24: 0 | BB24: 0 | BC24: 0 | BD24: 0 | BE24: 0 | BF24: 0 | BL24: 0 | BM24: 0 | BN24: 0 | BO24: 0 | BP24: 0 | BQ24: 0 | BR24: 0 | BS24: 0 | BT24: 0 | BU24: 0 | BV24: 0
B25: 2016-07-20 | C25: 38130 | D25: 7 | E25: 31 | F25: 1230 | G25: 0.22008 | H25: 0.1834 | I25: 270.6984 | J25: 225.582 | K25: 45.1164 | L25: 2016-07-01 | M25: 2016-09-30 | N25: 38130 | O25: 38130 | P25: 2016-10-01 | Q25: 2017-08-31 | R25: 39160 | S25: 0 | T25: 2017-08-31 | U25: 2017-08-31 | V25: 39160 | W25: 0 | X25: 2017-08-31 | Y25: 2017-08-31 | Z25: 39160 | AA25: 0 | AB25: 2017-08-31 | AC25: 2017-08-31 | AD25: 39160 | AE25: 0 | AF25: 2017-08-31 | AG25: 2017-08-31 | AH25: 39160 | AI25: 0 | AJ25: 2017-08-31 | AK25: 2017-08-31 | AL25: 39160 | AM25: 0 | AN25: 2016-11-01 | AO25: 2016-11-30 | AP25: 0 | AQ25: 1 | AR25: 0 | AS25: =IF('DA 2.2'!B69=2,0,IF(AR25=1,I25-J25,0)) -> 0 | AU25: 4.51164 | AV25: 45.1164
B26: 2016-07-21 | C26: 38130 | D26: 7 | E26: 31 | F26: 1230 | G26: 0.22008 | H26: 0.1834 | I26: 270.6984 | J26: 225.582 | K26: 45.1164 | L26: 2016-07-01 | M26: 2016-09-30 | N26: 38130 | O26: 38130 | P26: 2016-10-01 | Q26: 2017-08-31 | R26: 39160 | S26: 0 | T26: 2017-08-31 | U26: 2017-08-31 | V26: 39160 | W26: 0 | X26: 2017-08-31 | Y26: 2017-08-31 | Z26: 39160 | AA26: 0 | AB26: 2017-08-31 | AC26: 2017-08-31 | AD26: 39160 | AE26: 0 | AF26: 2017-08-31 | AG26: 2017-08-31 | AH26: 39160 | AI26: 0 | AJ26: 2017-08-31 | AK26: 2017-08-31 | AL26: 39160 | AM26: 0 | AN26: 2016-11-01 | AO26: 2016-11-30 | AP26: 0 | AQ26: 1 | AR26: 0 | AS26: =IF('DA 2.2'!B70=2,0,IF(AR26=1,I26-J26,0)) -> 0 | AU26: 4.51164 | AV26: 45.1164
B27: 2016-07-22 | C27: 38130 | D27: 7 | E27: 31 | F27: 1230 | G27: 0.22008 | H27: 0.1834 | I27: 270.6984 | J27: 225.582 | K27: 45.1164 | L27: 2016-07-01 | M27: 2016-09-30 | N27: 38130 | O27: 38130 | P27: 2016-10-01 | Q27: 2017-08-31 | R27: 39160 | S27: 0 | T27: 2017-08-31 | U27: 2017-08-31 | V27: 39160 | W27: 0 | X27: 2017-08-31 | Y27: 2017-08-31 | Z27: 39160 | AA27: 0 | AB27: 2017-08-31 | AC27: 2017-08-31 | AD27: 39160 | AE27: 0 | AF27: 2017-08-31 | AG27: 2017-08-31 | AH27: 39160 | AI27: 0 | AJ27: 2017-08-31 | AK27: 2017-08-31 | AL27: 39160 | AM27: 0 | AN27: 2016-11-01 | AO27: 2016-11-30 | AP27: 0 | AQ27: 1 | AR27: 0 | AS27: =IF('DA 2.2'!B71=2,0,IF(AR27=1,I27-J27,0)) -> 0 | AU27: 4.51164 | AV27: 45.1164
B28: 2016-07-23 | C28: 38130 | D28: 7 | E28: 31 | F28: 1230 | G28: 0.22008 | H28: 0.1834 | I28: 270.6984 | J28: 225.582 | K28: 45.1164 | L28: 2016-07-01 | M28: 2016-09-30 | N28: 38130 | O28: 38130 | P28: 2016-10-01 | Q28: 2017-08-31 | R28: 39160 | S28: 0 | T28: 2017-08-31 | U28: 2017-08-31 | V28: 39160 | W28: 0 | X28: 2017-08-31 | Y28: 2017-08-31 | Z28: 39160 | AA28: 0 | AB28: 2017-08-31 | AC28: 2017-08-31 | AD28: 39160 | AE28: 0 | AF28: 2017-08-31 | AG28: 2017-08-31 | AH28: 39160 | AI28: 0 | AJ28: 2017-08-31 | AK28: 2017-08-31 | AL28: 39160 | AM28: 0 | AN28: 2016-11-01 | AO28: 2016-11-30 | AP28: 0 | AQ28: 1 | AR28: 0 | AS28: =IF('DA 2.2'!B72=2,0,IF(AR28=1,I28-J28,0)) -> 0 | AU28: 4.51164 | AV28: 45.1164
B29: 2016-07-24 | C29: 38130 | D29: 7 | E29: 31 | F29: 1230 | G29: 0.22008 | H29: 0.1834 | I29: 270.6984 | J29: 225.582 | K29: 45.1164 | L29: 2016-07-01 | M29: 2016-09-30 | N29: 38130 | O29: 38130 | P29: 2016-10-01 | Q29: 2017-08-31 | R29: 39160 | S29: 0 | T29: 2017-08-31 | U29: 2017-08-31 | V29: 39160 | W29: 0 | X29: 2017-08-31 | Y29: 2017-08-31 | Z29: 39160 | AA29: 0 | AB29: 2017-08-31 | AC29: 2017-08-31 | AD29: 39160 | AE29: 0 | AF29: 2017-08-31 | AG29: 2017-08-31 | AH29: 39160 | AI29: 0 | AJ29: 2017-08-31 | AK29: 2017-08-31 | AL29: 39160 | AM29: 0 | AN29: 2016-11-01 | AO29: 2016-11-30 | AP29: 0 | AQ29: 1 | AR29: 0 | AS29: =IF('DA 2.2'!B73=2,0,IF(AR29=1,I29-J29,0)) -> 0 | AU29: 4.51164 | AV29: 45.1164
B30: 2016-07-25 | C30: 38130 | D30: 7 | E30: 31 | F30: 1230 | G30: 0.22008 | H30: 0.1834 | I30: 270.6984 | J30: 225.582 | K30: 45.1164 | L30: 2016-07-01 | M30: 2016-09-30 | N30: 38130 | O30: 38130 | P30: 2016-10-01 | Q30: 2017-08-31 | R30: 39160 | S30: 0 | T30: 2017-08-31 | U30: 2017-08-31 | V30: 39160 | W30: 0 | X30: 2017-08-31 | Y30: 2017-08-31 | Z30: 39160 | AA30: 0 | AB30: 2017-08-31 | AC30: 2017-08-31 | AD30: 39160 | AE30: 0 | AF30: 2017-08-31 | AG30: 2017-08-31 | AH30: 39160 | AI30: 0 | AJ30: 2017-08-31 | AK30: 2017-08-31 | AL30: 39160 | AM30: 0 | AN30: 2016-11-01 | AO30: 2016-11-30 | AP30: 0 | AQ30: 1 | AR30: 0 | AS30: =IF('DA 2.2'!B74=2,0,IF(AR30=1,I30-J30,0)) -> 0 | AU30: 4.51164 | AV30: 45.1164
B31: 2016-07-26 | C31: 38130 | D31: 7 | E31: 31 | F31: 1230 | G31: 0.22008 | H31: 0.1834 | I31: 270.6984 | J31: 225.582 | K31: 45.1164 | L31: 2016-07-01 | M31: 2016-09-30 | N31: 38130 | O31: 38130 | P31: 2016-10-01 | Q31: 2017-08-31 | R31: 39160 | S31: 0 | T31: 2017-08-31 | U31: 2017-08-31 | V31: 39160 | W31: 0 | X31: 2017-08-31 | Y31: 2017-08-31 | Z31: 39160 | AA31: 0 | AB31: 2017-08-31 | AC31: 2017-08-31 | AD31: 39160 | AE31: 0 | AF31: 2017-08-31 | AG31: 2017-08-31 | AH31: 39160 | AI31: 0 | AJ31: 2017-08-31 | AK31: 2017-08-31 | AL31: 39160 | AM31: 0 | AN31: 2016-11-01 | AO31: 2016-11-30 | AP31: 0 | AQ31: 1 | AR31: 0 | AS31: =IF('DA 2.2'!B75=2,0,IF(AR31=1,I31-J31,0)) -> 0 | AU31: 4.51164 | AV31: 45.1164 | AW31: ='DA 2.2'!C10 -> 2016-11-01 | AX31: =IF('DA 2.2'!B50=2,0,IF('DA 2.2'!D12=30,'DA 2.3'!AY3,ROUND('DA 2.3'!AY3/2,0))) -> 0 | AY31: =ROUND(AX31*G31,0) -> 0 | AZ31: =ROUND(AX31*H31,0) -> 0 | BA31: =AY31-AZ31 -> 0 | BB31: SL
B32: 2016-07-27 | C32: 38130 | D32: 7 | E32: 31 | F32: 1230 | G32: 0.22008 | H32: 0.1834 | I32: 270.6984 | J32: 225.582 | K32: 45.1164 | L32: 2016-07-01 | M32: 2016-09-30 | N32: 38130 | O32: 38130 | P32: 2016-10-01 | Q32: 2017-08-31 | R32: 39160 | S32: 0 | T32: 2017-08-31 | U32: 2017-08-31 | V32: 39160 | W32: 0 | X32: 2017-08-31 | Y32: 2017-08-31 | Z32: 39160 | AA32: 0 | AB32: 2017-08-31 | AC32: 2017-08-31 | AD32: 39160 | AE32: 0 | AF32: 2017-08-31 | AG32: 2017-08-31 | AH32: 39160 | AI32: 0 | AJ32: 2017-08-31 | AK32: 2017-08-31 | AL32: 39160 | AM32: 0 | AN32: 2016-11-01 | AO32: 2016-11-30 | AP32: 0 | AQ32: 1 | AR32: 0 | AS32: =IF('DA 2.2'!B76=2,0,IF(AR32=1,I32-J32,0)) -> 0 | AU32: 4.51164 | AV32: 45.1164 | BH32: AAS | BJ32: PRO | BL32: AAS 2 | BN32: PRO 2
B33: 2016-07-28 | C33: 38130 | D33: 7 | E33: 31 | F33: 1230 | G33: 0.22008 | H33: 0.1834 | I33: 270.6984 | J33: 225.582 | K33: 45.1164 | L33: 2016-07-01 | M33: 2016-09-30 | N33: 38130 | O33: 38130 | P33: 2016-10-01 | Q33: 2017-08-31 | R33: 39160 | S33: 0 | T33: 2017-08-31 | U33: 2017-08-31 | V33: 39160 | W33: 0 | X33: 2017-08-31 | Y33: 2017-08-31 | Z33: 39160 | AA33: 0 | AB33: 2017-08-31 | AC33: 2017-08-31 | AD33: 39160 | AE33: 0 | AF33: 2017-08-31 | AG33: 2017-08-31 | AH33: 39160 | AI33: 0 | AJ33: 2017-08-31 | AK33: 2017-08-31 | AL33: 39160 | AM33: 0 | AN33: 2016-11-01 | AO33: 2016-11-30 | AP33: 0 | AQ33: 1 | AR33: 0 | AS33: =IF('DA 2.2'!B77=2,0,IF(AR33=1,I33-J33,0)) -> 0 | AU33: 4.51164 | AV33: 45.1164 | AW33: ='DA 2.2'!C4 -> 2017-08-31 | AX33: =IF('DA 2.2'!C4<'DA 2.2'!C15,IF('DA 2.2'!F15=1,VLOOKUP(AW33,'DA 2.3'!B6:C586,2),0),0) -> 0 | AY33: 1 | AZ33: =MONTH(AW33) -> 8 | BA33: =YEAR(AW33) -> 2017 | BB33: AAS | BH33: =AY34 -> 2017-08-01 | BI33: =BB48 -> 0 | BJ33: =AY40 -> 2017-08-01 | BK33: =BA43 -> 0 | BL33: =AY52 -> 2017-08-01 | BM33: =BA55 -> 0 | BN33: =AY59 -> 2017-08-01 | BO33: =BA62 -> 0
B34: 2016-07-29 | C34: 38130 | D34: 7 | E34: 31 | F34: 1230 | G34: 0.22008 | H34: 0.1834 | I34: 270.6984 | J34: 225.582 | K34: 45.1164 | L34: 2016-07-01 | M34: 2016-09-30 | N34: 38130 | O34: 38130 | P34: 2016-10-01 | Q34: 2017-08-31 | R34: 39160 | S34: 0 | T34: 2017-08-31 | U34: 2017-08-31 | V34: 39160 | W34: 0 | X34: 2017-08-31 | Y34: 2017-08-31 | Z34: 39160 | AA34: 0 | AB34: 2017-08-31 | AC34: 2017-08-31 | AD34: 39160 | AE34: 0 | AF34: 2017-08-31 | AG34: 2017-08-31 | AH34: 39160 | AI34: 0 | AJ34: 2017-08-31 | AK34: 2017-08-31 | AL34: 39160 | AM34: 0 | AN34: 2016-11-01 | AO34: 2016-11-30 | AP34: 0 | AQ34: 1 | AR34: 0 | AS34: =IF('DA 2.2'!B78=2,0,IF(AR34=1,I34-J34,0)) -> 0 | AU34: 4.51164 | AV34: 45.1164 | AW34: =AW33-1 -> 2017-08-30 | AX34: =IF('DA 2.2'!C4<'DA 2.2'!C15,IF('DA 2.2'!F15=1,VLOOKUP(AW34,'DA 2.3'!B6:C586,2),0),0) -> 0 | AY34: =DATE(BA33,AZ33,AY33) -> 2017-08-01 | BH34: =BH33 -> 2017-08-01 | BI34: 0 | BJ34: 2017-08-01 | BK34: 0 | BL34: 2017-08-01 | BM34: 0 | BN34: 2017-08-01 | BO34: 0
B35: 2016-07-30 | C35: 38130 | D35: 7 | E35: 31 | F35: 1230 | G35: 0.22008 | H35: 0.1834 | I35: 270.6984 | J35: 225.582 | K35: 45.1164 | L35: 2016-07-01 | M35: 2016-09-30 | N35: 38130 | O35: 38130 | P35: 2016-10-01 | Q35: 2017-08-31 | R35: 39160 | S35: 0 | T35: 2017-08-31 | U35: 2017-08-31 | V35: 39160 | W35: 0 | X35: 2017-08-31 | Y35: 2017-08-31 | Z35: 39160 | AA35: 0 | AB35: 2017-08-31 | AC35: 2017-08-31 | AD35: 39160 | AE35: 0 | AF35: 2017-08-31 | AG35: 2017-08-31 | AH35: 39160 | AI35: 0 | AJ35: 2017-08-31 | AK35: 2017-08-31 | AL35: 39160 | AM35: 0 | AN35: 2016-11-01 | AO35: 2016-11-30 | AP35: 0 | AQ35: 1 | AR35: 0 | AS35: =IF('DA 2.2'!B79=2,0,IF(AR35=1,I35-J35,0)) -> 0 | AU35: 4.51164 | AV35: 45.1164 | AW35: PER MONTH | AX35: =AX33-AX34 -> 0 | BB35: =AX33*G37 -> 0 | BH35: =BH34 -> 2017-08-01 | BI35: 0 | BJ35: 2017-08-01 | BK35: 0 | BL35: =BL34 -> 2017-08-01 | BM35: =BM34 -> 0 | BN35: =BN34 -> 2017-08-01 | BO35: =BO34 -> 0
B36: 2016-07-31 | C36: 38130 | D36: 7 | E36: 31 | F36: 1230 | G36: 0.22008 | H36: 0.1834 | I36: 270.6984 | J36: 225.582 | K36: 45.1164 | L36: 2016-07-01 | M36: 2016-09-30 | N36: 38130 | O36: 38130 | P36: 2016-10-01 | Q36: 2017-08-31 | R36: 39160 | S36: 0 | T36: 2017-08-31 | U36: 2017-08-31 | V36: 39160 | W36: 0 | X36: 2017-08-31 | Y36: 2017-08-31 | Z36: 39160 | AA36: 0 | AB36: 2017-08-31 | AC36: 2017-08-31 | AD36: 39160 | AE36: 0 | AF36: 2017-08-31 | AG36: 2017-08-31 | AH36: 39160 | AI36: 0 | AJ36: 2017-08-31 | AK36: 2017-08-31 | AL36: 39160 | AM36: 0 | AN36: 2016-11-01 | AO36: 2016-11-30 | AP36: 0 | AQ36: 1 | AR36: 0 | AS36: =IF('DA 2.2'!B80=2,0,IF(AR36=1,I36-J36,0)) -> 0 | AU36: 4.51164 | AV36: 45.1164 | AW36: =VLOOKUP(AW33,B6:E767,4) -> 31 | AX36: =AW36-AY36+1 -> 1 | AY36: =DAY(AW33) -> 31 | BH36: 2017-08-01 | BI36: 0 | BJ36: 2017-08-01 | BK36: 0 | BL36: 2017-08-01 | BM36: 0 | BN36: 2017-08-01 | BO36: 0
B37: 2016-08-01 | C37: 38130 | D37: 8 | E37: 31 | F37: 1230 | G37: 0.22008 | H37: 0.1834 | I37: 270.6984 | J37: 225.582 | K37: 45.1164 | L37: 2016-07-01 | M37: 2016-09-30 | N37: 38130 | O37: 38130 | P37: 2016-10-01 | Q37: 2017-08-31 | R37: 39160 | S37: 0 | T37: 2017-08-31 | U37: 2017-08-31 | V37: 39160 | W37: 0 | X37: 2017-08-31 | Y37: 2017-08-31 | Z37: 39160 | AA37: 0 | AB37: 2017-08-31 | AC37: 2017-08-31 | AD37: 39160 | AE37: 0 | AF37: 2017-08-31 | AG37: 2017-08-31 | AH37: 39160 | AI37: 0 | AJ37: 2017-08-31 | AK37: 2017-08-31 | AL37: 39160 | AM37: 0 | AN37: 2016-11-01 | AO37: 2016-11-30 | AP37: 0 | AQ37: 1 | AR37: 0 | AS37: =IF('DA 2.2'!B81=2,0,IF(AR37=1,I37-J37,0)) -> 0 | AU37: 4.51164 | AV37: 45.1164 | AX37: =ROUND((AX35/AW36)*AX36,0) -> 0 | AY37: =AX37*G37 -> 0 | AZ37: =(AX37*H37) -> 0 | BA37: =ROUND(AY37-AZ37,0) -> 0 | BH37: 2017-08-01 | BI37: 0 | BJ37: 2017-08-01 | BK37: 0 | BL37: 2017-08-01 | BM37: 0 | BN37: 2017-08-01 | BO37: 0
B38: 2016-08-02 | C38: 38130 | D38: 8 | E38: 31 | F38: 1230 | G38: 0.22008 | H38: 0.1834 | I38: 270.6984 | J38: 225.582 | K38: 45.1164 | L38: 2016-07-01 | M38: 2016-09-30 | N38: 38130 | O38: 38130 | P38: 2016-10-01 | Q38: 2017-08-31 | R38: 39160 | S38: 0 | T38: 2017-08-31 | U38: 2017-08-31 | V38: 39160 | W38: 0 | X38: 2017-08-31 | Y38: 2017-08-31 | Z38: 39160 | AA38: 0 | AB38: 2017-08-31 | AC38: 2017-08-31 | AD38: 39160 | AE38: 0 | AF38: 2017-08-31 | AG38: 2017-08-31 | AH38: 39160 | AI38: 0 | AJ38: 2017-08-31 | AK38: 2017-08-31 | AL38: 39160 | AM38: 0 | AN38: 2016-11-01 | AO38: 2016-11-30 | AP38: 0 | AQ38: 1 | AR38: 0 | AS38: =IF('DA 2.2'!B82=2,0,IF(AR38=1,I38-J38,0)) -> 0 | AU38: 4.51164 | AV38: 45.1164 | BH38: 2017-08-01 | BI38: 0 | BJ38: 2017-08-01 | BK38: 0 | BL38: 2017-08-01 | BM38: 0 | BN38: 2017-08-01 | BO38: 0
B39: 2016-08-03 | C39: 38130 | D39: 8 | E39: 31 | F39: 1230 | G39: 0.22008 | H39: 0.1834 | I39: 270.6984 | J39: 225.582 | K39: 45.1164 | L39: 2016-07-01 | M39: 2016-09-30 | N39: 38130 | O39: 38130 | P39: 2016-10-01 | Q39: 2017-08-31 | R39: 39160 | S39: 0 | T39: 2017-08-31 | U39: 2017-08-31 | V39: 39160 | W39: 0 | X39: 2017-08-31 | Y39: 2017-08-31 | Z39: 39160 | AA39: 0 | AB39: 2017-08-31 | AC39: 2017-08-31 | AD39: 39160 | AE39: 0 | AF39: 2017-08-31 | AG39: 2017-08-31 | AH39: 39160 | AI39: 0 | AJ39: 2017-08-31 | AK39: 2017-08-31 | AL39: 39160 | AM39: 0 | AN39: 2016-11-01 | AO39: 2016-11-30 | AP39: 0 | AQ39: 1 | AR39: 0 | AS39: =IF('DA 2.2'!B83=2,0,IF(AR39=1,I39-J39,0)) -> 0 | AU39: 4.51164 | AV39: 45.1164 | AW39: ='DA 2.2'!C5 -> 2017-08-31 | AX39: =IF('DA 2.2'!C5>'DA 2.2'!C19,0,IF(AW39<B6,0,IF('DA 2.2'!F17=1,VLOOKUP('DA 2.2'!C5,'DA 2.3'!B6:C586,2),0))) -> 0 | AY39: 1 | AZ39: =MONTH(AW39) -> 8 | BA39: =YEAR(AW39) -> 2017 | BB39: PROMO | BH39: 2017-08-01 | BI39: 0 | BJ39: 2017-08-01 | BK39: 0 | BL39: 2017-08-01 | BM39: 0 | BN39: 2017-08-01 | BO39: 0
B40: 2016-08-04 | C40: 38130 | D40: 8 | E40: 31 | F40: 1230 | G40: =G39 -> 0.22008 | H40: 0.1834 | I40: 270.6984 | J40: 225.582 | K40: 45.1164 | L40: =L39 -> 2016-07-01 | M40: 2016-09-30 | N40: 38130 | O40: 38130 | P40: =P39 -> 2016-10-01 | Q40: 2017-08-31 | R40: 39160 | S40: 0 | T40: =T39 -> 2017-08-31 | U40: 2017-08-31 | V40: 39160 | W40: 0 | X40: =X39 -> 2017-08-31 | Y40: 2017-08-31 | Z40: 39160 | AA40: 0 | AB40: 2017-08-31 | AC40: 2017-08-31 | AD40: 39160 | AE40: 0 | AF40: 2017-08-31 | AG40: 2017-08-31 | AH40: 39160 | AI40: 0 | AJ40: 2017-08-31 | AK40: 2017-08-31 | AL40: 39160 | AM40: 0 | AN40: =AN39 -> 2016-11-01 | AO40: 2016-11-30 | AP40: 0 | AQ40: 1 | AR40: 0 | AS40: =IF('DA 2.2'!B84=2,0,IF(AR40=1,I40-J40,0)) -> 0 | AU40: 4.51164 | AV40: 45.1164 | AW40: =AW39-1 -> 2017-08-30 | AX40: =IF('DA 2.2'!I17=1,VLOOKUP(AW40,'DA 2.3'!B6:C586,2),0) -> 0 | AY40: =DATE(BA39,AZ39,AY39) -> 2017-08-01 | BH40: 2017-08-01 | BI40: 0 | BJ40: 2017-08-01 | BK40: 0 | BL40: 2017-08-01 | BM40: 0 | BN40: 2017-08-01 | BO40: 0
B41: 2016-08-05 | C41: 38130 | D41: 8 | E41: 31 | F41: 1230 | G41: 0.22008 | H41: 0.1834 | I41: 270.6984 | J41: 225.582 | K41: 45.1164 | L41: 2016-07-01 | M41: 2016-09-30 | N41: 38130 | O41: 38130 | P41: 2016-10-01 | Q41: 2017-08-31 | R41: 39160 | S41: 0 | T41: 2017-08-31 | U41: 2017-08-31 | V41: 39160 | W41: 0 | X41: 2017-08-31 | Y41: 2017-08-31 | Z41: 39160 | AA41: 0 | AB41: 2017-08-31 | AC41: 2017-08-31 | AD41: 39160 | AE41: 0 | AF41: 2017-08-31 | AG41: 2017-08-31 | AH41: 39160 | AI41: 0 | AJ41: 2017-08-31 | AK41: 2017-08-31 | AL41: 39160 | AM41: 0 | AN41: 2016-11-01 | AO41: 2016-11-30 | AP41: 0 | AQ41: 1 | AR41: 0 | AS41: =IF('DA 2.2'!B85=2,0,IF(AR41=1,I41-J41,0)) -> 0 | AU41: 4.51164 | AV41: 45.1164 | AW41: PER MONTH | AX41: =AX39-AX40 -> 0 | BH41: 2017-08-01 | BI41: 0 | BJ41: 2017-08-01 | BK41: 0 | BL41: 2017-08-01 | BM41: 0 | BN41: 2017-08-01 | BO41: 0
B42: 2016-08-06 | C42: 38130 | D42: 8 | E42: 31 | F42: 1230 | G42: 0.22008 | H42: 0.1834 | I42: 270.6984 | J42: 225.582 | K42: 45.1164 | L42: 2016-07-01 | M42: 2016-09-30 | N42: 38130 | O42: 38130 | P42: 2016-10-01 | Q42: 2017-08-31 | R42: 39160 | S42: 0 | T42: 2017-08-31 | U42: 2017-08-31 | V42: 39160 | W42: 0 | X42: 2017-08-31 | Y42: 2017-08-31 | Z42: 39160 | AA42: 0 | AB42: 2017-08-31 | AC42: 2017-08-31 | AD42: 39160 | AE42: 0 | AF42: 2017-08-31 | AG42: 2017-08-31 | AH42: 39160 | AI42: 0 | AJ42: 2017-08-31 | AK42: 2017-08-31 | AL42: 39160 | AM42: 0 | AN42: 2016-11-01 | AO42: 2016-11-30 | AP42: 0 | AQ42: 1 | AR42: 0 | AS42: =IF('DA 2.2'!B86=2,0,IF(AR42=1,I42-J42,0)) -> 0 | AU42: 4.51164 | AV42: 45.1164 | AW42: =VLOOKUP(AW39,B6:E767,4) -> 31 | AX42: =AW42-AY42+1 -> 1 | AY42: =DAY(AW39) -> 31 | BH42: 2017-08-01 | BI42: 0 | BJ42: 2017-08-01 | BK42: 0 | BL42: 2017-08-01 | BM42: 0 | BN42: 2017-08-01 | BO42: 0
B43: 2016-08-07 | C43: 38130 | D43: 8 | E43: 31 | F43: 1230 | G43: 0.22008 | H43: 0.1834 | I43: 270.6984 | J43: 225.582 | K43: 45.1164 | L43: 2016-07-01 | M43: 2016-09-30 | N43: 38130 | O43: 38130 | P43: 2016-10-01 | Q43: 2017-08-31 | R43: 39160 | S43: 0 | T43: 2017-08-31 | U43: 2017-08-31 | V43: 39160 | W43: 0 | X43: 2017-08-31 | Y43: 2017-08-31 | Z43: 39160 | AA43: 0 | AB43: 2017-08-31 | AC43: 2017-08-31 | AD43: 39160 | AE43: 0 | AF43: 2017-08-31 | AG43: 2017-08-31 | AH43: 39160 | AI43: 0 | AJ43: 2017-08-31 | AK43: 2017-08-31 | AL43: 39160 | AM43: 0 | AN43: 2016-11-01 | AO43: 2016-11-30 | AP43: 0 | AQ43: 1 | AR43: 0 | AS43: =IF('DA 2.2'!B87=2,0,IF(AR43=1,I43-J43,0)) -> 0 | AU43: 4.51164 | AV43: 45.1164 | AX43: =ROUND((AX41/AW42)*AX42,0) -> 0 | AY43: =AX43*G43 -> 0 | AZ43: =AX43*H43 -> 0 | BA43: =ROUND(AY43-AZ43,0) -> 0 | BH43: 2017-08-01 | BI43: 0 | BJ43: 2017-08-01 | BK43: 0 | BL43: 2017-08-01 | BM43: 0 | BN43: 2017-08-01 | BO43: 0
B44: 2016-08-08 | C44: 38130 | D44: 8 | E44: 31 | F44: 1230 | G44: 0.22008 | H44: 0.1834 | I44: 270.6984 | J44: 225.582 | K44: 45.1164 | L44: 2016-07-01 | M44: 2016-09-30 | N44: 38130 | O44: 38130 | P44: 2016-10-01 | Q44: 2017-08-31 | R44: 39160 | S44: 0 | T44: 2017-08-31 | U44: 2017-08-31 | V44: 39160 | W44: 0 | X44: 2017-08-31 | Y44: 2017-08-31 | Z44: 39160 | AA44: 0 | AB44: 2017-08-31 | AC44: 2017-08-31 | AD44: 39160 | AE44: 0 | AF44: 2017-08-31 | AG44: 2017-08-31 | AH44: 39160 | AI44: 0 | AJ44: 2017-08-31 | AK44: 2017-08-31 | AL44: 39160 | AM44: 0 | AN44: 2016-11-01 | AO44: 2016-11-30 | AP44: 0 | AQ44: 1 | AR44: 0 | AS44: =IF('DA 2.2'!B88=2,0,IF(AR44=1,I44-J44,0)) -> 0 | AU44: 4.51164 | AV44: 45.1164 | BH44: 2017-08-01 | BI44: 0 | BJ44: 2017-08-01 | BK44: 0 | BL44: 2017-08-01 | BM44: 0 | BN44: 2017-08-01 | BO44: 0
B45: 2016-08-09 | C45: 38130 | D45: 8 | E45: 31 | F45: 1230 | G45: 0.22008 | H45: 0.1834 | I45: 270.6984 | J45: 225.582 | K45: 45.1164 | L45: 2016-07-01 | M45: 2016-09-30 | N45: 38130 | O45: 38130 | P45: 2016-10-01 | Q45: 2017-08-31 | R45: 39160 | S45: 0 | T45: 2017-08-31 | U45: 2017-08-31 | V45: 39160 | W45: 0 | X45: 2017-08-31 | Y45: 2017-08-31 | Z45: 39160 | AA45: 0 | AB45: 2017-08-31 | AC45: 2017-08-31 | AD45: 39160 | AE45: 0 | AF45: 2017-08-31 | AG45: 2017-08-31 | AH45: 39160 | AI45: 0 | AJ45: 2017-08-31 | AK45: 2017-08-31 | AL45: 39160 | AM45: 0 | AN45: 2016-11-01 | AO45: 2016-11-30 | AP45: 0 | AQ45: 1 | AR45: 0 | AS45: =IF('DA 2.2'!B89=2,0,IF(AR45=1,I45-J45,0)) -> 0 | AU45: 4.51164 | AV45: 45.1164 | AX45: AAS | AY45: =AX33 -> 0 | AZ45: =ROUND(AY45*G37,0) -> 0 | BA45: =ROUND((AY45*H37),0) -> 0 | BB45: =AZ45-BA45 -> 0 | BD45: =IF('DA 2.2'!C5<'DA 2.2'!B19,0,IF('DA 2.2'!F17=1,VLOOKUP('DA 2.2'!C5,'DA 2.3'!B6:C586,2))) -> FALSE | BH45: 2017-08-01 | BI45: 0 | BJ45: 2017-08-01 | BK45: 0 | BL45: 2017-08-01 | BM45: 0 | BN45: 2017-08-01 | BO45: 0
B46: 2016-08-10 | C46: 38130 | D46: 8 | E46: 31 | F46: 1230 | G46: 0.22008 | H46: 0.1834 | I46: 270.6984 | J46: 225.582 | K46: 45.1164 | L46: 2016-07-01 | M46: 2016-09-30 | N46: 38130 | O46: 38130 | P46: 2016-10-01 | Q46: 2017-08-31 | R46: 39160 | S46: 0 | T46: 2017-08-31 | U46: 2017-08-31 | V46: 39160 | W46: 0 | X46: 2017-08-31 | Y46: 2017-08-31 | Z46: 39160 | AA46: 0 | AB46: 2017-08-31 | AC46: 2017-08-31 | AD46: 39160 | AE46: 0 | AF46: 2017-08-31 | AG46: 2017-08-31 | AH46: 39160 | AI46: 0 | AJ46: 2017-08-31 | AK46: 2017-08-31 | AL46: 39160 | AM46: 0 | AN46: 2016-11-01 | AO46: 2016-11-30 | AP46: 0 | AQ46: 1 | AR46: 0 | AS46: =IF('DA 2.2'!B90=2,0,IF(AR46=1,I46-J46,0)) -> 0 | AU46: 4.51164 | AV46: 45.1164 | AY46: =AX34 -> 0 | AZ46: =ROUND(AY46*G38,0) -> 0 | BA46: =ROUND((AY46*H38),0) -> 0 | BB46: =AZ46-BA46 -> 0 | BH46: 2017-08-01 | BI46: 0 | BJ46: 2017-08-01 | BK46: 0 | BL46: 2017-08-01 | BM46: 0 | BN46: 2017-08-01 | BO46: 0
B47: 2016-08-11 | C47: 38130 | D47: 8 | E47: 31 | F47: 1230 | G47: 0.22008 | H47: 0.1834 | I47: 270.6984 | J47: 225.582 | K47: 45.1164 | L47: 2016-07-01 | M47: 2016-09-30 | N47: 38130 | O47: 38130 | P47: 2016-10-01 | Q47: 2017-08-31 | R47: 39160 | S47: 0 | T47: 2017-08-31 | U47: 2017-08-31 | V47: 39160 | W47: 0 | X47: 2017-08-31 | Y47: 2017-08-31 | Z47: 39160 | AA47: 0 | AB47: 2017-08-31 | AC47: 2017-08-31 | AD47: 39160 | AE47: 0 | AF47: 2017-08-31 | AG47: 2017-08-31 | AH47: 39160 | AI47: 0 | AJ47: 2017-08-31 | AK47: 2017-08-31 | AL47: 39160 | AM47: 0 | AN47: 2016-11-01 | AO47: 2016-11-30 | AP47: 0 | AQ47: 1 | AR47: 0 | AS47: =IF('DA 2.2'!B91=2,0,IF(AR47=1,I47-J47,0)) -> 0 | AU47: 4.51164 | AV47: 45.1164 | BB47: =BB45-BB46 -> 0 | BH47: 2017-08-01 | BI47: 0 | BJ47: 2017-08-01 | BK47: 0 | BL47: 2017-08-01 | BM47: 0 | BN47: 2017-08-01 | BO47: 0
B48: 2016-08-12 | C48: 38130 | D48: 8 | E48: 31 | F48: 1230 | G48: 0.22008 | H48: 0.1834 | I48: 270.6984 | J48: 225.582 | K48: 45.1164 | L48: 2016-07-01 | M48: 2016-09-30 | N48: 38130 | O48: 38130 | P48: 2016-10-01 | Q48: 2017-08-31 | R48: 39160 | S48: 0 | T48: 2017-08-31 | U48: 2017-08-31 | V48: 39160 | W48: 0 | X48: 2017-08-31 | Y48: 2017-08-31 | Z48: 39160 | AA48: 0 | AB48: 2017-08-31 | AC48: 2017-08-31 | AD48: 39160 | AE48: 0 | AF48: 2017-08-31 | AG48: 2017-08-31 | AH48: 39160 | AI48: 0 | AJ48: 2017-08-31 | AK48: 2017-08-31 | AL48: 39160 | AM48: 0 | AN48: 2016-11-01 | AO48: 2016-11-30 | AP48: 0 | AQ48: 1 | AR48: 0 | AS48: =IF('DA 2.2'!B92=2,0,IF(AR48=1,I48-J48,0)) -> 0 | AU48: 4.51164 | AV48: 45.1164 | BB48: =ROUND((BB47/AW36)*AX36,0) -> 0 | BH48: 2017-08-01 | BI48: 0 | BJ48: 2017-08-01 | BK48: 0 | BL48: 2017-08-01 | BM48: 0 | BN48: 2017-08-01 | BO48: 0
B49: 2016-08-13 | C49: 38130 | D49: 8 | E49: 31 | F49: 1230 | G49: 0.22008 | H49: 0.1834 | I49: 270.6984 | J49: 225.582 | K49: 45.1164 | L49: 2016-07-01 | M49: 2016-09-30 | N49: 38130 | O49: 38130 | P49: 2016-10-01 | Q49: 2017-08-31 | R49: 39160 | S49: 0 | T49: 2017-08-31 | U49: 2017-08-31 | V49: 39160 | W49: 0 | X49: 2017-08-31 | Y49: 2017-08-31 | Z49: 39160 | AA49: 0 | AB49: 2017-08-31 | AC49: 2017-08-31 | AD49: 39160 | AE49: 0 | AF49: 2017-08-31 | AG49: 2017-08-31 | AH49: 39160 | AI49: 0 | AJ49: 2017-08-31 | AK49: 2017-08-31 | AL49: 39160 | AM49: 0 | AN49: 2016-11-01 | AO49: 2016-11-30 | AP49: 0 | AQ49: 1 | AR49: 0 | AS49: =IF('DA 2.2'!B93=2,0,IF(AR49=1,I49-J49,0)) -> 0 | AU49: 4.51164 | AV49: 45.1164 | BH49: 2017-08-01 | BI49: 0 | BJ49: 2017-08-01 | BK49: 0 | BL49: 2017-08-01 | BM49: 0 | BN49: 2017-08-01 | BO49: 0
B50: 2016-08-14 | C50: 38130 | D50: 8 | E50: 31 | F50: 1230 | G50: 0.22008 | H50: 0.1834 | I50: 270.6984 | J50: 225.582 | K50: 45.1164 | L50: 2016-07-01 | M50: 2016-09-30 | N50: 38130 | O50: 38130 | P50: 2016-10-01 | Q50: 2017-08-31 | R50: 39160 | S50: 0 | T50: 2017-08-31 | U50: 2017-08-31 | V50: 39160 | W50: 0 | X50: 2017-08-31 | Y50: 2017-08-31 | Z50: 39160 | AA50: 0 | AB50: 2017-08-31 | AC50: 2017-08-31 | AD50: 39160 | AE50: 0 | AF50: 2017-08-31 | AG50: 2017-08-31 | AH50: 39160 | AI50: 0 | AJ50: 2017-08-31 | AK50: 2017-08-31 | AL50: 39160 | AM50: 0 | AN50: 2016-11-01 | AO50: 2016-11-30 | AP50: 0 | AQ50: 1 | AR50: 0 | AS50: =IF('DA 2.2'!B94=2,0,IF(AR50=1,I50-J50,0)) -> 0 | AU50: 4.51164 | AV50: 45.1164 | BH50: 2017-08-01 | BI50: 0 | BJ50: 2017-08-01 | BK50: 0 | BL50: 2017-08-01 | BM50: 0 | BN50: 2017-08-01 | BO50: 0
B51: 2016-08-15 | C51: 38130 | D51: 8 | E51: 31 | F51: 1230 | G51: 0.22008 | H51: 0.1834 | I51: 270.6984 | J51: 225.582 | K51: 45.1164 | L51: 2016-07-01 | M51: 2016-09-30 | N51: 38130 | O51: 38130 | P51: 2016-10-01 | Q51: 2017-08-31 | R51: 39160 | S51: 0 | T51: 2017-08-31 | U51: 2017-08-31 | V51: 39160 | W51: 0 | X51: 2017-08-31 | Y51: 2017-08-31 | Z51: 39160 | AA51: 0 | AB51: 2017-08-31 | AC51: 2017-08-31 | AD51: 39160 | AE51: 0 | AF51: 2017-08-31 | AG51: 2017-08-31 | AH51: 39160 | AI51: 0 | AJ51: 2017-08-31 | AK51: 2017-08-31 | AL51: 39160 | AM51: 0 | AN51: 2016-11-01 | AO51: 2016-11-30 | AP51: 0 | AQ51: 1 | AR51: 0 | AS51: =IF('DA 2.2'!B95=2,0,IF(AR51=1,I51-J51,0)) -> 0 | AU51: 4.51164 | AV51: 45.1164 | AW51: ='DA 2.2'!C3 -> 2017-08-31 | AX51: =IF('DA 2.2'!C3<'DA 2.2'!B16,VLOOKUP(AW51,'DA 2.3'!B6:C586,2),0) -> 0 | AY51: 1 | AZ51: =MONTH(AW51) -> 8 | BA51: =YEAR(AW51) -> 2017 | BB51: AAS 2 | BH51: 2017-08-01 | BI51: 0 | BJ51: 2017-08-01 | BK51: 0 | BL51: 2017-08-01 | BM51: 0 | BN51: 2017-08-01 | BO51: 0
B52: 2016-08-16 | C52: 38130 | D52: 8 | E52: 31 | F52: 1230 | G52: 0.22008 | H52: 0.1834 | I52: 270.6984 | J52: 225.582 | K52: 45.1164 | L52: 2016-07-01 | M52: 2016-09-30 | N52: 38130 | O52: 38130 | P52: 2016-10-01 | Q52: 2017-08-31 | R52: 39160 | S52: 0 | T52: 2017-08-31 | U52: 2017-08-31 | V52: 39160 | W52: 0 | X52: 2017-08-31 | Y52: 2017-08-31 | Z52: 39160 | AA52: 0 | AB52: 2017-08-31 | AC52: 2017-08-31 | AD52: 39160 | AE52: 0 | AF52: 2017-08-31 | AG52: 2017-08-31 | AH52: 39160 | AI52: 0 | AJ52: 2017-08-31 | AK52: 2017-08-31 | AL52: 39160 | AM52: 0 | AN52: 2016-11-01 | AO52: 2016-11-30 | AP52: 0 | AQ52: 1 | AR52: 0 | AS52: =IF('DA 2.2'!B96=2,0,IF(AR52=1,I52-J52,0)) -> 0 | AU52: 4.51164 | AV52: 45.1164 | AW52: =AW51-1 -> 2017-08-30 | AX52: =IF('DA 2.2'!C3<'DA 2.2'!B16,VLOOKUP(AW52,'DA 2.3'!B6:C586,2),0) -> 0 | AY52: =DATE(BA51,AZ51,AY51) -> 2017-08-01 | BH52: 2017-08-01 | BI52: 0 | BJ52: 2017-08-01 | BK52: 0 | BL52: 2017-08-01 | BM52: 0 | BN52: 2017-08-01 | BO52: 0
B53: 2016-08-17 | C53: 38130 | D53: 8 | E53: 31 | F53: 1230 | G53: 0.22008 | H53: 0.1834 | I53: 270.6984 | J53: 225.582 | K53: 45.1164 | L53: 2016-07-01 | M53: 2016-09-30 | N53: 38130 | O53: 38130 | P53: 2016-10-01 | Q53: 2017-08-31 | R53: 39160 | S53: 0 | T53: 2017-08-31 | U53: 2017-08-31 | V53: 39160 | W53: 0 | X53: 2017-08-31 | Y53: 2017-08-31 | Z53: 39160 | AA53: 0 | AB53: 2017-08-31 | AC53: 2017-08-31 | AD53: 39160 | AE53: 0 | AF53: 2017-08-31 | AG53: 2017-08-31 | AH53: 39160 | AI53: 0 | AJ53: 2017-08-31 | AK53: 2017-08-31 | AL53: 39160 | AM53: 0 | AN53: 2016-11-01 | AO53: 2016-11-30 | AP53: 0 | AQ53: 1 | AR53: 0 | AS53: =IF('DA 2.2'!B97=2,0,IF(AR53=1,I53-J53,0)) -> 0 | AU53: 4.51164 | AV53: 45.1164 | AW53: PER MONTH | AX53: =AX51-AX52 -> 0 | BB53: =AX51*G55 -> 0 | BH53: 2017-08-01 | BI53: 0 | BJ53: 2017-08-01 | BK53: 0 | BL53: 2017-08-01 | BM53: 0 | BN53: 2017-08-01 | BO53: 0
B54: 2016-08-18 | C54: 38130 | D54: 8 | E54: 31 | F54: 1230 | G54: 0.22008 | H54: 0.1834 | I54: 270.6984 | J54: 225.582 | K54: 45.1164 | L54: 2016-07-01 | M54: 2016-09-30 | N54: 38130 | O54: 38130 | P54: 2016-10-01 | Q54: 2017-08-31 | R54: 39160 | S54: 0 | T54: 2017-08-31 | U54: 2017-08-31 | V54: 39160 | W54: 0 | X54: 2017-08-31 | Y54: 2017-08-31 | Z54: 39160 | AA54: 0 | AB54: 2017-08-31 | AC54: 2017-08-31 | AD54: 39160 | AE54: 0 | AF54: 2017-08-31 | AG54: 2017-08-31 | AH54: 39160 | AI54: 0 | AJ54: 2017-08-31 | AK54: 2017-08-31 | AL54: 39160 | AM54: 0 | AN54: 2016-11-01 | AO54: 2016-11-30 | AP54: 0 | AQ54: 1 | AR54: 0 | AS54: =IF('DA 2.2'!B98=2,0,IF(AR54=1,I54-J54,0)) -> 0 | AU54: 4.51164 | AV54: 45.1164 | AW54: =VLOOKUP(AW51,B6:E568,4) -> 31 | AX54: =AW54-AY54 -> 0 | AY54: =DAY(AW51) -> 31 | BH54: 2017-08-01 | BI54: 0 | BJ54: 2017-08-01 | BK54: 0 | BL54: 2017-08-01 | BM54: 0 | BN54: 2017-08-01 | BO54: 0
B55: 2016-08-19 | C55: 38130 | D55: 8 | E55: 31 | F55: 1230 | G55: 0.22008 | H55: 0.1834 | I55: 270.6984 | J55: 225.582 | K55: 45.1164 | L55: 2016-07-01 | M55: 2016-09-30 | N55: 38130 | O55: 38130 | P55: 2016-10-01 | Q55: 2017-08-31 | R55: 39160 | S55: 0 | T55: 2017-08-31 | U55: 2017-08-31 | V55: 39160 | W55: 0 | X55: 2017-08-31 | Y55: 2017-08-31 | Z55: 39160 | AA55: 0 | AB55: 2017-08-31 | AC55: 2017-08-31 | AD55: 39160 | AE55: 0 | AF55: 2017-08-31 | AG55: 2017-08-31 | AH55: 39160 | AI55: 0 | AJ55: 2017-08-31 | AK55: 2017-08-31 | AL55: 39160 | AM55: 0 | AN55: 2016-11-01 | AO55: 2016-11-30 | AP55: 0 | AQ55: 1 | AR55: 0 | AS55: =IF('DA 2.2'!B99=2,0,IF(AR55=1,I55-J55,0)) -> 0 | AU55: 4.51164 | AV55: 45.1164 | AX55: =ROUND((AX53/AW54)*AX54,0) -> 0 | AY55: =AX55*G55 -> 0 | AZ55: =(AX55*H55) -> 0 | BA55: =ROUND((AY55-AZ55),0) -> 0 | BH55: 2017-08-01 | BI55: 0 | BJ55: 2017-08-01 | BK55: 0 | BL55: 2017-08-01 | BM55: 0 | BN55: 2017-08-01 | BO55: 0
B56: 2016-08-20 | C56: 38130 | D56: 8 | E56: 31 | F56: 1230 | G56: =G55 -> 0.22008 | H56: 0.1834 | I56: 270.6984 | J56: 225.582 | K56: 45.1164 | L56: =L55 -> 2016-07-01 | M56: 2016-09-30 | N56: 38130 | O56: 38130 | P56: =P55 -> 2016-10-01 | Q56: 2017-08-31 | R56: 39160 | S56: 0 | T56: =T55 -> 2017-08-31 | U56: 2017-08-31 | V56: 39160 | W56: 0 | X56: =X55 -> 2017-08-31 | Y56: 2017-08-31 | Z56: 39160 | AA56: 0 | AB56: 2017-08-31 | AC56: 2017-08-31 | AD56: 39160 | AE56: 0 | AF56: 2017-08-31 | AG56: 2017-08-31 | AH56: 39160 | AI56: 0 | AJ56: 2017-08-31 | AK56: 2017-08-31 | AL56: 39160 | AM56: 0 | AN56: =AN55 -> 2016-11-01 | AO56: 2016-11-30 | AP56: 0 | AQ56: 1 | AR56: 0 | AS56: =IF('DA 2.2'!B100=2,0,IF(AR56=1,I56-J56,0)) -> 0 | AU56: 4.51164 | AV56: 45.1164 | BH56: 2017-08-01 | BI56: 0 | BJ56: 2017-08-01 | BK56: 0 | BL56: 2017-08-01 | BM56: 0 | BN56: 2017-08-01 | BO56: 0
B57: 2016-08-21 | C57: 38130 | D57: 8 | E57: 31 | F57: 1230 | G57: 0.22008 | H57: 0.1834 | I57: 270.6984 | J57: 225.582 | K57: 45.1164 | L57: 2016-07-01 | M57: 2016-09-30 | N57: 38130 | O57: 38130 | P57: 2016-10-01 | Q57: 2017-08-31 | R57: 39160 | S57: 0 | T57: 2017-08-31 | U57: 2017-08-31 | V57: 39160 | W57: 0 | X57: 2017-08-31 | Y57: 2017-08-31 | Z57: 39160 | AA57: 0 | AB57: 2017-08-31 | AC57: 2017-08-31 | AD57: 39160 | AE57: 0 | AF57: 2017-08-31 | AG57: 2017-08-31 | AH57: 39160 | AI57: 0 | AJ57: 2017-08-31 | AK57: 2017-08-31 | AL57: 39160 | AM57: 0 | AN57: 2016-11-01 | AO57: 2016-11-30 | AP57: 0 | AQ57: 1 | AR57: 0 | AS57: =IF('DA 2.2'!B101=2,0,IF(AR57=1,I57-J57,0)) -> 0 | AU57: 4.51164 | AV57: 45.1164 | BH57: 2017-08-01 | BI57: 0 | BJ57: 2017-08-01 | BK57: 0 | BL57: 2017-08-01 | BM57: 0 | BN57: 2017-08-01 | BO57: 0
B58: 2016-08-22 | C58: 38130 | D58: 8 | E58: 31 | F58: 1230 | G58: 0.22008 | H58: 0.1834 | I58: 270.6984 | J58: 225.582 | K58: 45.1164 | L58: 2016-07-01 | M58: 2016-09-30 | N58: 38130 | O58: 38130 | P58: 2016-10-01 | Q58: 2017-08-31 | R58: 39160 | S58: 0 | T58: 2017-08-31 | U58: 2017-08-31 | V58: 39160 | W58: 0 | X58: 2017-08-31 | Y58: 2017-08-31 | Z58: 39160 | AA58: 0 | AB58: 2017-08-31 | AC58: 2017-08-31 | AD58: 39160 | AE58: 0 | AF58: 2017-08-31 | AG58: 2017-08-31 | AH58: 39160 | AI58: 0 | AJ58: 2017-08-31 | AK58: 2017-08-31 | AL58: 39160 | AM58: 0 | AN58: 2016-11-01 | AO58: 2016-11-30 | AP58: 0 | AQ58: 1 | AR58: 0 | AS58: =IF('DA 2.2'!B102=2,0,IF(AR58=1,I58-J58,0)) -> 0 | AU58: 4.51164 | AV58: 45.1164 | AW58: ='DA 2.2'!C8 -> 2017-08-31 | AX58: =IF('DA 2.2'!C8<'DA 2.2'!B16,IF(AW58<B6,0,VLOOKUP('DA 2.2'!C8,'DA 2.3'!B25:C605,2))) -> FALSE | AY58: 1 | AZ58: =MONTH(AW58) -> 8 | BA58: =YEAR(AW58) -> 2017 | BB58: PROMO 2 | BH58: 2017-08-01 | BI58: 0 | BJ58: 2017-08-01 | BK58: 0 | BL58: 2017-08-01 | BM58: 0 | BN58: 2017-08-01 | BO58: 0
B59: 2016-08-23 | C59: 38130 | D59: 8 | E59: 31 | F59: 1230 | G59: 0.22008 | H59: 0.1834 | I59: 270.6984 | J59: 225.582 | K59: 45.1164 | L59: 2016-07-01 | M59: 2016-09-30 | N59: 38130 | O59: 38130 | P59: 2016-10-01 | Q59: 2017-08-31 | R59: 39160 | S59: 0 | T59: 2017-08-31 | U59: 2017-08-31 | V59: 39160 | W59: 0 | X59: 2017-08-31 | Y59: 2017-08-31 | Z59: 39160 | AA59: 0 | AB59: 2017-08-31 | AC59: 2017-08-31 | AD59: 39160 | AE59: 0 | AF59: 2017-08-31 | AG59: 2017-08-31 | AH59: 39160 | AI59: 0 | AJ59: 2017-08-31 | AK59: 2017-08-31 | AL59: 39160 | AM59: 0 | AN59: 2016-11-01 | AO59: 2016-11-30 | AP59: 0 | AQ59: 1 | AR59: 0 | AS59: =IF('DA 2.2'!B103=2,0,IF(AR59=1,I59-J59,0)) -> 0 | AU59: 4.51164 | AV59: 45.1164 | AW59: =AW58-1 -> 2017-08-30 | AX59: =IF(AW58>'DA 2.2'!B16,0,VLOOKUP(AW59,'DA 2.3'!B6:C586,2)) -> 39160 | AY59: =DATE(BA58,AZ58,AY58) -> 2017-08-01
B60: 2016-08-24 | C60: 38130 | D60: 8 | E60: 31 | F60: 1230 | G60: 0.22008 | H60: 0.1834 | I60: 270.6984 | J60: 225.582 | K60: 45.1164 | L60: 2016-07-01 | M60: 2016-09-30 | N60: 38130 | O60: 38130 | P60: 2016-10-01 | Q60: 2017-08-31 | R60: 39160 | S60: 0 | T60: 2017-08-31 | U60: 2017-08-31 | V60: 39160 | W60: 0 | X60: 2017-08-31 | Y60: 2017-08-31 | Z60: 39160 | AA60: 0 | AB60: 2017-08-31 | AC60: 2017-08-31 | AD60: 39160 | AE60: 0 | AF60: 2017-08-31 | AG60: 2017-08-31 | AH60: 39160 | AI60: 0 | AJ60: 2017-08-31 | AK60: 2017-08-31 | AL60: 39160 | AM60: 0 | AN60: 2016-11-01 | AO60: 2016-11-30 | AP60: 0 | AQ60: 1 | AR60: 0 | AS60: =IF('DA 2.2'!B104=2,0,IF(AR60=1,I60-J60,0)) -> 0 | AU60: 4.51164 | AV60: 45.1164 | AW60: PER MONTH | AX60: =AX58-AX59 -> -39160
B61: 2016-08-25 | C61: 38130 | D61: 8 | E61: 31 | F61: 1230 | G61: 0.22008 | H61: 0.1834 | I61: 270.6984 | J61: 225.582 | K61: 45.1164 | L61: 2016-07-01 | M61: 2016-09-30 | N61: 38130 | O61: 38130 | P61: 2016-10-01 | Q61: 2017-08-31 | R61: 39160 | S61: 0 | T61: 2017-08-31 | U61: 2017-08-31 | V61: 39160 | W61: 0 | X61: 2017-08-31 | Y61: 2017-08-31 | Z61: 39160 | AA61: 0 | AB61: 2017-08-31 | AC61: 2017-08-31 | AD61: 39160 | AE61: 0 | AF61: 2017-08-31 | AG61: 2017-08-31 | AH61: 39160 | AI61: 0 | AJ61: 2017-08-31 | AK61: 2017-08-31 | AL61: 39160 | AM61: 0 | AN61: 2016-11-01 | AO61: 2016-11-30 | AP61: 0 | AQ61: 1 | AR61: 0 | AS61: =IF('DA 2.2'!B105=2,0,IF(AR61=1,I61-J61,0)) -> 0 | AU61: 4.51164 | AV61: 45.1164 | AW61: =VLOOKUP(AW58,B6:E586,4) -> 31 | AX61: =AW61-AY61 -> 0 | AY61: =DAY(AW58) -> 31
B62: 2016-08-26 | C62: 38130 | D62: 8 | E62: 31 | F62: 1230 | G62: 0.22008 | H62: 0.1834 | I62: 270.6984 | J62: 225.582 | K62: 45.1164 | L62: 2016-07-01 | M62: 2016-09-30 | N62: 38130 | O62: 38130 | P62: 2016-10-01 | Q62: 2017-08-31 | R62: 39160 | S62: 0 | T62: 2017-08-31 | U62: 2017-08-31 | V62: 39160 | W62: 0 | X62: 2017-08-31 | Y62: 2017-08-31 | Z62: 39160 | AA62: 0 | AB62: 2017-08-31 | AC62: 2017-08-31 | AD62: 39160 | AE62: 0 | AF62: 2017-08-31 | AG62: 2017-08-31 | AH62: 39160 | AI62: 0 | AJ62: 2017-08-31 | AK62: 2017-08-31 | AL62: 39160 | AM62: 0 | AN62: 2016-11-01 | AO62: 2016-11-30 | AP62: 0 | AQ62: 1 | AR62: 0 | AS62: =IF('DA 2.2'!B106=2,0,IF(AR62=1,I62-J62,0)) -> 0 | AU62: 4.51164 | AV62: 45.1164 | AX62: =ROUND((AX60/AW61)*AX61,0) -> 0 | AY62: =ROUND(AX62*G62,0) -> 0 | AZ62: =ROUND(AX62*H62,0) -> 0 | BA62: =ROUND(AY62-AZ62,0) -> 0
B63: 2016-08-27 | C63: 38130 | D63: 8 | E63: 31 | F63: 1230 | G63: 0.22008 | H63: 0.1834 | I63: 270.6984 | J63: 225.582 | K63: 45.1164 | L63: 2016-07-01 | M63: 2016-09-30 | N63: 38130 | O63: 38130 | P63: 2016-10-01 | Q63: 2017-08-31 | R63: 39160 | S63: 0 | T63: 2017-08-31 | U63: 2017-08-31 | V63: 39160 | W63: 0 | X63: 2017-08-31 | Y63: 2017-08-31 | Z63: 39160 | AA63: 0 | AB63: 2017-08-31 | AC63: 2017-08-31 | AD63: 39160 | AE63: 0 | AF63: 2017-08-31 | AG63: 2017-08-31 | AH63: 39160 | AI63: 0 | AJ63: 2017-08-31 | AK63: 2017-08-31 | AL63: 39160 | AM63: 0 | AN63: 2016-11-01 | AO63: 2016-11-30 | AP63: 0 | AQ63: 1 | AR63: 0 | AS63: =IF('DA 2.2'!B107=2,0,IF(AR63=1,I63-J63,0)) -> 0 | AU63: 4.51164 | AV63: 45.1164
B64: 2016-08-28 | C64: 38130 | D64: 8 | E64: 31 | F64: 1230 | G64: 0.22008 | H64: 0.1834 | I64: 270.6984 | J64: 225.582 | K64: 45.1164 | L64: 2016-07-01 | M64: 2016-09-30 | N64: 38130 | O64: 38130 | P64: 2016-10-01 | Q64: 2017-08-31 | R64: 39160 | S64: 0 | T64: 2017-08-31 | U64: 2017-08-31 | V64: 39160 | W64: 0 | X64: 2017-08-31 | Y64: 2017-08-31 | Z64: 39160 | AA64: 0 | AB64: 2017-08-31 | AC64: 2017-08-31 | AD64: 39160 | AE64: 0 | AF64: 2017-08-31 | AG64: 2017-08-31 | AH64: 39160 | AI64: 0 | AJ64: 2017-08-31 | AK64: 2017-08-31 | AL64: 39160 | AM64: 0 | AN64: 2016-11-01 | AO64: 2016-11-30 | AP64: 0 | AQ64: 1 | AR64: 0 | AS64: =IF('DA 2.2'!B108=2,0,IF(AR64=1,I64-J64,0)) -> 0 | AU64: 4.51164 | AV64: 45.1164
B65: 2016-08-29 | C65: 38130 | D65: 8 | E65: 31 | F65: 1230 | G65: 0.22008 | H65: 0.1834 | I65: 270.6984 | J65: 225.582 | K65: 45.1164 | L65: 2016-07-01 | M65: 2016-09-30 | N65: 38130 | O65: 38130 | P65: 2016-10-01 | Q65: 2017-08-31 | R65: 39160 | S65: 0 | T65: 2017-08-31 | U65: 2017-08-31 | V65: 39160 | W65: 0 | X65: 2017-08-31 | Y65: 2017-08-31 | Z65: 39160 | AA65: 0 | AB65: 2017-08-31 | AC65: 2017-08-31 | AD65: 39160 | AE65: 0 | AF65: 2017-08-31 | AG65: 2017-08-31 | AH65: 39160 | AI65: 0 | AJ65: 2017-08-31 | AK65: 2017-08-31 | AL65: 39160 | AM65: 0 | AN65: 2016-11-01 | AO65: 2016-11-30 | AP65: 0 | AQ65: 1 | AR65: 0 | AS65: =IF('DA 2.2'!B109=2,0,IF(AR65=1,I65-J65,0)) -> 0 | AU65: 4.51164 | AV65: 45.1164
B66: 2016-08-30 | C66: 38130 | D66: 8 | E66: 31 | F66: 1230 | G66: 0.22008 | H66: 0.1834 | I66: 270.6984 | J66: 225.582 | K66: 45.1164 | L66: 2016-07-01 | M66: 2016-09-30 | N66: 38130 | O66: 38130 | P66: 2016-10-01 | Q66: 2017-08-31 | R66: 39160 | S66: 0 | T66: 2017-08-31 | U66: 2017-08-31 | V66: 39160 | W66: 0 | X66: 2017-08-31 | Y66: 2017-08-31 | Z66: 39160 | AA66: 0 | AB66: 2017-08-31 | AC66: 2017-08-31 | AD66: 39160 | AE66: 0 | AF66: 2017-08-31 | AG66: 2017-08-31 | AH66: 39160 | AI66: 0 | AJ66: 2017-08-31 | AK66: 2017-08-31 | AL66: 39160 | AM66: 0 | AN66: 2016-11-01 | AO66: 2016-11-30 | AP66: 0 | AQ66: 1 | AR66: 0 | AS66: =IF('DA 2.2'!B110=2,0,IF(AR66=1,I66-J66,0)) -> 0 | AU66: 4.51164 | AV66: 45.1164
B67: 2016-08-31 | C67: 38130 | D67: 8 | E67: 31 | F67: 1230 | G67: 0.22008 | H67: 0.1834 | I67: 270.6984 | J67: 225.582 | K67: 45.1164 | L67: 2016-07-01 | M67: 2016-09-30 | N67: 38130 | O67: 38130 | P67: 2016-10-01 | Q67: 2017-08-31 | R67: 39160 | S67: 0 | T67: 2017-08-31 | U67: 2017-08-31 | V67: 39160 | W67: 0 | X67: 2017-08-31 | Y67: 2017-08-31 | Z67: 39160 | AA67: 0 | AB67: 2017-08-31 | AC67: 2017-08-31 | AD67: 39160 | AE67: 0 | AF67: 2017-08-31 | AG67: 2017-08-31 | AH67: 39160 | AI67: 0 | AJ67: 2017-08-31 | AK67: 2017-08-31 | AL67: 39160 | AM67: 0 | AN67: 2016-11-01 | AO67: 2016-11-30 | AP67: 0 | AQ67: 1 | AR67: 0 | AS67: =IF('DA 2.2'!B111=2,0,IF(AR67=1,I67-J67,0)) -> 0 | AU67: 4.51164 | AV67: 45.1164
B68: 2016-09-01 | C68: 38130 | D68: 9 | E68: 30 | F68: 1271 | G68: 0.22008 | H68: 0.1834 | I68: 279.72168 | J68: 233.1014 | K68: 46.62028 | L68: 2016-07-01 | M68: 2016-09-30 | N68: 38130 | O68: 38130 | P68: 2016-10-01 | Q68: 2017-08-31 | R68: 39160 | S68: 0 | T68: 2017-08-31 | U68: 2017-08-31 | V68: 39160 | W68: 0 | X68: 2017-08-31 | Y68: 2017-08-31 | Z68: 39160 | AA68: 0 | AB68: 2017-08-31 | AC68: 2017-08-31 | AD68: 39160 | AE68: 0 | AF68: 2017-08-31 | AG68: 2017-08-31 | AH68: 39160 | AI68: 0 | AJ68: 2017-08-31 | AK68: 2017-08-31 | AL68: 39160 | AM68: 0 | AN68: 2016-11-01 | AO68: 2016-11-30 | AP68: 0 | AQ68: 1 | AR68: 0 | AS68: =IF('DA 2.2'!B112=2,0,IF(AR68=1,I68-J68,0)) -> 0 | AU68: 4.662028 | AV68: 46.62028
B69: 2016-09-02 | C69: 38130 | D69: 9 | E69: 30 | F69: 1271 | G69: 0.22008 | H69: 0.1834 | I69: 279.72168 | J69: 233.1014 | K69: 46.62028 | L69: 2016-07-01 | M69: 2016-09-30 | N69: 38130 | O69: 38130 | P69: 2016-10-01 | Q69: 2017-08-31 | R69: 39160 | S69: 0 | T69: 2017-08-31 | U69: 2017-08-31 | V69: 39160 | W69: 0 | X69: 2017-08-31 | Y69: 2017-08-31 | Z69: 39160 | AA69: 0 | AB69: 2017-08-31 | AC69: 2017-08-31 | AD69: 39160 | AE69: 0 | AF69: 2017-08-31 | AG69: 2017-08-31 | AH69: 39160 | AI69: 0 | AJ69: 2017-08-31 | AK69: 2017-08-31 | AL69: 39160 | AM69: 0 | AN69: 2016-11-01 | AO69: 2016-11-30 | AP69: 0 | AQ69: 1 | AR69: 0 | AS69: =IF('DA 2.2'!B113=2,0,IF(AR69=1,I69-J69,0)) -> 0 | AU69: 4.662028 | AV69: 46.62028
B70: 2016-09-03 | C70: 38130 | D70: 9 | E70: 30 | F70: =C70/E70 -> 1271 | G70: 0.22008 | H70: 0.1834 | I70: =F70*G70 -> 279.72168 | J70: =F70*H70 -> 233.1014 | K70: 46.62028 | L70: 2016-07-01 | M70: 2016-09-30 | N70: 38130 | O70: 38130 | P70: 2016-10-01 | Q70: 2017-08-31 | R70: 39160 | S70: 0 | T70: 2017-08-31 | U70: 2017-08-31 | V70: 39160 | W70: 0 | X70: 2017-08-31 | Y70: 2017-08-31 | Z70: 39160 | AA70: 0 | AB70: 2017-08-31 | AC70: 2017-08-31 | AD70: 39160 | AE70: 0 | AF70: 2017-08-31 | AG70: 2017-08-31 | AH70: 39160 | AI70: 0 | AJ70: 2017-08-31 | AK70: 2017-08-31 | AL70: 39160 | AM70: 0 | AN70: 2016-11-01 | AO70: 2016-11-30 | AP70: =IF(B70>=AN70,1,0) -> 0 | AQ70: =IF(B70<=AO70,1,0) -> 1 | AR70: 0 | AS70: =IF('DA 2.2'!B114=2,0,IF(AR70=1,I70-J70,0)) -> 0 | AU70: 4.662028 | AV70: 46.62028
B71: 2016-09-04 | C71: =O71+S71+W71+AA71+AE71+AI71+AM71 -> 38130 | D71: =MONTH(B71) -> 9 | E71: =IF(D71=1,31,IF(D71=2,29,IF(D71=3,31,IF(D71=5,31,IF(D71=7,31,IF(D71=8,31,IF(D71=10,31,IF(D71=12,31,30)))))))) -> 30 | F71: 1271 | G71: 0.22008 | H71: 0.1834 | I71: 279.72168 | J71: 233.1014 | K71: =I71-J71 -> 46.62028 | L71: 2016-07-01 | M71: 2016-09-30 | N71: 38130 | O71: =IF(M71>=B71,N71,0) -> 38130 | P71: 2016-10-01 | Q71: 2017-08-31 | R71: 39160 | S71: =IF(O71>0,0,IF(Q71>=B71,R71,0)) -> 0 | T71: 2017-08-31 | U71: 2017-08-31 | V71: 39160 | W71: =IF(T71>U71,0,IF(O71>0,0,IF(S71>0,0,IF(U71>=B71,V71,0)))) -> 0 | X71: 2017-08-31 | Y71: 2017-08-31 | Z71: 39160 | AA71: =IF(X71>=Y71,0,IF(O71>0,0,IF(S71>0,0,IF(W71>0,0,IF(Y71>=B71,Z71,0))))) -> 0 | AB71: 2017-08-31 | AC71: 2017-08-31 | AD71: 39160 | AE71: =IF(O71>0,0,IF(AB71>=AC71,0,IF(S71>0,0,IF(W71>0,0,IF(AA71>0,0,IF(AC71>=B71,AD71,0)))))) -> 0 | AF71: 2017-08-31 | AG71: 2017-08-31 | AH71: 39160 | AI71: =IF(O71>0,0,IF(S71>0,0,IF(AF71>=AG71,0,IF(W71>0,0,IF(AA71>0,0,IF(AE71>0,0,IF(AG71>=B71,AH71,0))))))) -> 0 | AJ71: 2017-08-31 | AK71: 2017-08-31 | AL71: 39160 | AM71: 0 | AN71: 2016-11-01 | AO71: 2016-11-30 | AP71: 0 | AQ71: 1 | AR71: =IF(SUM(AP71:AQ71)=2,1,0) -> 0 | AS71: =IF('DA 2.2'!B115=2,0,IF(AR71=1,I71-J71,0)) -> 0 | AU71: =ROUND(K71*10%,6) -> 4.662028 | AV71: =ROUND(K71,6) -> 46.62028
B72: 2016-09-05 | C72: 38130 | D72: 9 | E72: 30 | F72: 1271 | G72: =G71 -> 0.22008 | H72: 0.1834 | I72: 279.72168 | J72: 233.1014 | K72: 46.62028 | L72: =L71 -> 2016-07-01 | M72: 2016-09-30 | N72: 38130 | O72: 38130 | P72: =P71 -> 2016-10-01 | Q72: 2017-08-31 | R72: 39160 | S72: 0 | T72: =T71 -> 2017-08-31 | U72: 2017-08-31 | V72: 39160 | W72: 0 | X72: =X71 -> 2017-08-31 | Y72: 2017-08-31 | Z72: 39160 | AA72: 0 | AB72: =AB71 -> 2017-08-31 | AC72: 2017-08-31 | AD72: 39160 | AE72: 0 | AF72: =AF71 -> 2017-08-31 | AG72: =AG71 -> 2017-08-31 | AH72: =AH71 -> 39160 | AI72: 0 | AJ72: =AJ71 -> 2017-08-31 | AK72: =AK71 -> 2017-08-31 | AL72: =AL71 -> 39160 | AM72: =IF(O72>0,0,IF(S72>0,0,IF(AJ72>=AK72,0,IF(W72>0,0,IF(AA72>0,0,IF(AE72>0,0,IF(AI72>0,0,IF(AK72>=B72,AL72,0)))))))) -> 0 | AN72: =AN71 -> 2016-11-01 | AO72: 2016-11-30 | AP72: 0 | AQ72: 1 | AR72: 0 | AS72: =IF('DA 2.2'!B116=2,0,IF(AR72=1,I72-J72,0)) -> 0 | AU72: 4.662028 | AV72: 46.62028
B73: 2016-09-06 | C73: 38130 | D73: 9 | E73: 30 | F73: 1271 | G73: 0.22008 | H73: 0.1834 | I73: 279.72168 | J73: 233.1014 | K73: 46.62028 | L73: 2016-07-01 | M73: 2016-09-30 | N73: 38130 | O73: 38130 | P73: 2016-10-01 | Q73: 2017-08-31 | R73: 39160 | S73: 0 | T73: 2017-08-31 | U73: 2017-08-31 | V73: 39160 | W73: 0 | X73: 2017-08-31 | Y73: 2017-08-31 | Z73: 39160 | AA73: 0 | AB73: 2017-08-31 | AC73: 2017-08-31 | AD73: 39160 | AE73: 0 | AF73: 2017-08-31 | AG73: 2017-08-31 | AH73: 39160 | AI73: 0 | AJ73: 2017-08-31 | AK73: 2017-08-31 | AL73: 39160 | AM73: 0 | AN73: 2016-11-01 | AO73: 2016-11-30 | AP73: 0 | AQ73: 1 | AR73: 0 | AS73: =IF('DA 2.2'!B117=2,0,IF(AR73=1,I73-J73,0)) -> 0 | AU73: 4.662028 | AV73: 46.62028
B74: 2016-09-07 | C74: 38130 | D74: 9 | E74: 30 | F74: 1271 | G74: 0.22008 | H74: 0.1834 | I74: 279.72168 | J74: 233.1014 | K74: 46.62028 | L74: 2016-07-01 | M74: 2016-09-30 | N74: 38130 | O74: 38130 | P74: 2016-10-01 | Q74: 2017-08-31 | R74: 39160 | S74: 0 | T74: 2017-08-31 | U74: 2017-08-31 | V74: 39160 | W74: 0 | X74: 2017-08-31 | Y74: 2017-08-31 | Z74: 39160 | AA74: 0 | AB74: 2017-08-31 | AC74: 2017-08-31 | AD74: 39160 | AE74: 0 | AF74: 2017-08-31 | AG74: 2017-08-31 | AH74: 39160 | AI74: 0 | AJ74: 2017-08-31 | AK74: 2017-08-31 | AL74: 39160 | AM74: 0 | AN74: 2016-11-01 | AO74: 2016-11-30 | AP74: 0 | AQ74: 1 | AR74: 0 | AS74: =IF('DA 2.2'!B118=2,0,IF(AR74=1,I74-J74,0)) -> 0 | AU74: 4.662028 | AV74: 46.62028
B75: 2016-09-08 | C75: 38130 | D75: 9 | E75: 30 | F75: 1271 | G75: 0.22008 | H75: 0.1834 | I75: 279.72168 | J75: 233.1014 | K75: 46.62028 | L75: 2016-07-01 | M75: 2016-09-30 | N75: 38130 | O75: 38130 | P75: 2016-10-01 | Q75: 2017-08-31 | R75: 39160 | S75: 0 | T75: 2017-08-31 | U75: 2017-08-31 | V75: 39160 | W75: 0 | X75: 2017-08-31 | Y75: 2017-08-31 | Z75: 39160 | AA75: 0 | AB75: 2017-08-31 | AC75: 2017-08-31 | AD75: 39160 | AE75: 0 | AF75: 2017-08-31 | AG75: 2017-08-31 | AH75: 39160 | AI75: 0 | AJ75: 2017-08-31 | AK75: 2017-08-31 | AL75: 39160 | AM75: 0 | AN75: 2016-11-01 | AO75: 2016-11-30 | AP75: 0 | AQ75: 1 | AR75: 0 | AS75: =IF('DA 2.2'!B119=2,0,IF(AR75=1,I75-J75,0)) -> 0 | AU75: 4.662028 | AV75: 46.62028
B76: 2016-09-09 | C76: 38130 | D76: 9 | E76: 30 | F76: 1271 | G76: 0.22008 | H76: 0.1834 | I76: 279.72168 | J76: 233.1014 | K76: 46.62028 | L76: 2016-07-01 | M76: 2016-09-30 | N76: 38130 | O76: 38130 | P76: 2016-10-01 | Q76: 2017-08-31 | R76: 39160 | S76: 0 | T76: 2017-08-31 | U76: 2017-08-31 | V76: 39160 | W76: 0 | X76: 2017-08-31 | Y76: 2017-08-31 | Z76: 39160 | AA76: 0 | AB76: 2017-08-31 | AC76: 2017-08-31 | AD76: 39160 | AE76: 0 | AF76: 2017-08-31 | AG76: 2017-08-31 | AH76: 39160 | AI76: 0 | AJ76: 2017-08-31 | AK76: 2017-08-31 | AL76: 39160 | AM76: 0 | AN76: 2016-11-01 | AO76: 2016-11-30 | AP76: 0 | AQ76: 1 | AR76: 0 | AS76: =IF('DA 2.2'!B120=2,0,IF(AR76=1,I76-J76,0)) -> 0 | AU76: 4.662028 | AV76: 46.62028
B77: 2016-09-10 | C77: 38130 | D77: 9 | E77: 30 | F77: 1271 | G77: 0.22008 | H77: 0.1834 | I77: 279.72168 | J77: 233.1014 | K77: 46.62028 | L77: 2016-07-01 | M77: 2016-09-30 | N77: 38130 | O77: 38130 | P77: 2016-10-01 | Q77: 2017-08-31 | R77: 39160 | S77: 0 | T77: 2017-08-31 | U77: 2017-08-31 | V77: 39160 | W77: 0 | X77: 2017-08-31 | Y77: 2017-08-31 | Z77: 39160 | AA77: 0 | AB77: 2017-08-31 | AC77: 2017-08-31 | AD77: 39160 | AE77: 0 | AF77: 2017-08-31 | AG77: 2017-08-31 | AH77: 39160 | AI77: 0 | AJ77: 2017-08-31 | AK77: 2017-08-31 | AL77: 39160 | AM77: 0 | AN77: 2016-11-01 | AO77: 2016-11-30 | AP77: 0 | AQ77: 1 | AR77: 0 | AS77: =IF('DA 2.2'!B121=2,0,IF(AR77=1,I77-J77,0)) -> 0 | AU77: 4.662028 | AV77: 46.62028
B78: 2016-09-11 | C78: 38130 | D78: 9 | E78: 30 | F78: 1271 | G78: 0.22008 | H78: 0.1834 | I78: 279.72168 | J78: 233.1014 | K78: 46.62028 | L78: 2016-07-01 | M78: 2016-09-30 | N78: 38130 | O78: 38130 | P78: 2016-10-01 | Q78: 2017-08-31 | R78: 39160 | S78: 0 | T78: 2017-08-31 | U78: 2017-08-31 | V78: 39160 | W78: 0 | X78: 2017-08-31 | Y78: 2017-08-31 | Z78: 39160 | AA78: 0 | AB78: 2017-08-31 | AC78: 2017-08-31 | AD78: 39160 | AE78: 0 | AF78: 2017-08-31 | AG78: 2017-08-31 | AH78: 39160 | AI78: 0 | AJ78: 2017-08-31 | AK78: 2017-08-31 | AL78: 39160 | AM78: 0 | AN78: 2016-11-01 | AO78: 2016-11-30 | AP78: 0 | AQ78: 1 | AR78: 0 | AS78: =IF('DA 2.2'!B122=2,0,IF(AR78=1,I78-J78,0)) -> 0 | AU78: 4.662028 | AV78: 46.62028
B79: 2016-09-12 | C79: 38130 | D79: 9 | E79: 30 | F79: 1271 | G79: 0.22008 | H79: 0.1834 | I79: 279.72168 | J79: 233.1014 | K79: 46.62028 | L79: 2016-07-01 | M79: 2016-09-30 | N79: 38130 | O79: 38130 | P79: 2016-10-01 | Q79: 2017-08-31 | R79: 39160 | S79: 0 | T79: 2017-08-31 | U79: 2017-08-31 | V79: 39160 | W79: 0 | X79: 2017-08-31 | Y79: 2017-08-31 | Z79: 39160 | AA79: 0 | AB79: 2017-08-31 | AC79: 2017-08-31 | AD79: 39160 | AE79: 0 | AF79: 2017-08-31 | AG79: 2017-08-31 | AH79: 39160 | AI79: 0 | AJ79: 2017-08-31 | AK79: 2017-08-31 | AL79: 39160 | AM79: 0 | AN79: 2016-11-01 | AO79: 2016-11-30 | AP79: 0 | AQ79: 1 | AR79: 0 | AS79: =IF('DA 2.2'!B123=2,0,IF(AR79=1,I79-J79,0)) -> 0 | AU79: 4.662028 | AV79: 46.62028
B80: 2016-09-13 | C80: 38130 | D80: 9 | E80: 30 | F80: 1271 | G80: 0.22008 | H80: 0.1834 | I80: 279.72168 | J80: 233.1014 | K80: 46.62028 | L80: 2016-07-01 | M80: 2016-09-30 | N80: 38130 | O80: 38130 | P80: 2016-10-01 | Q80: 2017-08-31 | R80: 39160 | S80: 0 | T80: 2017-08-31 | U80: 2017-08-31 | V80: 39160 | W80: 0 | X80: 2017-08-31 | Y80: 2017-08-31 | Z80: 39160 | AA80: 0 | AB80: 2017-08-31 | AC80: 2017-08-31 | AD80: 39160 | AE80: 0 | AF80: 2017-08-31 | AG80: 2017-08-31 | AH80: 39160 | AI80: 0 | AJ80: 2017-08-31 | AK80: 2017-08-31 | AL80: 39160 | AM80: 0 | AN80: 2016-11-01 | AO80: 2016-11-30 | AP80: 0 | AQ80: 1 | AR80: 0 | AS80: =IF('DA 2.2'!B124=2,0,IF(AR80=1,I80-J80,0)) -> 0 | AU80: 4.662028 | AV80: 46.62028
B81: 2016-09-14 | C81: 38130 | D81: 9 | E81: 30 | F81: 1271 | G81: 0.22008 | H81: 0.1834 | I81: 279.72168 | J81: 233.1014 | K81: 46.62028 | L81: 2016-07-01 | M81: 2016-09-30 | N81: 38130 | O81: 38130 | P81: 2016-10-01 | Q81: 2017-08-31 | R81: 39160 | S81: 0 | T81: 2017-08-31 | U81: 2017-08-31 | V81: 39160 | W81: 0 | X81: 2017-08-31 | Y81: 2017-08-31 | Z81: 39160 | AA81: 0 | AB81: 2017-08-31 | AC81: 2017-08-31 | AD81: 39160 | AE81: 0 | AF81: 2017-08-31 | AG81: 2017-08-31 | AH81: 39160 | AI81: 0 | AJ81: 2017-08-31 | AK81: 2017-08-31 | AL81: 39160 | AM81: 0 | AN81: 2016-11-01 | AO81: 2016-11-30 | AP81: 0 | AQ81: 1 | AR81: 0 | AS81: =IF('DA 2.2'!B125=2,0,IF(AR81=1,I81-J81,0)) -> 0 | AU81: 4.662028 | AV81: 46.62028
B82: 2016-09-15 | C82: 38130 | D82: 9 | E82: 30 | F82: 1271 | G82: 0.22008 | H82: 0.1834 | I82: 279.72168 | J82: 233.1014 | K82: 46.62028 | L82: 2016-07-01 | M82: 2016-09-30 | N82: 38130 | O82: 38130 | P82: 2016-10-01 | Q82: 2017-08-31 | R82: 39160 | S82: 0 | T82: 2017-08-31 | U82: 2017-08-31 | V82: 39160 | W82: 0 | X82: 2017-08-31 | Y82: 2017-08-31 | Z82: 39160 | AA82: 0 | AB82: 2017-08-31 | AC82: 2017-08-31 | AD82: 39160 | AE82: 0 | AF82: 2017-08-31 | AG82: 2017-08-31 | AH82: 39160 | AI82: 0 | AJ82: 2017-08-31 | AK82: 2017-08-31 | AL82: 39160 | AM82: 0 | AN82: 2016-11-01 | AO82: 2016-11-30 | AP82: 0 | AQ82: 1 | AR82: 0 | AS82: =IF('DA 2.2'!B126=2,0,IF(AR82=1,I82-J82,0)) -> 0 | AU82: 4.662028 | AV82: 46.62028
B83: 2016-09-16 | C83: 38130 | D83: 9 | E83: 30 | F83: 1271 | G83: 0.22008 | H83: 0.1834 | I83: 279.72168 | J83: 233.1014 | K83: 46.62028 | L83: 2016-07-01 | M83: 2016-09-30 | N83: 38130 | O83: 38130 | P83: 2016-10-01 | Q83: 2017-08-31 | R83: 39160 | S83: 0 | T83: 2017-08-31 | U83: 2017-08-31 | V83: 39160 | W83: 0 | X83: 2017-08-31 | Y83: 2017-08-31 | Z83: 39160 | AA83: 0 | AB83: 2017-08-31 | AC83: 2017-08-31 | AD83: 39160 | AE83: 0 | AF83: 2017-08-31 | AG83: 2017-08-31 | AH83: 39160 | AI83: 0 | AJ83: 2017-08-31 | AK83: 2017-08-31 | AL83: 39160 | AM83: 0 | AN83: 2016-11-01 | AO83: 2016-11-30 | AP83: 0 | AQ83: 1 | AR83: 0 | AS83: =IF('DA 2.2'!B127=2,0,IF(AR83=1,I83-J83,0)) -> 0 | AU83: 4.662028 | AV83: 46.62028
B84: 2016-09-17 | C84: 38130 | D84: 9 | E84: 30 | F84: 1271 | G84: 0.22008 | H84: 0.1834 | I84: 279.72168 | J84: 233.1014 | K84: 46.62028 | L84: 2016-07-01 | M84: 2016-09-30 | N84: 38130 | O84: 38130 | P84: 2016-10-01 | Q84: 2017-08-31 | R84: 39160 | S84: 0 | T84: 2017-08-31 | U84: 2017-08-31 | V84: 39160 | W84: 0 | X84: 2017-08-31 | Y84: 2017-08-31 | Z84: 39160 | AA84: 0 | AB84: 2017-08-31 | AC84: 2017-08-31 | AD84: 39160 | AE84: 0 | AF84: 2017-08-31 | AG84: 2017-08-31 | AH84: 39160 | AI84: 0 | AJ84: 2017-08-31 | AK84: 2017-08-31 | AL84: 39160 | AM84: 0 | AN84: 2016-11-01 | AO84: 2016-11-30 | AP84: 0 | AQ84: 1 | AR84: 0 | AS84: =IF('DA 2.2'!B128=2,0,IF(AR84=1,I84-J84,0)) -> 0 | AU84: 4.662028 | AV84: 46.62028
B85: 2016-09-18 | C85: 38130 | D85: 9 | E85: 30 | F85: 1271 | G85: 0.22008 | H85: 0.1834 | I85: 279.72168 | J85: 233.1014 | K85: 46.62028 | L85: 2016-07-01 | M85: 2016-09-30 | N85: 38130 | O85: 38130 | P85: 2016-10-01 | Q85: 2017-08-31 | R85: 39160 | S85: 0 | T85: 2017-08-31 | U85: 2017-08-31 | V85: 39160 | W85: 0 | X85: 2017-08-31 | Y85: 2017-08-31 | Z85: 39160 | AA85: 0 | AB85: 2017-08-31 | AC85: 2017-08-31 | AD85: 39160 | AE85: 0 | AF85: 2017-08-31 | AG85: 2017-08-31 | AH85: 39160 | AI85: 0 | AJ85: 2017-08-31 | AK85: 2017-08-31 | AL85: 39160 | AM85: 0 | AN85: 2016-11-01 | AO85: 2016-11-30 | AP85: 0 | AQ85: 1 | AR85: 0 | AS85: =IF('DA 2.2'!B129=2,0,IF(AR85=1,I85-J85,0)) -> 0 | AU85: 4.662028 | AV85: 46.62028
B86: 2016-09-19 | C86: 38130 | D86: 9 | E86: 30 | F86: 1271 | G86: 0.22008 | H86: 0.1834 | I86: 279.72168 | J86: 233.1014 | K86: 46.62028 | L86: 2016-07-01 | M86: 2016-09-30 | N86: 38130 | O86: 38130 | P86: 2016-10-01 | Q86: 2017-08-31 | R86: 39160 | S86: 0 | T86: 2017-08-31 | U86: 2017-08-31 | V86: 39160 | W86: 0 | X86: 2017-08-31 | Y86: 2017-08-31 | Z86: 39160 | AA86: 0 | AB86: 2017-08-31 | AC86: 2017-08-31 | AD86: 39160 | AE86: 0 | AF86: 2017-08-31 | AG86: 2017-08-31 | AH86: 39160 | AI86: 0 | AJ86: 2017-08-31 | AK86: 2017-08-31 | AL86: 39160 | AM86: 0 | AN86: 2016-11-01 | AO86: 2016-11-30 | AP86: 0 | AQ86: 1 | AR86: 0 | AS86: =IF('DA 2.2'!B130=2,0,IF(AR86=1,I86-J86,0)) -> 0 | AU86: 4.662028 | AV86: 46.62028
B87: 2016-09-20 | C87: 38130 | D87: 9 | E87: 30 | F87: 1271 | G87: 0.22008 | H87: 0.1834 | I87: 279.72168 | J87: 233.1014 | K87: 46.62028 | L87: 2016-07-01 | M87: 2016-09-30 | N87: 38130 | O87: 38130 | P87: 2016-10-01 | Q87: 2017-08-31 | R87: 39160 | S87: 0 | T87: 2017-08-31 | U87: 2017-08-31 | V87: 39160 | W87: 0 | X87: 2017-08-31 | Y87: 2017-08-31 | Z87: 39160 | AA87: 0 | AB87: 2017-08-31 | AC87: 2017-08-31 | AD87: 39160 | AE87: 0 | AF87: 2017-08-31 | AG87: 2017-08-31 | AH87: 39160 | AI87: 0 | AJ87: 2017-08-31 | AK87: 2017-08-31 | AL87: 39160 | AM87: 0 | AN87: 2016-11-01 | AO87: 2016-11-30 | AP87: 0 | AQ87: 1 | AR87: 0 | AS87: =IF('DA 2.2'!B131=2,0,IF(AR87=1,I87-J87,0)) -> 0 | AU87: 4.662028 | AV87: 46.62028
B88: 2016-09-21 | C88: 38130 | D88: 9 | E88: 30 | F88: 1271 | G88: =G87 -> 0.22008 | H88: 0.1834 | I88: 279.72168 | J88: 233.1014 | K88: 46.62028 | L88: =L87 -> 2016-07-01 | M88: 2016-09-30 | N88: 38130 | O88: 38130 | P88: =P87 -> 2016-10-01 | Q88: 2017-08-31 | R88: 39160 | S88: 0 | T88: =T87 -> 2017-08-31 | U88: 2017-08-31 | V88: 39160 | W88: 0 | X88: =X87 -> 2017-08-31 | Y88: 2017-08-31 | Z88: 39160 | AA88: 0 | AB88: 2017-08-31 | AC88: 2017-08-31 | AD88: 39160 | AE88: 0 | AF88: 2017-08-31 | AG88: 2017-08-31 | AH88: 39160 | AI88: 0 | AJ88: 2017-08-31 | AK88: 2017-08-31 | AL88: 39160 | AM88: 0 | AN88: =AN87 -> 2016-11-01 | AO88: 2016-11-30 | AP88: 0 | AQ88: 1 | AR88: 0 | AS88: =IF('DA 2.2'!B132=2,0,IF(AR88=1,I88-J88,0)) -> 0 | AU88: 4.662028 | AV88: 46.62028
B89: 2016-09-22 | C89: 38130 | D89: 9 | E89: 30 | F89: 1271 | G89: 0.22008 | H89: 0.1834 | I89: 279.72168 | J89: 233.1014 | K89: 46.62028 | L89: 2016-07-01 | M89: 2016-09-30 | N89: 38130 | O89: 38130 | P89: 2016-10-01 | Q89: 2017-08-31 | R89: 39160 | S89: 0 | T89: 2017-08-31 | U89: 2017-08-31 | V89: 39160 | W89: 0 | X89: 2017-08-31 | Y89: 2017-08-31 | Z89: 39160 | AA89: 0 | AB89: 2017-08-31 | AC89: 2017-08-31 | AD89: 39160 | AE89: 0 | AF89: 2017-08-31 | AG89: 2017-08-31 | AH89: 39160 | AI89: 0 | AJ89: 2017-08-31 | AK89: 2017-08-31 | AL89: 39160 | AM89: 0 | AN89: 2016-11-01 | AO89: 2016-11-30 | AP89: 0 | AQ89: 1 | AR89: 0 | AS89: =IF('DA 2.2'!B133=2,0,IF(AR89=1,I89-J89,0)) -> 0 | AU89: 4.662028 | AV89: 46.62028
B90: 2016-09-23 | C90: 38130 | D90: 9 | E90: 30 | F90: 1271 | G90: 0.22008 | H90: 0.1834 | I90: 279.72168 | J90: 233.1014 | K90: 46.62028 | L90: 2016-07-01 | M90: 2016-09-30 | N90: 38130 | O90: 38130 | P90: 2016-10-01 | Q90: 2017-08-31 | R90: 39160 | S90: 0 | T90: 2017-08-31 | U90: 2017-08-31 | V90: 39160 | W90: 0 | X90: 2017-08-31 | Y90: 2017-08-31 | Z90: 39160 | AA90: 0 | AB90: 2017-08-31 | AC90: 2017-08-31 | AD90: 39160 | AE90: 0 | AF90: 2017-08-31 | AG90: 2017-08-31 | AH90: 39160 | AI90: 0 | AJ90: 2017-08-31 | AK90: 2017-08-31 | AL90: 39160 | AM90: 0 | AN90: 2016-11-01 | AO90: 2016-11-30 | AP90: 0 | AQ90: 1 | AR90: 0 | AS90: =IF('DA 2.2'!B134=2,0,IF(AR90=1,I90-J90,0)) -> 0 | AU90: 4.662028 | AV90: 46.62028
B91: 2016-09-24 | C91: 38130 | D91: 9 | E91: 30 | F91: 1271 | G91: 0.22008 | H91: 0.1834 | I91: 279.72168 | J91: 233.1014 | K91: 46.62028 | L91: 2016-07-01 | M91: 2016-09-30 | N91: 38130 | O91: 38130 | P91: 2016-10-01 | Q91: 2017-08-31 | R91: 39160 | S91: 0 | T91: 2017-08-31 | U91: 2017-08-31 | V91: 39160 | W91: 0 | X91: 2017-08-31 | Y91: 2017-08-31 | Z91: 39160 | AA91: 0 | AB91: 2017-08-31 | AC91: 2017-08-31 | AD91: 39160 | AE91: 0 | AF91: 2017-08-31 | AG91: 2017-08-31 | AH91: 39160 | AI91: 0 | AJ91: 2017-08-31 | AK91: 2017-08-31 | AL91: 39160 | AM91: 0 | AN91: 2016-11-01 | AO91: 2016-11-30 | AP91: 0 | AQ91: 1 | AR91: 0 | AS91: =IF('DA 2.2'!B135=2,0,IF(AR91=1,I91-J91,0)) -> 0 | AU91: 4.662028 | AV91: 46.62028
B92: 2016-09-25 | C92: 38130 | D92: 9 | E92: 30 | F92: 1271 | G92: 0.22008 | H92: 0.1834 | I92: 279.72168 | J92: 233.1014 | K92: 46.62028 | L92: 2016-07-01 | M92: 2016-09-30 | N92: 38130 | O92: 38130 | P92: 2016-10-01 | Q92: 2017-08-31 | R92: 39160 | S92: 0 | T92: 2017-08-31 | U92: 2017-08-31 | V92: 39160 | W92: 0 | X92: 2017-08-31 | Y92: 2017-08-31 | Z92: 39160 | AA92: 0 | AB92: 2017-08-31 | AC92: 2017-08-31 | AD92: 39160 | AE92: 0 | AF92: 2017-08-31 | AG92: 2017-08-31 | AH92: 39160 | AI92: 0 | AJ92: 2017-08-31 | AK92: 2017-08-31 | AL92: 39160 | AM92: 0 | AN92: 2016-11-01 | AO92: 2016-11-30 | AP92: 0 | AQ92: 1 | AR92: 0 | AS92: =IF('DA 2.2'!B136=2,0,IF(AR92=1,I92-J92,0)) -> 0 | AU92: 4.662028 | AV92: 46.62028
B93: 2016-09-26 | C93: 38130 | D93: 9 | E93: 30 | F93: 1271 | G93: 0.22008 | H93: 0.1834 | I93: 279.72168 | J93: 233.1014 | K93: 46.62028 | L93: 2016-07-01 | M93: 2016-09-30 | N93: 38130 | O93: 38130 | P93: 2016-10-01 | Q93: 2017-08-31 | R93: 39160 | S93: 0 | T93: 2017-08-31 | U93: 2017-08-31 | V93: 39160 | W93: 0 | X93: 2017-08-31 | Y93: 2017-08-31 | Z93: 39160 | AA93: 0 | AB93: 2017-08-31 | AC93: 2017-08-31 | AD93: 39160 | AE93: 0 | AF93: 2017-08-31 | AG93: 2017-08-31 | AH93: 39160 | AI93: 0 | AJ93: 2017-08-31 | AK93: 2017-08-31 | AL93: 39160 | AM93: 0 | AN93: 2016-11-01 | AO93: 2016-11-30 | AP93: 0 | AQ93: 1 | AR93: 0 | AS93: =IF('DA 2.2'!B137=2,0,IF(AR93=1,I93-J93,0)) -> 0 | AU93: 4.662028 | AV93: 46.62028
B94: 2016-09-27 | C94: 38130 | D94: 9 | E94: 30 | F94: 1271 | G94: 0.22008 | H94: 0.1834 | I94: 279.72168 | J94: 233.1014 | K94: 46.62028 | L94: 2016-07-01 | M94: 2016-09-30 | N94: 38130 | O94: 38130 | P94: 2016-10-01 | Q94: 2017-08-31 | R94: 39160 | S94: 0 | T94: 2017-08-31 | U94: 2017-08-31 | V94: 39160 | W94: 0 | X94: 2017-08-31 | Y94: 2017-08-31 | Z94: 39160 | AA94: 0 | AB94: 2017-08-31 | AC94: 2017-08-31 | AD94: 39160 | AE94: 0 | AF94: 2017-08-31 | AG94: 2017-08-31 | AH94: 39160 | AI94: 0 | AJ94: 2017-08-31 | AK94: 2017-08-31 | AL94: 39160 | AM94: 0 | AN94: 2016-11-01 | AO94: 2016-11-30 | AP94: 0 | AQ94: 1 | AR94: 0 | AS94: =IF('DA 2.2'!B138=2,0,IF(AR94=1,I94-J94,0)) -> 0 | AU94: 4.662028 | AV94: 46.62028
B95: 2016-09-28 | C95: 38130 | D95: 9 | E95: 30 | F95: 1271 | G95: 0.22008 | H95: 0.1834 | I95: 279.72168 | J95: 233.1014 | K95: 46.62028 | L95: 2016-07-01 | M95: 2016-09-30 | N95: 38130 | O95: 38130 | P95: 2016-10-01 | Q95: 2017-08-31 | R95: 39160 | S95: 0 | T95: 2017-08-31 | U95: 2017-08-31 | V95: 39160 | W95: 0 | X95: 2017-08-31 | Y95: 2017-08-31 | Z95: 39160 | AA95: 0 | AB95: 2017-08-31 | AC95: 2017-08-31 | AD95: 39160 | AE95: 0 | AF95: 2017-08-31 | AG95: 2017-08-31 | AH95: 39160 | AI95: 0 | AJ95: 2017-08-31 | AK95: 2017-08-31 | AL95: 39160 | AM95: 0 | AN95: 2016-11-01 | AO95: 2016-11-30 | AP95: 0 | AQ95: 1 | AR95: 0 | AS95: =IF('DA 2.2'!B139=2,0,IF(AR95=1,I95-J95,0)) -> 0 | AU95: 4.662028 | AV95: 46.62028
B96: 2016-09-29 | C96: 38130 | D96: 9 | E96: 30 | F96: =C96/E96 -> 1271 | G96: 0.22008 | H96: 0.1834 | I96: 279.72168 | J96: 233.1014 | K96: 46.62028 | L96: 2016-07-01 | M96: 2016-09-30 | N96: 38130 | O96: 38130 | P96: 2016-10-01 | Q96: 2017-08-31 | R96: 39160 | S96: 0 | T96: 2017-08-31 | U96: 2017-08-31 | V96: 39160 | W96: 0 | X96: 2017-08-31 | Y96: 2017-08-31 | Z96: 39160 | AA96: 0 | AB96: 2017-08-31 | AC96: 2017-08-31 | AD96: 39160 | AE96: 0 | AF96: 2017-08-31 | AG96: 2017-08-31 | AH96: 39160 | AI96: 0 | AJ96: 2017-08-31 | AK96: 2017-08-31 | AL96: 39160 | AM96: 0 | AN96: 2016-11-01 | AO96: 2016-11-30 | AP96: 0 | AQ96: 1 | AR96: 0 | AS96: =IF('DA 2.2'!B140=2,0,IF(AR96=1,I96-J96,0)) -> 0 | AU96: 4.662028 | AV96: 46.62028
B97: 2016-09-30 | C97: 38130 | D97: 9 | E97: 30 | F97: 1271 | G97: 0.22008 | H97: 0.1834 | I97: 279.72168 | J97: 233.1014 | K97: 46.62028 | L97: 2016-07-01 | M97: 2016-09-30 | N97: 38130 | O97: 38130 | P97: 2016-10-01 | Q97: 2017-08-31 | R97: 39160 | S97: 0 | T97: 2017-08-31 | U97: 2017-08-31 | V97: 39160 | W97: 0 | X97: 2017-08-31 | Y97: 2017-08-31 | Z97: 39160 | AA97: 0 | AB97: 2017-08-31 | AC97: 2017-08-31 | AD97: 39160 | AE97: 0 | AF97: 2017-08-31 | AG97: 2017-08-31 | AH97: 39160 | AI97: 0 | AJ97: 2017-08-31 | AK97: 2017-08-31 | AL97: 39160 | AM97: 0 | AN97: 2016-11-01 | AO97: 2016-11-30 | AP97: 0 | AQ97: 1 | AR97: 0 | AS97: =IF('DA 2.2'!B141=2,0,IF(AR97=1,I97-J97,0)) -> 0 | AU97: 4.662028 | AV97: 46.62028
B98: 2016-10-01 | C98: 39160 | D98: 10 | E98: 31 | F98: 1263.225806 | G98: 0.22008 | H98: 0.1834 | I98: 278.0107355 | J98: 231.6756129 | K98: 46.33512258 | L98: 2016-07-01 | M98: 2016-09-30 | N98: 38130 | O98: 0 | P98: 2016-10-01 | Q98: 2017-08-31 | R98: 39160 | S98: 39160 | T98: 2017-08-31 | U98: 2017-08-31 | V98: 39160 | W98: 0 | X98: 2017-08-31 | Y98: 2017-08-31 | Z98: 39160 | AA98: 0 | AB98: 2017-08-31 | AC98: 2017-08-31 | AD98: 39160 | AE98: 0 | AF98: 2017-08-31 | AG98: 2017-08-31 | AH98: 39160 | AI98: 0 | AJ98: 2017-08-31 | AK98: 2017-08-31 | AL98: 39160 | AM98: 0 | AN98: 2016-11-01 | AO98: 2016-11-30 | AP98: 0 | AQ98: 1 | AR98: 0 | AS98: =IF('DA 2.2'!B142=2,0,IF(AR98=1,I98-J98,0)) -> 0 | AU98: 4.633512 | AV98: 46.335123
B99: 2016-10-02 | C99: 39160 | D99: 10 | E99: 31 | F99: 1263.225806 | G99: 0.22008 | H99: 0.1834 | I99: 278.0107355 | J99: 231.6756129 | K99: 46.33512258 | L99: 2016-07-01 | M99: 2016-09-30 | N99: 38130 | O99: 0 | P99: 2016-10-01 | Q99: 2017-08-31 | R99: 39160 | S99: 39160 | T99: 2017-08-31 | U99: 2017-08-31 | V99: 39160 | W99: 0 | X99: 2017-08-31 | Y99: 2017-08-31 | Z99: 39160 | AA99: 0 | AB99: 2017-08-31 | AC99: 2017-08-31 | AD99: 39160 | AE99: 0 | AF99: 2017-08-31 | AG99: 2017-08-31 | AH99: 39160 | AI99: 0 | AJ99: 2017-08-31 | AK99: 2017-08-31 | AL99: 39160 | AM99: 0 | AN99: 2016-11-01 | AO99: 2016-11-30 | AP99: 0 | AQ99: 1 | AR99: 0 | AS99: =IF('DA 2.2'!B143=2,0,IF(AR99=1,I99-J99,0)) -> 0 | AU99: 4.633512 | AV99: 46.335123
B100: 2016-10-03 | C100: 39160 | D100: 10 | E100: 31 | F100: 1263.225806 | G100: 0.22008 | H100: 0.1834 | I100: 278.0107355 | J100: 231.6756129 | K100: 46.33512258 | L100: 2016-07-01 | M100: 2016-09-30 | N100: 38130 | O100: 0 | P100: 2016-10-01 | Q100: 2017-08-31 | R100: 39160 | S100: 39160 | T100: 2017-08-31 | U100: 2017-08-31 | V100: 39160 | W100: 0 | X100: 2017-08-31 | Y100: 2017-08-31 | Z100: 39160 | AA100: 0 | AB100: 2017-08-31 | AC100: 2017-08-31 | AD100: 39160 | AE100: 0 | AF100: 2017-08-31 | AG100: 2017-08-31 | AH100: 39160 | AI100: 0 | AJ100: 2017-08-31 | AK100: 2017-08-31 | AL100: 39160 | AM100: 0 | AN100: 2016-11-01 | AO100: 2016-11-30 | AP100: 0 | AQ100: 1 | AR100: 0 | AS100: =IF('DA 2.2'!B144=2,0,IF(AR100=1,I100-J100,0)) -> 0 | AU100: 4.633512 | AV100: 46.335123
B101: 2016-10-04 | C101: 39160 | D101: 10 | E101: 31 | F101: 1263.225806 | G101: 0.22008 | H101: 0.1834 | I101: 278.0107355 | J101: 231.6756129 | K101: 46.33512258 | L101: 2016-07-01 | M101: 2016-09-30 | N101: 38130 | O101: 0 | P101: 2016-10-01 | Q101: 2017-08-31 | R101: 39160 | S101: 39160 | T101: 2017-08-31 | U101: 2017-08-31 | V101: 39160 | W101: 0 | X101: 2017-08-31 | Y101: 2017-08-31 | Z101: 39160 | AA101: 0 | AB101: 2017-08-31 | AC101: 2017-08-31 | AD101: 39160 | AE101: 0 | AF101: 2017-08-31 | AG101: 2017-08-31 | AH101: 39160 | AI101: 0 | AJ101: 2017-08-31 | AK101: 2017-08-31 | AL101: 39160 | AM101: 0 | AN101: 2016-11-01 | AO101: 2016-11-30 | AP101: 0 | AQ101: 1 | AR101: 0 | AS101: =IF('DA 2.2'!B145=2,0,IF(AR101=1,I101-J101,0)) -> 0 | AU101: 4.633512 | AV101: 46.335123
B102: 2016-10-05 | C102: 39160 | D102: 10 | E102: 31 | F102: 1263.225806 | G102: 0.22008 | H102: 0.1834 | I102: 278.0107355 | J102: 231.6756129 | K102: 46.33512258 | L102: 2016-07-01 | M102: 2016-09-30 | N102: 38130 | O102: 0 | P102: 2016-10-01 | Q102: 2017-08-31 | R102: 39160 | S102: 39160 | T102: 2017-08-31 | U102: 2017-08-31 | V102: 39160 | W102: 0 | X102: 2017-08-31 | Y102: 2017-08-31 | Z102: 39160 | AA102: 0 | AB102: 2017-08-31 | AC102: 2017-08-31 | AD102: 39160 | AE102: 0 | AF102: 2017-08-31 | AG102: 2017-08-31 | AH102: 39160 | AI102: 0 | AJ102: 2017-08-31 | AK102: 2017-08-31 | AL102: 39160 | AM102: 0 | AN102: 2016-11-01 | AO102: 2016-11-30 | AP102: 0 | AQ102: 1 | AR102: 0 | AS102: =IF('DA 2.2'!B146=2,0,IF(AR102=1,I102-J102,0)) -> 0 | AU102: 4.633512 | AV102: 46.335123
B103: 2016-10-06 | C103: 39160 | D103: 10 | E103: 31 | F103: 1263.225806 | G103: 0.22008 | H103: 0.1834 | I103: 278.0107355 | J103: 231.6756129 | K103: 46.33512258 | L103: 2016-07-01 | M103: 2016-09-30 | N103: 38130 | O103: 0 | P103: 2016-10-01 | Q103: 2017-08-31 | R103: 39160 | S103: 39160 | T103: 2017-08-31 | U103: 2017-08-31 | V103: 39160 | W103: 0 | X103: 2017-08-31 | Y103: 2017-08-31 | Z103: 39160 | AA103: 0 | AB103: 2017-08-31 | AC103: 2017-08-31 | AD103: 39160 | AE103: 0 | AF103: 2017-08-31 | AG103: 2017-08-31 | AH103: 39160 | AI103: 0 | AJ103: 2017-08-31 | AK103: 2017-08-31 | AL103: 39160 | AM103: 0 | AN103: 2016-11-01 | AO103: 2016-11-30 | AP103: 0 | AQ103: 1 | AR103: 0 | AS103: =IF('DA 2.2'!B147=2,0,IF(AR103=1,I103-J103,0)) -> 0 | AU103: 4.633512 | AV103: 46.335123
B104: 2016-10-07 | C104: 39160 | D104: 10 | E104: 31 | F104: 1263.225806 | G104: =G103 -> 0.22008 | H104: 0.1834 | I104: 278.0107355 | J104: 231.6756129 | K104: 46.33512258 | L104: =L103 -> 2016-07-01 | M104: 2016-09-30 | N104: 38130 | O104: 0 | P104: =P103 -> 2016-10-01 | Q104: 2017-08-31 | R104: 39160 | S104: 39160 | T104: =T103 -> 2017-08-31 | U104: 2017-08-31 | V104: 39160 | W104: 0 | X104: =X103 -> 2017-08-31 | Y104: 2017-08-31 | Z104: 39160 | AA104: 0 | AB104: 2017-08-31 | AC104: 2017-08-31 | AD104: 39160 | AE104: 0 | AF104: 2017-08-31 | AG104: 2017-08-31 | AH104: 39160 | AI104: 0 | AJ104: 2017-08-31 | AK104: 2017-08-31 | AL104: 39160 | AM104: 0 | AN104: =AN103 -> 2016-11-01 | AO104: 2016-11-30 | AP104: 0 | AQ104: 1 | AR104: 0 | AS104: =IF('DA 2.2'!B148=2,0,IF(AR104=1,I104-J104,0)) -> 0 | AU104: 4.633512 | AV104: 46.335123
B105: 2016-10-08 | C105: 39160 | D105: 10 | E105: 31 | F105: 1263.225806 | G105: 0.22008 | H105: 0.1834 | I105: 278.0107355 | J105: 231.6756129 | K105: 46.33512258 | L105: 2016-07-01 | M105: 2016-09-30 | N105: 38130 | O105: 0 | P105: 2016-10-01 | Q105: 2017-08-31 | R105: 39160 | S105: 39160 | T105: 2017-08-31 | U105: 2017-08-31 | V105: 39160 | W105: 0 | X105: 2017-08-31 | Y105: 2017-08-31 | Z105: 39160 | AA105: 0 | AB105: 2017-08-31 | AC105: 2017-08-31 | AD105: 39160 | AE105: 0 | AF105: 2017-08-31 | AG105: 2017-08-31 | AH105: 39160 | AI105: 0 | AJ105: 2017-08-31 | AK105: 2017-08-31 | AL105: 39160 | AM105: 0 | AN105: 2016-11-01 | AO105: 2016-11-30 | AP105: 0 | AQ105: 1 | AR105: 0 | AS105: =IF('DA 2.2'!B149=2,0,IF(AR105=1,I105-J105,0)) -> 0 | AU105: 4.633512 | AV105: 46.335123
B106: 2016-10-09 | C106: 39160 | D106: 10 | E106: 31 | F106: 1263.225806 | G106: 0.22008 | H106: 0.1834 | I106: 278.0107355 | J106: 231.6756129 | K106: 46.33512258 | L106: 2016-07-01 | M106: 2016-09-30 | N106: 38130 | O106: 0 | P106: 2016-10-01 | Q106: 2017-08-31 | R106: 39160 | S106: 39160 | T106: 2017-08-31 | U106: 2017-08-31 | V106: 39160 | W106: 0 | X106: 2017-08-31 | Y106: 2017-08-31 | Z106: 39160 | AA106: 0 | AB106: 2017-08-31 | AC106: 2017-08-31 | AD106: 39160 | AE106: 0 | AF106: 2017-08-31 | AG106: 2017-08-31 | AH106: 39160 | AI106: 0 | AJ106: 2017-08-31 | AK106: 2017-08-31 | AL106: 39160 | AM106: 0 | AN106: 2016-11-01 | AO106: 2016-11-30 | AP106: 0 | AQ106: 1 | AR106: 0 | AS106: =IF('DA 2.2'!B150=2,0,IF(AR106=1,I106-J106,0)) -> 0 | AU106: 4.633512 | AV106: 46.335123
B107: 2016-10-10 | C107: 39160 | D107: 10 | E107: 31 | F107: 1263.225806 | G107: 0.22008 | H107: 0.1834 | I107: 278.0107355 | J107: 231.6756129 | K107: 46.33512258 | L107: 2016-07-01 | M107: 2016-09-30 | N107: 38130 | O107: 0 | P107: 2016-10-01 | Q107: 2017-08-31 | R107: 39160 | S107: 39160 | T107: 2017-08-31 | U107: 2017-08-31 | V107: 39160 | W107: 0 | X107: 2017-08-31 | Y107: 2017-08-31 | Z107: 39160 | AA107: 0 | AB107: 2017-08-31 | AC107: 2017-08-31 | AD107: 39160 | AE107: 0 | AF107: 2017-08-31 | AG107: 2017-08-31 | AH107: 39160 | AI107: 0 | AJ107: 2017-08-31 | AK107: 2017-08-31 | AL107: 39160 | AM107: 0 | AN107: 2016-11-01 | AO107: 2016-11-30 | AP107: 0 | AQ107: 1 | AR107: 0 | AS107: =IF('DA 2.2'!B151=2,0,IF(AR107=1,I107-J107,0)) -> 0 | AU107: 4.633512 | AV107: 46.335123
B108: 2016-10-11 | C108: 39160 | D108: 10 | E108: 31 | F108: 1263.225806 | G108: 0.22008 | H108: 0.1834 | I108: 278.0107355 | J108: 231.6756129 | K108: 46.33512258 | L108: 2016-07-01 | M108: 2016-09-30 | N108: 38130 | O108: 0 | P108: 2016-10-01 | Q108: 2017-08-31 | R108: 39160 | S108: 39160 | T108: 2017-08-31 | U108: 2017-08-31 | V108: 39160 | W108: 0 | X108: 2017-08-31 | Y108: 2017-08-31 | Z108: 39160 | AA108: 0 | AB108: 2017-08-31 | AC108: 2017-08-31 | AD108: 39160 | AE108: 0 | AF108: 2017-08-31 | AG108: 2017-08-31 | AH108: 39160 | AI108: 0 | AJ108: 2017-08-31 | AK108: 2017-08-31 | AL108: 39160 | AM108: 0 | AN108: 2016-11-01 | AO108: 2016-11-30 | AP108: 0 | AQ108: 1 | AR108: 0 | AS108: =IF('DA 2.2'!B152=2,0,IF(AR108=1,I108-J108,0)) -> 0 | AU108: 4.633512 | AV108: 46.335123
B109: 2016-10-12 | C109: 39160 | D109: 10 | E109: 31 | F109: 1263.225806 | G109: 0.22008 | H109: 0.1834 | I109: 278.0107355 | J109: 231.6756129 | K109: 46.33512258 | L109: 2016-07-01 | M109: 2016-09-30 | N109: 38130 | O109: 0 | P109: 2016-10-01 | Q109: 2017-08-31 | R109: 39160 | S109: 39160 | T109: 2017-08-31 | U109: 2017-08-31 | V109: 39160 | W109: 0 | X109: 2017-08-31 | Y109: 2017-08-31 | Z109: 39160 | AA109: 0 | AB109: 2017-08-31 | AC109: 2017-08-31 | AD109: 39160 | AE109: 0 | AF109: 2017-08-31 | AG109: 2017-08-31 | AH109: 39160 | AI109: 0 | AJ109: 2017-08-31 | AK109: 2017-08-31 | AL109: 39160 | AM109: 0 | AN109: 2016-11-01 | AO109: 2016-11-30 | AP109: 0 | AQ109: 1 | AR109: 0 | AS109: =IF('DA 2.2'!B153=2,0,IF(AR109=1,I109-J109,0)) -> 0 | AU109: 4.633512 | AV109: 46.335123
B110: 2016-10-13 | C110: 39160 | D110: 10 | E110: 31 | F110: 1263.225806 | G110: 0.22008 | H110: 0.1834 | I110: 278.0107355 | J110: 231.6756129 | K110: 46.33512258 | L110: 2016-07-01 | M110: 2016-09-30 | N110: 38130 | O110: 0 | P110: 2016-10-01 | Q110: 2017-08-31 | R110: 39160 | S110: 39160 | T110: 2017-08-31 | U110: 2017-08-31 | V110: 39160 | W110: 0 | X110: 2017-08-31 | Y110: 2017-08-31 | Z110: 39160 | AA110: 0 | AB110: 2017-08-31 | AC110: 2017-08-31 | AD110: 39160 | AE110: 0 | AF110: 2017-08-31 | AG110: 2017-08-31 | AH110: 39160 | AI110: 0 | AJ110: 2017-08-31 | AK110: 2017-08-31 | AL110: 39160 | AM110: 0 | AN110: 2016-11-01 | AO110: 2016-11-30 | AP110: 0 | AQ110: 1 | AR110: 0 | AS110: =IF('DA 2.2'!B154=2,0,IF(AR110=1,I110-J110,0)) -> 0 | AU110: 4.633512 | AV110: 46.335123
B111: 2016-10-14 | C111: 39160 | D111: 10 | E111: 31 | F111: 1263.225806 | G111: 0.22008 | H111: 0.1834 | I111: 278.0107355 | J111: 231.6756129 | K111: 46.33512258 | L111: 2016-07-01 | M111: 2016-09-30 | N111: 38130 | O111: 0 | P111: 2016-10-01 | Q111: 2017-08-31 | R111: 39160 | S111: 39160 | T111: 2017-08-31 | U111: 2017-08-31 | V111: 39160 | W111: 0 | X111: 2017-08-31 | Y111: 2017-08-31 | Z111: 39160 | AA111: 0 | AB111: 2017-08-31 | AC111: 2017-08-31 | AD111: 39160 | AE111: 0 | AF111: 2017-08-31 | AG111: 2017-08-31 | AH111: 39160 | AI111: 0 | AJ111: 2017-08-31 | AK111: 2017-08-31 | AL111: 39160 | AM111: 0 | AN111: 2016-11-01 | AO111: 2016-11-30 | AP111: 0 | AQ111: 1 | AR111: 0 | AS111: =IF('DA 2.2'!B155=2,0,IF(AR111=1,I111-J111,0)) -> 0 | AU111: 4.633512 | AV111: 46.335123
B112: 2016-10-15 | C112: 39160 | D112: 10 | E112: 31 | F112: 1263.225806 | G112: 0.22008 | H112: 0.1834 | I112: 278.0107355 | J112: 231.6756129 | K112: 46.33512258 | L112: 2016-07-01 | M112: 2016-09-30 | N112: 38130 | O112: 0 | P112: 2016-10-01 | Q112: 2017-08-31 | R112: 39160 | S112: 39160 | T112: 2017-08-31 | U112: 2017-08-31 | V112: 39160 | W112: 0 | X112: 2017-08-31 | Y112: 2017-08-31 | Z112: 39160 | AA112: 0 | AB112: 2017-08-31 | AC112: 2017-08-31 | AD112: 39160 | AE112: 0 | AF112: 2017-08-31 | AG112: 2017-08-31 | AH112: 39160 | AI112: 0 | AJ112: 2017-08-31 | AK112: 2017-08-31 | AL112: 39160 | AM112: 0 | AN112: 2016-11-01 | AO112: 2016-11-30 | AP112: 0 | AQ112: 1 | AR112: 0 | AS112: =IF('DA 2.2'!B156=2,0,IF(AR112=1,I112-J112,0)) -> 0 | AU112: 4.633512 | AV112: 46.335123
B113: 2016-10-16 | C113: 39160 | D113: 10 | E113: 31 | F113: 1263.225806 | G113: 0.22008 | H113: 0.1834 | I113: 278.0107355 | J113: 231.6756129 | K113: 46.33512258 | L113: 2016-07-01 | M113: 2016-09-30 | N113: 38130 | O113: 0 | P113: 2016-10-01 | Q113: 2017-08-31 | R113: 39160 | S113: 39160 | T113: 2017-08-31 | U113: 2017-08-31 | V113: 39160 | W113: 0 | X113: 2017-08-31 | Y113: 2017-08-31 | Z113: 39160 | AA113: 0 | AB113: 2017-08-31 | AC113: 2017-08-31 | AD113: 39160 | AE113: 0 | AF113: 2017-08-31 | AG113: 2017-08-31 | AH113: 39160 | AI113: 0 | AJ113: 2017-08-31 | AK113: 2017-08-31 | AL113: 39160 | AM113: 0 | AN113: 2016-11-01 | AO113: 2016-11-30 | AP113: 0 | AQ113: 1 | AR113: 0 | AS113: =IF('DA 2.2'!B157=2,0,IF(AR113=1,I113-J113,0)) -> 0 | AU113: 4.633512 | AV113: 46.335123
B114: 2016-10-17 | C114: 39160 | D114: 10 | E114: 31 | F114: 1263.225806 | G114: 0.22008 | H114: 0.1834 | I114: 278.0107355 | J114: 231.6756129 | K114: 46.33512258 | L114: 2016-07-01 | M114: 2016-09-30 | N114: 38130 | O114: 0 | P114: 2016-10-01 | Q114: 2017-08-31 | R114: 39160 | S114: 39160 | T114: 2017-08-31 | U114: 2017-08-31 | V114: 39160 | W114: 0 | X114: 2017-08-31 | Y114: 2017-08-31 | Z114: 39160 | AA114: 0 | AB114: 2017-08-31 | AC114: 2017-08-31 | AD114: 39160 | AE114: 0 | AF114: 2017-08-31 | AG114: 2017-08-31 | AH114: 39160 | AI114: 0 | AJ114: 2017-08-31 | AK114: 2017-08-31 | AL114: 39160 | AM114: 0 | AN114: 2016-11-01 | AO114: 2016-11-30 | AP114: 0 | AQ114: 1 | AR114: 0 | AS114: =IF('DA 2.2'!B158=2,0,IF(AR114=1,I114-J114,0)) -> 0 | AU114: 4.633512 | AV114: 46.335123
B115: 2016-10-18 | C115: 39160 | D115: 10 | E115: 31 | F115: 1263.225806 | G115: 0.22008 | H115: 0.1834 | I115: 278.0107355 | J115: 231.6756129 | K115: 46.33512258 | L115: 2016-07-01 | M115: 2016-09-30 | N115: 38130 | O115: 0 | P115: 2016-10-01 | Q115: 2017-08-31 | R115: 39160 | S115: 39160 | T115: 2017-08-31 | U115: 2017-08-31 | V115: 39160 | W115: 0 | X115: 2017-08-31 | Y115: 2017-08-31 | Z115: 39160 | AA115: 0 | AB115: 2017-08-31 | AC115: 2017-08-31 | AD115: 39160 | AE115: 0 | AF115: 2017-08-31 | AG115: 2017-08-31 | AH115: 39160 | AI115: 0 | AJ115: 2017-08-31 | AK115: 2017-08-31 | AL115: 39160 | AM115: 0 | AN115: 2016-11-01 | AO115: 2016-11-30 | AP115: 0 | AQ115: 1 | AR115: 0 | AS115: =IF('DA 2.2'!B159=2,0,IF(AR115=1,I115-J115,0)) -> 0 | AU115: 4.633512 | AV115: 46.335123
B116: 2016-10-19 | C116: 39160 | D116: 10 | E116: 31 | F116: 1263.225806 | G116: 0.22008 | H116: 0.1834 | I116: 278.0107355 | J116: 231.6756129 | K116: 46.33512258 | L116: 2016-07-01 | M116: 2016-09-30 | N116: 38130 | O116: 0 | P116: 2016-10-01 | Q116: 2017-08-31 | R116: 39160 | S116: 39160 | T116: 2017-08-31 | U116: 2017-08-31 | V116: 39160 | W116: 0 | X116: 2017-08-31 | Y116: 2017-08-31 | Z116: 39160 | AA116: 0 | AB116: 2017-08-31 | AC116: 2017-08-31 | AD116: 39160 | AE116: 0 | AF116: 2017-08-31 | AG116: 2017-08-31 | AH116: 39160 | AI116: 0 | AJ116: 2017-08-31 | AK116: 2017-08-31 | AL116: 39160 | AM116: 0 | AN116: 2016-11-01 | AO116: 2016-11-30 | AP116: 0 | AQ116: 1 | AR116: 0 | AS116: =IF('DA 2.2'!B160=2,0,IF(AR116=1,I116-J116,0)) -> 0 | AU116: 4.633512 | AV116: 46.335123
B117: 2016-10-20 | C117: 39160 | D117: 10 | E117: 31 | F117: 1263.225806 | G117: 0.22008 | H117: 0.1834 | I117: 278.0107355 | J117: 231.6756129 | K117: 46.33512258 | L117: 2016-07-01 | M117: 2016-09-30 | N117: 38130 | O117: 0 | P117: 2016-10-01 | Q117: 2017-08-31 | R117: 39160 | S117: 39160 | T117: 2017-08-31 | U117: 2017-08-31 | V117: 39160 | W117: 0 | X117: 2017-08-31 | Y117: 2017-08-31 | Z117: 39160 | AA117: 0 | AB117: 2017-08-31 | AC117: 2017-08-31 | AD117: 39160 | AE117: 0 | AF117: 2017-08-31 | AG117: 2017-08-31 | AH117: 39160 | AI117: 0 | AJ117: 2017-08-31 | AK117: 2017-08-31 | AL117: 39160 | AM117: 0 | AN117: 2016-11-01 | AO117: 2016-11-30 | AP117: 0 | AQ117: 1 | AR117: 0 | AS117: =IF('DA 2.2'!B161=2,0,IF(AR117=1,I117-J117,0)) -> 0 | AU117: 4.633512 | AV117: 46.335123
B118: 2016-10-21 | C118: 39160 | D118: 10 | E118: 31 | F118: 1263.225806 | G118: 0.22008 | H118: 0.1834 | I118: 278.0107355 | J118: 231.6756129 | K118: 46.33512258 | L118: 2016-07-01 | M118: 2016-09-30 | N118: 38130 | O118: 0 | P118: 2016-10-01 | Q118: 2017-08-31 | R118: 39160 | S118: 39160 | T118: 2017-08-31 | U118: 2017-08-31 | V118: 39160 | W118: 0 | X118: 2017-08-31 | Y118: 2017-08-31 | Z118: 39160 | AA118: 0 | AB118: 2017-08-31 | AC118: 2017-08-31 | AD118: 39160 | AE118: 0 | AF118: 2017-08-31 | AG118: 2017-08-31 | AH118: 39160 | AI118: 0 | AJ118: 2017-08-31 | AK118: 2017-08-31 | AL118: 39160 | AM118: 0 | AN118: 2016-11-01 | AO118: 2016-11-30 | AP118: 0 | AQ118: 1 | AR118: 0 | AS118: =IF('DA 2.2'!B162=2,0,IF(AR118=1,I118-J118,0)) -> 0 | AU118: 4.633512 | AV118: 46.335123
B119: 2016-10-22 | C119: 39160 | D119: 10 | E119: 31 | F119: 1263.225806 | G119: 0.22008 | H119: 0.1834 | I119: 278.0107355 | J119: 231.6756129 | K119: 46.33512258 | L119: 2016-07-01 | M119: 2016-09-30 | N119: 38130 | O119: 0 | P119: 2016-10-01 | Q119: 2017-08-31 | R119: 39160 | S119: 39160 | T119: 2017-08-31 | U119: 2017-08-31 | V119: 39160 | W119: 0 | X119: 2017-08-31 | Y119: 2017-08-31 | Z119: 39160 | AA119: 0 | AB119: 2017-08-31 | AC119: 2017-08-31 | AD119: 39160 | AE119: 0 | AF119: 2017-08-31 | AG119: 2017-08-31 | AH119: 39160 | AI119: 0 | AJ119: 2017-08-31 | AK119: 2017-08-31 | AL119: 39160 | AM119: 0 | AN119: 2016-11-01 | AO119: 2016-11-30 | AP119: 0 | AQ119: 1 | AR119: 0 | AS119: =IF('DA 2.2'!B163=2,0,IF(AR119=1,I119-J119,0)) -> 0 | AU119: 4.633512 | AV119: 46.335123
B120: 2016-10-23 | C120: 39160 | D120: 10 | E120: 31 | F120: 1263.225806 | G120: =G119 -> 0.22008 | H120: 0.1834 | I120: 278.0107355 | J120: 231.6756129 | K120: 46.33512258 | L120: =L119 -> 2016-07-01 | M120: 2016-09-30 | N120: 38130 | O120: 0 | P120: =P119 -> 2016-10-01 | Q120: 2017-08-31 | R120: 39160 | S120: 39160 | T120: =T119 -> 2017-08-31 | U120: 2017-08-31 | V120: 39160 | W120: 0 | X120: =X119 -> 2017-08-31 | Y120: 2017-08-31 | Z120: 39160 | AA120: 0 | AB120: 2017-08-31 | AC120: 2017-08-31 | AD120: 39160 | AE120: 0 | AF120: 2017-08-31 | AG120: 2017-08-31 | AH120: 39160 | AI120: 0 | AJ120: 2017-08-31 | AK120: 2017-08-31 | AL120: 39160 | AM120: 0 | AN120: =AN119 -> 2016-11-01 | AO120: 2016-11-30 | AP120: 0 | AQ120: 1 | AR120: 0 | AS120: =IF('DA 2.2'!B164=2,0,IF(AR120=1,I120-J120,0)) -> 0 | AU120: 4.633512 | AV120: 46.335123
B121: 2016-10-24 | C121: 39160 | D121: 10 | E121: 31 | F121: 1263.225806 | G121: 0.22008 | H121: 0.1834 | I121: 278.0107355 | J121: 231.6756129 | K121: 46.33512258 | L121: 2016-07-01 | M121: 2016-09-30 | N121: 38130 | O121: 0 | P121: 2016-10-01 | Q121: 2017-08-31 | R121: 39160 | S121: 39160 | T121: 2017-08-31 | U121: 2017-08-31 | V121: 39160 | W121: 0 | X121: 2017-08-31 | Y121: 2017-08-31 | Z121: 39160 | AA121: 0 | AB121: 2017-08-31 | AC121: 2017-08-31 | AD121: 39160 | AE121: 0 | AF121: 2017-08-31 | AG121: 2017-08-31 | AH121: 39160 | AI121: 0 | AJ121: 2017-08-31 | AK121: 2017-08-31 | AL121: 39160 | AM121: 0 | AN121: 2016-11-01 | AO121: 2016-11-30 | AP121: 0 | AQ121: 1 | AR121: 0 | AS121: =IF('DA 2.2'!B165=2,0,IF(AR121=1,I121-J121,0)) -> 0 | AU121: 4.633512 | AV121: 46.335123
B122: 2016-10-25 | C122: 39160 | D122: 10 | E122: 31 | F122: 1263.225806 | G122: 0.22008 | H122: 0.1834 | I122: 278.0107355 | J122: 231.6756129 | K122: 46.33512258 | L122: 2016-07-01 | M122: 2016-09-30 | N122: 38130 | O122: 0 | P122: 2016-10-01 | Q122: 2017-08-31 | R122: 39160 | S122: 39160 | T122: 2017-08-31 | U122: 2017-08-31 | V122: 39160 | W122: 0 | X122: 2017-08-31 | Y122: 2017-08-31 | Z122: 39160 | AA122: 0 | AB122: 2017-08-31 | AC122: 2017-08-31 | AD122: 39160 | AE122: 0 | AF122: 2017-08-31 | AG122: 2017-08-31 | AH122: 39160 | AI122: 0 | AJ122: 2017-08-31 | AK122: 2017-08-31 | AL122: 39160 | AM122: 0 | AN122: 2016-11-01 | AO122: 2016-11-30 | AP122: 0 | AQ122: 1 | AR122: 0 | AS122: =IF('DA 2.2'!B166=2,0,IF(AR122=1,I122-J122,0)) -> 0 | AU122: 4.633512 | AV122: 46.335123
B123: 2016-10-26 | C123: 39160 | D123: 10 | E123: 31 | F123: 1263.225806 | G123: 0.22008 | H123: 0.1834 | I123: 278.0107355 | J123: 231.6756129 | K123: 46.33512258 | L123: 2016-07-01 | M123: 2016-09-30 | N123: 38130 | O123: 0 | P123: 2016-10-01 | Q123: 2017-08-31 | R123: 39160 | S123: 39160 | T123: 2017-08-31 | U123: 2017-08-31 | V123: 39160 | W123: 0 | X123: 2017-08-31 | Y123: 2017-08-31 | Z123: 39160 | AA123: 0 | AB123: 2017-08-31 | AC123: 2017-08-31 | AD123: 39160 | AE123: 0 | AF123: 2017-08-31 | AG123: 2017-08-31 | AH123: 39160 | AI123: 0 | AJ123: 2017-08-31 | AK123: 2017-08-31 | AL123: 39160 | AM123: 0 | AN123: 2016-11-01 | AO123: 2016-11-30 | AP123: 0 | AQ123: 1 | AR123: 0 | AS123: =IF('DA 2.2'!B167=2,0,IF(AR123=1,I123-J123,0)) -> 0 | AU123: 4.633512 | AV123: 46.335123
B124: 2016-10-27 | C124: 39160 | D124: 10 | E124: 31 | F124: 1263.225806 | G124: 0.22008 | H124: 0.1834 | I124: 278.0107355 | J124: 231.6756129 | K124: 46.33512258 | L124: 2016-07-01 | M124: 2016-09-30 | N124: 38130 | O124: 0 | P124: 2016-10-01 | Q124: 2017-08-31 | R124: 39160 | S124: 39160 | T124: 2017-08-31 | U124: 2017-08-31 | V124: 39160 | W124: 0 | X124: 2017-08-31 | Y124: 2017-08-31 | Z124: 39160 | AA124: 0 | AB124: 2017-08-31 | AC124: 2017-08-31 | AD124: 39160 | AE124: 0 | AF124: 2017-08-31 | AG124: 2017-08-31 | AH124: 39160 | AI124: 0 | AJ124: 2017-08-31 | AK124: 2017-08-31 | AL124: 39160 | AM124: 0 | AN124: 2016-11-01 | AO124: 2016-11-30 | AP124: 0 | AQ124: 1 | AR124: 0 | AS124: =IF('DA 2.2'!B168=2,0,IF(AR124=1,I124-J124,0)) -> 0 | AU124: 4.633512 | AV124: 46.335123
B125: 2016-10-28 | C125: 39160 | D125: 10 | E125: 31 | F125: 1263.225806 | G125: 0.22008 | H125: 0.1834 | I125: 278.0107355 | J125: 231.6756129 | K125: 46.33512258 | L125: 2016-07-01 | M125: 2016-09-30 | N125: 38130 | O125: 0 | P125: 2016-10-01 | Q125: 2017-08-31 | R125: 39160 | S125: 39160 | T125: 2017-08-31 | U125: 2017-08-31 | V125: 39160 | W125: 0 | X125: 2017-08-31 | Y125: 2017-08-31 | Z125: 39160 | AA125: 0 | AB125: 2017-08-31 | AC125: 2017-08-31 | AD125: 39160 | AE125: 0 | AF125: 2017-08-31 | AG125: 2017-08-31 | AH125: 39160 | AI125: 0 | AJ125: 2017-08-31 | AK125: 2017-08-31 | AL125: 39160 | AM125: 0 | AN125: 2016-11-01 | AO125: 2016-11-30 | AP125: 0 | AQ125: 1 | AR125: 0 | AS125: =IF('DA 2.2'!B169=2,0,IF(AR125=1,I125-J125,0)) -> 0 | AU125: 4.633512 | AV125: 46.335123
B126: 2016-10-29 | C126: 39160 | D126: 10 | E126: 31 | F126: 1263.225806 | G126: 0.22008 | H126: 0.1834 | I126: 278.0107355 | J126: 231.6756129 | K126: 46.33512258 | L126: 2016-07-01 | M126: 2016-09-30 | N126: 38130 | O126: 0 | P126: 2016-10-01 | Q126: 2017-08-31 | R126: 39160 | S126: 39160 | T126: 2017-08-31 | U126: 2017-08-31 | V126: 39160 | W126: 0 | X126: 2017-08-31 | Y126: 2017-08-31 | Z126: 39160 | AA126: 0 | AB126: 2017-08-31 | AC126: 2017-08-31 | AD126: 39160 | AE126: 0 | AF126: 2017-08-31 | AG126: 2017-08-31 | AH126: 39160 | AI126: 0 | AJ126: 2017-08-31 | AK126: 2017-08-31 | AL126: 39160 | AM126: 0 | AN126: 2016-11-01 | AO126: 2016-11-30 | AP126: 0 | AQ126: 1 | AR126: 0 | AS126: =IF('DA 2.2'!B170=2,0,IF(AR126=1,I126-J126,0)) -> 0 | AU126: 4.633512 | AV126: 46.335123
B127: 2016-10-30 | C127: 39160 | D127: 10 | E127: 31 | F127: 1263.225806 | G127: 0.22008 | H127: 0.1834 | I127: 278.0107355 | J127: 231.6756129 | K127: 46.33512258 | L127: 2016-07-01 | M127: 2016-09-30 | N127: 38130 | O127: 0 | P127: 2016-10-01 | Q127: 2017-08-31 | R127: 39160 | S127: 39160 | T127: 2017-08-31 | U127: 2017-08-31 | V127: 39160 | W127: 0 | X127: 2017-08-31 | Y127: 2017-08-31 | Z127: 39160 | AA127: 0 | AB127: 2017-08-31 | AC127: 2017-08-31 | AD127: 39160 | AE127: 0 | AF127: 2017-08-31 | AG127: 2017-08-31 | AH127: 39160 | AI127: 0 | AJ127: 2017-08-31 | AK127: 2017-08-31 | AL127: 39160 | AM127: 0 | AN127: 2016-11-01 | AO127: 2016-11-30 | AP127: 0 | AQ127: 1 | AR127: 0 | AS127: =IF('DA 2.2'!B171=2,0,IF(AR127=1,I127-J127,0)) -> 0 | AU127: 4.633512 | AV127: 46.335123
B128: 2016-10-31 | C128: 39160 | D128: 10 | E128: 31 | F128: 1263.225806 | G128: 0.22008 | H128: 0.1834 | I128: 278.0107355 | J128: 231.6756129 | K128: 46.33512258 | L128: 2016-07-01 | M128: 2016-09-30 | N128: 38130 | O128: 0 | P128: 2016-10-01 | Q128: 2017-08-31 | R128: 39160 | S128: 39160 | T128: 2017-08-31 | U128: 2017-08-31 | V128: 39160 | W128: 0 | X128: 2017-08-31 | Y128: 2017-08-31 | Z128: 39160 | AA128: 0 | AB128: 2017-08-31 | AC128: 2017-08-31 | AD128: 39160 | AE128: 0 | AF128: 2017-08-31 | AG128: 2017-08-31 | AH128: 39160 | AI128: 0 | AJ128: 2017-08-31 | AK128: 2017-08-31 | AL128: 39160 | AM128: 0 | AN128: 2016-11-01 | AO128: 2016-11-30 | AP128: 0 | AQ128: 1 | AR128: 0 | AS128: =IF('DA 2.2'!B172=2,0,IF(AR128=1,I128-J128,0)) -> 0 | AU128: 4.633512 | AV128: 46.335123
B129: 2016-11-01 | C129: 39160 | D129: 11 | E129: 30 | F129: 1305.333333 | G129: 0.22008 | H129: 0.1834 | I129: 287.27776 | J129: 239.3981333 | K129: 47.87962667 | L129: 2016-07-01 | M129: 2016-09-30 | N129: 38130 | O129: 0 | P129: 2016-10-01 | Q129: 2017-08-31 | R129: 39160 | S129: 39160 | T129: 2017-08-31 | U129: 2017-08-31 | V129: 39160 | W129: 0 | X129: 2017-08-31 | Y129: 2017-08-31 | Z129: 39160 | AA129: 0 | AB129: 2017-08-31 | AC129: 2017-08-31 | AD129: 39160 | AE129: 0 | AF129: 2017-08-31 | AG129: 2017-08-31 | AH129: 39160 | AI129: 0 | AJ129: 2017-08-31 | AK129: 2017-08-31 | AL129: 39160 | AM129: 0 | AN129: 2016-11-01 | AO129: 2016-11-30 | AP129: 1 | AQ129: 1 | AR129: 1 | AS129: =IF('DA 2.2'!B173=2,0,IF(AR129=1,I129-J129,0)) -> 0 | AU129: 4.787963 | AV129: 47.879627
B130: 2016-11-02 | C130: 39160 | D130: 11 | E130: 30 | F130: 1305.333333 | G130: 0.22008 | H130: 0.1834 | I130: 287.27776 | J130: 239.3981333 | K130: 47.87962667 | L130: 2016-07-01 | M130: 2016-09-30 | N130: 38130 | O130: 0 | P130: 2016-10-01 | Q130: 2017-08-31 | R130: 39160 | S130: 39160 | T130: 2017-08-31 | U130: 2017-08-31 | V130: 39160 | W130: 0 | X130: 2017-08-31 | Y130: 2017-08-31 | Z130: 39160 | AA130: 0 | AB130: 2017-08-31 | AC130: 2017-08-31 | AD130: 39160 | AE130: 0 | AF130: 2017-08-31 | AG130: 2017-08-31 | AH130: 39160 | AI130: 0 | AJ130: 2017-08-31 | AK130: 2017-08-31 | AL130: 39160 | AM130: 0 | AN130: 2016-11-01 | AO130: 2016-11-30 | AP130: 1 | AQ130: 1 | AR130: 1 | AS130: =IF('DA 2.2'!B174=2,0,IF(AR130=1,I130-J130,0)) -> 0 | AU130: 4.787963 | AV130: 47.879627
B131: 2016-11-03 | C131: 39160 | D131: 11 | E131: 30 | F131: 1305.333333 | G131: 0.22008 | H131: 0.1834 | I131: 287.27776 | J131: 239.3981333 | K131: 47.87962667 | L131: 2016-07-01 | M131: 2016-09-30 | N131: 38130 | O131: 0 | P131: 2016-10-01 | Q131: 2017-08-31 | R131: 39160 | S131: 39160 | T131: 2017-08-31 | U131: 2017-08-31 | V131: 39160 | W131: 0 | X131: 2017-08-31 | Y131: 2017-08-31 | Z131: 39160 | AA131: 0 | AB131: 2017-08-31 | AC131: 2017-08-31 | AD131: 39160 | AE131: 0 | AF131: 2017-08-31 | AG131: 2017-08-31 | AH131: 39160 | AI131: 0 | AJ131: 2017-08-31 | AK131: 2017-08-31 | AL131: 39160 | AM131: 0 | AN131: 2016-11-01 | AO131: 2016-11-30 | AP131: 1 | AQ131: 1 | AR131: 1 | AS131: =IF('DA 2.2'!B175=2,0,IF(AR131=1,I131-J131,0)) -> 0 | AU131: 4.787963 | AV131: 47.879627
B132: 2016-11-04 | C132: 39160 | D132: 11 | E132: 30 | F132: 1305.333333 | G132: 0.22008 | H132: 0.1834 | I132: 287.27776 | J132: 239.3981333 | K132: 47.87962667 | L132: 2016-07-01 | M132: 2016-09-30 | N132: 38130 | O132: 0 | P132: 2016-10-01 | Q132: 2017-08-31 | R132: 39160 | S132: 39160 | T132: 2017-08-31 | U132: 2017-08-31 | V132: 39160 | W132: 0 | X132: 2017-08-31 | Y132: 2017-08-31 | Z132: 39160 | AA132: 0 | AB132: 2017-08-31 | AC132: 2017-08-31 | AD132: 39160 | AE132: 0 | AF132: 2017-08-31 | AG132: 2017-08-31 | AH132: 39160 | AI132: 0 | AJ132: 2017-08-31 | AK132: 2017-08-31 | AL132: 39160 | AM132: 0 | AN132: 2016-11-01 | AO132: 2016-11-30 | AP132: 1 | AQ132: 1 | AR132: 1 | AS132: =IF('DA 2.2'!B176=2,0,IF(AR132=1,I132-J132,0)) -> 0 | AU132: 4.787963 | AV132: 47.879627
B133: 2016-11-05 | C133: 39160 | D133: 11 | E133: 30 | F133: 1305.333333 | G133: 0.22008 | H133: 0.1834 | I133: 287.27776 | J133: 239.3981333 | K133: 47.87962667 | L133: 2016-07-01 | M133: 2016-09-30 | N133: 38130 | O133: 0 | P133: 2016-10-01 | Q133: 2017-08-31 | R133: 39160 | S133: 39160 | T133: 2017-08-31 | U133: 2017-08-31 | V133: 39160 | W133: 0 | X133: 2017-08-31 | Y133: 2017-08-31 | Z133: 39160 | AA133: 0 | AB133: 2017-08-31 | AC133: 2017-08-31 | AD133: 39160 | AE133: 0 | AF133: 2017-08-31 | AG133: 2017-08-31 | AH133: 39160 | AI133: 0 | AJ133: 2017-08-31 | AK133: 2017-08-31 | AL133: 39160 | AM133: 0 | AN133: 2016-11-01 | AO133: 2016-11-30 | AP133: 1 | AQ133: 1 | AR133: 1 | AS133: =IF('DA 2.2'!B177=2,0,IF(AR133=1,I133-J133,0)) -> 0 | AU133: 4.787963 | AV133: 47.879627
B134: 2016-11-06 | C134: 39160 | D134: 11 | E134: 30 | F134: =C134/E134 -> 1305.333333 | G134: 0.22008 | H134: 0.1834 | I134: =F134*G134 -> 287.27776 | J134: =F134*H134 -> 239.3981333 | K134: 47.87962667 | L134: 2016-07-01 | M134: 2016-09-30 | N134: 38130 | O134: 0 | P134: 2016-10-01 | Q134: 2017-08-31 | R134: 39160 | S134: 39160 | T134: 2017-08-31 | U134: 2017-08-31 | V134: 39160 | W134: 0 | X134: 2017-08-31 | Y134: 2017-08-31 | Z134: 39160 | AA134: 0 | AB134: 2017-08-31 | AC134: 2017-08-31 | AD134: 39160 | AE134: 0 | AF134: 2017-08-31 | AG134: 2017-08-31 | AH134: 39160 | AI134: 0 | AJ134: 2017-08-31 | AK134: 2017-08-31 | AL134: 39160 | AM134: 0 | AN134: 2016-11-01 | AO134: 2016-11-30 | AP134: =IF(B134>=AN134,1,0) -> 1 | AQ134: =IF(B134<=AO134,1,0) -> 1 | AR134: 1 | AS134: =IF('DA 2.2'!B178=2,0,IF(AR134=1,I134-J134,0)) -> 0 | AU134: 4.787963 | AV134: 47.879627
B135: 2016-11-07 | C135: =O135+S135+W135+AA135+AE135+AI135+AM135 -> 39160 | D135: =MONTH(B135) -> 11 | E135: =IF(D135=1,31,IF(D135=2,29,IF(D135=3,31,IF(D135=5,31,IF(D135=7,31,IF(D135=8,31,IF(D135=10,31,IF(D135=12,31,30)))))))) -> 30 | F135: 1305.333333 | G135: 0.22008 | H135: 0.1834 | I135: 287.27776 | J135: 239.3981333 | K135: =I135-J135 -> 47.87962667 | L135: 2016-07-01 | M135: 2016-09-30 | N135: 38130 | O135: =IF(M135>=B135,N135,0) -> 0 | P135: 2016-10-01 | Q135: 2017-08-31 | R135: 39160 | S135: =IF(O135>0,0,IF(Q135>=B135,R135,0)) -> 39160 | T135: 2017-08-31 | U135: 2017-08-31 | V135: 39160 | W135: =IF(T135>U135,0,IF(O135>0,0,IF(S135>0,0,IF(U135>=B135,V135,0)))) -> 0 | X135: 2017-08-31 | Y135: 2017-08-31 | Z135: 39160 | AA135: =IF(X135>=Y135,0,IF(O135>0,0,IF(S135>0,0,IF(W135>0,0,IF(Y135>=B135,Z135,0))))) -> 0 | AB135: 2017-08-31 | AC135: 2017-08-31 | AD135: 39160 | AE135: =IF(O135>0,0,IF(AB135>=AC135,0,IF(S135>0,0,IF(W135>0,0,IF(AA135>0,0,IF(AC135>=B135,AD135,0)))))) -> 0 | AF135: 2017-08-31 | AG135: 2017-08-31 | AH135: 39160 | AI135: =IF(O135>0,0,IF(S135>0,0,IF(AF135>=AG135,0,IF(W135>0,0,IF(AA135>0,0,IF(AE135>0,0,IF(AG135>=B135,AH135,0))))))) -> 0 | AJ135: 2017-08-31 | AK135: 2017-08-31 | AL135: 39160 | AM135: 0 | AN135: 2016-11-01 | AO135: 2016-11-30 | AP135: 1 | AQ135: 1 | AR135: =IF(SUM(AP135:AQ135)=2,1,0) -> 1 | AS135: =IF('DA 2.2'!B179=2,0,IF(AR135=1,I135-J135,0)) -> 0 | AU135: =ROUND(K135*10%,6) -> 4.787963 | AV135: =ROUND(K135,6) -> 47.879627
B136: 2016-11-08 | C136: 39160 | D136: 11 | E136: 30 | F136: 1305.333333 | G136: =G135 -> 0.22008 | H136: 0.1834 | I136: 287.27776 | J136: 239.3981333 | K136: 47.87962667 | L136: =L135 -> 2016-07-01 | M136: 2016-09-30 | N136: 38130 | O136: 0 | P136: =P135 -> 2016-10-01 | Q136: 2017-08-31 | R136: 39160 | S136: 39160 | T136: =T135 -> 2017-08-31 | U136: 2017-08-31 | V136: 39160 | W136: 0 | X136: =X135 -> 2017-08-31 | Y136: 2017-08-31 | Z136: 39160 | AA136: 0 | AB136: =AB135 -> 2017-08-31 | AC136: 2017-08-31 | AD136: 39160 | AE136: 0 | AF136: =AF135 -> 2017-08-31 | AG136: =AG135 -> 2017-08-31 | AH136: =AH135 -> 39160 | AI136: 0 | AJ136: =AJ135 -> 2017-08-31 | AK136: =AK135 -> 2017-08-31 | AL136: =AL135 -> 39160 | AM136: =IF(O136>0,0,IF(S136>0,0,IF(AJ136>=AK136,0,IF(W136>0,0,IF(AA136>0,0,IF(AE136>0,0,IF(AI136>0,0,IF(AK136>=B136,AL136,0)))))))) -> 0 | AN136: =AN135 -> 2016-11-01 | AO136: 2016-11-30 | AP136: 1 | AQ136: 1 | AR136: 1 | AS136: =IF('DA 2.2'!B180=2,0,IF(AR136=1,I136-J136,0)) -> 0 | AU136: 4.787963 | AV136: 47.879627
B137: 2016-11-09 | C137: 39160 | D137: 11 | E137: 30 | F137: 1305.333333 | G137: 0.22008 | H137: 0.1834 | I137: 287.27776 | J137: 239.3981333 | K137: 47.87962667 | L137: 2016-07-01 | M137: 2016-09-30 | N137: 38130 | O137: 0 | P137: 2016-10-01 | Q137: 2017-08-31 | R137: 39160 | S137: 39160 | T137: 2017-08-31 | U137: 2017-08-31 | V137: 39160 | W137: 0 | X137: 2017-08-31 | Y137: 2017-08-31 | Z137: 39160 | AA137: 0 | AB137: 2017-08-31 | AC137: 2017-08-31 | AD137: 39160 | AE137: 0 | AF137: 2017-08-31 | AG137: 2017-08-31 | AH137: 39160 | AI137: 0 | AJ137: 2017-08-31 | AK137: 2017-08-31 | AL137: 39160 | AM137: 0 | AN137: 2016-11-01 | AO137: 2016-11-30 | AP137: 1 | AQ137: 1 | AR137: 1 | AS137: =IF('DA 2.2'!B181=2,0,IF(AR137=1,I137-J137,0)) -> 0 | AU137: 4.787963 | AV137: 47.879627
B138: 2016-11-10 | C138: 39160 | D138: 11 | E138: 30 | F138: 1305.333333 | G138: 0.22008 | H138: 0.1834 | I138: 287.27776 | J138: 239.3981333 | K138: 47.87962667 | L138: 2016-07-01 | M138: 2016-09-30 | N138: 38130 | O138: 0 | P138: 2016-10-01 | Q138: 2017-08-31 | R138: 39160 | S138: 39160 | T138: 2017-08-31 | U138: 2017-08-31 | V138: 39160 | W138: 0 | X138: 2017-08-31 | Y138: 2017-08-31 | Z138: 39160 | AA138: 0 | AB138: 2017-08-31 | AC138: 2017-08-31 | AD138: 39160 | AE138: 0 | AF138: 2017-08-31 | AG138: 2017-08-31 | AH138: 39160 | AI138: 0 | AJ138: 2017-08-31 | AK138: 2017-08-31 | AL138: 39160 | AM138: 0 | AN138: 2016-11-01 | AO138: 2016-11-30 | AP138: 1 | AQ138: 1 | AR138: 1 | AS138: =IF('DA 2.2'!B182=2,0,IF(AR138=1,I138-J138,0)) -> 0 | AU138: 4.787963 | AV138: 47.879627
B139: 2016-11-11 | C139: 39160 | D139: 11 | E139: 30 | F139: 1305.333333 | G139: 0.22008 | H139: 0.1834 | I139: 287.27776 | J139: 239.3981333 | K139: 47.87962667 | L139: 2016-07-01 | M139: 2016-09-30 | N139: 38130 | O139: 0 | P139: 2016-10-01 | Q139: 2017-08-31 | R139: 39160 | S139: 39160 | T139: 2017-08-31 | U139: 2017-08-31 | V139: 39160 | W139: 0 | X139: 2017-08-31 | Y139: 2017-08-31 | Z139: 39160 | AA139: 0 | AB139: 2017-08-31 | AC139: 2017-08-31 | AD139: 39160 | AE139: 0 | AF139: 2017-08-31 | AG139: 2017-08-31 | AH139: 39160 | AI139: 0 | AJ139: 2017-08-31 | AK139: 2017-08-31 | AL139: 39160 | AM139: 0 | AN139: 2016-11-01 | AO139: 2016-11-30 | AP139: 1 | AQ139: 1 | AR139: 1 | AS139: =IF('DA 2.2'!B183=2,0,IF(AR139=1,I139-J139,0)) -> 0 | AU139: 4.787963 | AV139: 47.879627
B140: 2016-11-12 | C140: 39160 | D140: 11 | E140: 30 | F140: 1305.333333 | G140: 0.22008 | H140: 0.1834 | I140: 287.27776 | J140: 239.3981333 | K140: 47.87962667 | L140: 2016-07-01 | M140: 2016-09-30 | N140: 38130 | O140: 0 | P140: 2016-10-01 | Q140: 2017-08-31 | R140: 39160 | S140: 39160 | T140: 2017-08-31 | U140: 2017-08-31 | V140: 39160 | W140: 0 | X140: 2017-08-31 | Y140: 2017-08-31 | Z140: 39160 | AA140: 0 | AB140: 2017-08-31 | AC140: 2017-08-31 | AD140: 39160 | AE140: 0 | AF140: 2017-08-31 | AG140: 2017-08-31 | AH140: 39160 | AI140: 0 | AJ140: 2017-08-31 | AK140: 2017-08-31 | AL140: 39160 | AM140: 0 | AN140: 2016-11-01 | AO140: 2016-11-30 | AP140: 1 | AQ140: 1 | AR140: 1 | AS140: =IF('DA 2.2'!B184=2,0,IF(AR140=1,I140-J140,0)) -> 0 | AU140: 4.787963 | AV140: 47.879627
B141: 2016-11-13 | C141: 39160 | D141: 11 | E141: 30 | F141: 1305.333333 | G141: 0.22008 | H141: 0.1834 | I141: 287.27776 | J141: 239.3981333 | K141: 47.87962667 | L141: 2016-07-01 | M141: 2016-09-30 | N141: 38130 | O141: 0 | P141: 2016-10-01 | Q141: 2017-08-31 | R141: 39160 | S141: 39160 | T141: 2017-08-31 | U141: 2017-08-31 | V141: 39160 | W141: 0 | X141: 2017-08-31 | Y141: 2017-08-31 | Z141: 39160 | AA141: 0 | AB141: 2017-08-31 | AC141: 2017-08-31 | AD141: 39160 | AE141: 0 | AF141: 2017-08-31 | AG141: 2017-08-31 | AH141: 39160 | AI141: 0 | AJ141: 2017-08-31 | AK141: 2017-08-31 | AL141: 39160 | AM141: 0 | AN141: 2016-11-01 | AO141: 2016-11-30 | AP141: 1 | AQ141: 1 | AR141: 1 | AS141: =IF('DA 2.2'!B185=2,0,IF(AR141=1,I141-J141,0)) -> 0 | AU141: 4.787963 | AV141: 47.879627
B142: 2016-11-14 | C142: 39160 | D142: 11 | E142: 30 | F142: 1305.333333 | G142: 0.22008 | H142: 0.1834 | I142: 287.27776 | J142: 239.3981333 | K142: 47.87962667 | L142: 2016-07-01 | M142: 2016-09-30 | N142: 38130 | O142: 0 | P142: 2016-10-01 | Q142: 2017-08-31 | R142: 39160 | S142: 39160 | T142: 2017-08-31 | U142: 2017-08-31 | V142: 39160 | W142: 0 | X142: 2017-08-31 | Y142: 2017-08-31 | Z142: 39160 | AA142: 0 | AB142: 2017-08-31 | AC142: 2017-08-31 | AD142: 39160 | AE142: 0 | AF142: 2017-08-31 | AG142: 2017-08-31 | AH142: 39160 | AI142: 0 | AJ142: 2017-08-31 | AK142: 2017-08-31 | AL142: 39160 | AM142: 0 | AN142: 2016-11-01 | AO142: 2016-11-30 | AP142: 1 | AQ142: 1 | AR142: 1 | AS142: =IF('DA 2.2'!B186=2,0,IF(AR142=1,I142-J142,0)) -> 0 | AU142: 4.787963 | AV142: 47.879627
B143: 2016-11-15 | C143: 39160 | D143: 11 | E143: 30 | F143: 1305.333333 | G143: 0.22008 | H143: 0.1834 | I143: 287.27776 | J143: 239.3981333 | K143: 47.87962667 | L143: 2016-07-01 | M143: 2016-09-30 | N143: 38130 | O143: 0 | P143: 2016-10-01 | Q143: 2017-08-31 | R143: 39160 | S143: 39160 | T143: 2017-08-31 | U143: 2017-08-31 | V143: 39160 | W143: 0 | X143: 2017-08-31 | Y143: 2017-08-31 | Z143: 39160 | AA143: 0 | AB143: 2017-08-31 | AC143: 2017-08-31 | AD143: 39160 | AE143: 0 | AF143: 2017-08-31 | AG143: 2017-08-31 | AH143: 39160 | AI143: 0 | AJ143: 2017-08-31 | AK143: 2017-08-31 | AL143: 39160 | AM143: 0 | AN143: 2016-11-01 | AO143: 2016-11-30 | AP143: 1 | AQ143: 1 | AR143: 1 | AS143: =IF('DA 2.2'!B187=2,0,IF(AR143=1,I143-J143,0)) -> 0 | AU143: 4.787963 | AV143: 47.879627
B144: 2016-11-16 | C144: 39160 | D144: 11 | E144: 30 | F144: 1305.333333 | G144: 0.22008 | H144: 0.1834 | I144: 287.27776 | J144: 239.3981333 | K144: 47.87962667 | L144: 2016-07-01 | M144: 2016-09-30 | N144: 38130 | O144: 0 | P144: 2016-10-01 | Q144: 2017-08-31 | R144: 39160 | S144: 39160 | T144: 2017-08-31 | U144: 2017-08-31 | V144: 39160 | W144: 0 | X144: 2017-08-31 | Y144: 2017-08-31 | Z144: 39160 | AA144: 0 | AB144: 2017-08-31 | AC144: 2017-08-31 | AD144: 39160 | AE144: 0 | AF144: 2017-08-31 | AG144: 2017-08-31 | AH144: 39160 | AI144: 0 | AJ144: 2017-08-31 | AK144: 2017-08-31 | AL144: 39160 | AM144: 0 | AN144: 2016-11-01 | AO144: 2016-11-30 | AP144: 1 | AQ144: 1 | AR144: 1 | AS144: =IF('DA 2.2'!B188=2,0,IF(AR144=1,I144-J144,0)) -> 0 | AU144: 4.787963 | AV144: 47.879627
B145: 2016-11-17 | C145: 39160 | D145: 11 | E145: 30 | F145: 1305.333333 | G145: 0.22008 | H145: 0.1834 | I145: 287.27776 | J145: 239.3981333 | K145: 47.87962667 | L145: 2016-07-01 | M145: 2016-09-30 | N145: 38130 | O145: 0 | P145: 2016-10-01 | Q145: 2017-08-31 | R145: 39160 | S145: 39160 | T145: 2017-08-31 | U145: 2017-08-31 | V145: 39160 | W145: 0 | X145: 2017-08-31 | Y145: 2017-08-31 | Z145: 39160 | AA145: 0 | AB145: 2017-08-31 | AC145: 2017-08-31 | AD145: 39160 | AE145: 0 | AF145: 2017-08-31 | AG145: 2017-08-31 | AH145: 39160 | AI145: 0 | AJ145: 2017-08-31 | AK145: 2017-08-31 | AL145: 39160 | AM145: 0 | AN145: 2016-11-01 | AO145: 2016-11-30 | AP145: 1 | AQ145: 1 | AR145: 1 | AS145: =IF('DA 2.2'!B189=2,0,IF(AR145=1,I145-J145,0)) -> 0 | AU145: 4.787963 | AV145: 47.879627
B146: 2016-11-18 | C146: 39160 | D146: 11 | E146: 30 | F146: 1305.333333 | G146: 0.22008 | H146: 0.1834 | I146: 287.27776 | J146: 239.3981333 | K146: 47.87962667 | L146: 2016-07-01 | M146: 2016-09-30 | N146: 38130 | O146: 0 | P146: 2016-10-01 | Q146: 2017-08-31 | R146: 39160 | S146: 39160 | T146: 2017-08-31 | U146: 2017-08-31 | V146: 39160 | W146: 0 | X146: 2017-08-31 | Y146: 2017-08-31 | Z146: 39160 | AA146: 0 | AB146: 2017-08-31 | AC146: 2017-08-31 | AD146: 39160 | AE146: 0 | AF146: 2017-08-31 | AG146: 2017-08-31 | AH146: 39160 | AI146: 0 | AJ146: 2017-08-31 | AK146: 2017-08-31 | AL146: 39160 | AM146: 0 | AN146: 2016-11-01 | AO146: 2016-11-30 | AP146: 1 | AQ146: 1 | AR146: 1 | AS146: =IF('DA 2.2'!B190=2,0,IF(AR146=1,I146-J146,0)) -> 0 | AU146: 4.787963 | AV146: 47.879627
B147: 2016-11-19 | C147: 39160 | D147: 11 | E147: 30 | F147: 1305.333333 | G147: 0.22008 | H147: 0.1834 | I147: 287.27776 | J147: 239.3981333 | K147: 47.87962667 | L147: 2016-07-01 | M147: 2016-09-30 | N147: 38130 | O147: 0 | P147: 2016-10-01 | Q147: 2017-08-31 | R147: 39160 | S147: 39160 | T147: 2017-08-31 | U147: 2017-08-31 | V147: 39160 | W147: 0 | X147: 2017-08-31 | Y147: 2017-08-31 | Z147: 39160 | AA147: 0 | AB147: 2017-08-31 | AC147: 2017-08-31 | AD147: 39160 | AE147: 0 | AF147: 2017-08-31 | AG147: 2017-08-31 | AH147: 39160 | AI147: 0 | AJ147: 2017-08-31 | AK147: 2017-08-31 | AL147: 39160 | AM147: 0 | AN147: 2016-11-01 | AO147: 2016-11-30 | AP147: 1 | AQ147: 1 | AR147: 1 | AS147: =IF('DA 2.2'!B191=2,0,IF(AR147=1,I147-J147,0)) -> 0 | AU147: 4.787963 | AV147: 47.879627
B148: 2016-11-20 | C148: 39160 | D148: 11 | E148: 30 | F148: 1305.333333 | G148: 0.22008 | H148: 0.1834 | I148: 287.27776 | J148: 239.3981333 | K148: 47.87962667 | L148: 2016-07-01 | M148: 2016-09-30 | N148: 38130 | O148: 0 | P148: 2016-10-01 | Q148: 2017-08-31 | R148: 39160 | S148: 39160 | T148: 2017-08-31 | U148: 2017-08-31 | V148: 39160 | W148: 0 | X148: 2017-08-31 | Y148: 2017-08-31 | Z148: 39160 | AA148: 0 | AB148: 2017-08-31 | AC148: 2017-08-31 | AD148: 39160 | AE148: 0 | AF148: 2017-08-31 | AG148: 2017-08-31 | AH148: 39160 | AI148: 0 | AJ148: 2017-08-31 | AK148: 2017-08-31 | AL148: 39160 | AM148: 0 | AN148: 2016-11-01 | AO148: 2016-11-30 | AP148: 1 | AQ148: 1 | AR148: 1 | AS148: =IF('DA 2.2'!B192=2,0,IF(AR148=1,I148-J148,0)) -> 0 | AU148: 4.787963 | AV148: 47.879627
B149: 2016-11-21 | C149: 39160 | D149: 11 | E149: 30 | F149: 1305.333333 | G149: 0.22008 | H149: 0.1834 | I149: 287.27776 | J149: 239.3981333 | K149: 47.87962667 | L149: 2016-07-01 | M149: 2016-09-30 | N149: 38130 | O149: 0 | P149: 2016-10-01 | Q149: 2017-08-31 | R149: 39160 | S149: 39160 | T149: 2017-08-31 | U149: 2017-08-31 | V149: 39160 | W149: 0 | X149: 2017-08-31 | Y149: 2017-08-31 | Z149: 39160 | AA149: 0 | AB149: 2017-08-31 | AC149: 2017-08-31 | AD149: 39160 | AE149: 0 | AF149: 2017-08-31 | AG149: 2017-08-31 | AH149: 39160 | AI149: 0 | AJ149: 2017-08-31 | AK149: 2017-08-31 | AL149: 39160 | AM149: 0 | AN149: 2016-11-01 | AO149: 2016-11-30 | AP149: 1 | AQ149: 1 | AR149: 1 | AS149: =IF('DA 2.2'!B193=2,0,IF(AR149=1,I149-J149,0)) -> 0 | AU149: 4.787963 | AV149: 47.879627
B150: 2016-11-22 | C150: 39160 | D150: 11 | E150: 30 | F150: 1305.333333 | G150: 0.22008 | H150: 0.1834 | I150: 287.27776 | J150: 239.3981333 | K150: 47.87962667 | L150: 2016-07-01 | M150: 2016-09-30 | N150: 38130 | O150: 0 | P150: 2016-10-01 | Q150: 2017-08-31 | R150: 39160 | S150: 39160 | T150: 2017-08-31 | U150: 2017-08-31 | V150: 39160 | W150: 0 | X150: 2017-08-31 | Y150: 2017-08-31 | Z150: 39160 | AA150: 0 | AB150: 2017-08-31 | AC150: 2017-08-31 | AD150: 39160 | AE150: 0 | AF150: 2017-08-31 | AG150: 2017-08-31 | AH150: 39160 | AI150: 0 | AJ150: 2017-08-31 | AK150: 2017-08-31 | AL150: 39160 | AM150: 0 | AN150: 2016-11-01 | AO150: 2016-11-30 | AP150: 1 | AQ150: 1 | AR150: 1 | AS150: =IF('DA 2.2'!B194=2,0,IF(AR150=1,I150-J150,0)) -> 0 | AU150: 4.787963 | AV150: 47.879627
B151: 2016-11-23 | C151: 39160 | D151: 11 | E151: 30 | F151: 1305.333333 | G151: 0.22008 | H151: 0.1834 | I151: 287.27776 | J151: 239.3981333 | K151: 47.87962667 | L151: 2016-07-01 | M151: 2016-09-30 | N151: 38130 | O151: 0 | P151: 2016-10-01 | Q151: 2017-08-31 | R151: 39160 | S151: 39160 | T151: 2017-08-31 | U151: 2017-08-31 | V151: 39160 | W151: 0 | X151: 2017-08-31 | Y151: 2017-08-31 | Z151: 39160 | AA151: 0 | AB151: 2017-08-31 | AC151: 2017-08-31 | AD151: 39160 | AE151: 0 | AF151: 2017-08-31 | AG151: 2017-08-31 | AH151: 39160 | AI151: 0 | AJ151: 2017-08-31 | AK151: 2017-08-31 | AL151: 39160 | AM151: 0 | AN151: 2016-11-01 | AO151: 2016-11-30 | AP151: 1 | AQ151: 1 | AR151: 1 | AS151: =IF('DA 2.2'!B195=2,0,IF(AR151=1,I151-J151,0)) -> 0 | AU151: 4.787963 | AV151: 47.879627
B152: 2016-11-24 | C152: 39160 | D152: 11 | E152: 30 | F152: 1305.333333 | G152: =G151 -> 0.22008 | H152: 0.1834 | I152: 287.27776 | J152: 239.3981333 | K152: 47.87962667 | L152: =L151 -> 2016-07-01 | M152: 2016-09-30 | N152: 38130 | O152: 0 | P152: =P151 -> 2016-10-01 | Q152: 2017-08-31 | R152: 39160 | S152: 39160 | T152: =T151 -> 2017-08-31 | U152: 2017-08-31 | V152: 39160 | W152: 0 | X152: =X151 -> 2017-08-31 | Y152: 2017-08-31 | Z152: 39160 | AA152: 0 | AB152: 2017-08-31 | AC152: 2017-08-31 | AD152: 39160 | AE152: 0 | AF152: 2017-08-31 | AG152: 2017-08-31 | AH152: 39160 | AI152: 0 | AJ152: 2017-08-31 | AK152: 2017-08-31 | AL152: 39160 | AM152: 0 | AN152: =AN151 -> 2016-11-01 | AO152: 2016-11-30 | AP152: 1 | AQ152: 1 | AR152: 1 | AS152: =IF('DA 2.2'!B196=2,0,IF(AR152=1,I152-J152,0)) -> 0 | AU152: 4.787963 | AV152: 47.879627
B153: 2016-11-25 | C153: 39160 | D153: 11 | E153: 30 | F153: 1305.333333 | G153: 0.22008 | H153: 0.1834 | I153: 287.27776 | J153: 239.3981333 | K153: 47.87962667 | L153: 2016-07-01 | M153: 2016-09-30 | N153: 38130 | O153: 0 | P153: 2016-10-01 | Q153: 2017-08-31 | R153: 39160 | S153: 39160 | T153: 2017-08-31 | U153: 2017-08-31 | V153: 39160 | W153: 0 | X153: 2017-08-31 | Y153: 2017-08-31 | Z153: 39160 | AA153: 0 | AB153: 2017-08-31 | AC153: 2017-08-31 | AD153: 39160 | AE153: 0 | AF153: 2017-08-31 | AG153: 2017-08-31 | AH153: 39160 | AI153: 0 | AJ153: 2017-08-31 | AK153: 2017-08-31 | AL153: 39160 | AM153: 0 | AN153: 2016-11-01 | AO153: 2016-11-30 | AP153: 1 | AQ153: 1 | AR153: 1 | AS153: =IF('DA 2.2'!B197=2,0,IF(AR153=1,I153-J153,0)) -> 0 | AU153: 4.787963 | AV153: 47.879627
B154: 2016-11-26 | C154: 39160 | D154: 11 | E154: 30 | F154: 1305.333333 | G154: 0.22008 | H154: 0.1834 | I154: 287.27776 | J154: 239.3981333 | K154: 47.87962667 | L154: 2016-07-01 | M154: 2016-09-30 | N154: 38130 | O154: 0 | P154: 2016-10-01 | Q154: 2017-08-31 | R154: 39160 | S154: 39160 | T154: 2017-08-31 | U154: 2017-08-31 | V154: 39160 | W154: 0 | X154: 2017-08-31 | Y154: 2017-08-31 | Z154: 39160 | AA154: 0 | AB154: 2017-08-31 | AC154: 2017-08-31 | AD154: 39160 | AE154: 0 | AF154: 2017-08-31 | AG154: 2017-08-31 | AH154: 39160 | AI154: 0 | AJ154: 2017-08-31 | AK154: 2017-08-31 | AL154: 39160 | AM154: 0 | AN154: 2016-11-01 | AO154: 2016-11-30 | AP154: 1 | AQ154: 1 | AR154: 1 | AS154: =IF('DA 2.2'!B198=2,0,IF(AR154=1,I154-J154,0)) -> 0 | AU154: 4.787963 | AV154: 47.879627
B155: 2016-11-27 | C155: 39160 | D155: 11 | E155: 30 | F155: 1305.333333 | G155: 0.22008 | H155: 0.1834 | I155: 287.27776 | J155: 239.3981333 | K155: 47.87962667 | L155: 2016-07-01 | M155: 2016-09-30 | N155: 38130 | O155: 0 | P155: 2016-10-01 | Q155: 2017-08-31 | R155: 39160 | S155: 39160 | T155: 2017-08-31 | U155: 2017-08-31 | V155: 39160 | W155: 0 | X155: 2017-08-31 | Y155: 2017-08-31 | Z155: 39160 | AA155: 0 | AB155: 2017-08-31 | AC155: 2017-08-31 | AD155: 39160 | AE155: 0 | AF155: 2017-08-31 | AG155: 2017-08-31 | AH155: 39160 | AI155: 0 | AJ155: 2017-08-31 | AK155: 2017-08-31 | AL155: 39160 | AM155: 0 | AN155: 2016-11-01 | AO155: 2016-11-30 | AP155: 1 | AQ155: 1 | AR155: 1 | AS155: =IF('DA 2.2'!B199=2,0,IF(AR155=1,I155-J155,0)) -> 0 | AU155: 4.787963 | AV155: 47.879627
B156: 2016-11-28 | C156: 39160 | D156: 11 | E156: 30 | F156: 1305.333333 | G156: 0.22008 | H156: 0.1834 | I156: =F156*G156 -> 287.27776 | J156: 239.3981333 | K156: 47.87962667 | L156: 2016-07-01 | M156: 2016-09-30 | N156: 38130 | O156: 0 | P156: 2016-10-01 | Q156: 2017-08-31 | R156: 39160 | S156: 39160 | T156: 2017-08-31 | U156: 2017-08-31 | V156: 39160 | W156: 0 | X156: 2017-08-31 | Y156: 2017-08-31 | Z156: 39160 | AA156: 0 | AB156: 2017-08-31 | AC156: 2017-08-31 | AD156: 39160 | AE156: 0 | AF156: 2017-08-31 | AG156: 2017-08-31 | AH156: 39160 | AI156: 0 | AJ156: 2017-08-31 | AK156: 2017-08-31 | AL156: 39160 | AM156: 0 | AN156: 2016-11-01 | AO156: 2016-11-30 | AP156: 1 | AQ156: 1 | AR156: 1 | AS156: =IF('DA 2.2'!B200=2,0,IF(AR156=1,I156-J156,0)) -> 0 | AU156: 4.787963 | AV156: 47.879627
B157: 2016-11-29 | C157: 39160 | D157: 11 | E157: 30 | F157: =C157/E157 -> 1305.333333 | G157: 0.22008 | H157: 0.1834 | I157: 287.27776 | J157: 239.3981333 | K157: 47.87962667 | L157: 2016-07-01 | M157: 2016-09-30 | N157: 38130 | O157: 0 | P157: 2016-10-01 | Q157: 2017-08-31 | R157: 39160 | S157: 39160 | T157: 2017-08-31 | U157: 2017-08-31 | V157: 39160 | W157: 0 | X157: 2017-08-31 | Y157: 2017-08-31 | Z157: 39160 | AA157: 0 | AB157: 2017-08-31 | AC157: 2017-08-31 | AD157: 39160 | AE157: 0 | AF157: 2017-08-31 | AG157: 2017-08-31 | AH157: 39160 | AI157: 0 | AJ157: 2017-08-31 | AK157: 2017-08-31 | AL157: 39160 | AM157: 0 | AN157: 2016-11-01 | AO157: 2016-11-30 | AP157: 1 | AQ157: 1 | AR157: 1 | AS157: =IF('DA 2.2'!B201=2,0,IF(AR157=1,I157-J157,0)) -> 0 | AU157: 4.787963 | AV157: 47.879627
B158: 2016-11-30 | C158: 39160 | D158: 11 | E158: 30 | F158: 1305.333333 | G158: 0.22008 | H158: 0.1834 | I158: 287.27776 | J158: 239.3981333 | K158: 47.87962667 | L158: 2016-07-01 | M158: 2016-09-30 | N158: 38130 | O158: 0 | P158: 2016-10-01 | Q158: 2017-08-31 | R158: 39160 | S158: 39160 | T158: 2017-08-31 | U158: 2017-08-31 | V158: 39160 | W158: 0 | X158: 2017-08-31 | Y158: 2017-08-31 | Z158: 39160 | AA158: 0 | AB158: 2017-08-31 | AC158: 2017-08-31 | AD158: 39160 | AE158: 0 | AF158: 2017-08-31 | AG158: 2017-08-31 | AH158: 39160 | AI158: 0 | AJ158: 2017-08-31 | AK158: 2017-08-31 | AL158: 39160 | AM158: 0 | AN158: 2016-11-01 | AO158: 2016-11-30 | AP158: 1 | AQ158: 1 | AR158: 1 | AS158: =IF('DA 2.2'!B202=2,0,IF(AR158=1,I158-J158,0)) -> 0 | AU158: 4.787963 | AV158: 47.879627
B159: 2016-12-01 | C159: 39160 | D159: 12 | E159: 31 | F159: 1263.225806 | G159: 0.22008 | H159: 0.1834 | I159: 278.0107355 | J159: 231.6756129 | K159: 46.33512258 | L159: 2016-07-01 | M159: 2016-09-30 | N159: 38130 | O159: 0 | P159: 2016-10-01 | Q159: 2017-08-31 | R159: 39160 | S159: 39160 | T159: 2017-08-31 | U159: 2017-08-31 | V159: 39160 | W159: 0 | X159: 2017-08-31 | Y159: 2017-08-31 | Z159: 39160 | AA159: 0 | AB159: 2017-08-31 | AC159: 2017-08-31 | AD159: 39160 | AE159: 0 | AF159: 2017-08-31 | AG159: 2017-08-31 | AH159: 39160 | AI159: 0 | AJ159: 2017-08-31 | AK159: 2017-08-31 | AL159: 39160 | AM159: 0 | AN159: 2016-11-01 | AO159: 2016-11-30 | AP159: 1 | AQ159: 0 | AR159: 0 | AS159: =IF('DA 2.2'!B203=2,0,IF(AR159=1,I159-J159,0)) -> 0 | AU159: 4.633512 | AV159: 46.335123
B160: 2016-12-02 | C160: 39160 | D160: 12 | E160: 31 | F160: 1263.225806 | G160: 0.22008 | H160: 0.1834 | I160: 278.0107355 | J160: 231.6756129 | K160: 46.33512258 | L160: 2016-07-01 | M160: 2016-09-30 | N160: 38130 | O160: 0 | P160: 2016-10-01 | Q160: 2017-08-31 | R160: 39160 | S160: 39160 | T160: 2017-08-31 | U160: 2017-08-31 | V160: 39160 | W160: 0 | X160: 2017-08-31 | Y160: 2017-08-31 | Z160: 39160 | AA160: 0 | AB160: 2017-08-31 | AC160: 2017-08-31 | AD160: 39160 | AE160: 0 | AF160: 2017-08-31 | AG160: 2017-08-31 | AH160: 39160 | AI160: 0 | AJ160: 2017-08-31 | AK160: 2017-08-31 | AL160: 39160 | AM160: 0 | AN160: 2016-11-01 | AO160: 2016-11-30 | AP160: 1 | AQ160: 0 | AR160: 0 | AS160: =IF('DA 2.2'!B204=2,0,IF(AR160=1,I160-J160,0)) -> 0 | AU160: 4.633512 | AV160: 46.335123
B161: 2016-12-03 | C161: 39160 | D161: 12 | E161: 31 | F161: 1263.225806 | G161: 0.22008 | H161: 0.1834 | I161: 278.0107355 | J161: 231.6756129 | K161: 46.33512258 | L161: 2016-07-01 | M161: 2016-09-30 | N161: 38130 | O161: 0 | P161: 2016-10-01 | Q161: 2017-08-31 | R161: 39160 | S161: 39160 | T161: 2017-08-31 | U161: 2017-08-31 | V161: 39160 | W161: 0 | X161: 2017-08-31 | Y161: 2017-08-31 | Z161: 39160 | AA161: 0 | AB161: 2017-08-31 | AC161: 2017-08-31 | AD161: 39160 | AE161: 0 | AF161: 2017-08-31 | AG161: 2017-08-31 | AH161: 39160 | AI161: 0 | AJ161: 2017-08-31 | AK161: 2017-08-31 | AL161: 39160 | AM161: 0 | AN161: 2016-11-01 | AO161: 2016-11-30 | AP161: 1 | AQ161: 0 | AR161: 0 | AS161: =IF('DA 2.2'!B205=2,0,IF(AR161=1,I161-J161,0)) -> 0 | AU161: 4.633512 | AV161: 46.335123
B162: 2016-12-04 | C162: 39160 | D162: 12 | E162: 31 | F162: 1263.225806 | G162: 0.22008 | H162: 0.1834 | I162: 278.0107355 | J162: 231.6756129 | K162: 46.33512258 | L162: 2016-07-01 | M162: 2016-09-30 | N162: 38130 | O162: 0 | P162: 2016-10-01 | Q162: 2017-08-31 | R162: 39160 | S162: 39160 | T162: 2017-08-31 | U162: 2017-08-31 | V162: 39160 | W162: 0 | X162: 2017-08-31 | Y162: 2017-08-31 | Z162: 39160 | AA162: 0 | AB162: 2017-08-31 | AC162: 2017-08-31 | AD162: 39160 | AE162: 0 | AF162: 2017-08-31 | AG162: 2017-08-31 | AH162: 39160 | AI162: 0 | AJ162: 2017-08-31 | AK162: 2017-08-31 | AL162: 39160 | AM162: 0 | AN162: 2016-11-01 | AO162: 2016-11-30 | AP162: 1 | AQ162: 0 | AR162: 0 | AS162: =IF('DA 2.2'!B206=2,0,IF(AR162=1,I162-J162,0)) -> 0 | AU162: 4.633512 | AV162: 46.335123
B163: 2016-12-05 | C163: 39160 | D163: 12 | E163: 31 | F163: 1263.225806 | G163: 0.22008 | H163: 0.1834 | I163: 278.0107355 | J163: 231.6756129 | K163: 46.33512258 | L163: 2016-07-01 | M163: 2016-09-30 | N163: 38130 | O163: 0 | P163: 2016-10-01 | Q163: 2017-08-31 | R163: 39160 | S163: 39160 | T163: 2017-08-31 | U163: 2017-08-31 | V163: 39160 | W163: 0 | X163: 2017-08-31 | Y163: 2017-08-31 | Z163: 39160 | AA163: 0 | AB163: 2017-08-31 | AC163: 2017-08-31 | AD163: 39160 | AE163: 0 | AF163: 2017-08-31 | AG163: 2017-08-31 | AH163: 39160 | AI163: 0 | AJ163: 2017-08-31 | AK163: 2017-08-31 | AL163: 39160 | AM163: 0 | AN163: 2016-11-01 | AO163: 2016-11-30 | AP163: 1 | AQ163: 0 | AR163: 0 | AS163: =IF('DA 2.2'!B207=2,0,IF(AR163=1,I163-J163,0)) -> 0 | AU163: 4.633512 | AV163: 46.335123
B164: 2016-12-06 | C164: 39160 | D164: 12 | E164: 31 | F164: 1263.225806 | G164: 0.22008 | H164: 0.1834 | I164: 278.0107355 | J164: 231.6756129 | K164: 46.33512258 | L164: 2016-07-01 | M164: 2016-09-30 | N164: 38130 | O164: 0 | P164: 2016-10-01 | Q164: 2017-08-31 | R164: 39160 | S164: 39160 | T164: 2017-08-31 | U164: 2017-08-31 | V164: 39160 | W164: 0 | X164: 2017-08-31 | Y164: 2017-08-31 | Z164: 39160 | AA164: 0 | AB164: 2017-08-31 | AC164: 2017-08-31 | AD164: 39160 | AE164: 0 | AF164: 2017-08-31 | AG164: 2017-08-31 | AH164: 39160 | AI164: 0 | AJ164: 2017-08-31 | AK164: 2017-08-31 | AL164: 39160 | AM164: 0 | AN164: 2016-11-01 | AO164: 2016-11-30 | AP164: 1 | AQ164: 0 | AR164: 0 | AS164: =IF('DA 2.2'!B208=2,0,IF(AR164=1,I164-J164,0)) -> 0 | AU164: 4.633512 | AV164: 46.335123
B165: 2016-12-07 | C165: 39160 | D165: 12 | E165: 31 | F165: 1263.225806 | G165: 0.22008 | H165: 0.1834 | I165: 278.0107355 | J165: 231.6756129 | K165: 46.33512258 | L165: 2016-07-01 | M165: 2016-09-30 | N165: 38130 | O165: 0 | P165: 2016-10-01 | Q165: 2017-08-31 | R165: 39160 | S165: 39160 | T165: 2017-08-31 | U165: 2017-08-31 | V165: 39160 | W165: 0 | X165: 2017-08-31 | Y165: 2017-08-31 | Z165: 39160 | AA165: 0 | AB165: 2017-08-31 | AC165: 2017-08-31 | AD165: 39160 | AE165: 0 | AF165: 2017-08-31 | AG165: 2017-08-31 | AH165: 39160 | AI165: 0 | AJ165: 2017-08-31 | AK165: 2017-08-31 | AL165: 39160 | AM165: 0 | AN165: 2016-11-01 | AO165: 2016-11-30 | AP165: 1 | AQ165: 0 | AR165: 0 | AS165: =IF('DA 2.2'!B209=2,0,IF(AR165=1,I165-J165,0)) -> 0 | AU165: 4.633512 | AV165: 46.335123
B166: 2016-12-08 | C166: 39160 | D166: 12 | E166: 31 | F166: 1263.225806 | G166: 0.22008 | H166: 0.1834 | I166: 278.0107355 | J166: 231.6756129 | K166: 46.33512258 | L166: 2016-07-01 | M166: 2016-09-30 | N166: 38130 | O166: 0 | P166: 2016-10-01 | Q166: 2017-08-31 | R166: 39160 | S166: 39160 | T166: 2017-08-31 | U166: 2017-08-31 | V166: 39160 | W166: 0 | X166: 2017-08-31 | Y166: 2017-08-31 | Z166: 39160 | AA166: 0 | AB166: 2017-08-31 | AC166: 2017-08-31 | AD166: 39160 | AE166: 0 | AF166: 2017-08-31 | AG166: 2017-08-31 | AH166: 39160 | AI166: 0 | AJ166: 2017-08-31 | AK166: 2017-08-31 | AL166: 39160 | AM166: 0 | AN166: 2016-11-01 | AO166: 2016-11-30 | AP166: 1 | AQ166: 0 | AR166: 0 | AS166: =IF('DA 2.2'!B210=2,0,IF(AR166=1,I166-J166,0)) -> 0 | AU166: 4.633512 | AV166: 46.335123
B167: 2016-12-09 | C167: 39160 | D167: 12 | E167: 31 | F167: 1263.225806 | G167: 0.22008 | H167: 0.1834 | I167: 278.0107355 | J167: 231.6756129 | K167: 46.33512258 | L167: 2016-07-01 | M167: 2016-09-30 | N167: 38130 | O167: 0 | P167: 2016-10-01 | Q167: 2017-08-31 | R167: 39160 | S167: 39160 | T167: 2017-08-31 | U167: 2017-08-31 | V167: 39160 | W167: 0 | X167: 2017-08-31 | Y167: 2017-08-31 | Z167: 39160 | AA167: 0 | AB167: 2017-08-31 | AC167: 2017-08-31 | AD167: 39160 | AE167: 0 | AF167: 2017-08-31 | AG167: 2017-08-31 | AH167: 39160 | AI167: 0 | AJ167: 2017-08-31 | AK167: 2017-08-31 | AL167: 39160 | AM167: 0 | AN167: 2016-11-01 | AO167: 2016-11-30 | AP167: 1 | AQ167: 0 | AR167: 0 | AS167: =IF('DA 2.2'!B211=2,0,IF(AR167=1,I167-J167,0)) -> 0 | AU167: 4.633512 | AV167: 46.335123
B168: 2016-12-10 | C168: 39160 | D168: 12 | E168: 31 | F168: 1263.225806 | G168: =G167 -> 0.22008 | H168: 0.1834 | I168: 278.0107355 | J168: 231.6756129 | K168: 46.33512258 | L168: =L167 -> 2016-07-01 | M168: 2016-09-30 | N168: 38130 | O168: 0 | P168: =P167 -> 2016-10-01 | Q168: 2017-08-31 | R168: 39160 | S168: 39160 | T168: =T167 -> 2017-08-31 | U168: 2017-08-31 | V168: 39160 | W168: 0 | X168: =X167 -> 2017-08-31 | Y168: 2017-08-31 | Z168: 39160 | AA168: 0 | AB168: 2017-08-31 | AC168: 2017-08-31 | AD168: 39160 | AE168: 0 | AF168: 2017-08-31 | AG168: 2017-08-31 | AH168: 39160 | AI168: 0 | AJ168: 2017-08-31 | AK168: 2017-08-31 | AL168: 39160 | AM168: 0 | AN168: =AN167 -> 2016-11-01 | AO168: 2016-11-30 | AP168: 1 | AQ168: 0 | AR168: 0 | AS168: =IF('DA 2.2'!B212=2,0,IF(AR168=1,I168-J168,0)) -> 0 | AU168: 4.633512 | AV168: 46.335123
B169: 2016-12-11 | C169: 39160 | D169: 12 | E169: 31 | F169: 1263.225806 | G169: 0.22008 | H169: 0.1834 | I169: 278.0107355 | J169: 231.6756129 | K169: 46.33512258 | L169: 2016-07-01 | M169: 2016-09-30 | N169: 38130 | O169: 0 | P169: 2016-10-01 | Q169: 2017-08-31 | R169: 39160 | S169: 39160 | T169: 2017-08-31 | U169: 2017-08-31 | V169: 39160 | W169: 0 | X169: 2017-08-31 | Y169: 2017-08-31 | Z169: 39160 | AA169: 0 | AB169: 2017-08-31 | AC169: 2017-08-31 | AD169: 39160 | AE169: 0 | AF169: 2017-08-31 | AG169: 2017-08-31 | AH169: 39160 | AI169: 0 | AJ169: 2017-08-31 | AK169: 2017-08-31 | AL169: 39160 | AM169: 0 | AN169: 2016-11-01 | AO169: 2016-11-30 | AP169: 1 | AQ169: 0 | AR169: 0 | AS169: =IF('DA 2.2'!B213=2,0,IF(AR169=1,I169-J169,0)) -> 0 | AU169: 4.633512 | AV169: 46.335123
B170: 2016-12-12 | C170: 39160 | D170: 12 | E170: 31 | F170: 1263.225806 | G170: 0.22008 | H170: 0.1834 | I170: 278.0107355 | J170: 231.6756129 | K170: 46.33512258 | L170: 2016-07-01 | M170: 2016-09-30 | N170: 38130 | O170: 0 | P170: 2016-10-01 | Q170: 2017-08-31 | R170: 39160 | S170: 39160 | T170: 2017-08-31 | U170: 2017-08-31 | V170: 39160 | W170: 0 | X170: 2017-08-31 | Y170: 2017-08-31 | Z170: 39160 | AA170: 0 | AB170: 2017-08-31 | AC170: 2017-08-31 | AD170: 39160 | AE170: 0 | AF170: 2017-08-31 | AG170: 2017-08-31 | AH170: 39160 | AI170: 0 | AJ170: 2017-08-31 | AK170: 2017-08-31 | AL170: 39160 | AM170: 0 | AN170: 2016-11-01 | AO170: 2016-11-30 | AP170: 1 | AQ170: 0 | AR170: 0 | AS170: =IF('DA 2.2'!B214=2,0,IF(AR170=1,I170-J170,0)) -> 0 | AU170: 4.633512 | AV170: 46.335123
B171: 2016-12-13 | C171: 39160 | D171: 12 | E171: 31 | F171: 1263.225806 | G171: 0.22008 | H171: 0.1834 | I171: 278.0107355 | J171: 231.6756129 | K171: 46.33512258 | L171: 2016-07-01 | M171: 2016-09-30 | N171: 38130 | O171: 0 | P171: 2016-10-01 | Q171: 2017-08-31 | R171: 39160 | S171: 39160 | T171: 2017-08-31 | U171: 2017-08-31 | V171: 39160 | W171: 0 | X171: 2017-08-31 | Y171: 2017-08-31 | Z171: 39160 | AA171: 0 | AB171: 2017-08-31 | AC171: 2017-08-31 | AD171: 39160 | AE171: 0 | AF171: 2017-08-31 | AG171: 2017-08-31 | AH171: 39160 | AI171: 0 | AJ171: 2017-08-31 | AK171: 2017-08-31 | AL171: 39160 | AM171: 0 | AN171: 2016-11-01 | AO171: 2016-11-30 | AP171: 1 | AQ171: 0 | AR171: 0 | AS171: =IF('DA 2.2'!B215=2,0,IF(AR171=1,I171-J171,0)) -> 0 | AU171: 4.633512 | AV171: 46.335123
B172: 2016-12-14 | C172: 39160 | D172: 12 | E172: 31 | F172: 1263.225806 | G172: 0.22008 | H172: 0.1834 | I172: 278.0107355 | J172: 231.6756129 | K172: 46.33512258 | L172: 2016-07-01 | M172: 2016-09-30 | N172: 38130 | O172: 0 | P172: 2016-10-01 | Q172: 2017-08-31 | R172: 39160 | S172: 39160 | T172: 2017-08-31 | U172: 2017-08-31 | V172: 39160 | W172: 0 | X172: 2017-08-31 | Y172: 2017-08-31 | Z172: 39160 | AA172: 0 | AB172: 2017-08-31 | AC172: 2017-08-31 | AD172: 39160 | AE172: 0 | AF172: 2017-08-31 | AG172: 2017-08-31 | AH172: 39160 | AI172: 0 | AJ172: 2017-08-31 | AK172: 2017-08-31 | AL172: 39160 | AM172: 0 | AN172: 2016-11-01 | AO172: 2016-11-30 | AP172: 1 | AQ172: 0 | AR172: 0 | AS172: =IF('DA 2.2'!B216=2,0,IF(AR172=1,I172-J172,0)) -> 0 | AU172: 4.633512 | AV172: 46.335123
B173: 2016-12-15 | C173: 39160 | D173: 12 | E173: 31 | F173: 1263.225806 | G173: 0.22008 | H173: 0.1834 | I173: 278.0107355 | J173: 231.6756129 | K173: 46.33512258 | L173: 2016-07-01 | M173: 2016-09-30 | N173: 38130 | O173: 0 | P173: 2016-10-01 | Q173: 2017-08-31 | R173: 39160 | S173: 39160 | T173: 2017-08-31 | U173: 2017-08-31 | V173: 39160 | W173: 0 | X173: 2017-08-31 | Y173: 2017-08-31 | Z173: 39160 | AA173: 0 | AB173: 2017-08-31 | AC173: 2017-08-31 | AD173: 39160 | AE173: 0 | AF173: 2017-08-31 | AG173: 2017-08-31 | AH173: 39160 | AI173: 0 | AJ173: 2017-08-31 | AK173: 2017-08-31 | AL173: 39160 | AM173: 0 | AN173: 2016-11-01 | AO173: 2016-11-30 | AP173: 1 | AQ173: 0 | AR173: 0 | AS173: =IF('DA 2.2'!B217=2,0,IF(AR173=1,I173-J173,0)) -> 0 | AU173: 4.633512 | AV173: 46.335123
B174: 2016-12-16 | C174: 39160 | D174: 12 | E174: 31 | F174: 1263.225806 | G174: 0.22008 | H174: 0.1834 | I174: 278.0107355 | J174: 231.6756129 | K174: 46.33512258 | L174: 2016-07-01 | M174: 2016-09-30 | N174: 38130 | O174: 0 | P174: 2016-10-01 | Q174: 2017-08-31 | R174: 39160 | S174: 39160 | T174: 2017-08-31 | U174: 2017-08-31 | V174: 39160 | W174: 0 | X174: 2017-08-31 | Y174: 2017-08-31 | Z174: 39160 | AA174: 0 | AB174: 2017-08-31 | AC174: 2017-08-31 | AD174: 39160 | AE174: 0 | AF174: 2017-08-31 | AG174: 2017-08-31 | AH174: 39160 | AI174: 0 | AJ174: 2017-08-31 | AK174: 2017-08-31 | AL174: 39160 | AM174: 0 | AN174: 2016-11-01 | AO174: 2016-11-30 | AP174: 1 | AQ174: 0 | AR174: 0 | AS174: =IF('DA 2.2'!B218=2,0,IF(AR174=1,I174-J174,0)) -> 0 | AU174: 4.633512 | AV174: 46.335123
B175: 2016-12-17 | C175: 39160 | D175: 12 | E175: 31 | F175: 1263.225806 | G175: 0.22008 | H175: 0.1834 | I175: 278.0107355 | J175: 231.6756129 | K175: 46.33512258 | L175: 2016-07-01 | M175: 2016-09-30 | N175: 38130 | O175: 0 | P175: 2016-10-01 | Q175: 2017-08-31 | R175: 39160 | S175: 39160 | T175: 2017-08-31 | U175: 2017-08-31 | V175: 39160 | W175: 0 | X175: 2017-08-31 | Y175: 2017-08-31 | Z175: 39160 | AA175: 0 | AB175: 2017-08-31 | AC175: 2017-08-31 | AD175: 39160 | AE175: 0 | AF175: 2017-08-31 | AG175: 2017-08-31 | AH175: 39160 | AI175: 0 | AJ175: 2017-08-31 | AK175: 2017-08-31 | AL175: 39160 | AM175: 0 | AN175: 2016-11-01 | AO175: 2016-11-30 | AP175: 1 | AQ175: 0 | AR175: 0 | AS175: =IF('DA 2.2'!B219=2,0,IF(AR175=1,I175-J175,0)) -> 0 | AU175: 4.633512 | AV175: 46.335123
B176: 2016-12-18 | C176: 39160 | D176: 12 | E176: 31 | F176: 1263.225806 | G176: 0.22008 | H176: 0.1834 | I176: 278.0107355 | J176: 231.6756129 | K176: 46.33512258 | L176: 2016-07-01 | M176: 2016-09-30 | N176: 38130 | O176: 0 | P176: 2016-10-01 | Q176: 2017-08-31 | R176: 39160 | S176: 39160 | T176: 2017-08-31 | U176: 2017-08-31 | V176: 39160 | W176: 0 | X176: 2017-08-31 | Y176: 2017-08-31 | Z176: 39160 | AA176: 0 | AB176: 2017-08-31 | AC176: 2017-08-31 | AD176: 39160 | AE176: 0 | AF176: 2017-08-31 | AG176: 2017-08-31 | AH176: 39160 | AI176: 0 | AJ176: 2017-08-31 | AK176: 2017-08-31 | AL176: 39160 | AM176: 0 | AN176: 2016-11-01 | AO176: 2016-11-30 | AP176: 1 | AQ176: 0 | AR176: 0 | AS176: =IF('DA 2.2'!B220=2,0,IF(AR176=1,I176-J176,0)) -> 0 | AU176: 4.633512 | AV176: 46.335123
B177: 2016-12-19 | C177: 39160 | D177: 12 | E177: 31 | F177: 1263.225806 | G177: 0.22008 | H177: 0.1834 | I177: 278.0107355 | J177: 231.6756129 | K177: 46.33512258 | L177: 2016-07-01 | M177: 2016-09-30 | N177: 38130 | O177: 0 | P177: 2016-10-01 | Q177: 2017-08-31 | R177: 39160 | S177: 39160 | T177: 2017-08-31 | U177: 2017-08-31 | V177: 39160 | W177: 0 | X177: 2017-08-31 | Y177: 2017-08-31 | Z177: 39160 | AA177: 0 | AB177: 2017-08-31 | AC177: 2017-08-31 | AD177: 39160 | AE177: 0 | AF177: 2017-08-31 | AG177: 2017-08-31 | AH177: 39160 | AI177: 0 | AJ177: 2017-08-31 | AK177: 2017-08-31 | AL177: 39160 | AM177: 0 | AN177: 2016-11-01 | AO177: 2016-11-30 | AP177: 1 | AQ177: 0 | AR177: 0 | AS177: =IF('DA 2.2'!B221=2,0,IF(AR177=1,I177-J177,0)) -> 0 | AU177: 4.633512 | AV177: 46.335123
B178: 2016-12-20 | C178: 39160 | D178: 12 | E178: 31 | F178: 1263.225806 | G178: 0.22008 | H178: 0.1834 | I178: 278.0107355 | J178: 231.6756129 | K178: 46.33512258 | L178: 2016-07-01 | M178: 2016-09-30 | N178: 38130 | O178: 0 | P178: 2016-10-01 | Q178: 2017-08-31 | R178: 39160 | S178: 39160 | T178: 2017-08-31 | U178: 2017-08-31 | V178: 39160 | W178: 0 | X178: 2017-08-31 | Y178: 2017-08-31 | Z178: 39160 | AA178: 0 | AB178: 2017-08-31 | AC178: 2017-08-31 | AD178: 39160 | AE178: 0 | AF178: 2017-08-31 | AG178: 2017-08-31 | AH178: 39160 | AI178: 0 | AJ178: 2017-08-31 | AK178: 2017-08-31 | AL178: 39160 | AM178: 0 | AN178: 2016-11-01 | AO178: 2016-11-30 | AP178: 1 | AQ178: 0 | AR178: 0 | AS178: =IF('DA 2.2'!B222=2,0,IF(AR178=1,I178-J178,0)) -> 0 | AU178: 4.633512 | AV178: 46.335123
B179: 2016-12-21 | C179: 39160 | D179: 12 | E179: 31 | F179: 1263.225806 | G179: 0.22008 | H179: 0.1834 | I179: 278.0107355 | J179: 231.6756129 | K179: 46.33512258 | L179: 2016-07-01 | M179: 2016-09-30 | N179: 38130 | O179: 0 | P179: 2016-10-01 | Q179: 2017-08-31 | R179: 39160 | S179: 39160 | T179: 2017-08-31 | U179: 2017-08-31 | V179: 39160 | W179: 0 | X179: 2017-08-31 | Y179: 2017-08-31 | Z179: 39160 | AA179: 0 | AB179: 2017-08-31 | AC179: 2017-08-31 | AD179: 39160 | AE179: 0 | AF179: 2017-08-31 | AG179: 2017-08-31 | AH179: 39160 | AI179: 0 | AJ179: 2017-08-31 | AK179: 2017-08-31 | AL179: 39160 | AM179: 0 | AN179: 2016-11-01 | AO179: 2016-11-30 | AP179: 1 | AQ179: 0 | AR179: 0 | AS179: =IF('DA 2.2'!B223=2,0,IF(AR179=1,I179-J179,0)) -> 0 | AU179: 4.633512 | AV179: 46.335123
B180: 2016-12-22 | C180: 39160 | D180: 12 | E180: 31 | F180: 1263.225806 | G180: 0.22008 | H180: 0.1834 | I180: 278.0107355 | J180: 231.6756129 | K180: 46.33512258 | L180: 2016-07-01 | M180: 2016-09-30 | N180: 38130 | O180: 0 | P180: 2016-10-01 | Q180: 2017-08-31 | R180: 39160 | S180: 39160 | T180: 2017-08-31 | U180: 2017-08-31 | V180: 39160 | W180: 0 | X180: 2017-08-31 | Y180: 2017-08-31 | Z180: 39160 | AA180: 0 | AB180: 2017-08-31 | AC180: 2017-08-31 | AD180: 39160 | AE180: 0 | AF180: 2017-08-31 | AG180: 2017-08-31 | AH180: 39160 | AI180: 0 | AJ180: 2017-08-31 | AK180: 2017-08-31 | AL180: 39160 | AM180: 0 | AN180: 2016-11-01 | AO180: 2016-11-30 | AP180: 1 | AQ180: 0 | AR180: 0 | AS180: =IF('DA 2.2'!B224=2,0,IF(AR180=1,I180-J180,0)) -> 0 | AU180: 4.633512 | AV180: 46.335123
B181: 2016-12-23 | C181: 39160 | D181: 12 | E181: 31 | F181: 1263.225806 | G181: 0.22008 | H181: 0.1834 | I181: 278.0107355 | J181: 231.6756129 | K181: 46.33512258 | L181: 2016-07-01 | M181: 2016-09-30 | N181: 38130 | O181: 0 | P181: 2016-10-01 | Q181: 2017-08-31 | R181: 39160 | S181: 39160 | T181: 2017-08-31 | U181: 2017-08-31 | V181: 39160 | W181: 0 | X181: 2017-08-31 | Y181: 2017-08-31 | Z181: 39160 | AA181: 0 | AB181: 2017-08-31 | AC181: 2017-08-31 | AD181: 39160 | AE181: 0 | AF181: 2017-08-31 | AG181: 2017-08-31 | AH181: 39160 | AI181: 0 | AJ181: 2017-08-31 | AK181: 2017-08-31 | AL181: 39160 | AM181: 0 | AN181: 2016-11-01 | AO181: 2016-11-30 | AP181: 1 | AQ181: 0 | AR181: 0 | AS181: =IF('DA 2.2'!B225=2,0,IF(AR181=1,I181-J181,0)) -> 0 | AU181: 4.633512 | AV181: 46.335123
B182: 2016-12-24 | C182: 39160 | D182: 12 | E182: 31 | F182: 1263.225806 | G182: 0.22008 | H182: 0.1834 | I182: 278.0107355 | J182: 231.6756129 | K182: 46.33512258 | L182: 2016-07-01 | M182: 2016-09-30 | N182: 38130 | O182: 0 | P182: 2016-10-01 | Q182: 2017-08-31 | R182: 39160 | S182: 39160 | T182: 2017-08-31 | U182: 2017-08-31 | V182: 39160 | W182: 0 | X182: 2017-08-31 | Y182: 2017-08-31 | Z182: 39160 | AA182: 0 | AB182: 2017-08-31 | AC182: 2017-08-31 | AD182: 39160 | AE182: 0 | AF182: 2017-08-31 | AG182: 2017-08-31 | AH182: 39160 | AI182: 0 | AJ182: 2017-08-31 | AK182: 2017-08-31 | AL182: 39160 | AM182: 0 | AN182: 2016-11-01 | AO182: 2016-11-30 | AP182: 1 | AQ182: 0 | AR182: 0 | AS182: =IF('DA 2.2'!B226=2,0,IF(AR182=1,I182-J182,0)) -> 0 | AU182: 4.633512 | AV182: 46.335123
B183: 2016-12-25 | C183: 39160 | D183: 12 | E183: 31 | F183: 1263.225806 | G183: 0.22008 | H183: 0.1834 | I183: 278.0107355 | J183: 231.6756129 | K183: 46.33512258 | L183: 2016-07-01 | M183: 2016-09-30 | N183: 38130 | O183: 0 | P183: 2016-10-01 | Q183: 2017-08-31 | R183: 39160 | S183: 39160 | T183: 2017-08-31 | U183: 2017-08-31 | V183: 39160 | W183: 0 | X183: 2017-08-31 | Y183: 2017-08-31 | Z183: 39160 | AA183: 0 | AB183: 2017-08-31 | AC183: 2017-08-31 | AD183: 39160 | AE183: 0 | AF183: 2017-08-31 | AG183: 2017-08-31 | AH183: 39160 | AI183: 0 | AJ183: 2017-08-31 | AK183: 2017-08-31 | AL183: 39160 | AM183: 0 | AN183: 2016-11-01 | AO183: 2016-11-30 | AP183: 1 | AQ183: 0 | AR183: 0 | AS183: =IF('DA 2.2'!B227=2,0,IF(AR183=1,I183-J183,0)) -> 0 | AU183: 4.633512 | AV183: 46.335123
B184: 2016-12-26 | C184: 39160 | D184: 12 | E184: 31 | F184: 1263.225806 | G184: =G183 -> 0.22008 | H184: 0.1834 | I184: 278.0107355 | J184: 231.6756129 | K184: 46.33512258 | L184: =L183 -> 2016-07-01 | M184: 2016-09-30 | N184: 38130 | O184: 0 | P184: =P183 -> 2016-10-01 | Q184: 2017-08-31 | R184: 39160 | S184: 39160 | T184: =T183 -> 2017-08-31 | U184: 2017-08-31 | V184: 39160 | W184: 0 | X184: =X183 -> 2017-08-31 | Y184: 2017-08-31 | Z184: 39160 | AA184: 0 | AB184: 2017-08-31 | AC184: 2017-08-31 | AD184: 39160 | AE184: 0 | AF184: 2017-08-31 | AG184: 2017-08-31 | AH184: 39160 | AI184: 0 | AJ184: 2017-08-31 | AK184: 2017-08-31 | AL184: 39160 | AM184: 0 | AN184: =AN183 -> 2016-11-01 | AO184: 2016-11-30 | AP184: 1 | AQ184: 0 | AR184: 0 | AS184: =IF('DA 2.2'!B228=2,0,IF(AR184=1,I184-J184,0)) -> 0 | AU184: 4.633512 | AV184: 46.335123
B185: 2016-12-27 | C185: 39160 | D185: 12 | E185: 31 | F185: 1263.225806 | G185: 0.22008 | H185: 0.1834 | I185: 278.0107355 | J185: 231.6756129 | K185: 46.33512258 | L185: 2016-07-01 | M185: 2016-09-30 | N185: 38130 | O185: 0 | P185: 2016-10-01 | Q185: 2017-08-31 | R185: 39160 | S185: 39160 | T185: 2017-08-31 | U185: 2017-08-31 | V185: 39160 | W185: 0 | X185: 2017-08-31 | Y185: 2017-08-31 | Z185: 39160 | AA185: 0 | AB185: 2017-08-31 | AC185: 2017-08-31 | AD185: 39160 | AE185: 0 | AF185: 2017-08-31 | AG185: 2017-08-31 | AH185: 39160 | AI185: 0 | AJ185: 2017-08-31 | AK185: 2017-08-31 | AL185: 39160 | AM185: 0 | AN185: 2016-11-01 | AO185: 2016-11-30 | AP185: 1 | AQ185: 0 | AR185: 0 | AS185: =IF('DA 2.2'!B229=2,0,IF(AR185=1,I185-J185,0)) -> 0 | AU185: 4.633512 | AV185: 46.335123
B186: 2016-12-28 | C186: 39160 | D186: 12 | E186: 31 | F186: 1263.225806 | G186: 0.22008 | H186: 0.1834 | I186: 278.0107355 | J186: 231.6756129 | K186: 46.33512258 | L186: 2016-07-01 | M186: 2016-09-30 | N186: 38130 | O186: 0 | P186: 2016-10-01 | Q186: 2017-08-31 | R186: 39160 | S186: 39160 | T186: 2017-08-31 | U186: 2017-08-31 | V186: 39160 | W186: 0 | X186: 2017-08-31 | Y186: 2017-08-31 | Z186: 39160 | AA186: 0 | AB186: 2017-08-31 | AC186: 2017-08-31 | AD186: 39160 | AE186: 0 | AF186: 2017-08-31 | AG186: 2017-08-31 | AH186: 39160 | AI186: 0 | AJ186: 2017-08-31 | AK186: 2017-08-31 | AL186: 39160 | AM186: 0 | AN186: 2016-11-01 | AO186: 2016-11-30 | AP186: 1 | AQ186: 0 | AR186: 0 | AS186: =IF('DA 2.2'!B230=2,0,IF(AR186=1,I186-J186,0)) -> 0 | AU186: 4.633512 | AV186: 46.335123
B187: 2016-12-29 | C187: 39160 | D187: 12 | E187: 31 | F187: 1263.225806 | G187: 0.22008 | H187: 0.1834 | I187: 278.0107355 | J187: 231.6756129 | K187: 46.33512258 | L187: 2016-07-01 | M187: 2016-09-30 | N187: 38130 | O187: 0 | P187: 2016-10-01 | Q187: 2017-08-31 | R187: 39160 | S187: 39160 | T187: 2017-08-31 | U187: 2017-08-31 | V187: 39160 | W187: 0 | X187: 2017-08-31 | Y187: 2017-08-31 | Z187: 39160 | AA187: 0 | AB187: 2017-08-31 | AC187: 2017-08-31 | AD187: 39160 | AE187: 0 | AF187: 2017-08-31 | AG187: 2017-08-31 | AH187: 39160 | AI187: 0 | AJ187: 2017-08-31 | AK187: 2017-08-31 | AL187: 39160 | AM187: 0 | AN187: 2016-11-01 | AO187: 2016-11-30 | AP187: 1 | AQ187: 0 | AR187: 0 | AS187: =IF('DA 2.2'!B231=2,0,IF(AR187=1,I187-J187,0)) -> 0 | AU187: 4.633512 | AV187: 46.335123
B188: 2016-12-30 | C188: 39160 | D188: 12 | E188: 31 | F188: 1263.225806 | G188: 0.22008 | H188: 0.1834 | I188: 278.0107355 | J188: 231.6756129 | K188: 46.33512258 | L188: 2016-07-01 | M188: 2016-09-30 | N188: 38130 | O188: 0 | P188: 2016-10-01 | Q188: 2017-08-31 | R188: 39160 | S188: 39160 | T188: 2017-08-31 | U188: 2017-08-31 | V188: 39160 | W188: 0 | X188: 2017-08-31 | Y188: 2017-08-31 | Z188: 39160 | AA188: 0 | AB188: 2017-08-31 | AC188: 2017-08-31 | AD188: 39160 | AE188: 0 | AF188: 2017-08-31 | AG188: 2017-08-31 | AH188: 39160 | AI188: 0 | AJ188: 2017-08-31 | AK188: 2017-08-31 | AL188: 39160 | AM188: 0 | AN188: 2016-11-01 | AO188: 2016-11-30 | AP188: 1 | AQ188: 0 | AR188: 0 | AS188: =IF('DA 2.2'!B232=2,0,IF(AR188=1,I188-J188,0)) -> 0 | AU188: 4.633512 | AV188: 46.335123
B189: 2016-12-31 | C189: 39160 | D189: 12 | E189: 31 | F189: 1263.225806 | G189: 0.22008 | H189: 0.1834 | I189: 278.0107355 | J189: 231.6756129 | K189: 46.33512258 | L189: 2016-07-01 | M189: 2016-09-30 | N189: 38130 | O189: 0 | P189: 2016-10-01 | Q189: 2017-08-31 | R189: 39160 | S189: 39160 | T189: 2017-08-31 | U189: 2017-08-31 | V189: 39160 | W189: 0 | X189: 2017-08-31 | Y189: 2017-08-31 | Z189: 39160 | AA189: 0 | AB189: 2017-08-31 | AC189: 2017-08-31 | AD189: 39160 | AE189: 0 | AF189: 2017-08-31 | AG189: 2017-08-31 | AH189: 39160 | AI189: 0 | AJ189: 2017-08-31 | AK189: 2017-08-31 | AL189: 39160 | AM189: 0 | AN189: 2016-11-01 | AO189: 2016-11-30 | AP189: 1 | AQ189: 0 | AR189: 0 | AS189: =IF('DA 2.2'!B233=2,0,IF(AR189=1,I189-J189,0)) -> 0 | AU189: 4.633512 | AV189: 46.335123
B190: 2017-01-01 | C190: 39160 | D190: 1 | E190: 31 | F190: 1263.225806 | G190: 0.22008 | H190: 0.1834 | I190: 278.0107355 | J190: 231.6756129 | K190: 46.33512258 | L190: 2016-07-01 | M190: 2016-09-30 | N190: 38130 | O190: 0 | P190: 2016-10-01 | Q190: 2017-08-31 | R190: 39160 | S190: 39160 | T190: 2017-08-31 | U190: 2017-08-31 | V190: 39160 | W190: 0 | X190: 2017-08-31 | Y190: 2017-08-31 | Z190: 39160 | AA190: 0 | AB190: 2017-08-31 | AC190: 2017-08-31 | AD190: 39160 | AE190: 0 | AF190: 2017-08-31 | AG190: 2017-08-31 | AH190: 39160 | AI190: 0 | AJ190: 2017-08-31 | AK190: 2017-08-31 | AL190: 39160 | AM190: 0 | AN190: 2016-11-01 | AO190: 2016-11-30 | AP190: 1 | AQ190: 0 | AR190: 0 | AS190: =IF('DA 2.2'!B234=2,0,IF(AR190=1,I190-J190,0)) -> 0 | AU190: 4.633512 | AV190: 46.335123
B191: 2017-01-02 | C191: 39160 | D191: 1 | E191: 31 | F191: 1263.225806 | G191: 0.22008 | H191: 0.1834 | I191: 278.0107355 | J191: 231.6756129 | K191: 46.33512258 | L191: 2016-07-01 | M191: 2016-09-30 | N191: 38130 | O191: 0 | P191: 2016-10-01 | Q191: 2017-08-31 | R191: 39160 | S191: 39160 | T191: 2017-08-31 | U191: 2017-08-31 | V191: 39160 | W191: 0 | X191: 2017-08-31 | Y191: 2017-08-31 | Z191: 39160 | AA191: 0 | AB191: 2017-08-31 | AC191: 2017-08-31 | AD191: 39160 | AE191: 0 | AF191: 2017-08-31 | AG191: 2017-08-31 | AH191: 39160 | AI191: 0 | AJ191: 2017-08-31 | AK191: 2017-08-31 | AL191: 39160 | AM191: 0 | AN191: 2016-11-01 | AO191: 2016-11-30 | AP191: 1 | AQ191: 0 | AR191: 0 | AS191: =IF('DA 2.2'!B235=2,0,IF(AR191=1,I191-J191,0)) -> 0 | AU191: 4.633512 | AV191: 46.335123
B192: 2017-01-03 | C192: 39160 | D192: 1 | E192: 31 | F192: 1263.225806 | G192: 0.22008 | H192: 0.1834 | I192: 278.0107355 | J192: 231.6756129 | K192: 46.33512258 | L192: 2016-07-01 | M192: 2016-09-30 | N192: 38130 | O192: 0 | P192: 2016-10-01 | Q192: 2017-08-31 | R192: 39160 | S192: 39160 | T192: 2017-08-31 | U192: 2017-08-31 | V192: 39160 | W192: 0 | X192: 2017-08-31 | Y192: 2017-08-31 | Z192: 39160 | AA192: 0 | AB192: 2017-08-31 | AC192: 2017-08-31 | AD192: 39160 | AE192: 0 | AF192: 2017-08-31 | AG192: 2017-08-31 | AH192: 39160 | AI192: 0 | AJ192: 2017-08-31 | AK192: 2017-08-31 | AL192: 39160 | AM192: 0 | AN192: 2016-11-01 | AO192: 2016-11-30 | AP192: 1 | AQ192: 0 | AR192: 0 | AS192: =IF('DA 2.2'!B236=2,0,IF(AR192=1,I192-J192,0)) -> 0 | AU192: 4.633512 | AV192: 46.335123
B193: 2017-01-04 | C193: 39160 | D193: 1 | E193: 31 | F193: 1263.225806 | G193: 0.22008 | H193: 0.1834 | I193: 278.0107355 | J193: 231.6756129 | K193: 46.33512258 | L193: 2016-07-01 | M193: 2016-09-30 | N193: 38130 | O193: 0 | P193: 2016-10-01 | Q193: 2017-08-31 | R193: 39160 | S193: 39160 | T193: 2017-08-31 | U193: 2017-08-31 | V193: 39160 | W193: 0 | X193: 2017-08-31 | Y193: 2017-08-31 | Z193: 39160 | AA193: 0 | AB193: 2017-08-31 | AC193: 2017-08-31 | AD193: 39160 | AE193: 0 | AF193: 2017-08-31 | AG193: 2017-08-31 | AH193: 39160 | AI193: 0 | AJ193: 2017-08-31 | AK193: 2017-08-31 | AL193: 39160 | AM193: 0 | AN193: 2016-11-01 | AO193: 2016-11-30 | AP193: 1 | AQ193: 0 | AR193: 0 | AS193: =IF('DA 2.2'!B237=2,0,IF(AR193=1,I193-J193,0)) -> 0 | AU193: 4.633512 | AV193: 46.335123
B194: 2017-01-05 | C194: 39160 | D194: 1 | E194: 31 | F194: 1263.225806 | G194: 0.22008 | H194: 0.1834 | I194: 278.0107355 | J194: 231.6756129 | K194: 46.33512258 | L194: 2016-07-01 | M194: 2016-09-30 | N194: 38130 | O194: 0 | P194: 2016-10-01 | Q194: 2017-08-31 | R194: 39160 | S194: 39160 | T194: 2017-08-31 | U194: 2017-08-31 | V194: 39160 | W194: 0 | X194: 2017-08-31 | Y194: 2017-08-31 | Z194: 39160 | AA194: 0 | AB194: 2017-08-31 | AC194: 2017-08-31 | AD194: 39160 | AE194: 0 | AF194: 2017-08-31 | AG194: 2017-08-31 | AH194: 39160 | AI194: 0 | AJ194: 2017-08-31 | AK194: 2017-08-31 | AL194: 39160 | AM194: 0 | AN194: 2016-11-01 | AO194: 2016-11-30 | AP194: 1 | AQ194: 0 | AR194: 0 | AS194: =IF('DA 2.2'!B238=2,0,IF(AR194=1,I194-J194,0)) -> 0 | AU194: 4.633512 | AV194: 46.335123
B195: 2017-01-06 | C195: 39160 | D195: 1 | E195: 31 | F195: 1263.225806 | G195: 0.22008 | H195: 0.1834 | I195: 278.0107355 | J195: 231.6756129 | K195: 46.33512258 | L195: 2016-07-01 | M195: 2016-09-30 | N195: 38130 | O195: 0 | P195: 2016-10-01 | Q195: 2017-08-31 | R195: 39160 | S195: 39160 | T195: 2017-08-31 | U195: 2017-08-31 | V195: 39160 | W195: 0 | X195: 2017-08-31 | Y195: 2017-08-31 | Z195: 39160 | AA195: 0 | AB195: 2017-08-31 | AC195: 2017-08-31 | AD195: 39160 | AE195: 0 | AF195: 2017-08-31 | AG195: 2017-08-31 | AH195: 39160 | AI195: 0 | AJ195: 2017-08-31 | AK195: 2017-08-31 | AL195: 39160 | AM195: 0 | AN195: 2016-11-01 | AO195: 2016-11-30 | AP195: 1 | AQ195: 0 | AR195: 0 | AS195: =IF('DA 2.2'!B239=2,0,IF(AR195=1,I195-J195,0)) -> 0 | AU195: 4.633512 | AV195: 46.335123
B196: 2017-01-07 | C196: 39160 | D196: 1 | E196: 31 | F196: 1263.225806 | G196: 0.22008 | H196: 0.1834 | I196: 278.0107355 | J196: 231.6756129 | K196: 46.33512258 | L196: 2016-07-01 | M196: 2016-09-30 | N196: 38130 | O196: 0 | P196: 2016-10-01 | Q196: 2017-08-31 | R196: 39160 | S196: 39160 | T196: 2017-08-31 | U196: 2017-08-31 | V196: 39160 | W196: 0 | X196: 2017-08-31 | Y196: 2017-08-31 | Z196: 39160 | AA196: 0 | AB196: 2017-08-31 | AC196: 2017-08-31 | AD196: 39160 | AE196: 0 | AF196: 2017-08-31 | AG196: 2017-08-31 | AH196: 39160 | AI196: 0 | AJ196: 2017-08-31 | AK196: 2017-08-31 | AL196: 39160 | AM196: 0 | AN196: 2016-11-01 | AO196: 2016-11-30 | AP196: 1 | AQ196: 0 | AR196: 0 | AS196: =IF('DA 2.2'!B240=2,0,IF(AR196=1,I196-J196,0)) -> 0 | AU196: 4.633512 | AV196: 46.335123
B197: 2017-01-08 | C197: 39160 | D197: 1 | E197: 31 | F197: 1263.225806 | G197: 0.22008 | H197: 0.1834 | I197: 278.0107355 | J197: 231.6756129 | K197: 46.33512258 | L197: 2016-07-01 | M197: 2016-09-30 | N197: 38130 | O197: 0 | P197: 2016-10-01 | Q197: 2017-08-31 | R197: 39160 | S197: 39160 | T197: 2017-08-31 | U197: 2017-08-31 | V197: 39160 | W197: 0 | X197: 2017-08-31 | Y197: 2017-08-31 | Z197: 39160 | AA197: 0 | AB197: 2017-08-31 | AC197: 2017-08-31 | AD197: 39160 | AE197: 0 | AF197: 2017-08-31 | AG197: 2017-08-31 | AH197: 39160 | AI197: 0 | AJ197: 2017-08-31 | AK197: 2017-08-31 | AL197: 39160 | AM197: 0 | AN197: 2016-11-01 | AO197: 2016-11-30 | AP197: 1 | AQ197: 0 | AR197: 0 | AS197: =IF('DA 2.2'!B241=2,0,IF(AR197=1,I197-J197,0)) -> 0 | AU197: 4.633512 | AV197: 46.335123
B198: 2017-01-09 | C198: 39160 | D198: 1 | E198: 31 | F198: =C198/E198 -> 1263.225806 | G198: 0.22008 | H198: 0.1834 | I198: =F198*G198 -> 278.0107355 | J198: =F198*H198 -> 231.6756129 | K198: 46.33512258 | L198: 2016-07-01 | M198: 2016-09-30 | N198: 38130 | O198: 0 | P198: 2016-10-01 | Q198: 2017-08-31 | R198: 39160 | S198: 39160 | T198: 2017-08-31 | U198: 2017-08-31 | V198: 39160 | W198: 0 | X198: 2017-08-31 | Y198: 2017-08-31 | Z198: 39160 | AA198: 0 | AB198: 2017-08-31 | AC198: 2017-08-31 | AD198: 39160 | AE198: 0 | AF198: 2017-08-31 | AG198: 2017-08-31 | AH198: 39160 | AI198: 0 | AJ198: 2017-08-31 | AK198: 2017-08-31 | AL198: 39160 | AM198: 0 | AN198: 2016-11-01 | AO198: 2016-11-30 | AP198: =IF(B198>=AN198,1,0) -> 1 | AQ198: =IF(B198<=AO198,1,0) -> 0 | AR198: 0 | AS198: =IF('DA 2.2'!B242=2,0,IF(AR198=1,I198-J198,0)) -> 0 | AU198: 4.633512 | AV198: 46.335123
B199: 2017-01-10 | C199: =O199+S199+W199+AA199+AE199+AI199+AM199 -> 39160 | D199: =MONTH(B199) -> 1 | E199: =IF(D199=1,31,IF(D199=2,29,IF(D199=3,31,IF(D199=5,31,IF(D199=7,31,IF(D199=8,31,IF(D199=10,31,IF(D199=12,31,30)))))))) -> 31 | F199: 1263.225806 | G199: 0.22008 | H199: 0.1834 | I199: 278.0107355 | J199: 231.6756129 | K199: =I199-J199 -> 46.33512258 | L199: 2016-07-01 | M199: 2016-09-30 | N199: 38130 | O199: =IF(M199>=B199,N199,0) -> 0 | P199: 2016-10-01 | Q199: 2017-08-31 | R199: 39160 | S199: =IF(O199>0,0,IF(Q199>=B199,R199,0)) -> 39160 | T199: 2017-08-31 | U199: 2017-08-31 | V199: 39160 | W199: =IF(T199>U199,0,IF(O199>0,0,IF(S199>0,0,IF(U199>=B199,V199,0)))) -> 0 | X199: 2017-08-31 | Y199: 2017-08-31 | Z199: 39160 | AA199: =IF(X199>=Y199,0,IF(O199>0,0,IF(S199>0,0,IF(W199>0,0,IF(Y199>=B199,Z199,0))))) -> 0 | AB199: 2017-08-31 | AC199: 2017-08-31 | AD199: 39160 | AE199: =IF(O199>0,0,IF(AB199>=AC199,0,IF(S199>0,0,IF(W199>0,0,IF(AA199>0,0,IF(AC199>=B199,AD199,0)))))) -> 0 | AF199: 2017-08-31 | AG199: 2017-08-31 | AH199: 39160 | AI199: =IF(O199>0,0,IF(S199>0,0,IF(AF199>=AG199,0,IF(W199>0,0,IF(AA199>0,0,IF(AE199>0,0,IF(AG199>=B199,AH199,0))))))) -> 0 | AJ199: 2017-08-31 | AK199: 2017-08-31 | AL199: 39160 | AM199: 0 | AN199: 2016-11-01 | AO199: 2016-11-30 | AP199: 1 | AQ199: 0 | AR199: =IF(SUM(AP199:AQ199)=2,1,0) -> 0 | AS199: =IF('DA 2.2'!B243=2,0,IF(AR199=1,I199-J199,0)) -> 0 | AU199: =ROUND(K199*10%,6) -> 4.633512 | AV199: =ROUND(K199,6) -> 46.335123
B200: 2017-01-11 | C200: 39160 | D200: 1 | E200: 31 | F200: 1263.225806 | G200: =G199 -> 0.22008 | H200: 0.1834 | I200: 278.0107355 | J200: 231.6756129 | K200: 46.33512258 | L200: =L199 -> 2016-07-01 | M200: 2016-09-30 | N200: 38130 | O200: 0 | P200: =P199 -> 2016-10-01 | Q200: 2017-08-31 | R200: 39160 | S200: 39160 | T200: =T199 -> 2017-08-31 | U200: 2017-08-31 | V200: 39160 | W200: 0 | X200: =X199 -> 2017-08-31 | Y200: 2017-08-31 | Z200: 39160 | AA200: 0 | AB200: =AB199 -> 2017-08-31 | AC200: 2017-08-31 | AD200: 39160 | AE200: 0 | AF200: =AF199 -> 2017-08-31 | AG200: =AG199 -> 2017-08-31 | AH200: =AH199 -> 39160 | AI200: 0 | AJ200: =AJ199 -> 2017-08-31 | AK200: =AK199 -> 2017-08-31 | AL200: =AL199 -> 39160 | AM200: =IF(O200>0,0,IF(S200>0,0,IF(AJ200>=AK200,0,IF(W200>0,0,IF(AA200>0,0,IF(AE200>0,0,IF(AI200>0,0,IF(AK200>=B200,AL200,0)))))))) -> 0 | AN200: =AN199 -> 2016-11-01 | AO200: 2016-11-30 | AP200: 1 | AQ200: 0 | AR200: 0 | AS200: =IF('DA 2.2'!B244=2,0,IF(AR200=1,I200-J200,0)) -> 0 | AU200: 4.633512 | AV200: 46.335123
... 386 more rows

Sheet DA 1.1 (hidden)
A1: ='DA 1.2'!C2 -> 2016-01-01 | D1: Start date: | E1: ='DA 1.2'!C2 -> 2016-01-01
A2: ='DA 1.2'!C3 -> 2016-10-01 | D2: End date: | E2: ='DA 1.2'!C8 -> 2017-03-31
A3: ='DA 1.2'!C4 -> 2017-12-01
A4: ='DA 1.2'!C5 -> 2018-12-02 | D4: Sorted list
A5: ='DA 1.2'!C6 -> 2017-01-01
A6: ='DA 1.2'!C7 -> 2017-10-01 | D6: =SMALL(A2:A6,1) -> 2016-10-01
D7: =SMALL(A2:A6,2) -> 2017-01-01
D8: =SMALL(A2:A6,3) -> 2017-10-01
D9: =SMALL(A2:A6,4) -> 2017-12-01
D10: =SMALL(A2:A6,5) -> 2018-12-02

Sheet DA 1.2 (hidden)
C1: DATE FROM | D1: DATE ASCENDING | E1: VLOOKUP | F1: INCREMENTS | G1: B PAY
B2: BASIC PAY AS ON | C2: 2016-01-01 | D2: =C2 -> 2016-01-01 | E2: =J5 -> 36 | G2: =IF(D2=I13,J13,VLOOKUP(J5,K3:L82,2)) -> 38130
B3: INCREMENT DATE | C3: =VLOOKUP(O3,P3:Q15,2) -> 2016-10-01 | D3: ='DA 1.1'!D6 -> 2016-10-01 | E3: =E2+F3 -> 37 | F3: =IF(D3>=Q15,0,IF(D3=D16,0,IF(C5=D3,F20,1))) -> 1 | G3: =IF(D3=I13,J13,VLOOKUP(E3,K3:L82,2)) -> 39160 | J3: 36 | K3: 1 | L3: 14170 | M3: 1 | O3: 10 | P3: 1 | Q3: 2016-01-01 | R3: 2016-01-01 | S3: 1 | V3: aas | W3: DATE | AC3: promotion | AD3: DATE
B4: AAS DATE | C4: =IF(F15=1,VLOOKUP(U4,V4:W765,2),B16) -> 2017-12-01 | D4: ='DA 1.1'!D7 -> 2017-01-01 | E4: =E3+F4 -> 37 | F4: =IF(D4>=Q16,0,IF(D4=D17,0,IF(C5=D4,F20,1))) -> 0 | G4: =IF(D4=I13,J13,VLOOKUP(E4,K3:L82,2)) -> 39160 | J4: =end_date -> 36 | K4: 2 | L4: 14600 | M4: 2 | P4: 2 | Q4: 2016-02-01 | R4: 2016-02-01 | S4: 1 | U4: 402 | V4: 1 | W4: 2016-01-01 | X4: =F15 -> 2 | Z4: =IF(X4=2,"",W4) ->  | AB4: 402 | AC4: 1 | AD4: 2016-01-01 | AE4: =F17 -> 2 | AG4: =IF(AE4=2,"",AD4) -> 
B5: Promotion Increment | C5: =IF(F17=2,B17,VLOOKUP(AB4,AC4:AD765,2)) -> 2018-12-02 | D5: ='DA 1.1'!D8 -> 2017-10-01 | E5: =E4+F5 -> 37 | F5: =IF(D5>=Q17,0,IF(D5=D18,0,IF(C5=D5,F20,1))) -> 0 | G5: =IF(D5=I13,J13,VLOOKUP(E5,K3:L82,2)) -> 39160 | J5: =J4 -> 36 | K5: 3 | L5: 15030 | M5: 3 | P5: 3 | Q5: 2016-03-01 | R5: 2016-03-01 | S5: 1 | V5: 2 | W5: 2016-01-02 | X5: =X4 -> 2 | Z5: =IF(X5=2,"",W5) ->  | AC5: 2 | AD5: 2016-01-02 | AE5: =AE4 -> 2 | AG5: =IF(AE5=2,"",AD5) -> 
B6: BASIC PAY AS ON | C6: 2017-01-01 | D6: ='DA 1.1'!D9 -> 2017-12-01 | E6: =E5+F6 -> 37 | F6: =IF(D6>=Q18,0,IF(D6=D19,0,IF(C6=D6,F20,1))) -> 0 | G6: =IF(D6=I13,J13,VLOOKUP(E6,K3:L82,2)) -> 39160 | J6: 2017-02-01 | K6: 4 | L6: 15460 | M6: 4 | P6: 4 | Q6: 2016-04-01 | R6: 2016-04-01 | S6: 1 | V6: 3 | W6: 2016-01-03 | X6: =X5 -> 2 | AC6: 3 | AD6: 2016-01-03 | AE6: =AE5 -> 2
B7: INCREMENT DATE 2 | C7: =IF(I7=J6,J7,IF(I7>B19,B19,IF(I7="not applicable",C8,I7))) -> 2017-10-01 | D7: ='DA 1.1'!D10 -> 2018-12-02 | E7: =E6+F7 -> 37 | F7: =IF(D7>=Q19,0,IF(D7=D20,0,IF(C7=D7,F20,1))) -> 0 | G7: =IF(D7=I13,J13,VLOOKUP(E7,K3:L82,2)) -> 39160 | I7: =VLOOKUP(DATA!CQ5,DATA!CR5:CS19,2) -> 2017-10-01 | J7: 2016-02-01 | K7: 5 | L7: 15930 | M7: 5 | P7: 5 | Q7: 2016-05-01 | R7: 2016-05-01 | S7: 1 | V7: 4 | W7: 2016-01-04 | X7: 2 | AC7: 4 | AD7: 2016-01-04 | AE7: 2
B8: BILL UPTO | C8: =VLOOKUP(D24,E24:F47,2) -> 2017-03-31 | D8: =DATE(E9,D9,1) -> 2017-03-01 | F8: date | G8: Increments | K8: 6 | L8: 16400 | M8: 6 | P8: 6 | Q8: 2016-06-01 | R8: 2016-06-01 | S8: 1 | V8: 5 | W8: 2016-01-05 | X8: 2 | AC8: 5 | AD8: 2016-01-05 | AE8: 2
D9: =MONTH(C8) -> 3 | E9: =YEAR(D16) -> 2017 | K9: 7 | L9: 16870 | M9: 7 | P9: 7 | Q9: 2016-07-01 | R9: 2016-07-01 | S9: 1 | V9: 6 | W9: 2016-01-06 | X9: 2 | AC9: 6 | AD9: 2016-01-06 | AE9: 2
B10: SURRENDER LEAVE DA DIFFERENCE | C10: =VLOOKUP(D51,E50:F74,2) -> 2016-04-01 | D10: =MONTH(C10) -> 4 | E10: =YEAR(C10) -> 2016 | K10: 8 | L10: 17380 | M10: 8 | P10: 8 | Q10: 2016-08-01 | R10: 2016-08-01 | S10: 1 | V10: 7 | W10: 2016-01-07 | X10: 2 | AC10: 7 | AD10: 2016-01-07 | AE10: 2
B11: DAYS | C11: =IF(H52=2,VLOOKUP(C10,H76:I100,2),DATE(E10,D10,D11)) -> 2017-04-30 | D11: =VLOOKUP(H52,H50:J51,3) -> 30 | K11: 9 | L11: 17890 | M11: 9 | P11: 9 | Q11: 2016-09-01 | R11: 2016-09-01 | S11: 1 | V11: 8 | W11: 2016-01-08 | X11: 2 | AC11: 8 | AD11: 2016-01-08 | AE11: 2
B12: SL | E12: =IF(B50=1,C10,C8) -> 2017-03-31 | K12: 10 | L12: 18400 | M12: 10 | P12: 10 | Q12: 2016-10-01 | R12: 2016-10-01 | S12: 1 | V12: 9 | W12: 2016-01-09 | X12: 2 | AC12: 9 | AD12: 2016-01-09 | AE12: 2
B13: DAY | C13: MONTH | D13: YEAR | I13: 2017-01-01 | J13: =DATA!J5 -> 39160 | K13: 11 | L13: 18950 | M13: 11 | P13: 11 | Q13: 2016-11-01 | R13: 2016-11-01 | S13: 1 | V13: 10 | W13: 2016-01-10 | X13: 2 | AC13: 10 | AD13: 2016-01-10 | AE13: 2
B14: =IF(D11=15,15,VLOOKUP(C14,'DA 1.3'!D6:E767,2)) -> 30 | C14: =MONTH(C10) -> 4 | D14: =YEAR(C10) -> 2016 | F14: =F15 -> 2 | G14: =F14 -> 2 | H14: =G14 -> 2 | I14: 2 | J14: 2 | K14: 12 | L14: 19500 | M14: 12 | P14: 12 | Q14: 2016-12-01 | R14: 2016-12-01 | S14: 1 | V14: 11 | W14: 2016-01-11 | X14: 2 | AC14: 11 | AD14: 2016-01-11 | AE14: 2
C15: =C17 -> 2017-03-01 | E15: aas | F15: 2 | G15: 1 | H15: Yes | K15: 13 | L15: 20050 | M15: 13 | P15: 13 | Q15: =C8 -> 2017-03-31 | R15: Not applicable | S15: 0 | V15: 12 | W15: 2016-01-12 | X15: 2 | AC15: 12 | AD15: 2016-01-12 | AE15: 2
B16: 2017-12-01 | C16: =D8 -> 2017-03-01 | D16: =C6 -> 2017-01-01 | G16: 2 | H16: No | K16: 14 | L16: 20640 | M16: 14 | Q16: =Q15 -> 2017-03-31 | V16: 13 | W16: 2016-01-13 | X16: 2 | AC16: 13 | AD16: 2016-01-13 | AE16: 2
B17: 2018-12-02 | C17: =C16 -> 2017-03-01 | D17: =D16 -> 2017-01-01 | E17: promotion | F17: 2 | G17: 1 | H17: Yes | I17: 4 | K17: 15 | L17: 21230 | M17: 15 | Q17: =Q16 -> 2017-03-31 | V17: 14 | W17: 2016-01-14 | X17: 2 | AC17: 14 | AD17: 2016-01-14 | AE17: 2
B18: 2019-12-03 | C18: =C17 -> 2017-03-01 | D18: 2017-01-01 | F18: =F17 -> 2 | G18: 2 | H18: No | K18: 16 | L18: 21820 | M18: 16 | Q18: 2017-03-31 | V18: 15 | W18: 2016-01-15 | X18: 2 | AC18: 15 | AD18: 2016-01-15 | AE18: 2
B19: 2020-02-04 | C19: 2017-03-01 | D19: 2017-01-01 | F19: =F17 -> 2 | G19: =F19 -> 2 | H19: =G19 -> 2 | I19: 2 | J19: 2 | K19: 17 | L19: 22460 | M19: 17 | Q19: 2017-03-31 | V19: 16 | W19: 2016-01-16 | X19: 2 | AC19: 16 | AD19: 2016-01-16 | AE19: 2
B20: 2021-02-05 | C20: 2017-03-01 | D20: 2017-01-01 | E20: promotion inc | F20: 1 | G20: 1 | H20: =IF(F17=2,"",I20) ->  | I20: 1 Increment | K20: 18 | L20: 23100 | M20: 18 | Q20: 2017-03-31 | V20: 17 | W20: 2016-01-17 | X20: 2 | AC20: 17 | AD20: 2016-01-17 | AE20: 2
C21: 2017-03-01 | D21: 2017-01-01 | G21: 2 | H21: =IF(F18=2,"",I21) ->  | I21: 2 Increments | K21: 19 | L21: 23740 | M21: 19 | V21: 18 | W21: 2016-01-18 | X21: 2 | AC21: 18 | AD21: 2016-01-18 | AE21: 2
C22: 2017-03-01 | K22: 20 | L22: 24440 | M22: 20 | V22: 19 | W22: 2016-01-19 | X22: 2 | AC22: 19 | AD22: 2016-01-19 | AE22: 2
C23: 2017-03-01 | E23: bill upto the month of | F23: 2016-01-31 | G23: 1 | H23: 2016 | I23: 2016-01-01 | K23: 21 | L23: 25140 | M23: 21 | V23: 20 | W23: 2016-01-20 | X23: 2 | AC23: 20 | AD23: 2016-01-20 | AE23: 2
C24: 2017-03-01 | D24: 14 | E24: 1 | F24: 2016-02-28 | G24: =MONTH(F24) -> 2 | H24: =YEAR(F24) -> 2016 | I24: =DATE(H24,G24,1) -> 2016-02-01 | J24: 2016-02-01 | K24: 22 | L24: 25840 | M24: 22 | V24: 21 | W24: 2016-01-21 | X24: 2 | AC24: 21 | AD24: 2016-01-21 | AE24: 2
C25: 2017-03-01 | E25: 2 | F25: 2016-03-31 | G25: =MONTH(F25) -> 3 | H25: =YEAR(F25) -> 2016 | I25: =DATE(H25,G25,1) -> 2016-03-01 | J25: 2016-03-01 | K25: 23 | L25: 26600 | M25: 23 | V25: 22 | W25: 2016-01-22 | X25: 2 | AC25: 22 | AD25: 2016-01-22 | AE25: 2
C26: 2017-03-01 | E26: 3 | F26: 2016-04-30 | G26: 4 | H26: 2016 | I26: =DATE(H26,G26,1) -> 2016-04-01 | J26: 2016-04-01 | K26: 24 | L26: 27360 | M26: 24 | V26: 23 | W26: 2016-01-23 | X26: 2 | AC26: 23 | AD26: 2016-01-23 | AE26: 2
C27: 2017-03-01 | E27: 4 | F27: 2016-05-31 | G27: 5 | H27: 2016 | I27: 2016-05-01 | J27: 2016-05-01 | K27: 25 | L27: 28120 | M27: 25 | V27: 24 | W27: 2016-01-24 | X27: 2 | AC27: 24 | AD27: 2016-01-24 | AE27: 2
C28: 2017-03-01 | E28: 5 | F28: 2016-06-30 | G28: 6 | H28: 2016 | I28: 2016-06-01 | J28: 2016-06-01 | K28: 26 | L28: 28940 | M28: 26 | V28: 25 | W28: 2016-01-25 | X28: 2 | AC28: 25 | AD28: 2016-01-25 | AE28: 2
C29: 2017-03-01 | E29: 6 | F29: 2016-07-31 | G29: 7 | H29: 2016 | I29: 2016-07-01 | J29: 2016-07-01 | K29: 27 | L29: 29760 | M29: 27 | V29: 26 | W29: 2016-01-26 | X29: 2 | AC29: 26 | AD29: 2016-01-26 | AE29: 2
C30: 2017-03-01 | E30: 7 | F30: 2016-08-31 | G30: 8 | H30: 2016 | I30: 2016-08-01 | J30: 2016-08-01 | K30: 28 | L30: 30580 | M30: 28 | V30: 27 | W30: 2016-01-27 | X30: 2 | AC30: 27 | AD30: 2016-01-27 | AE30: 2
C31: 2017-03-01 | E31: 8 | F31: 2016-09-30 | G31: 9 | H31: 2016 | I31: 2016-09-01 | J31: 2016-09-01 | K31: 29 | L31: 31460 | M31: 29 | V31: 28 | W31: 2016-01-28 | X31: 2 | AC31: 28 | AD31: 2016-01-28 | AE31: 2
C32: 2017-03-01 | E32: 9 | F32: 2016-10-31 | G32: 10 | H32: 2016 | I32: 2016-10-01 | J32: 2016-10-01 | K32: 30 | L32: 32340 | M32: 30 | V32: 29 | W32: 2016-01-29 | X32: 2 | AC32: 29 | AD32: 2016-01-29 | AE32: 2
C33: 2017-03-01 | E33: 10 | F33: 2016-11-30 | G33: 11 | H33: 2016 | I33: 2016-11-01 | J33: 2016-11-01 | K33: 31 | L33: 33220 | M33: 31 | V33: 30 | W33: 2016-01-30 | X33: 2 | AC33: 30 | AD33: 2016-01-30 | AE33: 2
C34: 2017-03-01 | E34: 11 | F34: 2016-12-31 | G34: 12 | H34: 2016 | I34: 2016-12-01 | J34: 2016-12-01 | K34: 32 | L34: 34170 | M34: 32 | V34: 31 | W34: 2016-01-31 | X34: 2 | AC34: 31 | AD34: 2016-01-31 | AE34: 2
C35: 2017-03-01 | E35: 12 | F35: 2017-01-31 | G35: 1 | H35: 2017 | I35: 2017-01-01 | J35: 2017-01-01 | K35: 33 | L35: 35120 | M35: 33 | V35: 32 | W35: 2016-02-01 | X35: 2 | AC35: 32 | AD35: 2016-02-01 | AE35: 2
C36: 2017-03-01 | E36: 13 | F36: 2017-02-28 | G36: 2 | H36: 2017 | I36: 2017-02-01 | J36: 2017-02-01 | K36: 34 | L36: 36070 | M36: 34 | V36: 33 | W36: 2016-02-02 | X36: 2 | AC36: 33 | AD36: 2016-02-02 | AE36: 2
C37: 2017-03-01 | E37: 14 | F37: 2017-03-31 | G37: 3 | H37: 2017 | I37: 2017-03-01 | J37: 2017-03-01 | K37: 35 | L37: 37100 | M37: 35 | V37: 34 | W37: 2016-02-03 | X37: 2 | AC37: 34 | AD37: 2016-02-03 | AE37: 2
C38: 2017-03-01 | E38: 15 | F38: 2017-04-30 | G38: 4 | H38: 2017 | I38: 2017-04-01 | J38: 2017-04-01 | K38: 36 | L38: 38130 | M38: 36 | V38: 35 | W38: 2016-02-04 | X38: 2 | AC38: 35 | AD38: 2016-02-04 | AE38: 2
C39: 2017-03-01 | E39: 16 | F39: 2017-05-31 | G39: 5 | H39: 2017 | I39: 2017-05-01 | J39: 2017-05-01 | K39: 37 | L39: 39160 | M39: 37 | V39: 36 | W39: 2016-02-05 | X39: 2 | AC39: 36 | AD39: 2016-02-05 | AE39: 2
E40: 17 | F40: 2017-06-30 | G40: 6 | H40: 2017 | I40: 2017-06-01 | J40: 2017-06-01 | K40: 38 | L40: 40270 | M40: 38 | V40: 37 | W40: 2016-02-06 | X40: 2 | AC40: 37 | AD40: 2016-02-06 | AE40: 2
E41: 18 | F41: 2017-07-31 | G41: 7 | H41: 2017 | I41: 2017-07-01 | J41: 2017-07-01 | K41: 39 | L41: 41380 | M41: 39 | V41: 38 | W41: 2016-02-07 | X41: 2 | AC41: 38 | AD41: 2016-02-07 | AE41: 2
E42: 19 | F42: 2017-08-31 | G42: 8 | H42: 2017 | I42: 2017-08-01 | J42: 2017-08-01 | K42: 40 | L42: 42490 | M42: 40 | V42: 39 | W42: 2016-02-08 | X42: 2 | AC42: 39 | AD42: 2016-02-08 | AE42: 2
E43: 20 | F43: 2017-09-30 | G43: 9 | H43: 2017 | I43: 2017-09-01 | J43: 2017-09-01 | K43: 41 | L43: 43680 | M43: 41 | V43: 40 | W43: 2016-02-09 | X43: 2 | AC43: 40 | AD43: 2016-02-09 | AE43: 2
E44: 21 | F44: 2017-10-31 | G44: 10 | H44: 2017 | I44: 2017-10-01 | J44: 2017-10-01 | K44: 42 | L44: 44870 | M44: 42 | V44: 41 | W44: 2016-02-10 | X44: 2 | AC44: 41 | AD44: 2016-02-10 | AE44: 2
E45: 22 | F45: 2017-11-30 | G45: 11 | H45: 2017 | I45: 2017-11-01 | J45: 2017-11-01 | K45: 43 | L45: 46060 | M45: 43 | V45: 42 | W45: 2016-02-11 | X45: 2 | AC45: 42 | AD45: 2016-02-11 | AE45: 2
E46: 23 | F46: 2017-12-31 | G46: 12 | H46: 2017 | I46: 2017-12-01 | J46: 2017-12-01 | K46: 44 | L46: 47330 | M46: 44 | V46: 43 | W46: 2016-02-12 | X46: 2 | AC46: 43 | AD46: 2016-02-12 | AE46: 2
E47: 24 | F47: 2018-01-31 | G47: 1 | H47: 2018 | I47: 2018-01-01 | J47: Jan- 18 | K47: 45 | L47: 48600 | M47: 45 | V47: 44 | W47: 2016-02-13 | X47: 2 | AC47: 44 | AD47: 2016-02-13 | AE47: 2
K48: 46 | L48: 49870 | M48: 46 | V48: 45 | W48: 2016-02-14 | X48: 2 | AC48: 45 | AD48: 2016-02-14 | AE48: 2
K49: 47 | L49: 51230 | M49: 47 | V49: 46 | W49: 2016-02-15 | X49: 2 | AC49: 46 | AD49: 2016-02-15 | AE49: 2
B50: 2 | C50: Yes | D50: SL | E50: 1 | F50: 2016-01-01 | G50: =IF(B50=1,IF(F50<=C16,I23,""),"") ->  | H50: 1 | I50: =IF(B50=1,"15 days","") ->  | J50: 15 | K50: 48 | L50: 52590 | M50: 48 | V50: 47 | W50: 2016-02-16 | X50: 2 | AC50: 47 | AD50: 2016-02-16 | AE50: 2
B51: =B50 -> 2 | C51: No | D51: 4 | E51: 2 | F51: 2016-02-01 | G51: =IF(B50=2,"",IF(F51<=C17,I24,"")) ->  | H51: 2 | I51: =IF(B51=1,"1 Month","") ->  | J51: 30 | K51: 49 | L51: 53950 | M51: 49 | V51: 48 | W51: 2016-02-17 | X51: 2 | AC51: 48 | AD51: 2016-02-17 | AE51: 2
B52: =B51 -> 2 | E52: 3 | F52: 2016-03-01 | G52: =IF(B51=2,"",IF(F52<=C18,I25,"")) ->  | H52: 2 | K52: 50 | L52: 55410 | M52: 50 | V52: 49 | W52: 2016-02-18 | X52: 2 | AC52: 49 | AD52: 2016-02-18 | AE52: 2
B53: =B52 -> 2 | E53: 4 | F53: 2016-04-01 | K53: 51 | L53: 56870 | M53: 51 | V53: 50 | W53: 2016-02-19 | X53: 2 | AC53: 50 | AD53: 2016-02-19 | AE53: 2
B54: 2 | E54: 5 | F54: 2016-05-01 | K54: 52 | L54: 58330 | M54: 52 | V54: 51 | W54: 2016-02-20 | X54: 2 | AC54: 51 | AD54: 2016-02-20 | AE54: 2
B55: 2 | E55: 6 | F55: 2016-06-01 | K55: 53 | L55: 59890 | M55: 53 | V55: 52 | W55: 2016-02-21 | X55: 2 | AC55: 52 | AD55: 2016-02-21 | AE55: 2
B56: 2 | E56: 7 | F56: 2016-07-01 | K56: 54 | L56: 61450 | M56: 54 | V56: 53 | W56: 2016-02-22 | X56: 2 | AC56: 53 | AD56: 2016-02-22 | AE56: 2
B57: 2 | E57: 8 | F57: 2016-08-01 | K57: 55 | L57: 63010 | M57: 55 | V57: 54 | W57: 2016-02-23 | X57: 2 | AC57: 54 | AD57: 2016-02-23 | AE57: 2
B58: 2 | E58: 9 | F58: 2016-09-01 | K58: 56 | L58: 64670 | M58: 56 | V58: 55 | W58: 2016-02-24 | X58: 2 | AC58: 55 | AD58: 2016-02-24 | AE58: 2
B59: 2 | E59: 10 | F59: 2016-10-01 | K59: 57 | L59: 66330 | M59: 57 | V59: 56 | W59: 2016-02-25 | X59: 2 | AC59: 56 | AD59: 2016-02-25 | AE59: 2
B60: 2 | E60: 11 | F60: 2016-11-01 | K60: 58 | L60: 67990 | M60: 58 | V60: 57 | W60: 2016-02-26 | X60: 2 | AC60: 57 | AD60: 2016-02-26 | AE60: 2
B61: 2 | E61: 12 | F61: 2016-12-01 | K61: 59 | L61: 69750 | M61: 59 | V61: 58 | W61: 2016-02-27 | X61: 2 | AC61: 58 | AD61: 2016-02-27 | AE61: 2
B62: 2 | E62: 13 | F62: 2017-01-01 | K62: 60 | L62: 71510 | M62: 60 | V62: 59 | W62: 2016-02-28 | X62: 2 | AC62: 59 | AD62: 2016-02-28 | AE62: 2
B63: 2 | E63: 14 | F63: 2017-02-01 | K63: 61 | L63: 73270 | M63: 61 | V63: 60 | W63: 2016-02-29 | X63: 2 | AC63: 60 | AD63: 2016-02-29 | AE63: 2
B64: 2 | E64: 15 | F64: 2017-03-01 | K64: 62 | L64: 75150 | M64: 62 | V64: 61 | W64: 2016-03-01 | X64: 2 | AC64: 61 | AD64: 2016-03-01 | AE64: 2
B65: 2 | E65: 16 | F65: 2017-04-01 | G65: =IF(B64=2,"",IF(F65<=C31,I38,"")) ->  | K65: 63 | L65: 77030 | M65: 63 | V65: 62 | W65: 2016-03-02 | X65: 2 | AC65: 62 | AD65: 2016-03-02 | AE65: 2
B66: 2 | E66: 17 | F66: 2017-05-01 | K66: 64 | L66: 78910 | M66: 64 | V66: 63 | W66: 2016-03-03 | X66: 2 | AC66: 63 | AD66: 2016-03-03 | AE66: 2
B67: 2 | E67: 18 | F67: 2017-06-01 | K67: 65 | L67: 80930 | M67: 65 | V67: 64 | W67: 2016-03-04 | X67: 2 | AC67: 64 | AD67: 2016-03-04 | AE67: 2
B68: 2 | E68: 19 | F68: 2017-07-01 | K68: 66 | L68: 82950 | M68: 66 | V68: 65 | W68: 2016-03-05 | X68: 2 | AC68: 65 | AD68: 2016-03-05 | AE68: 2
B69: 2 | E69: 20 | F69: 2017-08-01 | K69: 67 | L69: 84970 | M69: 67 | V69: 66 | W69: 2016-03-06 | X69: 2 | Z69: =IF(X69=2,"",W69) ->  | AC69: 66 | AD69: 2016-03-06 | AE69: 2 | AG69: =IF(AE69=2,"",AD69) -> 
B70: 2 | E70: 21 | F70: 2017-09-01 | K70: 68 | L70: 87130 | M70: 68 | V70: 67 | W70: 2016-03-07 | X70: =X69 -> 2 | AC70: 67 | AD70: 2016-03-07 | AE70: =AE69 -> 2
B71: 2 | E71: 22 | F71: 2017-10-01 | K71: 69 | L71: 89290 | M71: 69 | V71: 68 | W71: 2016-03-08 | X71: 2 | AC71: 68 | AD71: 2016-03-08 | AE71: 2
B72: 2 | E72: 23 | F72: 2017-11-01 | K72: 70 | L72: 91450 | M72: 70 | V72: 69 | W72: 2016-03-09 | X72: 2 | AC72: 69 | AD72: 2016-03-09 | AE72: 2
B73: 2 | E73: 24 | F73: 2017-12-01 | K73: 71 | L73: 93780 | M73: 71 | V73: 70 | W73: 2016-03-10 | X73: 2 | AC73: 70 | AD73: 2016-03-10 | AE73: 2
B74: 2 | E74: 25 | F74: 2018-01-01 | K74: 72 | L74: 96110 | M74: 72 | V74: 71 | W74: 2016-03-11 | X74: 2 | AC74: 71 | AD74: 2016-03-11 | AE74: 2
B75: 2 | K75: 73 | L75: 98440 | M75: 73 | V75: 72 | W75: 2016-03-12 | X75: 2 | AC75: 72 | AD75: 2016-03-12 | AE75: 2
B76: 2 | E76: 1 | G76: 1 | H76: 2015-01-01 | I76: 2016-01-31 | K76: 74 | L76: 100770 | M76: 74 | V76: 73 | W76: 2016-03-13 | X76: 2 | AC76: 73 | AD76: 2016-03-13 | AE76: 2
B77: 2 | E77: 2 | G77: 2 | H77: 2015-02-01 | I77: 2016-02-28 | K77: 75 | L77: 103290 | M77: 75 | V77: 74 | W77: 2016-03-14 | X77: 2 | AC77: 74 | AD77: 2016-03-14 | AE77: 2
B78: 2 | E78: 3 | G78: 3 | H78: 2015-03-01 | I78: 2016-03-31 | K78: 76 | L78: 105810 | M78: 76 | V78: 75 | W78: 2016-03-15 | X78: 2 | AC78: 75 | AD78: 2016-03-15 | AE78: 2
B79: 2 | E79: 4 | G79: 4 | H79: 2015-04-01 | I79: 2016-04-30 | K79: 77 | L79: 108330 | M79: 77 | V79: 76 | W79: 2016-03-16 | X79: 2 | AC79: 76 | AD79: 2016-03-16 | AE79: 2
B80: 2 | E80: 5 | G80: 5 | H80: 2015-05-01 | I80: 2016-05-31 | K80: 78 | L80: 110850 | M80: 78 | V80: 77 | W80: 2016-03-17 | X80: 2 | AC80: 77 | AD80: 2016-03-17 | AE80: 2
B81: 2 | E81: 6 | G81: 6 | H81: 2015-06-01 | I81: 2016-06-30 | K81: 79 | L81: 110850 | M81: 79 | V81: 78 | W81: 2016-03-18 | X81: 2 | AC81: 78 | AD81: 2016-03-18 | AE81: 2
B82: 2 | E82: 7 | G82: 7 | H82: 2015-07-01 | I82: 2016-07-31 | K82: 80 | L82: 110850 | M82: 80 | V82: 79 | W82: 2016-03-19 | X82: 2 | AC82: 79 | AD82: 2016-03-19 | AE82: 2
B83: 2 | E83: 8 | G83: 8 | H83: 2015-08-01 | I83: 2016-08-31 | V83: 80 | W83: 2016-03-20 | X83: 2 | AC83: 80 | AD83: 2016-03-20 | AE83: 2
B84: 2 | E84: 9 | G84: 9 | H84: 2015-09-01 | I84: 2016-09-30 | V84: 81 | W84: 2016-03-21 | X84: 2 | AC84: 81 | AD84: 2016-03-21 | AE84: 2
B85: 2 | E85: 10 | G85: 10 | H85: 2015-10-01 | I85: 2016-10-31 | V85: 82 | W85: 2016-03-22 | X85: 2 | AC85: 82 | AD85: 2016-03-22 | AE85: 2
B86: 2 | E86: 11 | G86: 11 | H86: 2015-11-01 | I86: 2016-11-30 | V86: 83 | W86: 2016-03-23 | X86: 2 | AC86: 83 | AD86: 2016-03-23 | AE86: 2
B87: 2 | E87: 12 | G87: 12 | H87: 2015-12-01 | I87: 2016-12-31 | V87: 84 | W87: 2016-03-24 | X87: 2 | AC87: 84 | AD87: 2016-03-24 | AE87: 2
B88: 2 | E88: 13 | G88: 13 | H88: 2016-01-01 | I88: 2017-01-31 | V88: 85 | W88: 2016-03-25 | X88: 2 | AC88: 85 | AD88: 2016-03-25 | AE88: 2
B89: 2 | E89: 14 | G89: 14 | H89: 2016-02-01 | I89: 2017-02-28 | V89: 86 | W89: 2016-03-26 | X89: 2 | AC89: 86 | AD89: 2016-03-26 | AE89: 2
B90: 2 | E90: 15 | G90: 15 | H90: 2016-03-01 | I90: 2017-03-31 | V90: 87 | W90: 2016-03-27 | X90: 2 | AC90: 87 | AD90: 2016-03-27 | AE90: 2
B91: 2 | E91: 16 | G91: 16 | H91: 2016-04-01 | I91: 2017-04-30 | V91: 88 | W91: 2016-03-28 | X91: 2 | AC91: 88 | AD91: 2016-03-28 | AE91: 2
B92: 2 | E92: 17 | G92: 17 | H92: 2016-05-01 | I92: 2017-05-31 | V92: 89 | W92: 2016-03-29 | X92: 2 | AC92: 89 | AD92: 2016-03-29 | AE92: 2
B93: 2 | E93: 18 | G93: 18 | H93: 2016-06-01 | I93: 2017-06-30 | V93: 90 | W93: 2016-03-30 | X93: 2 | AC93: 90 | AD93: 2016-03-30 | AE93: 2
B94: 2 | E94: 19 | G94: 19 | H94: 2016-07-01 | I94: 2017-07-31 | V94: 91 | W94: 2016-03-31 | X94: 2 | AC94: 91 | AD94: 2016-03-31 | AE94: 2
B95: 2 | E95: 20 | G95: 20 | H95: 2016-08-01 | I95: 2017-08-31 | V95: 92 | W95: 2016-04-01 | X95: 2 | AC95: 92 | AD95: 2016-04-01 | AE95: 2
B96: 2 | E96: 21 | G96: 21 | H96: 2016-09-01 | I96: 2017-09-30 | V96: 93 | W96: 2016-04-02 | X96: 2 | AC96: 93 | AD96: 2016-04-02 | AE96: 2
B97: 2 | E97: 22 | G97: 22 | H97: 2016-10-01 | I97: 2017-10-31 | V97: 94 | W97: 2016-04-03 | X97: 2 | AC97: 94 | AD97: 2016-04-03 | AE97: 2
B98: 2 | E98: 23 | G98: 23 | H98: 2016-11-01 | I98: 2017-11-30 | V98: 95 | W98: 2016-04-04 | X98: 2 | AC98: 95 | AD98: 2016-04-04 | AE98: 2
B99: 2 | E99: 24 | G99: 24 | H99: 2016-12-01 | I99: 2017-12-31 | V99: 96 | W99: 2016-04-05 | X99: 2 | AC99: 96 | AD99: 2016-04-05 | AE99: 2
B100: 2 | E100: 25 | G100: 25 | H100: 2017-01-01 | I100: 2018-01-31 | V100: 97 | W100: 2016-04-06 | X100: 2 | AC100: 97 | AD100: 2016-04-06 | AE100: 2
B101: 2 | V101: 98 | W101: 2016-04-07 | X101: 2 | AC101: 98 | AD101: 2016-04-07 | AE101: 2
B102: 2 | V102: 99 | W102: 2016-04-08 | X102: 2 | AC102: 99 | AD102: 2016-04-08 | AE102: 2
B103: 2 | V103: 100 | W103: 2016-04-09 | X103: 2 | AC103: 100 | AD103: 2016-04-09 | AE103: 2
B104: 2 | V104: 101 | W104: 2016-04-10 | X104: 2 | AC104: 101 | AD104: 2016-04-10 | AE104: 2
B105: 2 | V105: 102 | W105: 2016-04-11 | X105: 2 | AC105: 102 | AD105: 2016-04-11 | AE105: 2
B106: 2 | V106: 103 | W106: 2016-04-12 | X106: 2 | AC106: 103 | AD106: 2016-04-12 | AE106: 2
B107: 2 | V107: 104 | W107: 2016-04-13 | X107: 2 | AC107: 104 | AD107: 2016-04-13 | AE107: 2
B108: 2 | V108: 105 | W108: 2016-04-14 | X108: 2 | AC108: 105 | AD108: 2016-04-14 | AE108: 2
B109: 2 | V109: 106 | W109: 2016-04-15 | X109: 2 | AC109: 106 | AD109: 2016-04-15 | AE109: 2
B110: 2 | V110: 107 | W110: 2016-04-16 | X110: 2 | AC110: 107 | AD110: 2016-04-16 | AE110: 2
B111: 2 | V111: 108 | W111: 2016-04-17 | X111: 2 | AC111: 108 | AD111: 2016-04-17 | AE111: 2
B112: 2 | V112: 109 | W112: 2016-04-18 | X112: 2 | AC112: 109 | AD112: 2016-04-18 | AE112: 2
B113: 2 | V113: 110 | W113: 2016-04-19 | X113: 2 | AC113: 110 | AD113: 2016-04-19 | AE113: 2
B114: 2 | V114: 111 | W114: 2016-04-20 | X114: 2 | AC114: 111 | AD114: 2016-04-20 | AE114: 2
B115: 2 | V115: 112 | W115: 2016-04-21 | X115: 2 | AC115: 112 | AD115: 2016-04-21 | AE115: 2
B116: 2 | V116: 113 | W116: 2016-04-22 | X116: 2 | AC116: 113 | AD116: 2016-04-22 | AE116: 2
B117: =B116 -> 2 | V117: 114 | W117: 2016-04-23 | X117: 2 | AC117: 114 | AD117: 2016-04-23 | AE117: 2
B118: 2 | V118: 115 | W118: 2016-04-24 | X118: 2 | AC118: 115 | AD118: 2016-04-24 | AE118: 2
B119: 2 | V119: 116 | W119: 2016-04-25 | X119: 2 | AC119: 116 | AD119: 2016-04-25 | AE119: 2
B120: 2 | V120: 117 | W120: 2016-04-26 | X120: 2 | AC120: 117 | AD120: 2016-04-26 | AE120: 2
B121: 2 | V121: 118 | W121: 2016-04-27 | X121: 2 | AC121: 118 | AD121: 2016-04-27 | AE121: 2
B122: 2 | V122: 119 | W122: 2016-04-28 | X122: 2 | AC122: 119 | AD122: 2016-04-28 | AE122: 2
B123: 2 | V123: 120 | W123: 2016-04-29 | X123: 2 | AC123: 120 | AD123: 2016-04-29 | AE123: 2
B124: 2 | V124: 121 | W124: 2016-04-30 | X124: 2 | AC124: 121 | AD124: 2016-04-30 | AE124: 2
B125: 2 | V125: 122 | W125: 2016-05-01 | X125: 2 | AC125: 122 | AD125: 2016-05-01 | AE125: 2
B126: 2 | V126: 123 | W126: 2016-05-02 | X126: 2 | AC126: 123 | AD126: 2016-05-02 | AE126: 2
B127: 2 | V127: 124 | W127: 2016-05-03 | X127: 2 | AC127: 124 | AD127: 2016-05-03 | AE127: 2
B128: 2 | V128: 125 | W128: 2016-05-04 | X128: 2 | AC128: 125 | AD128: 2016-05-04 | AE128: 2
B129: 2 | V129: 126 | W129: 2016-05-05 | X129: 2 | AC129: 126 | AD129: 2016-05-05 | AE129: 2
B130: 2 | V130: 127 | W130: 2016-05-06 | X130: 2 | AC130: 127 | AD130: 2016-05-06 | AE130: 2
B131: 2 | V131: 128 | W131: 2016-05-07 | X131: 2 | AC131: 128 | AD131: 2016-05-07 | AE131: 2
B132: 2 | V132: 129 | W132: 2016-05-08 | X132: 2 | AC132: 129 | AD132: 2016-05-08 | AE132: 2
B133: 2 | V133: 130 | W133: 2016-05-09 | X133: 2 | Z133: =IF(X133=2,"",W133) ->  | AC133: 130 | AD133: 2016-05-09 | AE133: 2 | AG133: =IF(AE133=2,"",AD133) -> 
B134: 2 | V134: 131 | W134: 2016-05-10 | X134: =X133 -> 2 | AC134: 131 | AD134: 2016-05-10 | AE134: =AE133 -> 2
B135: 2 | V135: 132 | W135: 2016-05-11 | X135: 2 | AC135: 132 | AD135: 2016-05-11 | AE135: 2
B136: 2 | V136: 133 | W136: 2016-05-12 | X136: 2 | AC136: 133 | AD136: 2016-05-12 | AE136: 2
B137: 2 | V137: 134 | W137: 2016-05-13 | X137: 2 | AC137: 134 | AD137: 2016-05-13 | AE137: 2
B138: 2 | V138: 135 | W138: 2016-05-14 | X138: 2 | AC138: 135 | AD138: 2016-05-14 | AE138: 2
B139: 2 | V139: 136 | W139: 2016-05-15 | X139: 2 | AC139: 136 | AD139: 2016-05-15 | AE139: 2
B140: 2 | V140: 137 | W140: 2016-05-16 | X140: 2 | AC140: 137 | AD140: 2016-05-16 | AE140: 2
B141: 2 | V141: 138 | W141: 2016-05-17 | X141: 2 | AC141: 138 | AD141: 2016-05-17 | AE141: 2
B142: 2 | V142: 139 | W142: 2016-05-18 | X142: 2 | AC142: 139 | AD142: 2016-05-18 | AE142: 2
B143: 2 | V143: 140 | W143: 2016-05-19 | X143: 2 | AC143: 140 | AD143: 2016-05-19 | AE143: 2
B144: 2 | V144: 141 | W144: 2016-05-20 | X144: 2 | AC144: 141 | AD144: 2016-05-20 | AE144: 2
B145: 2 | V145: 142 | W145: 2016-05-21 | X145: 2 | AC145: 142 | AD145: 2016-05-21 | AE145: 2
B146: 2 | V146: 143 | W146: 2016-05-22 | X146: 2 | AC146: 143 | AD146: 2016-05-22 | AE146: 2
B147: 2 | V147: 144 | W147: 2016-05-23 | X147: 2 | AC147: 144 | AD147: 2016-05-23 | AE147: 2
B148: 2 | V148: 145 | W148: 2016-05-24 | X148: 2 | AC148: 145 | AD148: 2016-05-24 | AE148: 2
B149: 2 | V149: 146 | W149: 2016-05-25 | X149: 2 | AC149: 146 | AD149: 2016-05-25 | AE149: 2
B150: 2 | V150: 147 | W150: 2016-05-26 | X150: 2 | AC150: 147 | AD150: 2016-05-26 | AE150: 2
B151: 2 | V151: 148 | W151: 2016-05-27 | X151: 2 | AC151: 148 | AD151: 2016-05-27 | AE151: 2
B152: 2 | V152: 149 | W152: 2016-05-28 | X152: 2 | AC152: 149 | AD152: 2016-05-28 | AE152: 2
B153: 2 | V153: 150 | W153: 2016-05-29 | X153: 2 | AC153: 150 | AD153: 2016-05-29 | AE153: 2
B154: 2 | V154: 151 | W154: 2016-05-30 | X154: 2 | AC154: 151 | AD154: 2016-05-30 | AE154: 2
B155: 2 | V155: 152 | W155: 2016-05-31 | X155: 2 | AC155: 152 | AD155: 2016-05-31 | AE155: 2
B156: 2 | V156: 153 | W156: 2016-06-01 | X156: 2 | AC156: 153 | AD156: 2016-06-01 | AE156: 2
B157: 2 | V157: 154 | W157: 2016-06-02 | X157: 2 | AC157: 154 | AD157: 2016-06-02 | AE157: 2
B158: 2 | V158: 155 | W158: 2016-06-03 | X158: 2 | AC158: 155 | AD158: 2016-06-03 | AE158: 2
B159: 2 | V159: 156 | W159: 2016-06-04 | X159: 2 | AC159: 156 | AD159: 2016-06-04 | AE159: 2
B160: 2 | V160: 157 | W160: 2016-06-05 | X160: 2 | AC160: 157 | AD160: 2016-06-05 | AE160: 2
B161: 2 | V161: 158 | W161: 2016-06-06 | X161: 2 | AC161: 158 | AD161: 2016-06-06 | AE161: 2
B162: 2 | V162: 159 | W162: 2016-06-07 | X162: 2 | AC162: 159 | AD162: 2016-06-07 | AE162: 2
B163: 2 | V163: 160 | W163: 2016-06-08 | X163: 2 | AC163: 160 | AD163: 2016-06-08 | AE163: 2
B164: 2 | V164: 161 | W164: 2016-06-09 | X164: 2 | AC164: 161 | AD164: 2016-06-09 | AE164: 2
B165: 2 | V165: 162 | W165: 2016-06-10 | X165: 2 | AC165: 162 | AD165: 2016-06-10 | AE165: 2
B166: 2 | V166: 163 | W166: 2016-06-11 | X166: 2 | AC166: 163 | AD166: 2016-06-11 | AE166: 2
B167: 2 | V167: 164 | W167: 2016-06-12 | X167: 2 | AC167: 164 | AD167: 2016-06-12 | AE167: 2
B168: 2 | V168: 165 | W168: 2016-06-13 | X168: 2 | AC168: 165 | AD168: 2016-06-13 | AE168: 2
B169: 2 | V169: 166 | W169: 2016-06-14 | X169: 2 | AC169: 166 | AD169: 2016-06-14 | AE169: 2
B170: 2 | V170: 167 | W170: 2016-06-15 | X170: 2 | AC170: 167 | AD170: 2016-06-15 | AE170: 2
B171: 2 | V171: 168 | W171: 2016-06-16 | X171: 2 | AC171: 168 | AD171: 2016-06-16 | AE171: 2
B172: 2 | V172: 169 | W172: 2016-06-17 | X172: 2 | AC172: 169 | AD172: 2016-06-17 | AE172: 2
B173: 2 | V173: 170 | W173: 2016-06-18 | X173: 2 | AC173: 170 | AD173: 2016-06-18 | AE173: 2
B174: 2 | V174: 171 | W174: 2016-06-19 | X174: 2 | AC174: 171 | AD174: 2016-06-19 | AE174: 2
B175: 2 | V175: 172 | W175: 2016-06-20 | X175: 2 | AC175: 172 | AD175: 2016-06-20 | AE175: 2
B176: 2 | V176: 173 | W176: 2016-06-21 | X176: 2 | AC176: 173 | AD176: 2016-06-21 | AE176: 2
B177: 2 | V177: 174 | W177: 2016-06-22 | X177: 2 | AC177: 174 | AD177: 2016-06-22 | AE177: 2
B178: 2 | V178: 175 | W178: 2016-06-23 | X178: 2 | AC178: 175 | AD178: 2016-06-23 | AE178: 2
B179: 2 | V179: 176 | W179: 2016-06-24 | X179: 2 | AC179: 176 | AD179: 2016-06-24 | AE179: 2
B180: 2 | V180: 177 | W180: 2016-06-25 | X180: 2 | AC180: 177 | AD180: 2016-06-25 | AE180: 2
B181: =B180 -> 2 | V181: 178 | W181: 2016-06-26 | X181: 2 | AC181: 178 | AD181: 2016-06-26 | AE181: 2
B182: 2 | V182: 179 | W182: 2016-06-27 | X182: 2 | AC182: 179 | AD182: 2016-06-27 | AE182: 2
B183: 2 | V183: 180 | W183: 2016-06-28 | X183: 2 | AC183: 180 | AD183: 2016-06-28 | AE183: 2
B184: 2 | V184: 181 | W184: 2016-06-29 | X184: 2 | AC184: 181 | AD184: 2016-06-29 | AE184: 2
B185: 2 | V185: 182 | W185: 2016-06-30 | X185: 2 | AC185: 182 | AD185: 2016-06-30 | AE185: 2
B186: 2 | V186: 183 | W186: 2016-07-01 | X186: 2 | AC186: 183 | AD186: 2016-07-01 | AE186: 2
B187: 2 | V187: 184 | W187: 2016-07-02 | X187: 2 | AC187: 184 | AD187: 2016-07-02 | AE187: 2
B188: 2 | V188: 185 | W188: 2016-07-03 | X188: 2 | AC188: 185 | AD188: 2016-07-03 | AE188: 2
B189: 2 | V189: 186 | W189: 2016-07-04 | X189: 2 | AC189: 186 | AD189: 2016-07-04 | AE189: 2
B190: 2 | V190: 187 | W190: 2016-07-05 | X190: 2 | AC190: 187 | AD190: 2016-07-05 | AE190: 2
B191: 2 | V191: 188 | W191: 2016-07-06 | X191: 2 | AC191: 188 | AD191: 2016-07-06 | AE191: 2
B192: 2 | V192: 189 | W192: 2016-07-07 | X192: 2 | AC192: 189 | AD192: 2016-07-07 | AE192: 2
B193: 2 | V193: 190 | W193: 2016-07-08 | X193: 2 | AC193: 190 | AD193: 2016-07-08 | AE193: 2
B194: 2 | V194: 191 | W194: 2016-07-09 | X194: 2 | AC194: 191 | AD194: 2016-07-09 | AE194: 2
B195: 2 | V195: 192 | W195: 2016-07-10 | X195: 2 | AC195: 192 | AD195: 2016-07-10 | AE195: 2
B196: 2 | V196: 193 | W196: 2016-07-11 | X196: 2 | AC196: 193 | AD196: 2016-07-11 | AE196: 2
B197: 2 | V197: 194 | W197: 2016-07-12 | X197: 2 | Z197: =IF(X197=2,"",W197) ->  | AC197: 194 | AD197: 2016-07-12 | AE197: 2 | AG197: =IF(AE197=2,"",AD197) -> 
B198: 2 | V198: 195 | W198: 2016-07-13 | X198: =X197 -> 2 | AC198: 195 | AD198: 2016-07-13 | AE198: =AE197 -> 2
B199: 2 | V199: 196 | W199: 2016-07-14 | X199: 2 | AC199: 196 | AD199: 2016-07-14 | AE199: 2
B200: 2 | V200: 197 | W200: 2016-07-15 | X200: 2 | AC200: 197 | AD200: 2016-07-15 | AE200: 2
... 601 more rows

Sheet DA 1.3 (hidden)
C1: manual | H1: DA1 | J1: DA DIF | K1: =IF(DATA!EN25="cps",AR4+BR6+BS6,U1+BB6) -> 18177 | N1: PF | O1: CPS | P1: SL | Q1: 1 | R1: =IF(K2=0,"",IF('DATA 1'!S11="CPS","","Cash")) ->  | S1: 2 | U1: =IF('DA 1.2'!I17<4,ROUND(SUM(K6:K767),0),0) -> 0 | V1: =IF('DA 1.2'!I17<4,ROUND(SUM(K6:K430),0),0) -> 0 | W1: =IF('DA 1.2'!I17<4,SUM(AQ6:AQ767),0) -> 0 | X1: =IF('DA 1.2'!I17<4,K3-L3,0) -> 0 | Y1: =IF('DA 1.2'!I17<4,K3-M3,0) -> 0 | Z1: FOR AAS/PROMO EMPLOYEES
C2: GROSS | D2: PF/CPS | E2: 2 | F2: 1 | G2: Yes | J2: SL DIF | K2: =BA6 -> 0 | L2: PF | M2: CPS | N2: NET | O2: NET | Q2: 2 | R2: =IF(K2=0,"",IF('DATA 1'!S11="CPS","","PF")) ->  | U2: DIFF | V2: PF | W2: CPS | X2: PF NET | Y2: CPS NET | AO2: =ROUND(SUM(AO6:AO767),0) -> 0
C3: ='DATA 1'!R16 -> 0 | D3: ='DATA 1'!S16 -> 0 | F3: 2 | G3: No | J3: GROSS | K3: =IF(E2=1,C3,SUM(K1:K2)) -> 18177 | L3: =IF(E2=1,D3,IF(S1=2,IF(E2=1,D3,ROUND(SUM(V1+BC6),0))+K2,IF(E2=1,D3,ROUND(SUM(V1+BC6),0)))) -> 16946 | M3: =ROUND(IF(E2=1,C3,W1+BR6),0) -> 1818 | N3: =X1+BD6 -> 1231 | O3: =Y1+BS6 -> 16359 | AT3: =IF(AS31<'DA 1.2'!C8,1,0) -> 0 | AU3: =IF(AT3=1,VLOOKUP(AS31,B6:C767,2),0) -> 0 | BF3: FOR NON AAS / PROMOTIONS (CPS EMPLOYEES)
E4: change feb days | K4: =ROUND(SUM(K6:K767),0) -> 18176 | L4: BASIC PAY FROM 01-01-2016 | P4: INCREMENT 1 B.PAY | T4: INCREMENT 2 B.PAY | X4: INCREMENT 3 B.PAY | AB4: INCREMENT 4 B.PAY | AF4: INCREMENT 5 B.PAY | AJ4: SURRENDER LEAVE DIFF | AQ4: =IF('DA 1.2'!I17<4,ROUND(SUM(AQ6:AQ767),0),0) -> 0 | AR4: =IF('DA 1.2'!I17<4,ROUND(SUM(AR6:AR767),0),0) -> 0 | AS4: FOR NON AAS / PROMOTIONS (PF EMPLOYEES) | BB4: =SUM(AZ6:AZ30) -> 18177 | BC4: =SUM(AZ6:AZ19) -> 16946 | BD4: =BE4-BC4 -> 1231 | BE4: =BB4+BA6 -> 18177 | BF4: TD | BH4: AD | BJ4: DIFF | BL4: =AX5 -> AAS | BN4: PROMO | BQ4: =BA6 -> 0 | BR4: =SUM(BJ6:BJ30)+SUM(BL6:BL30)+SUM(BN6:BN30) -> 1818 | BS4: =SUM(BK6:BK30)+SUM(BM6:BM30)+SUM(BO6:BO30) -> 16359 | BT4: =BS4+BR4+BQ4 -> 18177
B5: DATE | C5: BASIC PAY | D5: MONTH | E5: DAY IN MONTH | F5: BASIC PAY FOR DAYS | G5: NEW DA | H5: OLD DA | I5: ELIGIBLE | J5: DRAWN | K5: DIFF | L5: FROM | M5: TO | N5: ORIGINAL | O5: CALCU | P5: FROM | Q5: TO | R5: ORIGINAL | S5: CALCU | T5: FROM | U5: TO | V5: ORIGINAL | W5: CALCU | X5: FROM | Y5: TO | Z5: ORIGINAL | AA5: CALCU | AB5: FROM | AC5: TO | AD5: ORIGINAL | AE5: CALCU | AF5: FROM | AG5: TO | AH5: ORIGINAL | AI5: CALCU | AJ5: FROM | AK5: TO | AL5: DATE CAL FROM | AM5: DATE CAL TO | AN5: TOTAL | AO5: BASIC | AQ5: CPS | AR5: 1 | AS5: MONTHS | AT5: B.PAY | AU5: TD | AV5: AD | AW5: DIF | AX5: AAS | AY5: PROMO | AZ5: DIFF TOT | BA5: SL | BB5: DA DIFF | BC5: PF | BD5: NET | BE5: GROSS | BF5: CPS | BG5: CASH | BH5: CPS | BI5: CASH | BJ5: CPS | BK5: CASH | BL5: CPS | BM5: CASH | BN5: CPS | BO5: CASH | BP5: =AZ5 -> DIFF TOT | BQ5: SL | BR5: CPS | BS5: CASH | BT5: GROSS
B6: 2016-01-01 | C6: =O6+S6+W6+AA6+AE6+AI6 -> 38130 | D6: =MONTH(B6) -> 1 | E6: =IF(D6=1,31,IF(D6=2,28,IF(D6=3,31,IF(D6=5,31,IF(D6=7,31,IF(D6=8,31,IF(D6=10,31,IF(D6=12,31,30)))))))) -> 31 | F6: =C6/E6 -> 1230 | G6: 0.1834 | H6: 0.15196 | I6: =F6*G6 -> 225.582 | J6: =F6*H6 -> 186.9108 | K6: =I6-J6 -> 38.6712 | L6: 2016-01-01 | M6: =IF('DA 1.2'!D3>='DA 1.2'!Q15,'DA 1.2'!Q15,'DA 1.2'!D3-1) -> 2016-09-30 | N6: ='DA 1.2'!G2 -> 38130 | O6: =IF(M6>=B6,N6,0) -> 38130 | P6: ='DA 1.2'!D3 -> 2016-10-01 | Q6: =IF('DA 1.2'!C8='DA 1.2'!D4,'DA 1.2'!D4,'DA 1.2'!D4-1) -> 2016-12-31 | R6: =IF(N6>'DA 1.2'!G3,N6,'DA 1.2'!G3) -> 39160 | S6: =IF(O6>0,0,IF(Q6>=B6,R6,0)) -> 0 | T6: ='DA 1.2'!D4 -> 2017-01-01 | U6: =IF('DA 1.2'!D5>='DA 1.2'!Q15,'DA 1.2'!Q15,IF('DA 1.2'!C8='DA 1.2'!D5,'DA 1.2'!D5,'DA 1.2'!D5-1)) -> 2017-03-31 | V6: =IF(R6>'DA 1.2'!G4,R6,'DA 1.2'!G4) -> 39160 | W6: =IF(T6>U6,0,IF(O6>0,0,IF(S6>0,0,IF(U6>=B6,V6,0)))) -> 0 | X6: ='DA 1.2'!D5 -> 2017-10-01 | Y6: =IF('DA 1.2'!D6>='DA 1.2'!Q15,'DA 1.2'!Q15,IF('DA 1.2'!C8='DA 1.2'!D6,'DA 1.2'!D6,'DA 1.2'!D6-1)) -> 2017-03-31 | Z6: =IF('DA 1.2'!G5>V6,'DA 1.2'!G5,V6) -> 39160 | AA6: =IF(X6>=Y6,0,IF(O6>0,0,IF(S6>0,0,IF(W6>0,0,IF(Y6>=B6,Z6,0))))) -> 0 | AB6: ='DA 1.2'!D6 -> 2017-12-01 | AC6: =IF('DA 1.2'!D7>='DA 1.2'!Q15,'DA 1.2'!Q15,IF('DA 1.2'!C8='DA 1.2'!D7,'DA 1.2'!D7,'DA 1.2'!D7-1)) -> 2017-03-31 | AD6: =IF(Z6<'DA 1.2'!G6,'DA 1.2'!G6,Z6) -> 39160 | AE6: =IF(O6>0,0,IF(AB6>=AC6,0,IF(S6>0,0,IF(W6>0,0,IF(AA6>0,0,IF(AC6>=B6,AD6,0)))))) -> 0 | AF6: ='DA 1.2'!D7 -> 2018-12-02 | AG6: =IF('DA 1.2'!D8>='DA 1.2'!Q15,'DA 1.2'!Q15,IF('DA 1.2'!C8='DA 1.2'!D8,'DA 1.2'!D8,'DA 1.2'!D8-1)) -> 2017-02-28 | AH6: =IF(AD6<'DA 1.2'!G7,'DA 1.2'!G7,AD6) -> 39160 | AI6: =IF(O6>0,0,IF(S6>0,0,IF(AF6>=AG6,0,IF(W6>0,0,IF(AA6>0,0,IF(AE6>0,0,IF(AG6>=B6,AH6,0))))))) -> 0 | AJ6: ='DA 1.2'!C10 -> 2016-04-01 | AK6: =DATE('DA 1.2'!D14,'DA 1.2'!C14,'DA 1.2'!B14) -> 2016-04-30 | AL6: =IF(B6>=AJ6,1,0) -> 0 | AM6: =IF(B6<=AK6,1,0) -> 1 | AN6: =IF(SUM(AL6:AM6)=2,1,0) -> 0 | AO6: =IF('DA 1.2'!B50=2,0,IF(AN6=1,I6-J6,0)) -> 0 | AQ6: =ROUND(K6*10%,3) -> 3.867 | AR6: =ROUND(K6,4) -> 38.6712 | AS6: 2016-01-01 | AT6: =VLOOKUP(AS6,B6:C767,2) -> 38130 | AU6: =ROUND(AT6*G6,0) -> 6993 | AV6: =AT6*H6 -> 5794.2348 | AW6: =ROUND(AU6-AV6,0) -> 1199 | AX6: =ROUND(IF(AS6=BB33,BC33,0),0) -> 0 | AY6: =ROUND(IF(AS6=BD33,BE33,0),0) -> 0 | AZ6: =SUM(AW6:AY6) -> 1199 | BA6: =AO2 -> 0 | BB6: =IF('DA 1.2'!I17=4,BB4,0) -> 18177 | BC6: =IF('DA 1.2'!I17=4,BC4,0) -> 16946 | BD6: =IF('DA 1.2'!I17=4,BD4,0) -> 1231 | BE6: =IF('DA 1.2'!I17=4,BE4,0) -> 18177 | BF6: =ROUND(AT6*G6*10%,0) -> 699 | BG6: =ROUND(AT6*G6*90%,0) -> 6294 | BH6: =ROUND(AT6*H6*10%,0) -> 579 | BI6: =ROUND(AT6*H6*90%,0) -> 5215 | BJ6: =BF6-BH6 -> 120 | BK6: =BG6-BI6 -> 1079 | BL6: =AX6-BM6 -> 0 | BM6: =ROUND(AX6*90%,0) -> 0 | BN6: =ROUND(AY6*10%,0) -> 0 | BO6: =ROUND(AY6*90%,0) -> 0 | BP6: =SUM(BJ6:BO6) -> 1199 | BQ6: =BQ4 -> 0 | BR6: =IF('DA 1.2'!I17=4,BR4,0) -> 1818 | BS6: =IF('DA 1.2'!I17=4,BS4,0) -> 16359 | BT6: =IF('DA 1.2'!I17=4,BT4,0) -> 18177
B7: 2016-01-02 | C7: =O7+S7+W7+AA7+AE7+AI7 -> 38130 | D7: =MONTH(B7) -> 1 | E7: =IF(D7=1,31,IF(D7=2,28,IF(D7=3,31,IF(D7=5,31,IF(D7=7,31,IF(D7=8,31,IF(D7=10,31,IF(D7=12,31,30)))))))) -> 31 | F7: 1230 | G7: =G6 -> 0.1834 | H7: =H6 -> 0.15196 | I7: =F7*G7 -> 225.582 | J7: 186.9108 | K7: =I7-J7 -> 38.6712 | L7: =L6 -> 2016-01-01 | M7: =M6 -> 2016-09-30 | N7: =N6 -> 38130 | O7: =IF(M7>=B7,N7,0) -> 38130 | P7: =P6 -> 2016-10-01 | Q7: =Q6 -> 2016-12-31 | R7: =R6 -> 39160 | S7: =IF(O7>0,0,IF(Q7>=B7,R7,0)) -> 0 | T7: =T6 -> 2017-01-01 | U7: =U6 -> 2017-03-31 | V7: =V6 -> 39160 | W7: =IF(T7>U7,0,IF(O7>0,0,IF(S7>0,0,IF(U7>=B7,V7,0)))) -> 0 | X7: =X6 -> 2017-10-01 | Y7: =Y6 -> 2017-03-31 | Z7: =Z6 -> 39160 | AA7: =IF(X7>=Y7,0,IF(O7>0,0,IF(S7>0,0,IF(W7>0,0,IF(Y7>=B7,Z7,0))))) -> 0 | AB7: =AB6 -> 2017-12-01 | AC7: =AC6 -> 2017-03-31 | AD7: =AD6 -> 39160 | AE7: =IF(O7>0,0,IF(AB7>=AC7,0,IF(S7>0,0,IF(W7>0,0,IF(AA7>0,0,IF(AC7>=B7,AD7,0)))))) -> 0 | AF7: =AF6 -> 2018-12-02 | AG7: =AG6 -> 2017-02-28 | AH7: =AH6 -> 39160 | AI7: =IF(O7>0,0,IF(S7>0,0,IF(AF7>=AG7,0,IF(W7>0,0,IF(AA7>0,0,IF(AE7>0,0,IF(AG7>=B7,AH7,0))))))) -> 0 | AJ7: =AJ6 -> 2016-04-01 | AK7: =AK6 -> 2016-04-30 | AL7: =IF(B7>=AJ7,1,0) -> 0 | AM7: =IF(B7<=AK7,1,0) -> 1 | AN7: =IF(SUM(AL7:AM7)=2,1,0) -> 0 | AO7: =IF('DA 1.2'!B51=2,0,IF(AN7=1,I7-J7,0)) -> 0 | AQ7: =ROUND(K7*10%,3) -> 3.867 | AR7: =ROUND(K7,4) -> 38.6712 | AS7: 2016-02-01 | AT7: =VLOOKUP(AS7,B6:C767,2) -> 38130 | AU7: =ROUND(AT7*G7,0) -> 6993 | AV7: =AT7*H7 -> 5794.2348 | AW7: =ROUND(AU7-AV7,0) -> 1199 | AX7: 0 | AY7: 0 | AZ7: =SUM(AW7:AY7) -> 1199 | BF7: =ROUND(AT7*G7*10%,0) -> 699 | BG7: 6294 | BH7: 579 | BI7: 5215 | BJ7: =BF7-BH7 -> 120 | BK7: =BG7-BI7 -> 1079 | BL7: =AX7-BM7 -> 0 | BM7: =ROUND(AX7*90%,0) -> 0 | BN7: =ROUND(AY7*10%,0) -> 0 | BO7: =ROUND(AY7*90%,0) -> 0 | BP7: =SUM(BJ7:BO7) -> 1199
B8: 2016-01-03 | C8: 38130 | D8: 1 | E8: 31 | F8: 1230 | G8: =G7 -> 0.1834 | H8: 0.15196 | I8: 225.582 | J8: 186.9108 | K8: 38.6712 | L8: =L7 -> 2016-01-01 | M8: 2016-09-30 | N8: 38130 | O8: 38130 | P8: =P7 -> 2016-10-01 | Q8: 2016-12-31 | R8: 39160 | S8: 0 | T8: =T7 -> 2017-01-01 | U8: 2017-03-31 | V8: 39160 | W8: 0 | X8: =X7 -> 2017-10-01 | Y8: 2017-03-31 | Z8: 39160 | AA8: 0 | AB8: =AB7 -> 2017-12-01 | AC8: =AC7 -> 2017-03-31 | AD8: =AD7 -> 39160 | AE8: 0 | AF8: =AF7 -> 2018-12-02 | AG8: =AG7 -> 2017-02-28 | AH8: =AH7 -> 39160 | AI8: 0 | AJ8: =AJ7 -> 2016-04-01 | AK8: 2016-04-30 | AL8: 0 | AM8: 1 | AN8: 0 | AO8: =IF('DA 1.2'!B52=2,0,IF(AN8=1,I8-J8,0)) -> 0 | AQ8: 3.867 | AR8: 38.6712 | AS8: 2016-03-01 | AT8: =VLOOKUP(AS8,B6:C767,2) -> 38130 | AU8: 6993 | AV8: 5794.2348 | AW8: 1199 | AX8: 0 | AY8: 0 | AZ8: 1199 | BF8: 699 | BG8: 6294 | BH8: 579 | BI8: 5215 | BJ8: 120 | BK8: 1079 | BL8: 0 | BM8: 0 | BN8: 0 | BO8: 0 | BP8: 1199
B9: 2016-01-04 | C9: 38130 | D9: 1 | E9: 31 | F9: 1230 | G9: 0.1834 | H9: 0.15196 | I9: 225.582 | J9: 186.9108 | K9: 38.6712 | L9: 2016-01-01 | M9: 2016-09-30 | N9: 38130 | O9: 38130 | P9: 2016-10-01 | Q9: 2016-12-31 | R9: 39160 | S9: 0 | T9: 2017-01-01 | U9: 2017-03-31 | V9: 39160 | W9: 0 | X9: 2017-10-01 | Y9: 2017-03-31 | Z9: 39160 | AA9: 0 | AB9: 2017-12-01 | AC9: 2017-03-31 | AD9: 39160 | AE9: 0 | AF9: 2018-12-02 | AG9: 2017-02-28 | AH9: 39160 | AI9: 0 | AJ9: 2016-04-01 | AK9: 2016-04-30 | AL9: 0 | AM9: 1 | AN9: 0 | AO9: =IF('DA 1.2'!B53=2,0,IF(AN9=1,I9-J9,0)) -> 0 | AQ9: 3.867 | AR9: 38.6712 | AS9: 2016-04-01 | AT9: =VLOOKUP(AS9,B6:C767,2) -> 38130 | AU9: 6993 | AV9: 5794.2348 | AW9: 1199 | AX9: 0 | AY9: 0 | AZ9: 1199 | BF9: 699 | BG9: 6294 | BH9: 579 | BI9: 5215 | BJ9: 120 | BK9: 1079 | BL9: 0 | BM9: 0 | BN9: 0 | BO9: 0 | BP9: 1199
B10: 2016-01-05 | C10: 38130 | D10: 1 | E10: 31 | F10: 1230 | G10: 0.1834 | H10: 0.15196 | I10: 225.582 | J10: 186.9108 | K10: 38.6712 | L10: 2016-01-01 | M10: 2016-09-30 | N10: 38130 | O10: 38130 | P10: 2016-10-01 | Q10: 2016-12-31 | R10: 39160 | S10: 0 | T10: 2017-01-01 | U10: 2017-03-31 | V10: 39160 | W10: 0 | X10: 2017-10-01 | Y10: 2017-03-31 | Z10: 39160 | AA10: 0 | AB10: 2017-12-01 | AC10: 2017-03-31 | AD10: 39160 | AE10: 0 | AF10: 2018-12-02 | AG10: 2017-02-28 | AH10: 39160 | AI10: 0 | AJ10: 2016-04-01 | AK10: 2016-04-30 | AL10: 0 | AM10: 1 | AN10: 0 | AO10: =IF('DA 1.2'!B54=2,0,IF(AN10=1,I10-J10,0)) -> 0 | AQ10: 3.867 | AR10: 38.6712 | AS10: 2016-05-01 | AT10: =VLOOKUP(AS10,B6:C767,2) -> 38130 | AU10: 6993 | AV10: 5794.2348 | AW10: 1199 | AX10: 0 | AY10: 0 | AZ10: 1199 | BF10: 699 | BG10: 6294 | BH10: 579 | BI10: 5215 | BJ10: 120 | BK10: 1079 | BL10: 0 | BM10: 0 | BN10: 0 | BO10: 0 | BP10: 1199
B11: 2016-01-06 | C11: 38130 | D11: 1 | E11: 31 | F11: 1230 | G11: 0.1834 | H11: 0.15196 | I11: 225.582 | J11: 186.9108 | K11: 38.6712 | L11: 2016-01-01 | M11: 2016-09-30 | N11: 38130 | O11: 38130 | P11: 2016-10-01 | Q11: 2016-12-31 | R11: 39160 | S11: 0 | T11: 2017-01-01 | U11: 2017-03-31 | V11: 39160 | W11: 0 | X11: 2017-10-01 | Y11: 2017-03-31 | Z11: 39160 | AA11: 0 | AB11: 2017-12-01 | AC11: 2017-03-31 | AD11: 39160 | AE11: 0 | AF11: 2018-12-02 | AG11: 2017-02-28 | AH11: 39160 | AI11: 0 | AJ11: 2016-04-01 | AK11: 2016-04-30 | AL11: 0 | AM11: 1 | AN11: 0 | AO11: =IF('DA 1.2'!B55=2,0,IF(AN11=1,I11-J11,0)) -> 0 | AQ11: 3.867 | AR11: 38.6712 | AS11: 2016-06-01 | AT11: =VLOOKUP(AS11,B6:C767,2) -> 38130 | AU11: 6993 | AV11: 5794.2348 | AW11: 1199 | AX11: 0 | AY11: 0 | AZ11: 1199 | BF11: 699 | BG11: 6294 | BH11: 579 | BI11: 5215 | BJ11: 120 | BK11: 1079 | BL11: 0 | BM11: 0 | BN11: 0 | BO11: 0 | BP11: 1199
B12: 2016-01-07 | C12: 38130 | D12: 1 | E12: 31 | F12: 1230 | G12: 0.1834 | H12: 0.15196 | I12: 225.582 | J12: 186.9108 | K12: 38.6712 | L12: 2016-01-01 | M12: 2016-09-30 | N12: 38130 | O12: 38130 | P12: 2016-10-01 | Q12: 2016-12-31 | R12: 39160 | S12: 0 | T12: 2017-01-01 | U12: 2017-03-31 | V12: 39160 | W12: 0 | X12: 2017-10-01 | Y12: 2017-03-31 | Z12: 39160 | AA12: 0 | AB12: 2017-12-01 | AC12: 2017-03-31 | AD12: 39160 | AE12: 0 | AF12: 2018-12-02 | AG12: 2017-02-28 | AH12: 39160 | AI12: 0 | AJ12: 2016-04-01 | AK12: 2016-04-30 | AL12: 0 | AM12: 1 | AN12: 0 | AO12: =IF('DA 1.2'!B56=2,0,IF(AN12=1,I12-J12,0)) -> 0 | AQ12: 3.867 | AR12: 38.6712 | AS12: 2016-07-01 | AT12: =VLOOKUP(AS12,B6:C767,2) -> 38130 | AU12: 6993 | AV12: 5794.2348 | AW12: 1199 | AX12: 0 | AY12: 0 | AZ12: 1199 | BF12: 699 | BG12: 6294 | BH12: 579 | BI12: 5215 | BJ12: 120 | BK12: 1079 | BL12: 0 | BM12: 0 | BN12: 0 | BO12: 0 | BP12: 1199
B13: 2016-01-08 | C13: 38130 | D13: 1 | E13: 31 | F13: 1230 | G13: 0.1834 | H13: 0.15196 | I13: 225.582 | J13: 186.9108 | K13: 38.6712 | L13: 2016-01-01 | M13: 2016-09-30 | N13: 38130 | O13: 38130 | P13: 2016-10-01 | Q13: 2016-12-31 | R13: 39160 | S13: 0 | T13: 2017-01-01 | U13: 2017-03-31 | V13: 39160 | W13: 0 | X13: 2017-10-01 | Y13: 2017-03-31 | Z13: 39160 | AA13: 0 | AB13: 2017-12-01 | AC13: 2017-03-31 | AD13: 39160 | AE13: 0 | AF13: 2018-12-02 | AG13: 2017-02-28 | AH13: 39160 | AI13: 0 | AJ13: 2016-04-01 | AK13: 2016-04-30 | AL13: 0 | AM13: 1 | AN13: 0 | AO13: =IF('DA 1.2'!B57=2,0,IF(AN13=1,I13-J13,0)) -> 0 | AQ13: 3.867 | AR13: 38.6712 | AS13: 2016-08-01 | AT13: =VLOOKUP(AS13,B6:C767,2) -> 38130 | AU13: 6993 | AV13: 5794.2348 | AW13: 1199 | AX13: 0 | AY13: 0 | AZ13: 1199 | BF13: 699 | BG13: 6294 | BH13: 579 | BI13: 5215 | BJ13: 120 | BK13: 1079 | BL13: 0 | BM13: 0 | BN13: 0 | BO13: 0 | BP13: 1199
B14: 2016-01-09 | C14: 38130 | D14: 1 | E14: 31 | F14: 1230 | G14: 0.1834 | H14: 0.15196 | I14: 225.582 | J14: 186.9108 | K14: 38.6712 | L14: 2016-01-01 | M14: 2016-09-30 | N14: 38130 | O14: 38130 | P14: 2016-10-01 | Q14: 2016-12-31 | R14: 39160 | S14: 0 | T14: 2017-01-01 | U14: 2017-03-31 | V14: 39160 | W14: 0 | X14: 2017-10-01 | Y14: 2017-03-31 | Z14: 39160 | AA14: 0 | AB14: 2017-12-01 | AC14: 2017-03-31 | AD14: 39160 | AE14: 0 | AF14: 2018-12-02 | AG14: 2017-02-28 | AH14: 39160 | AI14: 0 | AJ14: 2016-04-01 | AK14: 2016-04-30 | AL14: 0 | AM14: 1 | AN14: 0 | AO14: =IF('DA 1.2'!B58=2,0,IF(AN14=1,I14-J14,0)) -> 0 | AQ14: 3.867 | AR14: 38.6712 | AS14: 2016-09-01 | AT14: =VLOOKUP(AS14,B6:C767,2) -> 38130 | AU14: 6993 | AV14: 5794.2348 | AW14: 1199 | AX14: 0 | AY14: 0 | AZ14: 1199 | BF14: 699 | BG14: 6294 | BH14: 579 | BI14: 5215 | BJ14: 120 | BK14: 1079 | BL14: 0 | BM14: 0 | BN14: 0 | BO14: 0 | BP14: 1199
B15: 2016-01-10 | C15: 38130 | D15: 1 | E15: 31 | F15: 1230 | G15: 0.1834 | H15: 0.15196 | I15: 225.582 | J15: 186.9108 | K15: 38.6712 | L15: 2016-01-01 | M15: 2016-09-30 | N15: 38130 | O15: 38130 | P15: 2016-10-01 | Q15: 2016-12-31 | R15: 39160 | S15: 0 | T15: 2017-01-01 | U15: 2017-03-31 | V15: 39160 | W15: 0 | X15: 2017-10-01 | Y15: 2017-03-31 | Z15: 39160 | AA15: 0 | AB15: 2017-12-01 | AC15: 2017-03-31 | AD15: 39160 | AE15: 0 | AF15: 2018-12-02 | AG15: 2017-02-28 | AH15: 39160 | AI15: 0 | AJ15: 2016-04-01 | AK15: 2016-04-30 | AL15: 0 | AM15: 1 | AN15: 0 | AO15: =IF('DA 1.2'!B59=2,0,IF(AN15=1,I15-J15,0)) -> 0 | AQ15: 3.867 | AR15: 38.6712 | AS15: 2016-10-01 | AT15: =VLOOKUP(AS15,B6:C767,2) -> 39160 | AU15: 7182 | AV15: 5950.7536 | AW15: 1231 | AX15: 0 | AY15: 0 | AZ15: 1231 | BF15: 718 | BG15: 6464 | BH15: 595 | BI15: 5356 | BJ15: =BF15-BH15 -> 123 | BK15: 1108 | BL15: 0 | BM15: =ROUND(AX15*90%,0) -> 0 | BN15: 0 | BO15: 0 | BP15: 1231
B16: 2016-01-11 | C16: 38130 | D16: 1 | E16: 31 | F16: 1230 | G16: 0.1834 | H16: 0.15196 | I16: 225.582 | J16: 186.9108 | K16: 38.6712 | L16: 2016-01-01 | M16: 2016-09-30 | N16: 38130 | O16: 38130 | P16: 2016-10-01 | Q16: 2016-12-31 | R16: 39160 | S16: 0 | T16: 2017-01-01 | U16: 2017-03-31 | V16: 39160 | W16: 0 | X16: 2017-10-01 | Y16: 2017-03-31 | Z16: 39160 | AA16: 0 | AB16: 2017-12-01 | AC16: 2017-03-31 | AD16: 39160 | AE16: 0 | AF16: 2018-12-02 | AG16: 2017-02-28 | AH16: 39160 | AI16: 0 | AJ16: 2016-04-01 | AK16: 2016-04-30 | AL16: 0 | AM16: 1 | AN16: 0 | AO16: =IF('DA 1.2'!B60=2,0,IF(AN16=1,I16-J16,0)) -> 0 | AQ16: 3.867 | AR16: 38.6712 | AS16: 2016-11-01 | AT16: =VLOOKUP(AS16,B6:C767,2) -> 39160 | AU16: 7182 | AV16: 5950.7536 | AW16: 1231 | AX16: 0 | AY16: 0 | AZ16: 1231 | BF16: 718 | BG16: 6464 | BH16: 595 | BI16: 5356 | BJ16: 123 | BK16: 1108 | BL16: 0 | BM16: 0 | BN16: 0 | BO16: 0 | BP16: 1231
B17: 2016-01-12 | C17: 38130 | D17: 1 | E17: 31 | F17: 1230 | G17: 0.1834 | H17: 0.15196 | I17: 225.582 | J17: 186.9108 | K17: 38.6712 | L17: 2016-01-01 | M17: 2016-09-30 | N17: 38130 | O17: 38130 | P17: 2016-10-01 | Q17: 2016-12-31 | R17: 39160 | S17: 0 | T17: 2017-01-01 | U17: 2017-03-31 | V17: 39160 | W17: 0 | X17: 2017-10-01 | Y17: 2017-03-31 | Z17: 39160 | AA17: 0 | AB17: 2017-12-01 | AC17: 2017-03-31 | AD17: 39160 | AE17: 0 | AF17: 2018-12-02 | AG17: 2017-02-28 | AH17: 39160 | AI17: 0 | AJ17: 2016-04-01 | AK17: 2016-04-30 | AL17: 0 | AM17: 1 | AN17: 0 | AO17: =IF('DA 1.2'!B61=2,0,IF(AN17=1,I17-J17,0)) -> 0 | AQ17: 3.867 | AR17: 38.6712 | AS17: 2016-12-01 | AT17: =VLOOKUP(AS17,B6:C767,2) -> 39160 | AU17: 7182 | AV17: 5950.7536 | AW17: 1231 | AX17: 0 | AY17: 0 | AZ17: 1231 | BF17: 718 | BG17: 6464 | BH17: 595 | BI17: 5356 | BJ17: 123 | BK17: 1108 | BL17: 0 | BM17: 0 | BN17: 0 | BO17: 0 | BP17: 1231
B18: 2016-01-13 | C18: 38130 | D18: 1 | E18: 31 | F18: 1230 | G18: 0.1834 | H18: 0.15196 | I18: 225.582 | J18: 186.9108 | K18: 38.6712 | L18: 2016-01-01 | M18: 2016-09-30 | N18: 38130 | O18: 38130 | P18: 2016-10-01 | Q18: 2016-12-31 | R18: 39160 | S18: 0 | T18: 2017-01-01 | U18: 2017-03-31 | V18: 39160 | W18: 0 | X18: 2017-10-01 | Y18: 2017-03-31 | Z18: 39160 | AA18: 0 | AB18: 2017-12-01 | AC18: 2017-03-31 | AD18: 39160 | AE18: 0 | AF18: 2018-12-02 | AG18: 2017-02-28 | AH18: 39160 | AI18: 0 | AJ18: 2016-04-01 | AK18: 2016-04-30 | AL18: 0 | AM18: 1 | AN18: 0 | AO18: =IF('DA 1.2'!B62=2,0,IF(AN18=1,I18-J18,0)) -> 0 | AQ18: 3.867 | AR18: 38.6712 | AS18: 2017-01-01 | AT18: =VLOOKUP(AS18,B6:C767,2) -> 39160 | AU18: 7182 | AV18: 5950.7536 | AW18: 1231 | AX18: 0 | AY18: 0 | AZ18: 1231 | BF18: 718 | BG18: 6464 | BH18: 595 | BI18: 5356 | BJ18: 123 | BK18: 1108 | BL18: 0 | BM18: 0 | BN18: 0 | BO18: 0 | BP18: 1231
B19: 2016-01-14 | C19: 38130 | D19: 1 | E19: 31 | F19: 1230 | G19: 0.1834 | H19: 0.15196 | I19: 225.582 | J19: 186.9108 | K19: 38.6712 | L19: 2016-01-01 | M19: 2016-09-30 | N19: 38130 | O19: 38130 | P19: 2016-10-01 | Q19: 2016-12-31 | R19: 39160 | S19: 0 | T19: 2017-01-01 | U19: 2017-03-31 | V19: 39160 | W19: 0 | X19: 2017-10-01 | Y19: 2017-03-31 | Z19: 39160 | AA19: 0 | AB19: 2017-12-01 | AC19: 2017-03-31 | AD19: 39160 | AE19: 0 | AF19: 2018-12-02 | AG19: 2017-02-28 | AH19: 39160 | AI19: 0 | AJ19: 2016-04-01 | AK19: 2016-04-30 | AL19: 0 | AM19: 1 | AN19: 0 | AO19: =IF('DA 1.2'!B63=2,0,IF(AN19=1,I19-J19,0)) -> 0 | AQ19: 3.867 | AR19: 38.6712 | AS19: 2017-02-01 | AT19: =VLOOKUP(AS19,B6:C767,2) -> 39160 | AU19: 7182 | AV19: 5950.7536 | AW19: 1231 | AX19: 0 | AY19: =ROUND(IF(AS19=BD46,BE46,0),0) -> 0 | AZ19: =SUM(AW19:AY19) -> 1231 | BF19: 718 | BG19: 6464 | BH19: 595 | BI19: 5356 | BJ19: 123 | BK19: 1108 | BL19: 0 | BM19: 0 | BN19: 0 | BO19: 0 | BP19: 1231
B20: 2016-01-15 | C20: 38130 | D20: 1 | E20: 31 | F20: 1230 | G20: 0.1834 | H20: 0.15196 | I20: 225.582 | J20: 186.9108 | K20: 38.6712 | L20: 2016-01-01 | M20: 2016-09-30 | N20: 38130 | O20: 38130 | P20: 2016-10-01 | Q20: 2016-12-31 | R20: 39160 | S20: 0 | T20: 2017-01-01 | U20: 2017-03-31 | V20: 39160 | W20: 0 | X20: 2017-10-01 | Y20: 2017-03-31 | Z20: 39160 | AA20: 0 | AB20: 2017-12-01 | AC20: 2017-03-31 | AD20: 39160 | AE20: 0 | AF20: 2018-12-02 | AG20: 2017-02-28 | AH20: 39160 | AI20: 0 | AJ20: 2016-04-01 | AK20: 2016-04-30 | AL20: 0 | AM20: 1 | AN20: 0 | AO20: =IF('DA 1.2'!B64=2,0,IF(AN20=1,I20-J20,0)) -> 0 | AQ20: 3.867 | AR20: 38.6712 | AS20: 2017-03-01 | AT20: =VLOOKUP(AS20,B6:C767,2) -> 39160 | AU20: 7182 | AV20: 5950.7536 | AW20: 1231 | AX20: 0 | AY20: 0 | AZ20: 1231 | BF20: 718 | BG20: 6464 | BH20: 595 | BI20: 5356 | BJ20: 123 | BK20: 1108 | BL20: 0 | BM20: 0 | BN20: 0 | BO20: 0 | BP20: 1231
B21: 2016-01-16 | C21: 38130 | D21: 1 | E21: 31 | F21: 1230 | G21: 0.1834 | H21: 0.15196 | I21: 225.582 | J21: 186.9108 | K21: 38.6712 | L21: 2016-01-01 | M21: 2016-09-30 | N21: 38130 | O21: 38130 | P21: 2016-10-01 | Q21: 2016-12-31 | R21: 39160 | S21: 0 | T21: 2017-01-01 | U21: 2017-03-31 | V21: 39160 | W21: 0 | X21: 2017-10-01 | Y21: 2017-03-31 | Z21: 39160 | AA21: 0 | AB21: 2017-12-01 | AC21: 2017-03-31 | AD21: 39160 | AE21: 0 | AF21: 2018-12-02 | AG21: 2017-02-28 | AH21: 39160 | AI21: 0 | AJ21: 2016-04-01 | AK21: 2016-04-30 | AL21: 0 | AM21: 1 | AN21: 0 | AO21: =IF('DA 1.2'!B65=2,0,IF(AN21=1,I21-J21,0)) -> 0 | AQ21: 3.867 | AR21: 38.6712 | AS21: 2017-04-01 | AT21: =VLOOKUP(AS21,B6:C767,2) -> 0 | AU21: 0 | AV21: 0 | AW21: 0 | AX21: 0 | AY21: 0 | AZ21: 0 | BF21: 0 | BG21: 0 | BH21: 0 | BI21: 0 | BJ21: 0 | BK21: 0 | BL21: 0 | BM21: 0 | BN21: 0 | BO21: 0 | BP21: 0
B22: 2016-01-17 | C22: 38130 | D22: 1 | E22: 31 | F22: 1230 | G22: 0.1834 | H22: 0.15196 | I22: 225.582 | J22: 186.9108 | K22: 38.6712 | L22: 2016-01-01 | M22: 2016-09-30 | N22: 38130 | O22: 38130 | P22: 2016-10-01 | Q22: 2016-12-31 | R22: 39160 | S22: 0 | T22: 2017-01-01 | U22: 2017-03-31 | V22: 39160 | W22: 0 | X22: 2017-10-01 | Y22: 2017-03-31 | Z22: 39160 | AA22: 0 | AB22: 2017-12-01 | AC22: 2017-03-31 | AD22: 39160 | AE22: 0 | AF22: 2018-12-02 | AG22: 2017-02-28 | AH22: 39160 | AI22: 0 | AJ22: 2016-04-01 | AK22: 2016-04-30 | AL22: 0 | AM22: 1 | AN22: 0 | AO22: =IF('DA 1.2'!B66=2,0,IF(AN22=1,I22-J22,0)) -> 0 | AQ22: 3.867 | AR22: 38.6712 | AS22: 2017-05-01 | AT22: =VLOOKUP(AS22,B6:C767,2) -> 0 | AU22: 0 | AV22: 0 | AW22: 0 | AX22: 0 | AY22: 0 | AZ22: 0 | BF22: 0 | BG22: 0 | BH22: 0 | BI22: 0 | BJ22: 0 | BK22: 0 | BL22: 0 | BM22: 0 | BN22: 0 | BO22: 0 | BP22: 0
B23: 2016-01-18 | C23: 38130 | D23: 1 | E23: 31 | F23: 1230 | G23: 0.1834 | H23: 0.15196 | I23: 225.582 | J23: 186.9108 | K23: 38.6712 | L23: 2016-01-01 | M23: 2016-09-30 | N23: 38130 | O23: 38130 | P23: 2016-10-01 | Q23: 2016-12-31 | R23: 39160 | S23: 0 | T23: 2017-01-01 | U23: 2017-03-31 | V23: 39160 | W23: 0 | X23: 2017-10-01 | Y23: 2017-03-31 | Z23: 39160 | AA23: 0 | AB23: 2017-12-01 | AC23: 2017-03-31 | AD23: 39160 | AE23: 0 | AF23: 2018-12-02 | AG23: 2017-02-28 | AH23: 39160 | AI23: 0 | AJ23: 2016-04-01 | AK23: 2016-04-30 | AL23: 0 | AM23: 1 | AN23: 0 | AO23: =IF('DA 1.2'!B67=2,0,IF(AN23=1,I23-J23,0)) -> 0 | AQ23: 3.867 | AR23: 38.6712 | AS23: 2017-06-01 | AT23: =VLOOKUP(AS23,B6:C767,2) -> 0 | AU23: 0 | AV23: 0 | AW23: 0 | AX23: 0 | AY23: 0 | AZ23: 0 | BF23: 0 | BG23: 0 | BH23: 0 | BI23: 0 | BJ23: 0 | BK23: 0 | BL23: 0 | BM23: 0 | BN23: 0 | BO23: 0 | BP23: 0
B24: 2016-01-19 | C24: 38130 | D24: 1 | E24: 31 | F24: 1230 | G24: =G23 -> 0.1834 | H24: 0.15196 | I24: 225.582 | J24: 186.9108 | K24: 38.6712 | L24: =L23 -> 2016-01-01 | M24: 2016-09-30 | N24: 38130 | O24: 38130 | P24: =P23 -> 2016-10-01 | Q24: 2016-12-31 | R24: 39160 | S24: 0 | T24: =T23 -> 2017-01-01 | U24: 2017-03-31 | V24: 39160 | W24: 0 | X24: =X23 -> 2017-10-01 | Y24: 2017-03-31 | Z24: 39160 | AA24: 0 | AB24: 2017-12-01 | AC24: 2017-03-31 | AD24: 39160 | AE24: 0 | AF24: 2018-12-02 | AG24: 2017-02-28 | AH24: 39160 | AI24: 0 | AJ24: =AJ23 -> 2016-04-01 | AK24: 2016-04-30 | AL24: 0 | AM24: 1 | AN24: 0 | AO24: =IF('DA 1.2'!B68=2,0,IF(AN24=1,I24-J24,0)) -> 0 | AQ24: 3.867 | AR24: 38.6712 | AS24: 2017-07-01 | AT24: =VLOOKUP(AS24,B6:C767,2) -> 0 | AU24: 0 | AV24: 0 | AW24: 0 | AX24: 0 | AY24: 0 | AZ24: 0 | BF24: 0 | BG24: 0 | BH24: 0 | BI24: 0 | BJ24: 0 | BK24: 0 | BL24: 0 | BM24: 0 | BN24: 0 | BO24: 0 | BP24: 0
B25: 2016-01-20 | C25: 38130 | D25: 1 | E25: 31 | F25: 1230 | G25: 0.1834 | H25: 0.15196 | I25: 225.582 | J25: 186.9108 | K25: 38.6712 | L25: 2016-01-01 | M25: 2016-09-30 | N25: 38130 | O25: 38130 | P25: 2016-10-01 | Q25: 2016-12-31 | R25: 39160 | S25: 0 | T25: 2017-01-01 | U25: 2017-03-31 | V25: 39160 | W25: 0 | X25: 2017-10-01 | Y25: 2017-03-31 | Z25: 39160 | AA25: 0 | AB25: 2017-12-01 | AC25: 2017-03-31 | AD25: 39160 | AE25: 0 | AF25: 2018-12-02 | AG25: 2017-02-28 | AH25: 39160 | AI25: 0 | AJ25: 2016-04-01 | AK25: 2016-04-30 | AL25: 0 | AM25: 1 | AN25: 0 | AO25: =IF('DA 1.2'!B69=2,0,IF(AN25=1,I25-J25,0)) -> 0 | AQ25: 3.867 | AR25: 38.6712 | AS25: 2017-08-01 | AT25: =VLOOKUP(AS25,B6:C767,2) -> 0 | AU25: 0 | AV25: 0 | AW25: 0 | AX25: 0 | AY25: 0 | AZ25: 0 | BF25: 0 | BG25: 0 | BH25: 0 | BI25: 0 | BJ25: 0 | BK25: 0 | BL25: 0 | BM25: 0 | BN25: 0 | BO25: 0 | BP25: 0
B26: 2016-01-21 | C26: 38130 | D26: 1 | E26: 31 | F26: 1230 | G26: 0.1834 | H26: 0.15196 | I26: 225.582 | J26: 186.9108 | K26: 38.6712 | L26: 2016-01-01 | M26: 2016-09-30 | N26: 38130 | O26: 38130 | P26: 2016-10-01 | Q26: 2016-12-31 | R26: 39160 | S26: 0 | T26: 2017-01-01 | U26: 2017-03-31 | V26: 39160 | W26: 0 | X26: 2017-10-01 | Y26: 2017-03-31 | Z26: 39160 | AA26: 0 | AB26: 2017-12-01 | AC26: 2017-03-31 | AD26: 39160 | AE26: 0 | AF26: 2018-12-02 | AG26: 2017-02-28 | AH26: 39160 | AI26: 0 | AJ26: 2016-04-01 | AK26: 2016-04-30 | AL26: 0 | AM26: 1 | AN26: 0 | AO26: =IF('DA 1.2'!B70=2,0,IF(AN26=1,I26-J26,0)) -> 0 | AQ26: 3.867 | AR26: 38.6712 | AS26: 2017-09-01 | AT26: =VLOOKUP(AS26,B6:C767,2) -> 0 | AU26: 0 | AV26: 0 | AW26: 0 | AX26: 0 | AY26: 0 | AZ26: 0 | BF26: 0 | BG26: 0 | BH26: 0 | BI26: 0 | BJ26: 0 | BK26: 0 | BL26: 0 | BM26: 0 | BN26: 0 | BO26: 0 | BP26: 0
B27: 2016-01-22 | C27: 38130 | D27: 1 | E27: 31 | F27: 1230 | G27: 0.1834 | H27: 0.15196 | I27: 225.582 | J27: 186.9108 | K27: 38.6712 | L27: 2016-01-01 | M27: 2016-09-30 | N27: 38130 | O27: 38130 | P27: 2016-10-01 | Q27: 2016-12-31 | R27: 39160 | S27: 0 | T27: 2017-01-01 | U27: 2017-03-31 | V27: 39160 | W27: 0 | X27: 2017-10-01 | Y27: 2017-03-31 | Z27: 39160 | AA27: 0 | AB27: 2017-12-01 | AC27: 2017-03-31 | AD27: 39160 | AE27: 0 | AF27: 2018-12-02 | AG27: 2017-02-28 | AH27: 39160 | AI27: 0 | AJ27: 2016-04-01 | AK27: 2016-04-30 | AL27: 0 | AM27: 1 | AN27: 0 | AO27: =IF('DA 1.2'!B71=2,0,IF(AN27=1,I27-J27,0)) -> 0 | AQ27: 3.867 | AR27: 38.6712 | AS27: 2017-10-01 | AT27: =VLOOKUP(AS27,B6:C767,2) -> 0 | AU27: 0 | AV27: 0 | AW27: 0 | AX27: 0 | AY27: 0 | AZ27: 0 | BF27: 0 | BG27: 0 | BH27: 0 | BI27: 0 | BJ27: 0 | BK27: 0 | BL27: 0 | BM27: 0 | BN27: 0 | BO27: 0 | BP27: 0
B28: 2016-01-23 | C28: 38130 | D28: 1 | E28: 31 | F28: 1230 | G28: 0.1834 | H28: 0.15196 | I28: 225.582 | J28: 186.9108 | K28: 38.6712 | L28: 2016-01-01 | M28: 2016-09-30 | N28: 38130 | O28: 38130 | P28: 2016-10-01 | Q28: 2016-12-31 | R28: 39160 | S28: 0 | T28: 2017-01-01 | U28: 2017-03-31 | V28: 39160 | W28: 0 | X28: 2017-10-01 | Y28: 2017-03-31 | Z28: 39160 | AA28: 0 | AB28: 2017-12-01 | AC28: 2017-03-31 | AD28: 39160 | AE28: 0 | AF28: 2018-12-02 | AG28: 2017-02-28 | AH28: 39160 | AI28: 0 | AJ28: 2016-04-01 | AK28: 2016-04-30 | AL28: 0 | AM28: 1 | AN28: 0 | AO28: =IF('DA 1.2'!B72=2,0,IF(AN28=1,I28-J28,0)) -> 0 | AQ28: 3.867 | AR28: 38.6712 | AS28: 2017-11-01 | AT28: =VLOOKUP(AS28,B6:C767,2) -> 0 | AU28: 0 | AV28: 0 | AW28: 0 | AX28: 0 | AY28: 0 | AZ28: 0 | BF28: 0 | BG28: 0 | BH28: 0 | BI28: 0 | BJ28: 0 | BK28: 0 | BL28: 0 | BM28: 0 | BN28: 0 | BO28: 0 | BP28: 0
B29: 2016-01-24 | C29: 38130 | D29: 1 | E29: 31 | F29: 1230 | G29: 0.1834 | H29: 0.15196 | I29: 225.582 | J29: 186.9108 | K29: 38.6712 | L29: 2016-01-01 | M29: 2016-09-30 | N29: 38130 | O29: 38130 | P29: 2016-10-01 | Q29: 2016-12-31 | R29: 39160 | S29: 0 | T29: 2017-01-01 | U29: 2017-03-31 | V29: 39160 | W29: 0 | X29: 2017-10-01 | Y29: 2017-03-31 | Z29: 39160 | AA29: 0 | AB29: 2017-12-01 | AC29: 2017-03-31 | AD29: 39160 | AE29: 0 | AF29: 2018-12-02 | AG29: 2017-02-28 | AH29: 39160 | AI29: 0 | AJ29: 2016-04-01 | AK29: 2016-04-30 | AL29: 0 | AM29: 1 | AN29: 0 | AO29: =IF('DA 1.2'!B73=2,0,IF(AN29=1,I29-J29,0)) -> 0 | AQ29: 3.867 | AR29: 38.6712 | AS29: 2017-12-01 | AT29: =VLOOKUP(AS29,B6:C767,2) -> 0 | AU29: 0 | AV29: 0 | AW29: 0 | AX29: 0 | AY29: 0 | AZ29: 0 | BF29: 0 | BG29: 0 | BH29: 0 | BI29: 0 | BJ29: 0 | BK29: 0 | BL29: 0 | BM29: 0 | BN29: 0 | BO29: 0 | BP29: 0
B30: 2016-01-25 | C30: 38130 | D30: 1 | E30: 31 | F30: 1230 | G30: 0.1834 | H30: 0.15196 | I30: 225.582 | J30: 186.9108 | K30: 38.6712 | L30: 2016-01-01 | M30: 2016-09-30 | N30: 38130 | O30: 38130 | P30: 2016-10-01 | Q30: 2016-12-31 | R30: 39160 | S30: 0 | T30: 2017-01-01 | U30: 2017-03-31 | V30: 39160 | W30: 0 | X30: 2017-10-01 | Y30: 2017-03-31 | Z30: 39160 | AA30: 0 | AB30: 2017-12-01 | AC30: 2017-03-31 | AD30: 39160 | AE30: 0 | AF30: 2018-12-02 | AG30: 2017-02-28 | AH30: 39160 | AI30: 0 | AJ30: 2016-04-01 | AK30: 2016-04-30 | AL30: 0 | AM30: 1 | AN30: 0 | AO30: =IF('DA 1.2'!B74=2,0,IF(AN30=1,I30-J30,0)) -> 0 | AQ30: 3.867 | AR30: 38.6712 | AS30: 2018-01-01 | AT30: =VLOOKUP(AS30,B6:C767,2) -> 0 | AU30: =ROUND(AT30*G30,0) -> 0 | AV30: 0 | AW30: 0 | AX30: 0 | AY30: 0 | AZ30: =SUM(AW30:AY30) -> 0 | BF30: 0 | BG30: 0 | BH30: 0 | BI30: 0 | BJ30: 0 | BK30: 0 | BL30: 0 | BM30: 0 | BN30: 0 | BO30: 0 | BP30: 0
B31: 2016-01-26 | C31: 38130 | D31: 1 | E31: 31 | F31: 1230 | G31: 0.1834 | H31: 0.15196 | I31: 225.582 | J31: 186.9108 | K31: 38.6712 | L31: 2016-01-01 | M31: 2016-09-30 | N31: 38130 | O31: 38130 | P31: 2016-10-01 | Q31: 2016-12-31 | R31: 39160 | S31: 0 | T31: 2017-01-01 | U31: 2017-03-31 | V31: 39160 | W31: 0 | X31: 2017-10-01 | Y31: 2017-03-31 | Z31: 39160 | AA31: 0 | AB31: 2017-12-01 | AC31: 2017-03-31 | AD31: 39160 | AE31: 0 | AF31: 2018-12-02 | AG31: 2017-02-28 | AH31: 39160 | AI31: 0 | AJ31: 2016-04-01 | AK31: 2016-04-30 | AL31: 0 | AM31: 1 | AN31: 0 | AO31: =IF('DA 1.2'!B75=2,0,IF(AN31=1,I31-J31,0)) -> 0 | AQ31: 3.867 | AR31: 38.6712 | AS31: 2018-02-01 | AT31: =IF('DA 1.2'!B50=2,0,IF('DA 1.2'!D11=30,'DA 1.3'!AU3,ROUND('DA 1.3'!AU3/2,0))) -> 0 | AU31: =ROUND(AT31*G31,0) -> 0 | AV31: 0 | AW31: 0 | AX31: SL
B32: 2016-01-27 | C32: 38130 | D32: 1 | E32: 31 | F32: 1230 | G32: 0.1834 | H32: 0.15196 | I32: 225.582 | J32: 186.9108 | K32: 38.6712 | L32: 2016-01-01 | M32: 2016-09-30 | N32: 38130 | O32: 38130 | P32: 2016-10-01 | Q32: 2016-12-31 | R32: 39160 | S32: 0 | T32: 2017-01-01 | U32: 2017-03-31 | V32: 39160 | W32: 0 | X32: 2017-10-01 | Y32: 2017-03-31 | Z32: 39160 | AA32: 0 | AB32: 2017-12-01 | AC32: 2017-03-31 | AD32: 39160 | AE32: 0 | AF32: 2018-12-02 | AG32: 2017-02-28 | AH32: 39160 | AI32: 0 | AJ32: 2016-04-01 | AK32: 2016-04-30 | AL32: 0 | AM32: 1 | AN32: 0 | AO32: =IF('DA 1.2'!B76=2,0,IF(AN32=1,I32-J32,0)) -> 0 | AQ32: 3.867 | AR32: 38.6712 | BB32: AAS | BD32: PRO
B33: 2016-01-28 | C33: 38130 | D33: 1 | E33: 31 | F33: 1230 | G33: 0.1834 | H33: 0.15196 | I33: 225.582 | J33: 186.9108 | K33: 38.6712 | L33: 2016-01-01 | M33: 2016-09-30 | N33: 38130 | O33: 38130 | P33: 2016-10-01 | Q33: 2016-12-31 | R33: 39160 | S33: 0 | T33: 2017-01-01 | U33: 2017-03-31 | V33: 39160 | W33: 0 | X33: 2017-10-01 | Y33: 2017-03-31 | Z33: 39160 | AA33: 0 | AB33: 2017-12-01 | AC33: 2017-03-31 | AD33: 39160 | AE33: 0 | AF33: 2018-12-02 | AG33: 2017-02-28 | AH33: 39160 | AI33: 0 | AJ33: 2016-04-01 | AK33: 2016-04-30 | AL33: 0 | AM33: 1 | AN33: 0 | AO33: =IF('DA 1.2'!B77=2,0,IF(AN33=1,I33-J33,0)) -> 0 | AQ33: 3.867 | AR33: 38.6712 | AS33: ='DA 1.2'!C4 -> 2017-12-01 | AT33: =IF('DA 1.2'!C4<'DA 1.2'!C8,IF('DA 1.2'!F15=1,VLOOKUP('DA 1.2'!C4,'DA 1.3'!B6:C767,2),0),0) -> 0 | AU33: 1 | AV33: =MONTH(AS33) -> 12 | AW33: =YEAR(AS33) -> 2017 | AX33: AAS | BB33: =AU34 -> 2017-12-01 | BC33: =AX48 -> 0 | BD33: =AU40 -> 2018-12-01 | BE33: =AW43 -> 0
B34: 2016-01-29 | C34: 38130 | D34: 1 | E34: 31 | F34: 1230 | G34: 0.1834 | H34: 0.15196 | I34: 225.582 | J34: 186.9108 | K34: 38.6712 | L34: 2016-01-01 | M34: 2016-09-30 | N34: 38130 | O34: 38130 | P34: 2016-10-01 | Q34: 2016-12-31 | R34: 39160 | S34: 0 | T34: 2017-01-01 | U34: 2017-03-31 | V34: 39160 | W34: 0 | X34: 2017-10-01 | Y34: 2017-03-31 | Z34: 39160 | AA34: 0 | AB34: 2017-12-01 | AC34: 2017-03-31 | AD34: 39160 | AE34: 0 | AF34: 2018-12-02 | AG34: 2017-02-28 | AH34: 39160 | AI34: 0 | AJ34: 2016-04-01 | AK34: 2016-04-30 | AL34: 0 | AM34: 1 | AN34: 0 | AO34: =IF('DA 1.2'!B78=2,0,IF(AN34=1,I34-J34,0)) -> 0 | AQ34: 3.867 | AR34: 38.6712 | AS34: =AS33-1 -> 2017-11-30 | AT34: =IF('DA 1.2'!F15=1,VLOOKUP(AS34,'DA 1.3'!B6:C767,2),0) -> 0 | AU34: =DATE(AW33,AV33,AU33) -> 2017-12-01 | BB34: =BB33 -> 2017-12-01 | BC34: =BC33 -> 0 | BD34: =BD33 -> 2018-12-01 | BE34: =BE33 -> 0
B35: 2016-01-30 | C35: 38130 | D35: 1 | E35: 31 | F35: 1230 | G35: 0.1834 | H35: 0.15196 | I35: 225.582 | J35: 186.9108 | K35: 38.6712 | L35: 2016-01-01 | M35: 2016-09-30 | N35: 38130 | O35: 38130 | P35: 2016-10-01 | Q35: 2016-12-31 | R35: 39160 | S35: 0 | T35: 2017-01-01 | U35: 2017-03-31 | V35: 39160 | W35: 0 | X35: 2017-10-01 | Y35: 2017-03-31 | Z35: 39160 | AA35: 0 | AB35: 2017-12-01 | AC35: 2017-03-31 | AD35: 39160 | AE35: 0 | AF35: 2018-12-02 | AG35: 2017-02-28 | AH35: 39160 | AI35: 0 | AJ35: 2016-04-01 | AK35: 2016-04-30 | AL35: 0 | AM35: 1 | AN35: 0 | AO35: =IF('DA 1.2'!B79=2,0,IF(AN35=1,I35-J35,0)) -> 0 | AQ35: 3.867 | AR35: 38.6712 | AS35: PER MONTH | AT35: =AT33-AT34 -> 0 | AX35: =AT33*G37 -> 0 | AY35: =(AT34*H37) -> 0 | AZ35: =AX35-AY35 -> 0 | BB35: =BB34 -> 2017-12-01 | BC35: =BC34 -> 0 | BD35: =BD34 -> 2018-12-01 | BE35: =BE34 -> 0
B36: 2016-01-31 | C36: 38130 | D36: 1 | E36: 31 | F36: 1230 | G36: 0.1834 | H36: 0.15196 | I36: 225.582 | J36: 186.9108 | K36: 38.6712 | L36: 2016-01-01 | M36: 2016-09-30 | N36: 38130 | O36: 38130 | P36: 2016-10-01 | Q36: 2016-12-31 | R36: 39160 | S36: 0 | T36: 2017-01-01 | U36: 2017-03-31 | V36: 39160 | W36: 0 | X36: 2017-10-01 | Y36: 2017-03-31 | Z36: 39160 | AA36: 0 | AB36: 2017-12-01 | AC36: 2017-03-31 | AD36: 39160 | AE36: 0 | AF36: 2018-12-02 | AG36: 2017-02-28 | AH36: 39160 | AI36: 0 | AJ36: 2016-04-01 | AK36: 2016-04-30 | AL36: 0 | AM36: 1 | AN36: 0 | AO36: =IF('DA 1.2'!B80=2,0,IF(AN36=1,I36-J36,0)) -> 0 | AQ36: 3.867 | AR36: 38.6712 | AS36: =VLOOKUP(AS33,B6:E767,4) -> 31 | AT36: =AS36-AU36+1 -> 31 | AU36: =DAY(AS33) -> 1 | AZ36: =AZ35/AS36 -> 0 | BB36: 2017-12-01 | BC36: 0 | BD36: 2018-12-01 | BE36: 0
B37: 2016-02-01 | C37: 38130 | D37: 2 | E37: =IF(D37=1,31,IF(D37=2,29,IF(D37=3,31,IF(D37=5,31,IF(D37=7,31,IF(D37=8,31,IF(D37=10,31,IF(D37=12,31,30)))))))) -> 29 | F37: 1314.827586 | G37: 0.1834 | H37: 0.15196 | I37: 241.1393793 | J37: 199.8012 | K37: 41.33817931 | L37: 2016-01-01 | M37: 2016-09-30 | N37: 38130 | O37: 38130 | P37: 2016-10-01 | Q37: 2016-12-31 | R37: 39160 | S37: 0 | T37: 2017-01-01 | U37: 2017-03-31 | V37: 39160 | W37: 0 | X37: 2017-10-01 | Y37: 2017-03-31 | Z37: 39160 | AA37: 0 | AB37: 2017-12-01 | AC37: 2017-03-31 | AD37: 39160 | AE37: 0 | AF37: 2018-12-02 | AG37: 2017-02-28 | AH37: 39160 | AI37: 0 | AJ37: 2016-04-01 | AK37: 2016-04-30 | AL37: 0 | AM37: 1 | AN37: 0 | AO37: =IF('DA 1.2'!B81=2,0,IF(AN37=1,I37-J37,0)) -> 0 | AQ37: 4.134 | AR37: 41.3382 | AT37: =ROUND((AT35/AS36)*AT36,0) -> 0 | AU37: =AT37*G37 -> 0 | AV37: =AT37*H37 -> 0 | AW37: =ROUND(AU37-AV37,0) -> 0 | AZ37: =AU36*AZ36 -> 0 | BB37: 2017-12-01 | BC37: 0 | BD37: 2018-12-01 | BE37: 0
B38: 2016-02-02 | C38: 38130 | D38: 2 | E38: =IF(D38=1,31,IF(D38=2,29,IF(D38=3,31,IF(D38=5,31,IF(D38=7,31,IF(D38=8,31,IF(D38=10,31,IF(D38=12,31,30)))))))) -> 29 | F38: 1314.827586 | G38: 0.1834 | H38: 0.15196 | I38: 241.1393793 | J38: 199.8012 | K38: 41.33817931 | L38: 2016-01-01 | M38: 2016-09-30 | N38: 38130 | O38: 38130 | P38: 2016-10-01 | Q38: 2016-12-31 | R38: 39160 | S38: 0 | T38: 2017-01-01 | U38: 2017-03-31 | V38: 39160 | W38: 0 | X38: 2017-10-01 | Y38: 2017-03-31 | Z38: 39160 | AA38: 0 | AB38: 2017-12-01 | AC38: 2017-03-31 | AD38: 39160 | AE38: 0 | AF38: 2018-12-02 | AG38: 2017-02-28 | AH38: 39160 | AI38: 0 | AJ38: 2016-04-01 | AK38: 2016-04-30 | AL38: 0 | AM38: 1 | AN38: 0 | AO38: =IF('DA 1.2'!B82=2,0,IF(AN38=1,I38-J38,0)) -> 0 | AQ38: 4.134 | AR38: 41.3382 | BB38: 2017-12-01 | BC38: 0 | BD38: 2018-12-01 | BE38: 0
B39: 2016-02-03 | C39: 38130 | D39: 2 | E39: 29 | F39: 1314.827586 | G39: 0.1834 | H39: 0.15196 | I39: 241.1393793 | J39: 199.8012 | K39: 41.33817931 | L39: 2016-01-01 | M39: 2016-09-30 | N39: 38130 | O39: 38130 | P39: 2016-10-01 | Q39: 2016-12-31 | R39: 39160 | S39: 0 | T39: 2017-01-01 | U39: 2017-03-31 | V39: 39160 | W39: 0 | X39: 2017-10-01 | Y39: 2017-03-31 | Z39: 39160 | AA39: 0 | AB39: 2017-12-01 | AC39: 2017-03-31 | AD39: 39160 | AE39: 0 | AF39: 2018-12-02 | AG39: 2017-02-28 | AH39: 39160 | AI39: 0 | AJ39: 2016-04-01 | AK39: 2016-04-30 | AL39: 0 | AM39: 1 | AN39: 0 | AO39: =IF('DA 1.2'!B83=2,0,IF(AN39=1,I39-J39,0)) -> 0 | AQ39: 4.134 | AR39: 41.3382 | AS39: ='DA 1.2'!C5 -> 2018-12-02 | AT39: =IF('DA 1.2'!C5<'DA 1.2'!C8,IF('DA 1.2'!F17=1,VLOOKUP('DA 1.2'!C5,'DA 1.3'!B6:C767,2),0),0) -> 0 | AU39: 1 | AV39: =MONTH(AS39) -> 12 | AW39: =YEAR(AS39) -> 2018 | AX39: PROMO | BB39: 2017-12-01 | BC39: 0 | BD39: 2018-12-01 | BE39: 0
B40: 2016-02-04 | C40: 38130 | D40: 2 | E40: 29 | F40: 1314.827586 | G40: =G39 -> 0.1834 | H40: 0.15196 | I40: 241.1393793 | J40: 199.8012 | K40: 41.33817931 | L40: =L39 -> 2016-01-01 | M40: 2016-09-30 | N40: 38130 | O40: 38130 | P40: =P39 -> 2016-10-01 | Q40: 2016-12-31 | R40: 39160 | S40: 0 | T40: =T39 -> 2017-01-01 | U40: 2017-03-31 | V40: 39160 | W40: 0 | X40: =X39 -> 2017-10-01 | Y40: 2017-03-31 | Z40: 39160 | AA40: 0 | AB40: 2017-12-01 | AC40: 2017-03-31 | AD40: 39160 | AE40: 0 | AF40: 2018-12-02 | AG40: 2017-02-28 | AH40: 39160 | AI40: 0 | AJ40: =AJ39 -> 2016-04-01 | AK40: 2016-04-30 | AL40: 0 | AM40: 1 | AN40: 0 | AO40: =IF('DA 1.2'!B84=2,0,IF(AN40=1,I40-J40,0)) -> 0 | AQ40: 4.134 | AR40: 41.3382 | AS40: =AS39-1 -> 2018-12-01 | AT40: =IF('DA 1.2'!F17=1,VLOOKUP(AS40,'DA 1.3'!B6:C767,2),0) -> 0 | AU40: =DATE(AW39,AV39,AU39) -> 2018-12-01 | BB40: 2017-12-01 | BC40: 0 | BD40: 2018-12-01 | BE40: 0
B41: 2016-02-05 | C41: 38130 | D41: 2 | E41: 29 | F41: 1314.827586 | G41: 0.1834 | H41: 0.15196 | I41: 241.1393793 | J41: 199.8012 | K41: 41.33817931 | L41: 2016-01-01 | M41: 2016-09-30 | N41: 38130 | O41: 38130 | P41: 2016-10-01 | Q41: 2016-12-31 | R41: 39160 | S41: 0 | T41: 2017-01-01 | U41: 2017-03-31 | V41: 39160 | W41: 0 | X41: 2017-10-01 | Y41: 2017-03-31 | Z41: 39160 | AA41: 0 | AB41: 2017-12-01 | AC41: 2017-03-31 | AD41: 39160 | AE41: 0 | AF41: 2018-12-02 | AG41: 2017-02-28 | AH41: 39160 | AI41: 0 | AJ41: 2016-04-01 | AK41: 2016-04-30 | AL41: 0 | AM41: 1 | AN41: 0 | AO41: =IF('DA 1.2'!B85=2,0,IF(AN41=1,I41-J41,0)) -> 0 | AQ41: 4.134 | AR41: 41.3382 | AS41: PER MONTH | AT41: =AT39-AT40 -> 0 | BB41: 2017-12-01 | BC41: 0 | BD41: 2018-12-01 | BE41: 0
B42: 2016-02-06 | C42: 38130 | D42: 2 | E42: 29 | F42: 1314.827586 | G42: 0.1834 | H42: 0.15196 | I42: 241.1393793 | J42: 199.8012 | K42: 41.33817931 | L42: 2016-01-01 | M42: 2016-09-30 | N42: 38130 | O42: 38130 | P42: 2016-10-01 | Q42: 2016-12-31 | R42: 39160 | S42: 0 | T42: 2017-01-01 | U42: 2017-03-31 | V42: 39160 | W42: 0 | X42: 2017-10-01 | Y42: 2017-03-31 | Z42: 39160 | AA42: 0 | AB42: 2017-12-01 | AC42: 2017-03-31 | AD42: 39160 | AE42: 0 | AF42: 2018-12-02 | AG42: 2017-02-28 | AH42: 39160 | AI42: 0 | AJ42: 2016-04-01 | AK42: 2016-04-30 | AL42: 0 | AM42: 1 | AN42: 0 | AO42: =IF('DA 1.2'!B86=2,0,IF(AN42=1,I42-J42,0)) -> 0 | AQ42: 4.134 | AR42: 41.3382 | AS42: =VLOOKUP(AS39,B6:E767,4) -> 31 | AT42: =AS42-AU42+1 -> 30 | AU42: =DAY(AS39) -> 2 | BB42: 2017-12-01 | BC42: 0 | BD42: 2018-12-01 | BE42: 0
B43: 2016-02-07 | C43: 38130 | D43: 2 | E43: 29 | F43: 1314.827586 | G43: 0.1834 | H43: 0.15196 | I43: 241.1393793 | J43: 199.8012 | K43: 41.33817931 | L43: 2016-01-01 | M43: 2016-09-30 | N43: 38130 | O43: 38130 | P43: 2016-10-01 | Q43: 2016-12-31 | R43: 39160 | S43: 0 | T43: 2017-01-01 | U43: 2017-03-31 | V43: 39160 | W43: 0 | X43: 2017-10-01 | Y43: 2017-03-31 | Z43: 39160 | AA43: 0 | AB43: 2017-12-01 | AC43: 2017-03-31 | AD43: 39160 | AE43: 0 | AF43: 2018-12-02 | AG43: 2017-02-28 | AH43: 39160 | AI43: 0 | AJ43: 2016-04-01 | AK43: 2016-04-30 | AL43: 0 | AM43: 1 | AN43: 0 | AO43: =IF('DA 1.2'!B87=2,0,IF(AN43=1,I43-J43,0)) -> 0 | AQ43: 4.134 | AR43: 41.3382 | AT43: =ROUND((AT41/AS42)*AT42,0) -> 0 | AU43: =AT43*G43 -> 0 | AV43: =AT43*H43 -> 0 | AW43: =ROUND(AU43-AV43,0) -> 0 | BB43: 2017-12-01 | BC43: 0 | BD43: 2018-12-01 | BE43: 0
B44: 2016-02-08 | C44: 38130 | D44: 2 | E44: 29 | F44: 1314.827586 | G44: 0.1834 | H44: 0.15196 | I44: 241.1393793 | J44: 199.8012 | K44: 41.33817931 | L44: 2016-01-01 | M44: 2016-09-30 | N44: 38130 | O44: 38130 | P44: 2016-10-01 | Q44: 2016-12-31 | R44: 39160 | S44: 0 | T44: 2017-01-01 | U44: 2017-03-31 | V44: 39160 | W44: 0 | X44: 2017-10-01 | Y44: 2017-03-31 | Z44: 39160 | AA44: 0 | AB44: 2017-12-01 | AC44: 2017-03-31 | AD44: 39160 | AE44: 0 | AF44: 2018-12-02 | AG44: 2017-02-28 | AH44: 39160 | AI44: 0 | AJ44: 2016-04-01 | AK44: 2016-04-30 | AL44: 0 | AM44: 1 | AN44: 0 | AO44: =IF('DA 1.2'!B88=2,0,IF(AN44=1,I44-J44,0)) -> 0 | AQ44: 4.134 | AR44: 41.3382 | BB44: 2017-12-01 | BC44: 0 | BD44: 2018-12-01 | BE44: 0
B45: 2016-02-09 | C45: 38130 | D45: 2 | E45: 29 | F45: 1314.827586 | G45: 0.1834 | H45: 0.15196 | I45: 241.1393793 | J45: 199.8012 | K45: 41.33817931 | L45: 2016-01-01 | M45: 2016-09-30 | N45: 38130 | O45: 38130 | P45: 2016-10-01 | Q45: 2016-12-31 | R45: 39160 | S45: 0 | T45: 2017-01-01 | U45: 2017-03-31 | V45: 39160 | W45: 0 | X45: 2017-10-01 | Y45: 2017-03-31 | Z45: 39160 | AA45: 0 | AB45: 2017-12-01 | AC45: 2017-03-31 | AD45: 39160 | AE45: 0 | AF45: 2018-12-02 | AG45: 2017-02-28 | AH45: 39160 | AI45: 0 | AJ45: 2016-04-01 | AK45: 2016-04-30 | AL45: 0 | AM45: 1 | AN45: 0 | AO45: =IF('DA 1.2'!B89=2,0,IF(AN45=1,I45-J45,0)) -> 0 | AQ45: 4.134 | AR45: 41.3382 | AT45: AAS | AU45: =AT33 -> 0 | AV45: =ROUND(AU45*G37,0) -> 0 | AW45: =ROUND((AU45*H37),0) -> 0 | AX45: =AV45-AW45 -> 0 | BB45: 2017-12-01 | BC45: 0 | BD45: 2018-12-01 | BE45: 0
B46: 2016-02-10 | C46: 38130 | D46: 2 | E46: 29 | F46: 1314.827586 | G46: 0.1834 | H46: 0.15196 | I46: 241.1393793 | J46: 199.8012 | K46: 41.33817931 | L46: 2016-01-01 | M46: 2016-09-30 | N46: 38130 | O46: 38130 | P46: 2016-10-01 | Q46: 2016-12-31 | R46: 39160 | S46: 0 | T46: 2017-01-01 | U46: 2017-03-31 | V46: 39160 | W46: 0 | X46: 2017-10-01 | Y46: 2017-03-31 | Z46: 39160 | AA46: 0 | AB46: 2017-12-01 | AC46: 2017-03-31 | AD46: 39160 | AE46: 0 | AF46: 2018-12-02 | AG46: 2017-02-28 | AH46: 39160 | AI46: 0 | AJ46: 2016-04-01 | AK46: 2016-04-30 | AL46: 0 | AM46: 1 | AN46: 0 | AO46: =IF('DA 1.2'!B90=2,0,IF(AN46=1,I46-J46,0)) -> 0 | AQ46: 4.134 | AR46: 41.3382 | AU46: =AT34 -> 0 | AV46: =ROUND(AU46*G38,0) -> 0 | AW46: =ROUND((AU46*H38),0) -> 0 | AX46: =AV46-AW46 -> 0 | BB46: 2017-12-01 | BC46: 0 | BD46: 2018-12-01 | BE46: 0
B47: 2016-02-11 | C47: 38130 | D47: 2 | E47: 29 | F47: 1314.827586 | G47: 0.1834 | H47: 0.15196 | I47: 241.1393793 | J47: 199.8012 | K47: 41.33817931 | L47: 2016-01-01 | M47: 2016-09-30 | N47: 38130 | O47: 38130 | P47: 2016-10-01 | Q47: 2016-12-31 | R47: 39160 | S47: 0 | T47: 2017-01-01 | U47: 2017-03-31 | V47: 39160 | W47: 0 | X47: 2017-10-01 | Y47: 2017-03-31 | Z47: 39160 | AA47: 0 | AB47: 2017-12-01 | AC47: 2017-03-31 | AD47: 39160 | AE47: 0 | AF47: 2018-12-02 | AG47: 2017-02-28 | AH47: 39160 | AI47: 0 | AJ47: 2016-04-01 | AK47: 2016-04-30 | AL47: 0 | AM47: 1 | AN47: 0 | AO47: =IF('DA 1.2'!B91=2,0,IF(AN47=1,I47-J47,0)) -> 0 | AQ47: 4.134 | AR47: 41.3382 | AX47: =AX45-AX46 -> 0 | BB47: 2017-12-01 | BC47: 0 | BD47: 2018-12-01 | BE47: 0
B48: 2016-02-12 | C48: 38130 | D48: 2 | E48: 29 | F48: 1314.827586 | G48: 0.1834 | H48: 0.15196 | I48: 241.1393793 | J48: 199.8012 | K48: 41.33817931 | L48: 2016-01-01 | M48: 2016-09-30 | N48: 38130 | O48: 38130 | P48: 2016-10-01 | Q48: 2016-12-31 | R48: 39160 | S48: 0 | T48: 2017-01-01 | U48: 2017-03-31 | V48: 39160 | W48: 0 | X48: 2017-10-01 | Y48: 2017-03-31 | Z48: 39160 | AA48: 0 | AB48: 2017-12-01 | AC48: 2017-03-31 | AD48: 39160 | AE48: 0 | AF48: 2018-12-02 | AG48: 2017-02-28 | AH48: 39160 | AI48: 0 | AJ48: 2016-04-01 | AK48: 2016-04-30 | AL48: 0 | AM48: 1 | AN48: 0 | AO48: =IF('DA 1.2'!B92=2,0,IF(AN48=1,I48-J48,0)) -> 0 | AQ48: 4.134 | AR48: 41.3382 | AX48: =ROUND((AX47/AS36)*AT36,0) -> 0 | BB48: 2017-12-01 | BC48: 0 | BD48: 2018-12-01 | BE48: 0
B49: 2016-02-13 | C49: 38130 | D49: 2 | E49: 29 | F49: 1314.827586 | G49: 0.1834 | H49: 0.15196 | I49: 241.1393793 | J49: 199.8012 | K49: 41.33817931 | L49: 2016-01-01 | M49: 2016-09-30 | N49: 38130 | O49: 38130 | P49: 2016-10-01 | Q49: 2016-12-31 | R49: 39160 | S49: 0 | T49: 2017-01-01 | U49: 2017-03-31 | V49: 39160 | W49: 0 | X49: 2017-10-01 | Y49: 2017-03-31 | Z49: 39160 | AA49: 0 | AB49: 2017-12-01 | AC49: 2017-03-31 | AD49: 39160 | AE49: 0 | AF49: 2018-12-02 | AG49: 2017-02-28 | AH49: 39160 | AI49: 0 | AJ49: 2016-04-01 | AK49: 2016-04-30 | AL49: 0 | AM49: 1 | AN49: 0 | AO49: =IF('DA 1.2'!B93=2,0,IF(AN49=1,I49-J49,0)) -> 0 | AQ49: 4.134 | AR49: 41.3382 | BB49: 2017-12-01 | BC49: 0 | BD49: 2018-12-01 | BE49: 0
B50: 2016-02-14 | C50: 38130 | D50: 2 | E50: 29 | F50: 1314.827586 | G50: 0.1834 | H50: 0.15196 | I50: 241.1393793 | J50: 199.8012 | K50: 41.33817931 | L50: 2016-01-01 | M50: 2016-09-30 | N50: 38130 | O50: 38130 | P50: 2016-10-01 | Q50: 2016-12-31 | R50: 39160 | S50: 0 | T50: 2017-01-01 | U50: 2017-03-31 | V50: 39160 | W50: 0 | X50: 2017-10-01 | Y50: 2017-03-31 | Z50: 39160 | AA50: 0 | AB50: 2017-12-01 | AC50: 2017-03-31 | AD50: 39160 | AE50: 0 | AF50: 2018-12-02 | AG50: 2017-02-28 | AH50: 39160 | AI50: 0 | AJ50: 2016-04-01 | AK50: 2016-04-30 | AL50: 0 | AM50: 1 | AN50: 0 | AO50: =IF('DA 1.2'!B94=2,0,IF(AN50=1,I50-J50,0)) -> 0 | AQ50: 4.134 | AR50: 41.3382 | BB50: 2017-12-01 | BC50: 0 | BD50: 2018-12-01 | BE50: 0
B51: 2016-02-15 | C51: 38130 | D51: 2 | E51: 29 | F51: 1314.827586 | G51: 0.1834 | H51: 0.15196 | I51: 241.1393793 | J51: 199.8012 | K51: 41.33817931 | L51: 2016-01-01 | M51: 2016-09-30 | N51: 38130 | O51: 38130 | P51: 2016-10-01 | Q51: 2016-12-31 | R51: 39160 | S51: 0 | T51: 2017-01-01 | U51: 2017-03-31 | V51: 39160 | W51: 0 | X51: 2017-10-01 | Y51: 2017-03-31 | Z51: 39160 | AA51: 0 | AB51: 2017-12-01 | AC51: 2017-03-31 | AD51: 39160 | AE51: 0 | AF51: 2018-12-02 | AG51: 2017-02-28 | AH51: 39160 | AI51: 0 | AJ51: 2016-04-01 | AK51: 2016-04-30 | AL51: 0 | AM51: 1 | AN51: 0 | AO51: =IF('DA 1.2'!B95=2,0,IF(AN51=1,I51-J51,0)) -> 0 | AQ51: 4.134 | AR51: 41.3382 | BB51: 2017-12-01 | BC51: 0 | BD51: 2018-12-01 | BE51: 0
B52: 2016-02-16 | C52: 38130 | D52: 2 | E52: 29 | F52: 1314.827586 | G52: 0.1834 | H52: 0.15196 | I52: 241.1393793 | J52: 199.8012 | K52: 41.33817931 | L52: 2016-01-01 | M52: 2016-09-30 | N52: 38130 | O52: 38130 | P52: 2016-10-01 | Q52: 2016-12-31 | R52: 39160 | S52: 0 | T52: 2017-01-01 | U52: 2017-03-31 | V52: 39160 | W52: 0 | X52: 2017-10-01 | Y52: 2017-03-31 | Z52: 39160 | AA52: 0 | AB52: 2017-12-01 | AC52: 2017-03-31 | AD52: 39160 | AE52: 0 | AF52: 2018-12-02 | AG52: 2017-02-28 | AH52: 39160 | AI52: 0 | AJ52: 2016-04-01 | AK52: 2016-04-30 | AL52: 0 | AM52: 1 | AN52: 0 | AO52: =IF('DA 1.2'!B96=2,0,IF(AN52=1,I52-J52,0)) -> 0 | AQ52: 4.134 | AR52: 41.3382 | BB52: 2017-12-01 | BC52: 0 | BD52: 2018-12-01 | BE52: 0
B53: 2016-02-17 | C53: 38130 | D53: 2 | E53: 29 | F53: 1314.827586 | G53: 0.1834 | H53: 0.15196 | I53: 241.1393793 | J53: 199.8012 | K53: 41.33817931 | L53: 2016-01-01 | M53: 2016-09-30 | N53: 38130 | O53: 38130 | P53: 2016-10-01 | Q53: 2016-12-31 | R53: 39160 | S53: 0 | T53: 2017-01-01 | U53: 2017-03-31 | V53: 39160 | W53: 0 | X53: 2017-10-01 | Y53: 2017-03-31 | Z53: 39160 | AA53: 0 | AB53: 2017-12-01 | AC53: 2017-03-31 | AD53: 39160 | AE53: 0 | AF53: 2018-12-02 | AG53: 2017-02-28 | AH53: 39160 | AI53: 0 | AJ53: 2016-04-01 | AK53: 2016-04-30 | AL53: 0 | AM53: 1 | AN53: 0 | AO53: =IF('DA 1.2'!B97=2,0,IF(AN53=1,I53-J53,0)) -> 0 | AQ53: 4.134 | AR53: 41.3382 | BB53: 2017-12-01 | BC53: 0 | BD53: 2018-12-01 | BE53: 0
B54: 2016-02-18 | C54: 38130 | D54: 2 | E54: 29 | F54: 1314.827586 | G54: 0.1834 | H54: 0.15196 | I54: 241.1393793 | J54: 199.8012 | K54: 41.33817931 | L54: 2016-01-01 | M54: 2016-09-30 | N54: 38130 | O54: 38130 | P54: 2016-10-01 | Q54: 2016-12-31 | R54: 39160 | S54: 0 | T54: 2017-01-01 | U54: 2017-03-31 | V54: 39160 | W54: 0 | X54: 2017-10-01 | Y54: 2017-03-31 | Z54: 39160 | AA54: 0 | AB54: 2017-12-01 | AC54: 2017-03-31 | AD54: 39160 | AE54: 0 | AF54: 2018-12-02 | AG54: 2017-02-28 | AH54: 39160 | AI54: 0 | AJ54: 2016-04-01 | AK54: 2016-04-30 | AL54: 0 | AM54: 1 | AN54: 0 | AO54: =IF('DA 1.2'!B98=2,0,IF(AN54=1,I54-J54,0)) -> 0 | AQ54: 4.134 | AR54: 41.3382 | BB54: 2017-12-01 | BC54: 0 | BD54: 2018-12-01 | BE54: 0
B55: 2016-02-19 | C55: 38130 | D55: 2 | E55: 29 | F55: 1314.827586 | G55: 0.1834 | H55: 0.15196 | I55: 241.1393793 | J55: 199.8012 | K55: 41.33817931 | L55: 2016-01-01 | M55: 2016-09-30 | N55: 38130 | O55: 38130 | P55: 2016-10-01 | Q55: 2016-12-31 | R55: 39160 | S55: 0 | T55: 2017-01-01 | U55: 2017-03-31 | V55: 39160 | W55: 0 | X55: 2017-10-01 | Y55: 2017-03-31 | Z55: 39160 | AA55: 0 | AB55: 2017-12-01 | AC55: 2017-03-31 | AD55: 39160 | AE55: 0 | AF55: 2018-12-02 | AG55: 2017-02-28 | AH55: 39160 | AI55: 0 | AJ55: 2016-04-01 | AK55: 2016-04-30 | AL55: 0 | AM55: 1 | AN55: 0 | AO55: =IF('DA 1.2'!B99=2,0,IF(AN55=1,I55-J55,0)) -> 0 | AQ55: 4.134 | AR55: 41.3382 | BB55: 2017-12-01 | BC55: 0 | BD55: 2018-12-01 | BE55: 0
B56: 2016-02-20 | C56: 38130 | D56: 2 | E56: 29 | F56: 1314.827586 | G56: =G55 -> 0.1834 | H56: 0.15196 | I56: 241.1393793 | J56: 199.8012 | K56: 41.33817931 | L56: =L55 -> 2016-01-01 | M56: 2016-09-30 | N56: 38130 | O56: 38130 | P56: =P55 -> 2016-10-01 | Q56: 2016-12-31 | R56: 39160 | S56: 0 | T56: =T55 -> 2017-01-01 | U56: 2017-03-31 | V56: 39160 | W56: 0 | X56: =X55 -> 2017-10-01 | Y56: 2017-03-31 | Z56: 39160 | AA56: 0 | AB56: 2017-12-01 | AC56: 2017-03-31 | AD56: 39160 | AE56: 0 | AF56: 2018-12-02 | AG56: 2017-02-28 | AH56: 39160 | AI56: 0 | AJ56: =AJ55 -> 2016-04-01 | AK56: 2016-04-30 | AL56: 0 | AM56: 1 | AN56: 0 | AO56: =IF('DA 1.2'!B100=2,0,IF(AN56=1,I56-J56,0)) -> 0 | AQ56: 4.134 | AR56: 41.3382 | BB56: 2017-12-01 | BC56: 0 | BD56: 2018-12-01 | BE56: 0
B57: 2016-02-21 | C57: 38130 | D57: 2 | E57: 29 | F57: 1314.827586 | G57: 0.1834 | H57: 0.15196 | I57: 241.1393793 | J57: 199.8012 | K57: 41.33817931 | L57: 2016-01-01 | M57: 2016-09-30 | N57: 38130 | O57: 38130 | P57: 2016-10-01 | Q57: 2016-12-31 | R57: 39160 | S57: 0 | T57: 2017-01-01 | U57: 2017-03-31 | V57: 39160 | W57: 0 | X57: 2017-10-01 | Y57: 2017-03-31 | Z57: 39160 | AA57: 0 | AB57: 2017-12-01 | AC57: 2017-03-31 | AD57: 39160 | AE57: 0 | AF57: 2018-12-02 | AG57: 2017-02-28 | AH57: 39160 | AI57: 0 | AJ57: 2016-04-01 | AK57: 2016-04-30 | AL57: 0 | AM57: 1 | AN57: 0 | AO57: =IF('DA 1.2'!B101=2,0,IF(AN57=1,I57-J57,0)) -> 0 | AQ57: 4.134 | AR57: 41.3382 | BB57: 2017-12-01 | BC57: 0 | BD57: 2018-12-01 | BE57: 0
B58: 2016-02-22 | C58: 38130 | D58: 2 | E58: 29 | F58: 1314.827586 | G58: 0.1834 | H58: 0.15196 | I58: 241.1393793 | J58: 199.8012 | K58: 41.33817931 | L58: 2016-01-01 | M58: 2016-09-30 | N58: 38130 | O58: 38130 | P58: 2016-10-01 | Q58: 2016-12-31 | R58: 39160 | S58: 0 | T58: 2017-01-01 | U58: 2017-03-31 | V58: 39160 | W58: 0 | X58: 2017-10-01 | Y58: 2017-03-31 | Z58: 39160 | AA58: 0 | AB58: 2017-12-01 | AC58: 2017-03-31 | AD58: 39160 | AE58: 0 | AF58: 2018-12-02 | AG58: 2017-02-28 | AH58: 39160 | AI58: 0 | AJ58: 2016-04-01 | AK58: 2016-04-30 | AL58: 0 | AM58: 1 | AN58: 0 | AO58: =IF('DA 1.2'!B102=2,0,IF(AN58=1,I58-J58,0)) -> 0 | AQ58: 4.134 | AR58: 41.3382 | BB58: 2017-12-01 | BC58: 0 | BD58: 2018-12-01 | BE58: 0
B59: 2016-02-23 | C59: 38130 | D59: 2 | E59: 29 | F59: 1314.827586 | G59: 0.1834 | H59: 0.15196 | I59: 241.1393793 | J59: 199.8012 | K59: 41.33817931 | L59: 2016-01-01 | M59: 2016-09-30 | N59: 38130 | O59: 38130 | P59: 2016-10-01 | Q59: 2016-12-31 | R59: 39160 | S59: 0 | T59: 2017-01-01 | U59: 2017-03-31 | V59: 39160 | W59: 0 | X59: 2017-10-01 | Y59: 2017-03-31 | Z59: 39160 | AA59: 0 | AB59: 2017-12-01 | AC59: 2017-03-31 | AD59: 39160 | AE59: 0 | AF59: 2018-12-02 | AG59: 2017-02-28 | AH59: 39160 | AI59: 0 | AJ59: 2016-04-01 | AK59: 2016-04-30 | AL59: 0 | AM59: 1 | AN59: 0 | AO59: =IF('DA 1.2'!B103=2,0,IF(AN59=1,I59-J59,0)) -> 0 | AQ59: 4.134 | AR59: 41.3382
B60: 2016-02-24 | C60: 38130 | D60: 2 | E60: 29 | F60: 1314.827586 | G60: 0.1834 | H60: 0.15196 | I60: 241.1393793 | J60: 199.8012 | K60: 41.33817931 | L60: 2016-01-01 | M60: 2016-09-30 | N60: 38130 | O60: 38130 | P60: 2016-10-01 | Q60: 2016-12-31 | R60: 39160 | S60: 0 | T60: 2017-01-01 | U60: 2017-03-31 | V60: 39160 | W60: 0 | X60: 2017-10-01 | Y60: 2017-03-31 | Z60: 39160 | AA60: 0 | AB60: 2017-12-01 | AC60: 2017-03-31 | AD60: 39160 | AE60: 0 | AF60: 2018-12-02 | AG60: 2017-02-28 | AH60: 39160 | AI60: 0 | AJ60: 2016-04-01 | AK60: 2016-04-30 | AL60: 0 | AM60: 1 | AN60: 0 | AO60: =IF('DA 1.2'!B104=2,0,IF(AN60=1,I60-J60,0)) -> 0 | AQ60: 4.134 | AR60: 41.3382
B61: 2016-02-25 | C61: 38130 | D61: 2 | E61: 29 | F61: 1314.827586 | G61: 0.1834 | H61: 0.15196 | I61: 241.1393793 | J61: 199.8012 | K61: 41.33817931 | L61: 2016-01-01 | M61: 2016-09-30 | N61: 38130 | O61: 38130 | P61: 2016-10-01 | Q61: 2016-12-31 | R61: 39160 | S61: 0 | T61: 2017-01-01 | U61: 2017-03-31 | V61: 39160 | W61: 0 | X61: 2017-10-01 | Y61: 2017-03-31 | Z61: 39160 | AA61: 0 | AB61: 2017-12-01 | AC61: 2017-03-31 | AD61: 39160 | AE61: 0 | AF61: 2018-12-02 | AG61: 2017-02-28 | AH61: 39160 | AI61: 0 | AJ61: 2016-04-01 | AK61: 2016-04-30 | AL61: 0 | AM61: 1 | AN61: 0 | AO61: =IF('DA 1.2'!B105=2,0,IF(AN61=1,I61-J61,0)) -> 0 | AQ61: 4.134 | AR61: 41.3382
B62: 2016-02-26 | C62: 38130 | D62: 2 | E62: 29 | F62: 1314.827586 | G62: 0.1834 | H62: 0.15196 | I62: 241.1393793 | J62: 199.8012 | K62: 41.33817931 | L62: 2016-01-01 | M62: 2016-09-30 | N62: 38130 | O62: 38130 | P62: 2016-10-01 | Q62: 2016-12-31 | R62: 39160 | S62: 0 | T62: 2017-01-01 | U62: 2017-03-31 | V62: 39160 | W62: 0 | X62: 2017-10-01 | Y62: 2017-03-31 | Z62: 39160 | AA62: 0 | AB62: 2017-12-01 | AC62: 2017-03-31 | AD62: 39160 | AE62: 0 | AF62: 2018-12-02 | AG62: 2017-02-28 | AH62: 39160 | AI62: 0 | AJ62: 2016-04-01 | AK62: 2016-04-30 | AL62: 0 | AM62: 1 | AN62: 0 | AO62: =IF('DA 1.2'!B106=2,0,IF(AN62=1,I62-J62,0)) -> 0 | AQ62: 4.134 | AR62: 41.3382
B63: 2016-02-27 | C63: 38130 | D63: 2 | E63: 29 | F63: 1314.827586 | G63: 0.1834 | H63: 0.15196 | I63: 241.1393793 | J63: 199.8012 | K63: 41.33817931 | L63: 2016-01-01 | M63: 2016-09-30 | N63: 38130 | O63: 38130 | P63: 2016-10-01 | Q63: 2016-12-31 | R63: 39160 | S63: 0 | T63: 2017-01-01 | U63: 2017-03-31 | V63: 39160 | W63: 0 | X63: 2017-10-01 | Y63: 2017-03-31 | Z63: 39160 | AA63: 0 | AB63: 2017-12-01 | AC63: 2017-03-31 | AD63: 39160 | AE63: 0 | AF63: 2018-12-02 | AG63: 2017-02-28 | AH63: 39160 | AI63: 0 | AJ63: 2016-04-01 | AK63: 2016-04-30 | AL63: 0 | AM63: 1 | AN63: 0 | AO63: =IF('DA 1.2'!B107=2,0,IF(AN63=1,I63-J63,0)) -> 0 | AQ63: 4.134 | AR63: 41.3382
B64: 2016-02-28 | C64: 38130 | D64: 2 | E64: 29 | F64: 1314.827586 | G64: 0.1834 | H64: 0.15196 | I64: 241.1393793 | J64: 199.8012 | K64: 41.33817931 | L64: 2016-01-01 | M64: 2016-09-30 | N64: 38130 | O64: 38130 | P64: 2016-10-01 | Q64: 2016-12-31 | R64: 39160 | S64: 0 | T64: 2017-01-01 | U64: 2017-03-31 | V64: 39160 | W64: 0 | X64: 2017-10-01 | Y64: 2017-03-31 | Z64: 39160 | AA64: 0 | AB64: 2017-12-01 | AC64: 2017-03-31 | AD64: 39160 | AE64: 0 | AF64: 2018-12-02 | AG64: 2017-02-28 | AH64: 39160 | AI64: 0 | AJ64: 2016-04-01 | AK64: 2016-04-30 | AL64: 0 | AM64: 1 | AN64: 0 | AO64: =IF('DA 1.2'!B108=2,0,IF(AN64=1,I64-J64,0)) -> 0 | AQ64: 4.134 | AR64: 41.3382
B65: 2016-02-29 | C65: 38130 | D65: 2 | E65: 29 | F65: 1314.827586 | G65: 0.1834 | H65: 0.15196 | I65: 241.1393793 | J65: 199.8012 | K65: 41.33817931 | L65: 2016-01-01 | M65: 2016-09-30 | N65: 38130 | O65: 38130 | P65: 2016-10-01 | Q65: 2016-12-31 | R65: 39160 | S65: 0 | T65: 2017-01-01 | U65: 2017-03-31 | V65: 39160 | W65: 0 | X65: 2017-10-01 | Y65: 2017-03-31 | Z65: 39160 | AA65: 0 | AB65: 2017-12-01 | AC65: 2017-03-31 | AD65: 39160 | AE65: 0 | AF65: 2018-12-02 | AG65: 2017-02-28 | AH65: 39160 | AI65: 0 | AJ65: 2016-04-01 | AK65: 2016-04-30 | AL65: 0 | AM65: 1 | AN65: 0 | AO65: =IF('DA 1.2'!B109=2,0,IF(AN65=1,I65-J65,0)) -> 0 | AQ65: 4.134 | AR65: 41.3382
B66: 2016-03-01 | C66: 38130 | D66: 3 | E66: 31 | F66: 1230 | G66: 0.1834 | H66: 0.15196 | I66: 225.582 | J66: 186.9108 | K66: 38.6712 | L66: 2016-01-01 | M66: 2016-09-30 | N66: 38130 | O66: 38130 | P66: 2016-10-01 | Q66: 2016-12-31 | R66: 39160 | S66: 0 | T66: 2017-01-01 | U66: 2017-03-31 | V66: 39160 | W66: 0 | X66: 2017-10-01 | Y66: 2017-03-31 | Z66: 39160 | AA66: 0 | AB66: 2017-12-01 | AC66: 2017-03-31 | AD66: 39160 | AE66: 0 | AF66: 2018-12-02 | AG66: 2017-02-28 | AH66: 39160 | AI66: 0 | AJ66: 2016-04-01 | AK66: 2016-04-30 | AL66: 0 | AM66: 1 | AN66: 0 | AO66: =IF('DA 1.2'!B110=2,0,IF(AN66=1,I66-J66,0)) -> 0 | AQ66: 3.867 | AR66: 38.6712
B67: 2016-03-02 | C67: 38130 | D67: 3 | E67: 31 | F67: 1230 | G67: 0.1834 | H67: 0.15196 | I67: 225.582 | J67: 186.9108 | K67: 38.6712 | L67: 2016-01-01 | M67: 2016-09-30 | N67: 38130 | O67: 38130 | P67: 2016-10-01 | Q67: 2016-12-31 | R67: 39160 | S67: 0 | T67: 2017-01-01 | U67: 2017-03-31 | V67: 39160 | W67: 0 | X67: 2017-10-01 | Y67: 2017-03-31 | Z67: 39160 | AA67: 0 | AB67: 2017-12-01 | AC67: 2017-03-31 | AD67: 39160 | AE67: 0 | AF67: 2018-12-02 | AG67: 2017-02-28 | AH67: 39160 | AI67: 0 | AJ67: 2016-04-01 | AK67: 2016-04-30 | AL67: 0 | AM67: 1 | AN67: 0 | AO67: =IF('DA 1.2'!B111=2,0,IF(AN67=1,I67-J67,0)) -> 0 | AQ67: 3.867 | AR67: 38.6712
B68: 2016-03-03 | C68: 38130 | D68: 3 | E68: 31 | F68: 1230 | G68: 0.1834 | H68: 0.15196 | I68: 225.582 | J68: 186.9108 | K68: 38.6712 | L68: 2016-01-01 | M68: 2016-09-30 | N68: 38130 | O68: 38130 | P68: 2016-10-01 | Q68: 2016-12-31 | R68: 39160 | S68: 0 | T68: 2017-01-01 | U68: 2017-03-31 | V68: 39160 | W68: 0 | X68: 2017-10-01 | Y68: 2017-03-31 | Z68: 39160 | AA68: 0 | AB68: 2017-12-01 | AC68: 2017-03-31 | AD68: 39160 | AE68: 0 | AF68: 2018-12-02 | AG68: 2017-02-28 | AH68: 39160 | AI68: 0 | AJ68: 2016-04-01 | AK68: 2016-04-30 | AL68: 0 | AM68: 1 | AN68: 0 | AO68: =IF('DA 1.2'!B112=2,0,IF(AN68=1,I68-J68,0)) -> 0 | AQ68: 3.867 | AR68: 38.6712
B69: 2016-03-04 | C69: 38130 | D69: 3 | E69: 31 | F69: 1230 | G69: 0.1834 | H69: 0.15196 | I69: 225.582 | J69: 186.9108 | K69: 38.6712 | L69: 2016-01-01 | M69: 2016-09-30 | N69: 38130 | O69: 38130 | P69: 2016-10-01 | Q69: 2016-12-31 | R69: 39160 | S69: 0 | T69: 2017-01-01 | U69: 2017-03-31 | V69: 39160 | W69: 0 | X69: 2017-10-01 | Y69: 2017-03-31 | Z69: 39160 | AA69: 0 | AB69: 2017-12-01 | AC69: 2017-03-31 | AD69: 39160 | AE69: 0 | AF69: 2018-12-02 | AG69: 2017-02-28 | AH69: 39160 | AI69: 0 | AJ69: 2016-04-01 | AK69: 2016-04-30 | AL69: 0 | AM69: 1 | AN69: 0 | AO69: =IF('DA 1.2'!B113=2,0,IF(AN69=1,I69-J69,0)) -> 0 | AQ69: 3.867 | AR69: 38.6712
B70: 2016-03-05 | C70: 38130 | D70: 3 | E70: 31 | F70: =C70/E70 -> 1230 | G70: 0.1834 | H70: 0.15196 | I70: =F70*G70 -> 225.582 | J70: =F70*H70 -> 186.9108 | K70: 38.6712 | L70: 2016-01-01 | M70: 2016-09-30 | N70: 38130 | O70: 38130 | P70: 2016-10-01 | Q70: 2016-12-31 | R70: 39160 | S70: 0 | T70: 2017-01-01 | U70: 2017-03-31 | V70: 39160 | W70: 0 | X70: 2017-10-01 | Y70: 2017-03-31 | Z70: 39160 | AA70: 0 | AB70: 2017-12-01 | AC70: 2017-03-31 | AD70: 39160 | AE70: 0 | AF70: 2018-12-02 | AG70: 2017-02-28 | AH70: 39160 | AI70: 0 | AJ70: 2016-04-01 | AK70: 2016-04-30 | AL70: 0 | AM70: 1 | AN70: 0 | AO70: =IF('DA 1.2'!B114=2,0,IF(AN70=1,I70-J70,0)) -> 0 | AQ70: 3.867 | AR70: 38.6712
B71: 2016-03-06 | C71: =O71+S71+W71+AA71+AE71+AI71 -> 38130 | D71: =MONTH(B71) -> 3 | E71: =IF(D71=1,31,IF(D71=2,28,IF(D71=3,31,IF(D71=5,31,IF(D71=7,31,IF(D71=8,31,IF(D71=10,31,IF(D71=12,31,30)))))))) -> 31 | F71: 1230 | G71: 0.1834 | H71: 0.15196 | I71: 225.582 | J71: 186.9108 | K71: =I71-J71 -> 38.6712 | L71: 2016-01-01 | M71: 2016-09-30 | N71: 38130 | O71: =IF(M71>=B71,N71,0) -> 38130 | P71: 2016-10-01 | Q71: 2016-12-31 | R71: 39160 | S71: =IF(O71>0,0,IF(Q71>=B71,R71,0)) -> 0 | T71: 2017-01-01 | U71: 2017-03-31 | V71: 39160 | W71: =IF(T71>U71,0,IF(O71>0,0,IF(S71>0,0,IF(U71>=B71,V71,0)))) -> 0 | X71: 2017-10-01 | Y71: 2017-03-31 | Z71: 39160 | AA71: =IF(X71>=Y71,0,IF(O71>0,0,IF(S71>0,0,IF(W71>0,0,IF(Y71>=B71,Z71,0))))) -> 0 | AB71: 2017-12-01 | AC71: 2017-03-31 | AD71: 39160 | AE71: =IF(O71>0,0,IF(AB71>=AC71,0,IF(S71>0,0,IF(W71>0,0,IF(AA71>0,0,IF(AC71>=B71,AD71,0)))))) -> 0 | AF71: 2018-12-02 | AG71: 2017-02-28 | AH71: 39160 | AI71: =IF(O71>0,0,IF(S71>0,0,IF(AF71>=AG71,0,IF(W71>0,0,IF(AA71>0,0,IF(AE71>0,0,IF(AG71>=B71,AH71,0))))))) -> 0 | AJ71: 2016-04-01 | AK71: 2016-04-30 | AL71: =IF(B71>=AJ71,1,0) -> 0 | AM71: =IF(B71<=AK71,1,0) -> 1 | AN71: =IF(SUM(AL71:AM71)=2,1,0) -> 0 | AO71: =IF('DA 1.2'!B115=2,0,IF(AN71=1,I71-J71,0)) -> 0 | AQ71: =ROUND(K71*10%,3) -> 3.867 | AR71: =ROUND(K71,4) -> 38.6712
B72: 2016-03-07 | C72: 38130 | D72: 3 | E72: 31 | F72: 1230 | G72: =G71 -> 0.1834 | H72: 0.15196 | I72: 225.582 | J72: 186.9108 | K72: 38.6712 | L72: =L71 -> 2016-01-01 | M72: 2016-09-30 | N72: 38130 | O72: 38130 | P72: =P71 -> 2016-10-01 | Q72: 2016-12-31 | R72: 39160 | S72: 0 | T72: =T71 -> 2017-01-01 | U72: 2017-03-31 | V72: 39160 | W72: 0 | X72: =X71 -> 2017-10-01 | Y72: 2017-03-31 | Z72: 39160 | AA72: 0 | AB72: =AB71 -> 2017-12-01 | AC72: =AC71 -> 2017-03-31 | AD72: =AD71 -> 39160 | AE72: 0 | AF72: =AF71 -> 2018-12-02 | AG72: =AG71 -> 2017-02-28 | AH72: =AH71 -> 39160 | AI72: 0 | AJ72: =AJ71 -> 2016-04-01 | AK72: 2016-04-30 | AL72: 0 | AM72: 1 | AN72: 0 | AO72: =IF('DA 1.2'!B116=2,0,IF(AN72=1,I72-J72,0)) -> 0 | AQ72: 3.867 | AR72: 38.6712
B73: 2016-03-08 | C73: 38130 | D73: 3 | E73: 31 | F73: 1230 | G73: 0.1834 | H73: 0.15196 | I73: 225.582 | J73: 186.9108 | K73: 38.6712 | L73: 2016-01-01 | M73: 2016-09-30 | N73: 38130 | O73: 38130 | P73: 2016-10-01 | Q73: 2016-12-31 | R73: 39160 | S73: 0 | T73: 2017-01-01 | U73: 2017-03-31 | V73: 39160 | W73: 0 | X73: 2017-10-01 | Y73: 2017-03-31 | Z73: 39160 | AA73: 0 | AB73: 2017-12-01 | AC73: 2017-03-31 | AD73: 39160 | AE73: 0 | AF73: 2018-12-02 | AG73: 2017-02-28 | AH73: 39160 | AI73: 0 | AJ73: 2016-04-01 | AK73: 2016-04-30 | AL73: 0 | AM73: 1 | AN73: 0 | AO73: =IF('DA 1.2'!B117=2,0,IF(AN73=1,I73-J73,0)) -> 0 | AQ73: 3.867 | AR73: 38.6712
B74: 2016-03-09 | C74: 38130 | D74: 3 | E74: 31 | F74: 1230 | G74: 0.1834 | H74: 0.15196 | I74: 225.582 | J74: 186.9108 | K74: 38.6712 | L74: 2016-01-01 | M74: 2016-09-30 | N74: 38130 | O74: 38130 | P74: 2016-10-01 | Q74: 2016-12-31 | R74: 39160 | S74: 0 | T74: 2017-01-01 | U74: 2017-03-31 | V74: 39160 | W74: 0 | X74: 2017-10-01 | Y74: 2017-03-31 | Z74: 39160 | AA74: 0 | AB74: 2017-12-01 | AC74: 2017-03-31 | AD74: 39160 | AE74: 0 | AF74: 2018-12-02 | AG74: 2017-02-28 | AH74: 39160 | AI74: 0 | AJ74: 2016-04-01 | AK74: 2016-04-30 | AL74: 0 | AM74: 1 | AN74: 0 | AO74: =IF('DA 1.2'!B118=2,0,IF(AN74=1,I74-J74,0)) -> 0 | AQ74: 3.867 | AR74: 38.6712
B75: 2016-03-10 | C75: 38130 | D75: 3 | E75: 31 | F75: 1230 | G75: 0.1834 | H75: 0.15196 | I75: 225.582 | J75: 186.9108 | K75: 38.6712 | L75: 2016-01-01 | M75: 2016-09-30 | N75: 38130 | O75: 38130 | P75: 2016-10-01 | Q75: 2016-12-31 | R75: 39160 | S75: 0 | T75: 2017-01-01 | U75: 2017-03-31 | V75: 39160 | W75: 0 | X75: 2017-10-01 | Y75: 2017-03-31 | Z75: 39160 | AA75: 0 | AB75: 2017-12-01 | AC75: 2017-03-31 | AD75: 39160 | AE75: 0 | AF75: 2018-12-02 | AG75: 2017-02-28 | AH75: 39160 | AI75: 0 | AJ75: 2016-04-01 | AK75: 2016-04-30 | AL75: 0 | AM75: 1 | AN75: 0 | AO75: =IF('DA 1.2'!B119=2,0,IF(AN75=1,I75-J75,0)) -> 0 | AQ75: 3.867 | AR75: 38.6712
B76: 2016-03-11 | C76: 38130 | D76: 3 | E76: 31 | F76: 1230 | G76: 0.1834 | H76: 0.15196 | I76: 225.582 | J76: 186.9108 | K76: 38.6712 | L76: 2016-01-01 | M76: 2016-09-30 | N76: 38130 | O76: 38130 | P76: 2016-10-01 | Q76: 2016-12-31 | R76: 39160 | S76: 0 | T76: 2017-01-01 | U76: 2017-03-31 | V76: 39160 | W76: 0 | X76: 2017-10-01 | Y76: 2017-03-31 | Z76: 39160 | AA76: 0 | AB76: 2017-12-01 | AC76: 2017-03-31 | AD76: 39160 | AE76: 0 | AF76: 2018-12-02 | AG76: 2017-02-28 | AH76: 39160 | AI76: 0 | AJ76: 2016-04-01 | AK76: 2016-04-30 | AL76: 0 | AM76: 1 | AN76: 0 | AO76: =IF('DA 1.2'!B120=2,0,IF(AN76=1,I76-J76,0)) -> 0 | AQ76: 3.867 | AR76: 38.6712
B77: 2016-03-12 | C77: 38130 | D77: 3 | E77: 31 | F77: 1230 | G77: 0.1834 | H77: 0.15196 | I77: 225.582 | J77: 186.9108 | K77: 38.6712 | L77: 2016-01-01 | M77: 2016-09-30 | N77: 38130 | O77: 38130 | P77: 2016-10-01 | Q77: 2016-12-31 | R77: 39160 | S77: 0 | T77: 2017-01-01 | U77: 2017-03-31 | V77: 39160 | W77: 0 | X77: 2017-10-01 | Y77: 2017-03-31 | Z77: 39160 | AA77: 0 | AB77: 2017-12-01 | AC77: 2017-03-31 | AD77: 39160 | AE77: 0 | AF77: 2018-12-02 | AG77: 2017-02-28 | AH77: 39160 | AI77: 0 | AJ77: 2016-04-01 | AK77: 2016-04-30 | AL77: 0 | AM77: 1 | AN77: 0 | AO77: =IF('DA 1.2'!B121=2,0,IF(AN77=1,I77-J77,0)) -> 0 | AQ77: 3.867 | AR77: 38.6712
B78: 2016-03-13 | C78: 38130 | D78: 3 | E78: 31 | F78: 1230 | G78: 0.1834 | H78: 0.15196 | I78: 225.582 | J78: 186.9108 | K78: 38.6712 | L78: 2016-01-01 | M78: 2016-09-30 | N78: 38130 | O78: 38130 | P78: 2016-10-01 | Q78: 2016-12-31 | R78: 39160 | S78: 0 | T78: 2017-01-01 | U78: 2017-03-31 | V78: 39160 | W78: 0 | X78: 2017-10-01 | Y78: 2017-03-31 | Z78: 39160 | AA78: 0 | AB78: 2017-12-01 | AC78: 2017-03-31 | AD78: 39160 | AE78: 0 | AF78: 2018-12-02 | AG78: 2017-02-28 | AH78: 39160 | AI78: 0 | AJ78: 2016-04-01 | AK78: 2016-04-30 | AL78: 0 | AM78: 1 | AN78: 0 | AO78: =IF('DA 1.2'!B122=2,0,IF(AN78=1,I78-J78,0)) -> 0 | AQ78: 3.867 | AR78: 38.6712
B79: 2016-03-14 | C79: 38130 | D79: 3 | E79: 31 | F79: 1230 | G79: 0.1834 | H79: 0.15196 | I79: 225.582 | J79: 186.9108 | K79: 38.6712 | L79: 2016-01-01 | M79: 2016-09-30 | N79: 38130 | O79: 38130 | P79: 2016-10-01 | Q79: 2016-12-31 | R79: 39160 | S79: 0 | T79: 2017-01-01 | U79: 2017-03-31 | V79: 39160 | W79: 0 | X79: 2017-10-01 | Y79: 2017-03-31 | Z79: 39160 | AA79: 0 | AB79: 2017-12-01 | AC79: 2017-03-31 | AD79: 39160 | AE79: 0 | AF79: 2018-12-02 | AG79: 2017-02-28 | AH79: 39160 | AI79: 0 | AJ79: 2016-04-01 | AK79: 2016-04-30 | AL79: 0 | AM79: 1 | AN79: 0 | AO79: =IF('DA 1.2'!B123=2,0,IF(AN79=1,I79-J79,0)) -> 0 | AQ79: 3.867 | AR79: 38.6712
B80: 2016-03-15 | C80: 38130 | D80: 3 | E80: 31 | F80: 1230 | G80: 0.1834 | H80: 0.15196 | I80: 225.582 | J80: 186.9108 | K80: 38.6712 | L80: 2016-01-01 | M80: 2016-09-30 | N80: 38130 | O80: 38130 | P80: 2016-10-01 | Q80: 2016-12-31 | R80: 39160 | S80: 0 | T80: 2017-01-01 | U80: 2017-03-31 | V80: 39160 | W80: 0 | X80: 2017-10-01 | Y80: 2017-03-31 | Z80: 39160 | AA80: 0 | AB80: 2017-12-01 | AC80: 2017-03-31 | AD80: 39160 | AE80: 0 | AF80: 2018-12-02 | AG80: 2017-02-28 | AH80: 39160 | AI80: 0 | AJ80: 2016-04-01 | AK80: 2016-04-30 | AL80: 0 | AM80: 1 | AN80: 0 | AO80: =IF('DA 1.2'!B124=2,0,IF(AN80=1,I80-J80,0)) -> 0 | AQ80: 3.867 | AR80: 38.6712
B81: 2016-03-16 | C81: 38130 | D81: 3 | E81: 31 | F81: 1230 | G81: 0.1834 | H81: 0.15196 | I81: 225.582 | J81: 186.9108 | K81: 38.6712 | L81: 2016-01-01 | M81: 2016-09-30 | N81: 38130 | O81: 38130 | P81: 2016-10-01 | Q81: 2016-12-31 | R81: 39160 | S81: 0 | T81: 2017-01-01 | U81: 2017-03-31 | V81: 39160 | W81: 0 | X81: 2017-10-01 | Y81: 2017-03-31 | Z81: 39160 | AA81: 0 | AB81: 2017-12-01 | AC81: 2017-03-31 | AD81: 39160 | AE81: 0 | AF81: 2018-12-02 | AG81: 2017-02-28 | AH81: 39160 | AI81: 0 | AJ81: 2016-04-01 | AK81: 2016-04-30 | AL81: 0 | AM81: 1 | AN81: 0 | AO81: =IF('DA 1.2'!B125=2,0,IF(AN81=1,I81-J81,0)) -> 0 | AQ81: 3.867 | AR81: 38.6712
B82: 2016-03-17 | C82: 38130 | D82: 3 | E82: 31 | F82: 1230 | G82: 0.1834 | H82: 0.15196 | I82: 225.582 | J82: 186.9108 | K82: 38.6712 | L82: 2016-01-01 | M82: 2016-09-30 | N82: 38130 | O82: 38130 | P82: 2016-10-01 | Q82: 2016-12-31 | R82: 39160 | S82: 0 | T82: 2017-01-01 | U82: 2017-03-31 | V82: 39160 | W82: 0 | X82: 2017-10-01 | Y82: 2017-03-31 | Z82: 39160 | AA82: 0 | AB82: 2017-12-01 | AC82: 2017-03-31 | AD82: 39160 | AE82: 0 | AF82: 2018-12-02 | AG82: 2017-02-28 | AH82: 39160 | AI82: 0 | AJ82: 2016-04-01 | AK82: 2016-04-30 | AL82: 0 | AM82: 1 | AN82: 0 | AO82: =IF('DA 1.2'!B126=2,0,IF(AN82=1,I82-J82,0)) -> 0 | AQ82: 3.867 | AR82: 38.6712
B83: 2016-03-18 | C83: 38130 | D83: 3 | E83: 31 | F83: 1230 | G83: 0.1834 | H83: 0.15196 | I83: 225.582 | J83: 186.9108 | K83: 38.6712 | L83: 2016-01-01 | M83: 2016-09-30 | N83: 38130 | O83: 38130 | P83: 2016-10-01 | Q83: 2016-12-31 | R83: 39160 | S83: 0 | T83: 2017-01-01 | U83: 2017-03-31 | V83: 39160 | W83: 0 | X83: 2017-10-01 | Y83: 2017-03-31 | Z83: 39160 | AA83: 0 | AB83: 2017-12-01 | AC83: 2017-03-31 | AD83: 39160 | AE83: 0 | AF83: 2018-12-02 | AG83: 2017-02-28 | AH83: 39160 | AI83: 0 | AJ83: 2016-04-01 | AK83: 2016-04-30 | AL83: 0 | AM83: 1 | AN83: 0 | AO83: =IF('DA 1.2'!B127=2,0,IF(AN83=1,I83-J83,0)) -> 0 | AQ83: 3.867 | AR83: 38.6712
B84: 2016-03-19 | C84: 38130 | D84: 3 | E84: 31 | F84: 1230 | G84: 0.1834 | H84: 0.15196 | I84: 225.582 | J84: 186.9108 | K84: 38.6712 | L84: 2016-01-01 | M84: 2016-09-30 | N84: 38130 | O84: 38130 | P84: 2016-10-01 | Q84: 2016-12-31 | R84: 39160 | S84: 0 | T84: 2017-01-01 | U84: 2017-03-31 | V84: 39160 | W84: 0 | X84: 2017-10-01 | Y84: 2017-03-31 | Z84: 39160 | AA84: 0 | AB84: 2017-12-01 | AC84: 2017-03-31 | AD84: 39160 | AE84: 0 | AF84: 2018-12-02 | AG84: 2017-02-28 | AH84: 39160 | AI84: 0 | AJ84: 2016-04-01 | AK84: 2016-04-30 | AL84: 0 | AM84: 1 | AN84: 0 | AO84: =IF('DA 1.2'!B128=2,0,IF(AN84=1,I84-J84,0)) -> 0 | AQ84: 3.867 | AR84: 38.6712
B85: 2016-03-20 | C85: 38130 | D85: 3 | E85: 31 | F85: 1230 | G85: 0.1834 | H85: 0.15196 | I85: 225.582 | J85: 186.9108 | K85: 38.6712 | L85: 2016-01-01 | M85: 2016-09-30 | N85: 38130 | O85: 38130 | P85: 2016-10-01 | Q85: 2016-12-31 | R85: 39160 | S85: 0 | T85: 2017-01-01 | U85: 2017-03-31 | V85: 39160 | W85: 0 | X85: 2017-10-01 | Y85: 2017-03-31 | Z85: 39160 | AA85: 0 | AB85: 2017-12-01 | AC85: 2017-03-31 | AD85: 39160 | AE85: 0 | AF85: 2018-12-02 | AG85: 2017-02-28 | AH85: 39160 | AI85: 0 | AJ85: 2016-04-01 | AK85: 2016-04-30 | AL85: 0 | AM85: 1 | AN85: 0 | AO85: =IF('DA 1.2'!B129=2,0,IF(AN85=1,I85-J85,0)) -> 0 | AQ85: 3.867 | AR85: 38.6712
B86: 2016-03-21 | C86: 38130 | D86: 3 | E86: 31 | F86: 1230 | G86: 0.1834 | H86: 0.15196 | I86: 225.582 | J86: 186.9108 | K86: 38.6712 | L86: 2016-01-01 | M86: 2016-09-30 | N86: 38130 | O86: 38130 | P86: 2016-10-01 | Q86: 2016-12-31 | R86: 39160 | S86: 0 | T86: 2017-01-01 | U86: 2017-03-31 | V86: 39160 | W86: 0 | X86: 2017-10-01 | Y86: 2017-03-31 | Z86: 39160 | AA86: 0 | AB86: 2017-12-01 | AC86: 2017-03-31 | AD86: 39160 | AE86: 0 | AF86: 2018-12-02 | AG86: 2017-02-28 | AH86: 39160 | AI86: 0 | AJ86: 2016-04-01 | AK86: 2016-04-30 | AL86: 0 | AM86: 1 | AN86: 0 | AO86: =IF('DA 1.2'!B130=2,0,IF(AN86=1,I86-J86,0)) -> 0 | AQ86: 3.867 | AR86: 38.6712
B87: 2016-03-22 | C87: 38130 | D87: 3 | E87: 31 | F87: 1230 | G87: 0.1834 | H87: 0.15196 | I87: 225.582 | J87: 186.9108 | K87: 38.6712 | L87: 2016-01-01 | M87: 2016-09-30 | N87: 38130 | O87: 38130 | P87: 2016-10-01 | Q87: 2016-12-31 | R87: 39160 | S87: 0 | T87: 2017-01-01 | U87: 2017-03-31 | V87: 39160 | W87: 0 | X87: 2017-10-01 | Y87: 2017-03-31 | Z87: 39160 | AA87: 0 | AB87: 2017-12-01 | AC87: 2017-03-31 | AD87: 39160 | AE87: 0 | AF87: 2018-12-02 | AG87: 2017-02-28 | AH87: 39160 | AI87: 0 | AJ87: 2016-04-01 | AK87: 2016-04-30 | AL87: 0 | AM87: 1 | AN87: 0 | AO87: =IF('DA 1.2'!B131=2,0,IF(AN87=1,I87-J87,0)) -> 0 | AQ87: 3.867 | AR87: 38.6712
B88: 2016-03-23 | C88: 38130 | D88: 3 | E88: 31 | F88: 1230 | G88: =G87 -> 0.1834 | H88: 0.15196 | I88: 225.582 | J88: 186.9108 | K88: 38.6712 | L88: =L87 -> 2016-01-01 | M88: 2016-09-30 | N88: 38130 | O88: 38130 | P88: =P87 -> 2016-10-01 | Q88: 2016-12-31 | R88: 39160 | S88: 0 | T88: =T87 -> 2017-01-01 | U88: 2017-03-31 | V88: 39160 | W88: 0 | X88: =X87 -> 2017-10-01 | Y88: 2017-03-31 | Z88: 39160 | AA88: 0 | AB88: 2017-12-01 | AC88: 2017-03-31 | AD88: 39160 | AE88: 0 | AF88: 2018-12-02 | AG88: 2017-02-28 | AH88: 39160 | AI88: 0 | AJ88: =AJ87 -> 2016-04-01 | AK88: 2016-04-30 | AL88: 0 | AM88: 1 | AN88: 0 | AO88: =IF('DA 1.2'!B132=2,0,IF(AN88=1,I88-J88,0)) -> 0 | AQ88: 3.867 | AR88: 38.6712
B89: 2016-03-24 | C89: 38130 | D89: 3 | E89: 31 | F89: 1230 | G89: 0.1834 | H89: 0.15196 | I89: 225.582 | J89: 186.9108 | K89: 38.6712 | L89: 2016-01-01 | M89: 2016-09-30 | N89: 38130 | O89: 38130 | P89: 2016-10-01 | Q89: 2016-12-31 | R89: 39160 | S89: 0 | T89: 2017-01-01 | U89: 2017-03-31 | V89: 39160 | W89: 0 | X89: 2017-10-01 | Y89: 2017-03-31 | Z89: 39160 | AA89: 0 | AB89: 2017-12-01 | AC89: 2017-03-31 | AD89: 39160 | AE89: 0 | AF89: 2018-12-02 | AG89: 2017-02-28 | AH89: 39160 | AI89: 0 | AJ89: 2016-04-01 | AK89: 2016-04-30 | AL89: 0 | AM89: 1 | AN89: 0 | AO89: =IF('DA 1.2'!B133=2,0,IF(AN89=1,I89-J89,0)) -> 0 | AQ89: 3.867 | AR89: 38.6712
